Workbook

Sheet StudyPlan
A1: รายวิชา 195231 : THERMODYNAMICS I | N1: ปีการศึกษา 2556 ภาคการศึกษาที่ 1
A2: แผนการสอนและประเมินผล | N2: Section 1
N3: รศ.ดร.สมหมาย ปรีเปรม
K4: การวัดผล
A5: Chapter | B5: Topic | C5: hr | D5: WK | E5: WeekAcc | F5: DateStart | G5: DateEnd | I5: Chapter | J5: Topic | K5: HW | L5: web-Quiz | M5: Test | N5: Exam
A6: 1 | B6: Basic Concept of Thermodynamics | C6: 3 | D6: =+C6/3 -> 1 | E6: =+D6 -> 1 | F6: 2013-06-03 | G6: =+F6+(D6*7-2) -> 2013-06-08 | I6: 1 | J6: Basic Concept of Thermodynamics | K6: 1 | L6: 1 | M6: 1 | N6: Midterm 30
A7: 2 | B7: Properties of Pure Substances | C7: 4.5 | D7: =+C7/3 -> 1.5 | E7: =+E6+D7 -> 2.5 | F7: =+G6+2 -> 2013-06-10 | G7: 2013-06-18T12:00:00 | I7: 2 | J7: Properties of Pure Substances | K7: 2 | L7: 2 - 3
A8: 3 | B8: Heat and Work | C8: 3 | D8: 1 | E8: =+E7+D8 -> 3.5 | F8: =+G7+2 -> 2013-06-20T12:00:00 | G8: 2013-06-25T12:00:00 | I8: 3 | J8: Heat and Work | K8: 3 | L8: 4
A9: 4 | B9: The First Law of Thermodynamics | C9: 9 | D9: 3 | E9: =+E8+D9 -> 6.5 | F9: =+G8+2 -> 2013-06-27T12:00:00 | G9: 2013-07-16T12:00:00 | I9: 4 | J9: The First Law of Thermodynamics | K9: 4 | L9: 5 - 6
A10: 5 | B10: The Second Law of Thermodynamics | C10: 4.5 | D10: 1.5 | E10: =+E9+D10 -> 8 | F10: =+G9+2 -> 2013-07-18T12:00:00 | G10: 2013-07-27 | I10: 5 | J10: The Second Law of Thermodynamics | K10: 5 | L10: 7
B11: Midterm Exam | D11: 1 | E11: =+E10+D11 -> 9 | F11: =+G10+2 -> 2013-07-29 | G11: =+F11+(D11*7-3) -> 2013-08-02
A12: 6 | B12: Entropy | C12: 6 | D12: =+C12/3 -> 2 | E12: =+E11+D12 -> 11 | F12: =+G11+2 -> 2013-08-04 | G12: =+F12+(D12*7-2) -> 2013-08-16 | I12: 6 | J12: Entropy | K12: 6 | L12: 8 | M12: 2 | N12: Final 40
A13: 7 | B13: Gas Power Cycles | C13: 3 | D13: =+C13/3 -> 1 | E13: =+E12+D13 -> 12 | F13: 2013-08-18 | G13: =+F13+(D13*7-2) -> 2013-08-23 | I13: 7 | J13: Gas Power Cycles | K13: 7 | L13: 9
A14: 8 | B14: Vapor Power Cycles | C14: 6 | D14: =+C14/3 -> 2 | E14: =+E13+D14 -> 14 | F14: 2013-08-25 | G14: =+F14+(D14*7-2) -> 2013-09-06 | I14: 8 | J14: Vapor Power Cycles | K14: 8 | L14: 10
A15: 9 | B15: Refrigeration Cycles | C15: 4.5 | D15: =+C15/3 -> 1.5 | E15: =+E14+D15 -> 15.5 | F15: 2013-09-08 | G15: =+F15+(D15*7-2) -> 2013-09-16T12:00:00 | I15: 9 | J15: Refrigeration Cycles | L15: 11
A16: 10 | B16: Basic to Heat Transfer | C16: 1.5 | D16: =+C16/3 -> 0.5 | E16: =+E15+D16 -> 16 | F16: 2013-09-18T12:00:00 | G16: =+F16+(D16*7-2) -> 2013-09-20 | I16: 10 | J16: Basic to Heat Transfer
B17: Final Exam | F17: =+G16+3 -> 2013-09-23 | G17: =+F17+17 -> 2013-10-10
B18: รวม | C18: =SUM(C6:C16) -> 45 | D18: =SUM(D6:D16) -> 16 | J18: คะแนน | K18: 10 | L18: 10 | M18: 10 | N18: 70

Sheet ตัดเกรด
A1: รายวิชา 185231 : THERMODYNAMICS I
A2: ตัดเกรดอิงเกณฑ์
A3: คะแนนการตัดเกรด โดยประมาณ
A4: คะแนนขั้นต่ำ | C4: เกรด | D4: คะแนนขั้นสูง
A5: ≥ | B5: 80 | C5: A | D5: ≤ | E5: 100
A6: ≥ | B6: 75 | C6: B+ | D6: < | E6: 80
A7: ≥ | B7: 70 | C7: B | D7: < | E7: 75
A8: ≥ | B8: 60 | C8: C+ | D8: < | E8: 70
A9: ≥ | B9: 50 | C9: C | D9: < | E9: 60
A10: ≥ | B10: 45 | C10: D+ | D10: < | E10: 50
A11: ≥ | B11: 40 | C11: D | D11: < | E11: 45
A12: ≥ | B12: 0 | C12: F | D12: < | E12: 40

Sheet Score
B1: รายวิชา | C1: 195231 : THERMODYNAMICS I | F1: Section 1 | G1: 10 | H1: 10 | I1: 10 | J1: 30 | L1: =SUM(G1:K1) -> 60 | M1: Accumulated | N1: Ctrl z to return to this page and reset
B2: ปีการศึกษา | C2: 2556 ภาคการศึกษาที่ 1 | F2: รศ.ดร.สมหมาย ปรีเปรม | G2: 10 | H2: 10 | I2: 10 | J2: 30 | K2: 40 | L2: =SUM(G2:K2) -> 100 | M2: Full score
B3: รหัส | C3: ชื่อ | D3: หลักสูตร | E3: GPA | F3: Section 1 | G3: HW | H3: Quiz | I3: Test | J3: Midterm | K3: Final | L3: Sum | M3: %Acc | N3: Grade | O3: ขาดเรียน
A4: =+Name!A4 -> 1 | B4: =+Name!B4 -> 553040026-9 | C4: =+Name!C4 -> นางสาวกนกกาญจน์ อุปสาร | D4: =+Name!D4 -> EN-IE | E4: =+Name!G4 -> 2.7 | F4: =+Name!H4 -> 1 | G4: =+HomeworkAll!S4 -> 9.479166667 | H4: =+QuizAll!S4 -> 9.545833333 | I4: =+TestAll!K4 -> 9 | J4: =(+Midterm!I4)*30/50 -> 12.6 | L4: =SUM(G4:K4) -> 40.625 | M4: =(L4/$L$1)*100 -> 67.70833333 | N4: =grade(M4) -> C+ | O4: =Class!AN93 -> 0 | P4: 1
A5: =+Name!A5 -> 2 | B5: =+Name!B5 -> 553040032-4 | C5: =+Name!C5 -> นายกิตติภัทร จิตรกสิกร | D5: =+Name!D5 -> EN-IE | E5: =+Name!G5 -> 2.68 | F5: =+Name!H5 -> 1 | G5: =+HomeworkAll!S5 -> 9.518518519 | H5: =+QuizAll!S5 -> 9.75 | I5: =+TestAll!K5 -> 8.928571429 | J5: =(+Midterm!I5)*30/50 -> 10.2 | L5: 38.39708995 | M5: 63.99514991 | N5: C+ | O5: =Class!AN92 -> 0 | P5: 2
A6: =+Name!A6 -> 3 | B6: =+Name!B6 -> 553040033-2 | C6: =+Name!C6 -> นายกิรติกร แก้วปานกัน | D6: =+Name!D6 -> EN-ME | E6: =+Name!G6 -> 2.82 | F6: =+Name!H6 -> 1 | G6: =+HomeworkAll!S6 -> 9.314604377 | H6: =+QuizAll!S6 -> 9.75 | I6: =+TestAll!K6 -> 7.726190476 | J6: =(+Midterm!I6)*30/50 -> 21 | L6: 47.79079485 | M6: 79.65132476 | N6: B+ | O6: =Class!AN91 -> 0 | P6: 3
A7: =+Name!A7 -> 4 | B7: =+Name!B7 -> 553040041-3 | C7: =+Name!C7 -> นางสาวชนาธินาถ โสกงโสด | D7: =+Name!D7 -> EN-ME | E7: =+Name!G7 -> 2.42 | F7: =+Name!H7 -> 1 | G7: =+HomeworkAll!S7 -> 9.825 | H7: =+QuizAll!S7 -> 8.3375 | I7: =+TestAll!K7 -> 7.25 | J7: =(+Midterm!I7)*30/50 -> 7.8 | L7: 33.2125 | M7: 55.35416667 | N7: C | O7: =Class!AN90 -> 0 | P7: 4
A8: =+Name!A8 -> 5 | B8: =+Name!B8 -> 553040045-5 | C8: =+Name!C8 -> นายณัฏฐกิตติ์ พูลประสงค์ | D8: =+Name!D8 -> EN-ME | E8: =+Name!G8 -> 3.28 | F8: =+Name!H8 -> 1 | G8: =+HomeworkAll!S8 -> 8.930555556 | H8: =+QuizAll!S8 -> 10 | I8: =+TestAll!K8 -> 9.630952381 | J8: =(+Midterm!I8)*30/50 -> 23.4 | L8: 51.96150794 | M8: 86.60251323 | N8: A | O8: =Class!AN89 -> 0 | P8: 5
A9: =+Name!A9 -> 6 | B9: =+Name!B9 -> 553040047-1 | C9: =+Name!C9 -> นายณัฐพงษ์ กลิ่นมาลี | D9: =+Name!D9 -> EN-ME | E9: =+Name!G9 -> 2.87 | F9: =+Name!H9 -> 1 | G9: =+HomeworkAll!S9 -> 7.835858586 | H9: =+QuizAll!S9 -> 8.830083333 | I9: =+TestAll!K9 -> 8.714285714 | J9: =(+Midterm!I9)*30/50 -> 18.3 | L9: 43.68022763 | M9: 72.80037939 | N9: B | O9: =Class!AN88 -> 0 | P9: 6
A10: =+Name!A10 -> 7 | B10: =+Name!B10 -> 553040049-7 | C10: =+Name!C10 -> นายณัฐวัตร สุขสำราญ | D10: =+Name!D10 -> EN-IE | E10: =+Name!G10 -> 1.76 | F10: =+Name!H10 -> 1 | G10: =+HomeworkAll!S10 -> 5.898358586 | H10: =+QuizAll!S10 -> 6.65475 | I10: =+TestAll!K10 -> 7.75 | J10: =(+Midterm!I10)*30/50 -> 8.4 | L10: 28.70310859 | M10: 47.83851431 | N10: D+ | O10: =Class!AN87 -> 0 | P10: 7
A11: =+Name!A11 -> 8 | B11: =+Name!B11 -> 553040050-2 | C11: =+Name!C11 -> นายณัฐวุฒิ ฆารประเดิม | D11: =+Name!D11 -> EN-ME | E11: =+Name!G11 -> 2.87 | F11: =+Name!H11 -> 1 | G11: =+HomeworkAll!S11 -> 8.569444444 | H11: =+QuizAll!S11 -> 9.833333333 | I11: =+TestAll!K11 -> 8.523809524 | J11: =(+Midterm!I11)*30/50 -> 15.3 | L11: 42.2265873 | M11: 70.3776455 | N11: B | O11: =Class!AN86 -> 0 | P11: 8
A12: =+Name!A12 -> 9 | B12: =+Name!B12 -> 553040052-8 | C12: =+Name!C12 -> นายถิรวัฒน์ แก้วคำปอด | D12: =+Name!D12 -> EN-ME | E12: =+Name!G12 -> 2.61 | F12: =+Name!H12 -> 1 | G12: =+HomeworkAll!S12 -> 7.907407407 | H12: =+QuizAll!S12 -> 9.860833333 | I12: =+TestAll!K12 -> 5.880952381 | J12: =(+Midterm!I12)*30/50 -> 19.5 | L12: 43.14919312 | M12: 71.91532187 | N12: B | O12: =Class!AN85 -> 0 | P12: 9
A13: =+Name!A13 -> 10 | B13: =+Name!B13 -> 553040057-8 | C13: =+Name!C13 -> นายธนวิชญ์ เลิศวุฒิชัยกุล | D13: =+Name!D13 -> EN-IE | E13: =+Name!G13 -> 2.29 | F13: =+Name!H13 -> 1 | G13: =+HomeworkAll!S13 -> 1.583333333 | H13: =+QuizAll!S13 -> 2.94175 | I13: =+TestAll!K13 -> 4.333333333 | J13: =(+Midterm!I13)*30/50 -> 19.2 | L13: 28.05841667 | M13: 46.76402778 | N13: D+ | O13: =Class!AN84 -> 0 | P13: 10
A14: =+Name!A14 -> 11 | B14: =+Name!B14 -> 553040059-4 | C14: =+Name!C14 -> นายธนากร บุญดาว | D14: =+Name!D14 -> EN-ME | E14: =+Name!G14 -> 3.03 | F14: =+Name!H14 -> 1 | G14: =+HomeworkAll!S14 -> 9.972222222 | H14: =+QuizAll!S14 -> 9 | I14: =+TestAll!K14 -> 8.130952381 | J14: =(+Midterm!I14)*30/50 -> 20.7 | L14: 47.8031746 | M14: 79.67195767 | N14: B+ | O14: =Class!AN83 -> 0 | P14: 11
A15: =+Name!A15 -> 12 | B15: =+Name!B15 -> 553040060-9 | C15: =+Name!C15 -> นายธนานนท์ ติรวีรขจร | D15: =+Name!D15 -> EN-ME | E15: =+Name!G15 -> 2.51 | F15: =+Name!H15 -> 1 | G15: =+HomeworkAll!S15 -> 9.944444444 | H15: =+QuizAll!S15 -> 9.229166667 | I15: =+TestAll!K15 -> 9.19047619 | J15: =(+Midterm!I15)*30/50 -> 19.2 | L15: 47.5640873 | M15: 79.27347884 | N15: B+ | O15: =Class!AN82 -> 0 | P15: 12
A16: =+Name!A16 -> 13 | B16: =+Name!B16 -> 553040061-7 | C16: =+Name!C16 -> นายธนารักษ์ ศรีน้อย | D16: =+Name!D16 -> EN-ME | E16: =+Name!G16 -> 2.51 | F16: =+Name!H16 -> 1 | G16: =+HomeworkAll!S16 -> 6.386574074 | H16: =+QuizAll!S16 -> 7.443416667 | I16: =+TestAll!K16 -> 6.464285714 | J16: =(+Midterm!I16)*30/50 -> 19.8 | L16: 40.09427646 | M16: 66.82379409 | N16: C+ | O16: =Class!AN81 -> 0 | P16: 13
A17: =+Name!A17 -> 14 | B17: =+Name!B17 -> 553040063-3 | C17: =+Name!C17 -> นายธีรเจต เตรียมวิชานนท์ | D17: =+Name!D17 -> EN-ME | E17: =+Name!G17 -> 3.03 | F17: =+Name!H17 -> 1 | G17: =+HomeworkAll!S17 -> 9.469907407 | H17: =+QuizAll!S17 -> 9.254166667 | I17: =+TestAll!K17 -> 8.761904762 | J17: =(+Midterm!I17)*30/50 -> 14.1 | L17: 41.58597884 | M17: 69.30996473 | N17: C+ | O17: =Class!AN80 -> 0 | P17: 14
A18: =+Name!A18 -> 15 | B18: =+Name!B18 -> 553040064-1 | C18: =+Name!C18 -> นายธีรพล เตชะเสน | D18: =+Name!D18 -> EN-ME | E18: =+Name!G18 -> 3.24 | F18: =+Name!H18 -> 1 | G18: =+HomeworkAll!S18 -> 9.905555556 | H18: =+QuizAll!S18 -> 10 | I18: =+TestAll!K18 -> 9.630952381 | J18: =(+Midterm!I18)*30/50 -> 18 | L18: 47.53650794 | M18: 79.22751323 | N18: B+ | O18: =Class!AN79 -> 0 | P18: 15
A19: =+Name!A19 -> 16 | B19: =+Name!B19 -> 553040071-4 | C19: =+Name!C19 -> นายบรรยง ชัยยิ่ง | D19: =+Name!D19 -> EN-ME | E19: =+Name!G19 -> 2.68 | F19: =+Name!H19 -> 1 | G19: =+HomeworkAll!S19 -> 9.90625 | H19: =+QuizAll!S19 -> 9.408083333 | I19: =+TestAll!K19 -> 8.666666667 | J19: =(+Midterm!I19)*30/50 -> 16.8 | L19: 44.781 | M19: 74.635 | N19: B | O19: =Class!AN78 -> 0 | P19: 16
A20: =+Name!A20 -> 17 | B20: =+Name!B20 -> 553040072-2 | C20: =+Name!C20 -> นายบัญชา แก้วอาจ | D20: =+Name!D20 -> EN-IE | E20: =+Name!G20 -> 2.26 | F20: =+Name!H20 -> 1 | G20: =+HomeworkAll!S20 -> 5.458333333 | H20: =+QuizAll!S20 -> 5.3375 | I20: =+TestAll!K20 -> 6.107142857 | J20: =(+Midterm!I20)*30/50 -> 13.2 | L20: 30.10297619 | M20: 50.17162698 | N20: C | O20: =Class!AN77 -> 0 | P20: 17
A21: =+Name!A21 -> 18 | B21: =+Name!B21 -> 553040083-7 | C21: =+Name!C21 -> นายพันธวัช เก็มประโคน | D21: =+Name!D21 -> EN-IE | E21: =+Name!G21 -> 2.08 | F21: =+Name!H21 -> 1 | G21: =+HomeworkAll!S21 -> 3.683796296 | H21: =+QuizAll!S21 -> 3.795833333 | I21: =+TestAll!K21 -> 8.761904762 | J21: =(+Midterm!I21)*30/50 -> 20.4 | L21: 36.64153439 | M21: 61.06922399 | N21: C+ | O21: =Class!AN76 -> 0 | P21: 18
A22: =+Name!A22 -> 19 | B22: =+Name!B22 -> 553040085-3 | C22: =+Name!C22 -> นายพิพัฒน์ รักทองจัน | D22: =+Name!D22 -> EN-ME | E22: =+Name!G22 -> 3.04 | F22: =+Name!H22 -> 1 | G22: =+HomeworkAll!S22 -> 9.138888889 | H22: =+QuizAll!S22 -> 9.054166667 | I22: =+TestAll!K22 -> 8.797619048 | J22: =(+Midterm!I22)*30/50 -> 22.2 | L22: 49.1906746 | M22: 81.98445767 | N22: A | O22: =Class!AN75 -> 0 | P22: 19
A23: =+Name!A23 -> 20 | B23: =+Name!B23 -> 553040087-9 | C23: =+Name!C23 -> นายพิภัทรยา ศิริแว่น | D23: =+Name!D23 -> EN-ME | E23: =+Name!G23 -> 2.29 | F23: =+Name!H23 -> 1 | G23: =+HomeworkAll!S23 -> 8.194444444 | H23: =+QuizAll!S23 -> 9.083333333 | I23: =+TestAll!K23 -> 9.875 | J23: =(+Midterm!I23)*30/50 -> 0 | L23: 27.15277778 | M23: 45.25462963 | N23: D+ | O23: =Class!AN74 -> 0 | P23: 20
A24: =+Name!A24 -> 21 | B24: =+Name!B24 -> 553040092-6 | C24: =+Name!C24 -> นายยศพนธ์ จันทร์วิเมลือง | D24: =+Name!D24 -> EN-ME | E24: =+Name!G24 -> 3.11 | F24: =+Name!H24 -> 1 | G24: =+HomeworkAll!S24 -> 8.826388889 | H24: =+QuizAll!S24 -> 9.629166667 | I24: =+TestAll!K24 -> 6.452380952 | J24: =(+Midterm!I24)*30/50 -> 8.4 | L24: 33.30793651 | M24: 55.51322751 | N24: C | O24: =Class!AN73 -> 0 | P24: 21
A25: =+Name!A25 -> 22 | B25: =+Name!B25 -> 553040094-2 | C25: =+Name!C25 -> นายยุทธการ แสนเสนา | D25: =+Name!D25 -> EN-ME | E25: =+Name!G25 -> 2.37 | F25: =+Name!H25 -> 1 | G25: =+HomeworkAll!S25 -> 8.0625 | H25: =+QuizAll!S25 -> 9.0075 | I25: =+TestAll!K25 -> 8.5 | J25: =(+Midterm!I25)*30/50 -> 17.7 | L25: 43.27 | M25: 72.11666667 | N25: B | O25: =Class!AN72 -> 0 | P25: 22
A26: =+Name!A26 -> 23 | B26: =+Name!B26 -> 553040095-0 | C26: =+Name!C26 -> นายยุทธนา พิริยะสุทธิ์ | D26: =+Name!D26 -> EN-ME | E26: =+Name!G26 -> 2.64 | F26: =+Name!H26 -> 1 | G26: =+HomeworkAll!S26 -> 6.888888889 | H26: =+QuizAll!S26 -> 8.931666667 | I26: =+TestAll!K26 -> 9.357142857 | J26: =(+Midterm!I26)*30/50 -> 20.4 | L26: 45.57769841 | M26: 75.96283069 | N26: B+ | O26: =Class!AN71 -> 0 | P26: 23
A27: =+Name!A27 -> 24 | B27: =+Name!B27 -> 553040101-1 | C27: =+Name!C27 -> นายวรพล จันทร์ผิว | D27: =+Name!D27 -> EN-IE | E27: =+Name!G27 -> 3.05 | F27: =+Name!H27 -> 1 | G27: =+HomeworkAll!S27 -> 8.500252525 | H27: =+QuizAll!S27 -> 8.708333333 | I27: =+TestAll!K27 -> 9.178571429 | J27: =(+Midterm!I27)*30/50 -> 23.1 | L27: 49.48715729 | M27: 82.47859548 | N27: A | O27: =Class!AN70 -> 0 | P27: 24
A28: =+Name!A28 -> 25 | B28: =+Name!B28 -> 553040104-5 | C28: =+Name!C28 -> นายวรานนท์ ยุทธอมร | D28: =+Name!D28 -> EN-ME | E28: =+Name!G28 -> 2.72 | F28: =+Name!H28 -> 1 | G28: =+HomeworkAll!S28 -> 5 | H28: =+QuizAll!S28 -> 6.93225 | I28: =+TestAll!K28 -> 8.476190476 | J28: =(+Midterm!I28)*30/50 -> 20.4 | L28: 40.80844048 | M28: 68.01406746 | N28: C+ | O28: =Class!AN69 -> 0 | P28: 25
A29: =+Name!A29 -> 26 | B29: =+Name!B29 -> 553040106-1 | C29: =+Name!C29 -> นายวศิน คำปัญโญ | D29: =+Name!D29 -> EN-ME | E29: =+Name!G29 -> 2.6 | F29: =+Name!H29 -> 1 | G29: =+HomeworkAll!S29 -> 8.9375 | H29: =+QuizAll!S29 -> 9.22225 | I29: =+TestAll!K29 -> 5.773809524 | J29: =(+Midterm!I29)*30/50 -> 14.4 | L29: 38.33355952 | M29: 63.88926587 | N29: C+ | O29: =Class!AN68 -> 0 | P29: 26
A30: =+Name!A30 -> 27 | B30: =+Name!B30 -> 553040108-7 | C30: =+Name!C30 -> นายวิชญสิทธิ์ พันธุ์รักษา | D30: =+Name!D30 -> EN-IE | E30: =+Name!G30 -> 2.83 | F30: =+Name!H30 -> 1 | G30: =+HomeworkAll!S30 -> 9.375 | H30: =+QuizAll!S30 -> 8.833333333 | I30: =+TestAll!K30 -> 8.273809524 | J30: =(+Midterm!I30)*30/50 -> 19.8 | L30: 46.28214286 | M30: 77.13690476 | N30: B+ | O30: =Class!AN67 -> 0 | P30: 27
A31: =+Name!A31 -> 28 | B31: =+Name!B31 -> 553040121-5 | C31: =+Name!C31 -> นายสิริวุฒิ ภูมิภูเขียว | D31: =+Name!D31 -> EN-IE | E31: =+Name!G31 -> 2.06 | F31: =+Name!H31 -> 1 | G31: =+HomeworkAll!S31 -> 8.540277778 | H31: =+QuizAll!S31 -> 6.49 | I31: =+TestAll!K31 -> 7.988095238 | J31: =(+Midterm!I31)*30/50 -> 7.8 | L31: 30.81837302 | M31: 51.36395503 | N31: C | O31: =Class!AN66 -> 0 | P31: 28
A32: =+Name!A32 -> 29 | B32: =+Name!B32 -> 553040123-1 | C32: =+Name!C32 -> นางสาวหทัยชนก ปัญญาบุตร | D32: =+Name!D32 -> EN-ME | E32: =+Name!G32 -> 2.45 | F32: =+Name!H32 -> 1 | G32: =+HomeworkAll!S32 -> 8.725084175 | H32: =+QuizAll!S32 -> 9.127 | I32: =+TestAll!K32 -> 6.904761905 | J32: =(+Midterm!I32)*30/50 -> 10.8 | L32: 35.55684608 | M32: 59.26141013 | N32: C | O32: =Class!AN65 -> 0 | P32: 29
A33: =+Name!A33 -> 30 | B33: =+Name!B33 -> 553040126-5 | C33: =+Name!C33 -> นายอนวัช คงวีระวัฒน์ | D33: =+Name!D33 -> EN-ME | E33: =+Name!G33 -> 2.27 | F33: =+Name!H33 -> 1 | G33: =+HomeworkAll!S33 -> 5.5 | H33: =+QuizAll!S33 -> 7.819416667 | I33: =+TestAll!K33 -> 7.023809524 | J33: =(+Midterm!I33)*30/50 -> 9.6 | L33: 29.94322619 | M33: 49.90537698 | N33: D+ | O33: =Class!AN64 -> 0 | P33: 30
A34: =+Name!A34 -> 31 | B34: =+Name!B34 -> 553040132-0 | C34: =+Name!C34 -> นางสาวอรทัย ยอดแก้วพิสัย | D34: =+Name!D34 -> EN-IE | E34: =+Name!G34 -> 2.8 | F34: =+Name!H34 -> 1 | G34: =+HomeworkAll!S34 -> 9.706018519 | H34: =+QuizAll!S34 -> 9.583333333 | I34: =+TestAll!K34 -> 8.630952381 | J34: =(+Midterm!I34)*30/50 -> 16.8 | L34: 44.72030423 | M34: 74.53384039 | N34: B | O34: =Class!AN63 -> 0 | P34: 31
A35: =+Name!A35 -> 32 | B35: =+Name!B35 -> 553040133-8 | C35: =+Name!C35 -> นายอรรถชัย ทองสุข | D35: =+Name!D35 -> EN-ME | E35: =+Name!G35 -> 2.16 | F35: =+Name!H35 -> 1 | G35: =+HomeworkAll!S35 -> 9.632154882 | H35: =+QuizAll!S35 -> 9.833333333 | I35: =+TestAll!K35 -> 7.726190476 | J35: =(+Midterm!I35)*30/50 -> 21.6 | L35: 48.79167869 | M35: 81.31946449 | N35: A | O35: =Class!AN62 -> 0 | P35: 32
A36: =+Name!A36 -> 33 | B36: =+Name!B36 -> 553040136-2 | C36: =+Name!C36 -> นางสาวอัชฌา เสาร์สิงห์ | D36: =+Name!D36 -> EN-ME | E36: =+Name!G36 -> 2.8 | F36: =+Name!H36 -> 1 | G36: =+HomeworkAll!S36 -> 8.975883838 | H36: =+QuizAll!S36 -> 8.883916667 | I36: =+TestAll!K36 -> 8.75 | J36: =(+Midterm!I36)*30/50 -> 11.4 | L36: =SUM(G36:K36) -> 38.00980051 | M36: =(L36/$L$1)*100 -> 63.34966751 | N36: =grade(M36) -> C+ | O36: =Class!AN61 -> 0 | P36: 33
A37: =+Name!A37 -> 34 | B37: =+Name!B37 -> 553040137-0 | C37: =+Name!C37 -> นางสาวอัชรา เชาว์ชอบ | D37: =+Name!D37 -> EN-IE | E37: =+Name!G37 -> 2.81 | F37: =+Name!H37 -> 1 | G37: =+HomeworkAll!S37 -> 8.460648148 | H37: =+QuizAll!S37 -> 9.833333333 | I37: =+TestAll!K37 -> 9.035714286 | J37: =(+Midterm!I37)*30/50 -> 14.4 | L37: 41.72969577 | M37: 69.54949295 | N37: C+ | O37: =Class!AN60 -> 0 | P37: 34
A38: =+Name!A38 -> 35 | B38: =+Name!B38 -> 553040146-9 | C38: =+Name!C38 -> นายเจษฎา พลชา | D38: =+Name!D38 -> EN-AE | E38: =+Name!G38 -> 2.39 | F38: =+Name!H38 -> 1 | G38: =+HomeworkAll!S38 -> 5.814141414 | H38: =+QuizAll!S38 -> 9.821416667 | I38: =+TestAll!K38 -> 7.071428571 | J38: =(+Midterm!I38)*30/50 -> 9.6 | L38: 32.30698665 | M38: 53.84497775 | N38: C | O38: =Class!AN59 -> 0 | P38: 35
A39: =+Name!A39 -> 36 | B39: =+Name!B39 -> 553040148-5 | C39: =+Name!C39 -> นายเชษฐทรัพย์ ทองคำใส | D39: =+Name!D39 -> EN-AE | E39: =+Name!G39 -> 2.6 | F39: =+Name!H39 -> 1 | G39: =+HomeworkAll!S39 -> 9.631944444 | H39: =+QuizAll!S39 -> 8.924166667 | I39: =+TestAll!K39 -> 7.380952381 | J39: =(+Midterm!I39)*30/50 -> 10.2 | L39: 36.13706349 | M39: 60.22843915 | N39: C+ | O39: =Class!AN58 -> 0 | P39: 36
A40: =+Name!A40 -> 37 | B40: =+Name!B40 -> 553040149-3 | C40: =+Name!C40 -> นายณัฐพงษ์ เหล่าจูม | D40: =+Name!D40 -> EN-AE | E40: =+Name!G40 -> 3.04 | F40: =+Name!H40 -> 1 | G40: =+HomeworkAll!S40 -> 9.694402357 | H40: =+QuizAll!S40 -> 9.875 | I40: =+TestAll!K40 -> 7.60952381 | J40: =(+Midterm!I40)*30/50 -> 18 | L40: 45.17892617 | M40: 75.29821028 | N40: B+ | O40: =Class!AN57 -> 0 | P40: 37
A41: =+Name!A41 -> 38 | B41: =+Name!B41 -> 553040154-0 | C41: =+Name!C41 -> นางสาวนฤมล พรมพุ้ย | D41: =+Name!D41 -> EN-AE | E41: =+Name!G41 -> 2.53 | F41: =+Name!H41 -> 1 | G41: =+HomeworkAll!S41 -> 9.506523569 | H41: =+QuizAll!S41 -> 8.198583333 | I41: =+TestAll!K41 -> 7.452380952 | J41: =(+Midterm!I41)*30/50 -> 15 | L41: 40.15748785 | M41: 66.92914642 | N41: C+ | O41: =Class!AN56 -> 0 | P41: 38
A42: =+Name!A42 -> 39 | B42: =+Name!B42 -> 553040163-9 | C42: =+Name!C42 -> นางสาววาสนา เคเมือง | D42: =+Name!D42 -> EN-AE | E42: =+Name!G42 -> 2.3 | F42: =+Name!H42 -> 1 | G42: =+HomeworkAll!S42 -> 9.666035354 | H42: =+QuizAll!S42 -> 9.979166667 | I42: =+TestAll!K42 -> 6.19047619 | J42: =(+Midterm!I42)*30/50 -> 16.2 | L42: 42.03567821 | M42: 70.05946368 | N42: B | O42: =Class!AN55 -> 0 | P42: 39
A43: =+Name!A43 -> 40 | B43: =+Name!B43 -> 553040164-7 | C43: =+Name!C43 -> นายวิภูรินทร์ เลิศพนาลัย | D43: =+Name!D43 -> EN-AE | E43: =+Name!G43 -> 2.55 | F43: =+Name!H43 -> 1 | G43: =+HomeworkAll!S43 -> 6.559343434 | H43: =+QuizAll!S43 -> 9.297583333 | I43: =+TestAll!K43 -> 6.547619048 | J43: =(+Midterm!I43)*30/50 -> 10.8 | L43: 33.20454582 | M43: 55.34090969 | N43: C | O43: =Class!AN54 -> 0 | P43: 40
A44: =+Name!A44 -> 41 | B44: =+Name!B44 -> 553040167-1 | C44: =+Name!C44 -> นายอดิศักดิ์ มุนนี | D44: =+Name!D44 -> EN-AE | E44: =+Name!G44 -> 2.96 | F44: =+Name!H44 -> 1 | G44: =+HomeworkAll!S44 -> 8.571296296 | H44: =+QuizAll!S44 -> 9.75 | I44: =+TestAll!K44 -> 7.535714286 | J44: =(+Midterm!I44)*30/50 -> 20.4 | L44: 46.25701058 | M44: 77.09501764 | N44: B+ | O44: =Class!AN53 -> 0 | P44: 41
A45: =+Name!A45 -> 42 | B45: =+Name!B45 -> 553040169-7 | C45: =+Name!C45 -> นายอภิสิทธิ์ รังสิมาวงศ์ | D45: =+Name!D45 -> EN-AE | E45: =+Name!G45 -> 3.16 | F45: =+Name!H45 -> 1 | G45: =+HomeworkAll!S45 -> 8.535858586 | H45: =+QuizAll!S45 -> 9.916666667 | I45: =+TestAll!K45 -> 7.44047619 | J45: =(+Midterm!I45)*30/50 -> 17.4 | L45: 43.29300144 | M45: 72.15500241 | N45: B | O45: =Class!AN52 -> 0 | P45: 42
A46: =+Name!A46 -> 43 | B46: =+Name!B46 -> 553040170-2 | C46: =+Name!C46 -> นายอาทิตย์ ภูผาผุด | D46: =+Name!D46 -> EN-AE | E46: =+Name!G46 -> 3.25 | F46: =+Name!H46 -> 1 | G46: =+HomeworkAll!S46 -> 9.693771044 | H46: =+QuizAll!S46 -> 10 | I46: =+TestAll!K46 -> 8.70952381 | J46: =(+Midterm!I46)*30/50 -> 21.6 | L46: 50.00329485 | M46: 83.33882476 | N46: A | O46: =Class!AN51 -> 0 | P46: 43
A47: =+Name!A47 -> 44 | B47: =+Name!B47 -> 553040281-3 | C47: =+Name!C47 -> นายทวิชาติ อัครสันตติกุล | D47: =+Name!D47 -> EN-IE | E47: =+Name!G47 -> 1.95 | F47: =+Name!H47 -> 1 | G47: =+HomeworkAll!S47 -> 6.872727273 | H47: =+QuizAll!S47 -> 7.864166667 | I47: =+TestAll!K47 -> 8.273809524 | J47: =(+Midterm!I47)*30/50 -> 12.6 | L47: 35.61070346 | M47: 59.35117244 | N47: C | O47: =Class!AN50 -> 0 | P47: 44
A48: =+Name!A48 -> 45 | B48: =+Name!B48 -> 553040285-5 | C48: =+Name!C48 -> นางสาวกนกอร แดงน้อย | D48: =+Name!D48 -> EN-IE | E48: =+Name!G48 -> 2.51 | F48: =+Name!H48 -> 1 | G48: =+HomeworkAll!S48 -> 9.091035354 | H48: =+QuizAll!S48 -> 8.461416667 | I48: =+TestAll!K48 -> 7 | J48: =(+Midterm!I48)*30/50 -> 11.1 | L48: 35.65245202 | M48: 59.42075337 | N48: C | O48: =Class!AN49 -> 0 | P48: 45
A49: =+Name!A49 -> 46 | B49: =+Name!B49 -> 553040289-7 | C49: =+Name!C49 -> นายกัมปนาท ชาวดร | D49: =+Name!D49 -> EN-ME | E49: =+Name!G49 -> 3.02 | F49: =+Name!H49 -> 1 | G49: =+HomeworkAll!S49 -> 8.979587542 | H49: =+QuizAll!S49 -> 8.916666667 | I49: =+TestAll!K49 -> 8.547619048 | J49: =(+Midterm!I49)*30/50 -> 20.7 | L49: 47.14387326 | M49: 78.57312209 | N49: B+ | O49: =Class!AN48 -> 0 | P49: 46
A50: =+Name!A50 -> 47 | B50: =+Name!B50 -> 553040290-2 | C50: =+Name!C50 -> นายกานตภณ รุ่งฤทัยวัฒน์ | D50: =+Name!D50 -> EN-IE | E50: =+Name!G50 -> 2.22 | F50: =+Name!H50 -> 1 | G50: =+HomeworkAll!S50 -> 9.097643098 | H50: =+QuizAll!S50 -> 6.25 | I50: =+TestAll!K50 -> 6.119047619 | J50: =(+Midterm!I50)*30/50 -> 6 | L50: 27.46669072 | M50: 45.77781786 | N50: D+ | O50: =Class!AN47 -> 0 | P50: 47
A51: =+Name!A51 -> 48 | B51: =+Name!B51 -> 553040297-8 | C51: =+Name!C51 -> นางสาวขวัญตา สุวรรณจันทร์ | D51: =+Name!D51 -> EN-IE | E51: =+Name!G51 -> 1.24 | F51: =+Name!H51 -> 1 | G51: =+HomeworkAll!S51 -> 0 | H51: =+QuizAll!S51 -> 0 | I51: =+TestAll!K51 -> 0 | J51: =(+Midterm!I51)*30/50 -> 0 | L51: 0 | M51: 0 | N51: F | O51: =Class!AN46 -> 0 | P51: 48
A52: =+Name!A52 -> 49 | B52: =+Name!B52 -> 553040298-6 | C52: =+Name!C52 -> นายคฑาวุธ นิลคุณ | D52: =+Name!D52 -> EN-ME | E52: =+Name!G52 -> 2.16 | F52: =+Name!H52 -> 1 | G52: =+HomeworkAll!S52 -> 4.972222222 | H52: =+QuizAll!S52 -> 6.360833333 | I52: =+TestAll!K52 -> 6.380952381 | J52: =(+Midterm!I52)*30/50 -> 15 | L52: 32.71400794 | M52: 54.52334656 | N52: C | O52: =Class!AN45 -> 0 | P52: 49
A53: =+Name!A53 -> 50 | B53: =+Name!B53 -> 553040302-1 | C53: =+Name!C53 -> นายจรูญวิทย์ ยึนประโคน | D53: =+Name!D53 -> EN-IE | E53: =+Name!G53 -> 2.25 | F53: =+Name!H53 -> 1 | G53: =+HomeworkAll!S53 -> 9.026346801 | H53: =+QuizAll!S53 -> 9.583333333 | I53: =+TestAll!K53 -> 7.511904762 | J53: =(+Midterm!I53)*30/50 -> 13.8 | L53: 39.9215849 | M53: 66.53597483 | N53: C+ | O53: =Class!AN44 -> 0 | P53: 50
A54: =+Name!A54 -> 51 | B54: =+Name!B54 -> 553040310-2 | C54: =+Name!C54 -> นายจีระวัฒน์ ศรีมีชัย | D54: =+Name!D54 -> EN-IE | E54: =+Name!G54 -> 2.18 | F54: =+Name!H54 -> 1 | G54: =+HomeworkAll!S54 -> 8.622138047 | H54: =+QuizAll!S54 -> 7.844166667 | I54: =+TestAll!K54 -> 7.595238095 | J54: =(+Midterm!I54)*30/50 -> 15 | L54: 39.06154281 | M54: 65.10257135 | N54: C+ | O54: =Class!AN43 -> 0 | P54: 51
A55: =+Name!A55 -> 52 | B55: =+Name!B55 -> 553040312-8 | C55: =+Name!C55 -> นางสาวจุฑารัตน์ เลยยุทธ | D55: =+Name!D55 -> EN-IE | E55: =+Name!G55 -> 2.66 | F55: =+Name!H55 -> 1 | G55: =+HomeworkAll!S55 -> 9.512626263 | H55: =+QuizAll!S55 -> 9.583333333 | I55: =+TestAll!K55 -> 8.761904762 | J55: =(+Midterm!I55)*30/50 -> 20.4 | L55: 48.25786436 | M55: 80.42977393 | N55: A | O55: =Class!AN42 -> 0 | P55: 52
A56: =+Name!A56 -> 53 | B56: =+Name!B56 -> 553040315-2 | C56: =+Name!C56 -> นางสาวจุฬารัตน์ แสนวงษ์ | D56: =+Name!D56 -> EN-ME | E56: =+Name!G56 -> 3.22 | F56: =+Name!H56 -> 1 | G56: =+HomeworkAll!S56 -> 8.283670034 | H56: =+QuizAll!S56 -> 7.875 | I56: =+TestAll!K56 -> 8.666666667 | J56: =(+Midterm!I56)*30/50 -> 27.9 | L56: 52.7253367 | M56: 87.87556117 | N56: A | O56: =Class!AN41 -> 0 | P56: 53
A57: =+Name!A57 -> 54 | B57: =+Name!B57 -> 553040316-0 | C57: =+Name!C57 -> นางสาวเจนจิรา ปิยาโยค | D57: =+Name!D57 -> EN-ME | E57: =+Name!G57 -> 2.3 | F57: =+Name!H57 -> 1 | G57: =+HomeworkAll!S57 -> 8.347558923 | H57: =+QuizAll!S57 -> 7.754166667 | I57: =+TestAll!K57 -> 8.014285714 | J57: =(+Midterm!I57)*30/50 -> 20.7 | L57: 44.8160113 | M57: 74.69335217 | N57: B | O57: =Class!AN40 -> 0 | P57: 54
A58: =+Name!A58 -> 55 | B58: =+Name!B58 -> 553040317-8 | C58: =+Name!C58 -> นายเจนณรงค์ อยู่ยง | D58: =+Name!D58 -> EN-ME | E58: =+Name!G58 -> 2.57 | F58: =+Name!H58 -> 1 | G58: =+HomeworkAll!S58 -> 9.722222222 | H58: =+QuizAll!S58 -> 8.879416667 | I58: =+TestAll!K58 -> 8.214285714 | J58: =(+Midterm!I58)*30/50 -> 8.1 | L58: 34.9159246 | M58: 58.19320767 | N58: C | O58: =Class!AN39 -> 0 | P58: 55
A59: =+Name!A59 -> 56 | B59: =+Name!B59 -> 553040320-9 | C59: =+Name!C59 -> นางสาวชลธิชา นาสินสร้อย | D59: =+Name!D59 -> EN-ME | E59: =+Name!G59 -> 2.81 | F59: =+Name!H59 -> 1 | G59: =+HomeworkAll!S59 -> 8.792592593 | H59: =+QuizAll!S59 -> 10 | I59: =+TestAll!K59 -> 8.785714286 | J59: =(+Midterm!I59)*30/50 -> 16.8 | L59: 44.37830688 | M59: 73.9638448 | N59: B | O59: =Class!AN38 -> 0 | P59: 56
A60: =+Name!A60 -> 57 | B60: =+Name!B60 -> 553040321-7 | C60: =+Name!C60 -> นายชลวิทย์ พิสิฐรัตนวงศ์ | D60: =+Name!D60 -> EN-IE | E60: =+Name!G60 -> 2.19 | F60: =+Name!H60 -> 1 | G60: =+HomeworkAll!S60 -> 9.31010101 | H60: =+QuizAll!S60 -> 9.145833333 | I60: =+TestAll!K60 -> 8.345238095 | J60: =(+Midterm!I60)*30/50 -> 8.4 | L60: 35.20117244 | M60: 58.66862073 | N60: C | O60: =Class!AN37 -> 0 | P60: 57
A61: =+Name!A61 -> 58 | B61: =+Name!B61 -> 553040326-7 | C61: =+Name!C61 -> นางสาวญาดา ยิ้มยินดี | D61: =+Name!D61 -> EN-IE | E61: =+Name!G61 -> 2.09 | F61: =+Name!H61 -> 1 | G61: =+HomeworkAll!S61 -> 9.082659933 | H61: =+QuizAll!S61 -> 8.875 | I61: =+TestAll!K61 -> 7.80952381 | J61: =(+Midterm!I61)*30/50 -> 14.4 | L61: 40.16718374 | M61: 66.94530624 | N61: C+ | O61: =Class!AN36 -> 0 | P61: 58
A62: =+Name!A62 -> 59 | B62: =+Name!B62 -> 553040336-4 | C62: =+Name!C62 -> นายทวีรัช ทาจันทร์ | D62: =+Name!D62 -> EN-ME | E62: =+Name!G62 -> 2.46 | F62: =+Name!H62 -> 1 | G62: =+HomeworkAll!S62 -> 5.430555556 | H62: =+QuizAll!S62 -> 6.46525 | I62: =+TestAll!K62 -> 8.095238095 | J62: =(+Midterm!I62)*30/50 -> 8.4 | L62: 28.39104365 | M62: 47.31840608 | N62: D+ | O62: =Class!AN35 -> 0 | P62: 59
A63: =+Name!A63 -> 60 | B63: =+Name!B63 -> 553040339-8 | C63: =+Name!C63 -> นายแทนพงศ์ พุทธลา | D63: =+Name!D63 -> EN-ME | E63: =+Name!G63 -> 2.73 | F63: =+Name!H63 -> 1 | G63: =+HomeworkAll!S63 -> 9.293771044 | H63: =+QuizAll!S63 -> 9.75 | I63: =+TestAll!K63 -> 8.571428571 | J63: =(+Midterm!I63)*30/50 -> 10.2 | L63: 37.81519962 | M63: 63.02533269 | N63: C+ | O63: =Class!AN34 -> 0 | P63: 60
A64: =+Name!A64 -> 61 | B64: =+Name!B64 -> 553040340-3 | C64: =+Name!C64 -> นายธนกฤต เหล่าพิเดช | D64: =+Name!D64 -> EN-IE | E64: =+Name!G64 -> 2.23 | F64: =+Name!H64 -> 1 | G64: =+HomeworkAll!S64 -> 9.796296296 | H64: =+QuizAll!S64 -> 8.045833333 | I64: =+TestAll!K64 -> 8.107142857 | J64: =(+Midterm!I64)*30/50 -> 15.6 | L64: 41.54927249 | M64: 69.24878748 | N64: C+ | O64: =Class!AN33 -> 0 | P64: 61
A65: =+Name!A65 -> 62 | B65: =+Name!B65 -> 553040346-1 | C65: =+Name!C65 -> นางสาวธันยมัย มูลมณี | D65: =+Name!D65 -> EN-IE | E65: =+Name!G65 -> 1.92 | F65: =+Name!H65 -> 1 | G65: =+HomeworkAll!S65 -> 9.228703704 | H65: =+QuizAll!S65 -> 9 | I65: =+TestAll!K65 -> 8.333333333 | J65: =(+Midterm!I65)*30/50 -> 4.2 | L65: 30.76203704 | M65: 51.27006173 | N65: C | O65: =Class!AN32 -> 0 | P65: 62
A66: =+Name!A66 -> 63 | B66: =+Name!B66 -> 553040347-9 | C66: =+Name!C66 -> นายธันวา ไกยราช | D66: =+Name!D66 -> EN-ME | E66: =+Name!G66 -> 2.72 | F66: =+Name!H66 -> 1 | G66: =+HomeworkAll!S66 -> 8.197180135 | H66: =+QuizAll!S66 -> 8.3375 | I66: =+TestAll!K66 -> 6.071428571 | J66: =(+Midterm!I66)*30/50 -> 11.4 | L66: 34.00610871 | M66: 56.67684784 | N66: C | O66: =Class!AN31 -> 0 | P66: 63
A67: =+Name!A67 -> 64 | B67: =+Name!B67 -> 553040349-5 | C67: =+Name!C67 -> นายธิบดี ธิแก้ว | D67: =+Name!D67 -> EN-IE | E67: =+Name!G67 -> 2.15 | F67: =+Name!H67 -> 1 | G67: =+HomeworkAll!S67 -> 8.538425926 | H67: =+QuizAll!S67 -> 8.916666667 | I67: =+TestAll!K67 -> 3.952380952 | J67: =(+Midterm!I67)*30/50 -> 1.8 | L67: 23.20747354 | M67: 38.67912257 | N67: F | O67: =Class!AN30 -> 0 | P67: 64
A68: =+Name!A68 -> 65 | B68: =+Name!B68 -> 553040359-2 | C68: =+Name!C68 -> นางสาวเบญจวรรณ มั่นวงษ์ | D68: =+Name!D68 -> EN-IE | E68: =+Name!G68 -> 2.02 | F68: =+Name!H68 -> 1 | G68: =+HomeworkAll!S68 -> 4.115530303 | H68: =+QuizAll!S68 -> 7.166666667 | I68: =+TestAll!K68 -> 9.073809524 | J68: =(+Midterm!I68)*30/50 -> 13.2 | L68: =SUM(G68:K68) -> 33.55600649 | M68: =(L68/$L$1)*100 -> 55.92667749 | N68: =grade(M68) -> C | O68: =Class!AN29 -> 0 | P68: 65
A69: =+Name!A69 -> 66 | B69: =+Name!B69 -> 553040365-7 | C69: =+Name!C69 -> นางสาวปรีม สุขเสนีย์ | D69: =+Name!D69 -> EN-ME | E69: =+Name!G69 -> 2.47 | F69: =+Name!H69 -> 1 | G69: =+HomeworkAll!S69 -> 7.729671717 | H69: =+QuizAll!S69 -> 8.769833333 | I69: =+TestAll!K69 -> 9.119047619 | J69: =(+Midterm!I69)*30/50 -> 15.9 | L69: 41.51855267 | M69: 69.19758778 | N69: C+ | O69: =Class!AN28 -> 0 | P69: 66
A70: =+Name!A70 -> 67 | B70: =+Name!B70 -> 553040368-1 | C70: =+Name!C70 -> นางสาวปุณฑริกา สิทธิกรชัย | D70: =+Name!D70 -> EN-IE | E70: =+Name!G70 -> 2.26 | F70: =+Name!H70 -> 1 | G70: =+HomeworkAll!S70 -> 6.913383838 | H70: =+QuizAll!S70 -> 7.174916667 | I70: =+TestAll!K70 -> 8.595238095 | J70: =(+Midterm!I70)*30/50 -> 9.3 | L70: 31.9835386 | M70: 53.30589767 | N70: C | O70: =Class!AN27 -> 0 | P70: 67
A71: =+Name!A71 -> 68 | B71: =+Name!B71 -> 553040380-1 | C71: =+Name!C71 -> นายพิธพล พลเพชร | D71: =+Name!D71 -> EN-IE | E71: =+Name!G71 -> 2.21 | F71: =+Name!H71 -> 1 | G71: =+HomeworkAll!S71 -> 7.799074074 | H71: =+QuizAll!S71 -> 4.72225 | I71: =+TestAll!K71 -> 7 | J71: =(+Midterm!I71)*30/50 -> 16.8 | L71: 36.32132407 | M71: 60.53554012 | N71: C+ | O71: =Class!AN26 -> 0 | P71: 68
A72: =+Name!A72 -> 69 | B72: =+Name!B72 -> 553040383-5 | C72: =+Name!C72 -> นายพีระพงษ์ สิมงาม | D72: =+Name!D72 -> EN-ME | E72: =+Name!G72 -> 2.69 | F72: =+Name!H72 -> 1 | G72: =+HomeworkAll!S72 -> 9.650252525 | H72: =+QuizAll!S72 -> 10 | I72: =+TestAll!K72 -> 7.952380952 | J72: =(+Midterm!I72)*30/50 -> 19.5 | L72: 47.10263348 | M72: 78.50438913 | N72: B+ | O72: =Class!AN25 -> 0 | P72: 69
A73: =+Name!A73 -> 70 | B73: =+Name!B73 -> 553040386-9 | C73: =+Name!C73 -> นายภัทรพล สารผล | D73: =+Name!D73 -> EN-IE | E73: =+Name!G73 -> 2.08 | F73: =+Name!H73 -> 1 | G73: =+HomeworkAll!S73 -> 7.833333333 | H73: =+QuizAll!S73 -> 5.743333333 | I73: =+TestAll!K73 -> 6.404761905 | J73: =(+Midterm!I73)*30/50 -> 2.4 | L73: 22.38142857 | M73: 37.30238095 | N73: F | O73: =Class!AN24 -> 0 | P73: 70
A74: =+Name!A74 -> 71 | B74: =+Name!B74 -> 553040387-7 | C74: =+Name!C74 -> นายภาคภูมิ ประเสริฐ | D74: =+Name!D74 -> EN-ME | E74: =+Name!G74 -> 2.86 | F74: =+Name!H74 -> 1 | G74: =+HomeworkAll!S74 -> 9.450547138 | H74: =+QuizAll!S74 -> 9.75 | I74: =+TestAll!K74 -> 9.761904762 | J74: =(+Midterm!I74)*30/50 -> 24.9 | L74: 53.8624519 | M74: 89.77075317 | N74: A | O74: =Class!AN23 -> 0 | P74: 71
A75: =+Name!A75 -> 72 | B75: =+Name!B75 -> 553040391-6 | C75: =+Name!C75 -> นายมารุต พลวัน | D75: =+Name!D75 -> EN-ME | E75: =+Name!G75 -> 2.77 | F75: =+Name!H75 -> 1 | G75: =+HomeworkAll!S75 -> 9.560900673 | H75: =+QuizAll!S75 -> 9.550583333 | I75: =+TestAll!K75 -> 9.761904762 | J75: =(+Midterm!I75)*30/50 -> 21 | L75: 49.87338877 | M75: 83.12231461 | N75: A | O75: =Class!AN22 -> 0 | P75: 72
A76: =+Name!A76 -> 73 | B76: =+Name!B76 -> 553040397-4 | C76: =+Name!C76 -> นายรัชชานนท์ หาญกล้า | D76: =+Name!D76 -> EN-ME | E76: =+Name!G76 -> 2.65 | F76: =+Name!H76 -> 1 | G76: =+HomeworkAll!S76 -> 3.104166667 | H76: =+QuizAll!S76 -> 4.25 | I76: =+TestAll!K76 -> 7.047619048 | J76: =(+Midterm!I76)*30/50 -> 14.4 | L76: 28.80178571 | M76: 48.00297619 | N76: D+ | O76: =Class!AN21 -> 0 | P76: 73
A77: =+Name!A77 -> 74 | B77: =+Name!B77 -> 553040400-1 | C77: =+Name!C77 -> นายวงศธร เอียตระกูลไพบูลย์ | D77: =+Name!D77 -> EN-IE | E77: =+Name!G77 -> 2.76 | F77: =+Name!H77 -> 1 | G77: =+HomeworkAll!S77 -> 9.614814815 | H77: =+QuizAll!S77 -> 9.575083333 | I77: =+TestAll!K77 -> 9.452380952 | J77: =(+Midterm!I77)*30/50 -> 23.4 | L77: 52.0422791 | M77: 86.73713183 | N77: A | O77: =Class!AN20 -> 0 | P77: 74
A78: =+Name!A78 -> 75 | B78: =+Name!B78 -> 553040401-9 | C78: =+Name!C78 -> นายวชิรวิทย์ นวรัตนากร | D78: =+Name!D78 -> EN-IE | E78: =+Name!G78 -> 2.83 | F78: =+Name!H78 -> 1 | G78: =+HomeworkAll!S78 -> 7.881944444 | H78: =+QuizAll!S78 -> 7.281666667 | I78: =+TestAll!K78 -> 8.273809524 | J78: =(+Midterm!I78)*30/50 -> 13.8 | L78: 37.23742063 | M78: 62.06236772 | N78: C+ | O78: =Class!AN19 -> 0 | P78: 75
A79: =+Name!A79 -> 76 | B79: =+Name!B79 -> 553040404-3 | C79: =+Name!C79 -> นายวนัสมัญ กฤษณะสุวรรณ | D79: =+Name!D79 -> EN-IE | E79: =+Name!G79 -> 2.3 | F79: =+Name!H79 -> 1 | G79: =+HomeworkAll!S79 -> 0.7777777778 | H79: =+QuizAll!S79 -> 1.6025 | I79: =+TestAll!K79 -> 0 | J79: =(+Midterm!I79)*30/50 -> 1.5 | L79: 3.880277778 | M79: 6.46712963 | N79: F | O79: =Class!AN18 -> 0 | P79: 76
A80: =+Name!A80 -> 77 | B80: =+Name!B80 -> 553040417-4 | C80: =+Name!C80 -> นางสาวศศิวิมล กองพันธ์ | D80: =+Name!D80 -> EN-IE | E80: =+Name!G80 -> 2.94 | F80: =+Name!H80 -> 1 | G80: =+HomeworkAll!S80 -> 9.473611111 | H80: =+QuizAll!S80 -> 8.416666667 | I80: =+TestAll!K80 -> 8.726190476 | J80: =(+Midterm!I80)*30/50 -> 12.3 | L80: 38.91646825 | M80: 64.86078042 | N80: C+ | O80: =Class!AN17 -> 0 | P80: 77
A81: =+Name!A81 -> 78 | B81: =+Name!B81 -> 553040420-5 | C81: =+Name!C81 -> นางสาวศิรินาถ ดวงพิมพ์ | D81: =+Name!D81 -> EN-IE | E81: =+Name!G81 -> 2.21 | F81: =+Name!H81 -> 1 | G81: =+HomeworkAll!S81 -> 9.599537037 | H81: =+QuizAll!S81 -> 8.1875 | I81: =+TestAll!K81 -> 7.654761905 | J81: =(+Midterm!I81)*30/50 -> 3.9 | L81: 29.34179894 | M81: 48.90299824 | N81: D+ | O81: =Class!AN16 -> 0 | P81: 78
A82: =+Name!A82 -> 79 | B82: =+Name!B82 -> 553040426-3 | C82: =+Name!C82 -> นายสหภาพ เพียรชนะ | D82: =+Name!D82 -> EN-ME | E82: =+Name!G82 -> 3.13 | F82: =+Name!H82 -> 1 | G82: =+HomeworkAll!S82 -> 8.854587542 | H82: =+QuizAll!S82 -> 9.833333333 | I82: =+TestAll!K82 -> 8.123809524 | J82: =(+Midterm!I82)*30/50 -> 24 | L82: 50.8117304 | M82: 84.68621733 | N82: A | O82: =Class!AN15 -> 0 | P82: 79
A83: =+Name!A83 -> 80 | B83: =+Name!B83 -> 553040427-1 | C83: =+Name!C83 -> นายสิทธิชัย เมืองโคตร | D83: =+Name!D83 -> EN-ME | E83: =+Name!G83 -> 2.35 | F83: =+Name!H83 -> 1 | G83: =+HomeworkAll!S83 -> 5.240740741 | H83: =+QuizAll!S83 -> 8.636666667 | I83: =+TestAll!K83 -> 6.071428571 | J83: =(+Midterm!I83)*30/50 -> 7.2 | L83: 27.14883598 | M83: 45.24805996 | N83: D+ | O83: =Class!AN14 -> 0 | P83: 80
A84: =+Name!A84 -> 81 | B84: =+Name!B84 -> 553040428-9 | C84: =+Name!C84 -> นางสาวสุกัญญา ธารานุวงศ์ | D84: =+Name!D84 -> EN-ME | E84: =+Name!G84 -> 2.8 | F84: =+Name!H84 -> 1 | G84: =+HomeworkAll!S84 -> 9.227693603 | H84: =+QuizAll!S84 -> 8.97225 | I84: =+TestAll!K84 -> 9.107142857 | J84: =(+Midterm!I84)*30/50 -> 20.1 | L84: 47.40708646 | M84: 79.01181077 | N84: B+ | O84: =Class!AN13 -> 0 | P84: 81
A85: =+Name!A85 -> 82 | B85: =+Name!B85 -> 553040429-7 | C85: =+Name!C85 -> นางสาวสุกัญญา เวียงสิมา | D85: =+Name!D85 -> EN-IE | E85: =+Name!G85 -> 2.28 | F85: =+Name!H85 -> 1 | G85: =+HomeworkAll!S85 -> 9.466035354 | H85: =+QuizAll!S85 -> 8.047583333 | I85: =+TestAll!K85 -> 8.928571429 | J85: =(+Midterm!I85)*30/50 -> 12.3 | L85: 38.74219012 | M85: 64.57031686 | N85: C+ | O85: =Class!AN12 -> 0 | P85: 82
A86: =+Name!A86 -> 83 | B86: =+Name!B86 -> 553040430-2 | C86: =+Name!C86 -> นางสาวสุฑิฌา อินทนนท์ | D86: =+Name!D86 -> EN-IE | E86: =+Name!G86 -> 1.95 | F86: =+Name!H86 -> 1 | G86: =+HomeworkAll!S86 -> 9.847222222 | H86: =+QuizAll!S86 -> 8.250833333 | I86: =+TestAll!K86 -> 8.666666667 | J86: =(+Midterm!I86)*30/50 -> 0 | L86: 26.76472222 | M86: 44.60787037 | N86: D | O86: =Class!AN11 -> 0 | P86: 83
A87: =+Name!A87 -> 84 | B87: =+Name!B87 -> 553040434-4 | C87: =+Name!C87 -> นางสาวสุรัชนา ตุ่นแก้ว | D87: =+Name!D87 -> EN-ME | E87: =+Name!G87 -> 2.62 | F87: =+Name!H87 -> 1 | G87: =+HomeworkAll!S87 -> 9.894444444 | H87: =+QuizAll!S87 -> 9.674166667 | I87: =+TestAll!K87 -> 7.583333333 | J87: =(+Midterm!I87)*30/50 -> 18 | L87: 45.15194444 | M87: 75.25324074 | N87: B+ | O87: =Class!AN10 -> 0 | P87: 84
A88: =+Name!A88 -> 85 | B88: =+Name!B88 -> 553040436-0 | C88: =+Name!C88 -> นายเสฎฐฌาน น้อยอาษา | D88: =+Name!D88 -> EN-ME | E88: =+Name!G88 -> 2.26 | F88: =+Name!H88 -> 1 | G88: =+HomeworkAll!S88 -> 7.243055556 | H88: =+QuizAll!S88 -> 8.34725 | I88: =+TestAll!K88 -> 6.80952381 | J88: =(+Midterm!I88)*30/50 -> 7.2 | L88: 29.59982937 | M88: 49.33304894 | N88: D+ | O88: =Class!AN9 -> 0 | P88: 85
A89: =+Name!A89 -> 86 | B89: =+Name!B89 -> 553040448-3 | C89: =+Name!C89 -> นายอาทิตย์ ขาวสนิท | D89: =+Name!D89 -> EN-ME | E89: =+Name!G89 -> 2.65 | F89: =+Name!H89 -> 1 | G89: =+HomeworkAll!S89 -> 9.357744108 | H89: =+QuizAll!S89 -> 9.166666667 | I89: =+TestAll!K89 -> 8.130952381 | J89: =(+Midterm!I89)*30/50 -> 6.6 | L89: 33.25536316 | M89: 55.42560526 | N89: C | O89: =Class!AN8 -> 0 | P89: 86
A90: =+Name!A90 -> 87 | B90: =+Name!B90 -> 553040449-1 | C90: =+Name!C90 -> นายอานุภาพ วิจบ | D90: =+Name!D90 -> EN-IE | E90: =+Name!G90 -> 2.9 | F90: =+Name!H90 -> 1 | G90: =+HomeworkAll!S90 -> 9.446759259 | H90: =+QuizAll!S90 -> 9.083333333 | I90: =+TestAll!K90 -> 8.380952381 | J90: =(+Midterm!I90)*30/50 -> 14.4 | L90: 41.31104497 | M90: 68.85174162 | N90: C+ | O90: =Class!AN7 -> 0 | P90: 87
A91: =+Name!A91 -> 88 | B91: =+Name!B91 -> 553040450-6 | C91: =+Name!C91 -> นายเอกราช คำงาม | D91: =+Name!D91 -> EN-ME | E91: =+Name!G91 -> 2.32 | F91: =+Name!H91 -> 1 | G91: =+HomeworkAll!S91 -> 9.423695286 | H91: =+QuizAll!S91 -> 6.961666667 | I91: =+TestAll!K91 -> 9.261904762 | J91: =(+Midterm!I91)*30/50 -> 20.4 | L91: 46.04726671 | M91: 76.74544452 | N91: B+ | O91: =Class!AN6 -> 0 | P91: 88
A92: =+Name!A92 -> 89 | B92: =+Name!B92 -> 553040454-8 | C92: =+Name!C92 -> นายกลวัชร จงฤาชา | D92: =+Name!D92 -> EN-AE | E92: =+Name!G92 -> 2.24 | F92: =+Name!H92 -> 1 | G92: =+HomeworkAll!S92 -> 7.076388889 | H92: =+QuizAll!S92 -> 8.25 | I92: =+TestAll!K92 -> 5.214285714 | J92: =(+Midterm!I92)*30/50 -> 2.7 | L92: 23.2406746 | M92: 38.73445767 | N92: F | O92: =Class!AN5 -> 0 | P92: 89
A93: =+Name!A93 -> 90 | B93: =+Name!B93 -> 553040458-0 | C93: =+Name!C93 -> นางสาวจุฬาลักษณ์ ชมภูรักษ์ | D93: =+Name!D93 -> EN-AE | E93: =+Name!G93 -> 2.57 | F93: =+Name!H93 -> 1 | G93: =+HomeworkAll!S93 -> 8.933333333 | H93: =+QuizAll!S93 -> 8.590833333 | I93: =+TestAll!K93 -> 6.416666667 | J93: =(+Midterm!I93)*30/50 -> 3.6 | L93: 27.54083333 | M93: 45.90138889 | N93: D+ | O93: =Class!AN4 -> 0 | P93: 90
A94: =+Name!A94 -> 91 | B94: =+Name!B94 -> 553040464-5 | C94: =+Name!C94 -> นางสาวทิชากร จุลพันธ์ | D94: =+Name!D94 -> EN-AE | E94: =+Name!G94 -> 1.97 | F94: =+Name!H94 -> 1 | G94: =+HomeworkAll!S94 -> 9.064393939 | H94: =+QuizAll!S94 -> 7.916666667 | I94: =+TestAll!K94 -> 6.583333333 | J94: =(+Midterm!I94)*30/50 -> 12 | L94: 35.56439394 | M94: 59.2739899 | N94: C | O94: =Class!AN5 -> 0 | P94: 91
A95: =+Name!A95 -> 92 | B95: =+Name!B95 -> 553040467-9 | C95: =+Name!C95 -> นายนพพล รัตน์ปิยะภาภรณ์ | D95: =+Name!D95 -> EN-AE | E95: =+Name!G95 -> 2.57 | F95: =+Name!H95 -> 1 | G95: =+HomeworkAll!S95 -> 9.499368687 | H95: =+QuizAll!S95 -> 9.666666667 | I95: =+TestAll!K95 -> 8.107142857 | J95: =(+Midterm!I95)*30/50 -> 14.4 | L95: 41.67317821 | M95: 69.45529702 | N95: C+ | O95: =Class!AN6 -> 0 | P95: 92
A96: =+Name!A96 -> 93 | B96: =+Name!B96 -> 553040468-7 | C96: =+Name!C96 -> นางสาวบังอร ทนน้ำ | D96: =+Name!D96 -> EN-AE | E96: =+Name!G96 -> 2.6 | F96: =+Name!H96 -> 1 | G96: =+HomeworkAll!S96 -> 9.12243266 | H96: =+QuizAll!S96 -> 8.449166667 | I96: =+TestAll!K96 -> 6.702380952 | J96: =(+Midterm!I96)*30/50 -> 6.3 | L96: 30.57398028 | M96: 50.9566338 | N96: C | O96: =Class!AN7 -> 0 | P96: 93
A97: =+Name!A97 -> 94 | B97: =+Name!B97 -> 553040476-8 | C97: =+Name!C97 -> นายมงคลลักษ์ วงษ์ศรีมี | D97: =+Name!D97 -> EN-AE | E97: =+Name!G97 -> 2.83 | F97: =+Name!H97 -> 1 | G97: =+HomeworkAll!S97 -> 9.39520202 | H97: =+QuizAll!S97 -> 9.666666667 | I97: =+TestAll!K97 -> 8.166666667 | J97: =(+Midterm!I97)*30/50 -> 13.5 | L97: 40.72853535 | M97: 67.88089226 | N97: C+ | O97: =Class!AN8 -> 0 | P97: 94
A98: =+Name!A98 -> 95 | B98: =+Name!B98 -> 553040485-7 | C98: =+Name!C98 -> นายอานันต์ หอมเนียม | D98: =+Name!D98 -> EN-AE | E98: =+Name!G98 -> 2.24 | F98: =+Name!H98 -> 1 | G98: =+HomeworkAll!S98 -> 9.701388889 | H98: =+QuizAll!S98 -> 9.041666667 | I98: =+TestAll!K98 -> 7.904761905 | J98: =(+Midterm!I98)*30/50 -> 4.8 | L98: 31.44781746 | M98: 52.4130291 | N98: C | O98: =Class!AN9 -> 0 | P98: 95
A99: =+Name!A99 -> 96 | B99: =+Name!B99 -> 553040614-2 | C99: =+Name!C99 -> นายจตุรงค์ ถนอมศิลป์ | D99: =+Name!D99 -> EN-ME (พิเศษ ม.6) | E99: =+Name!G99 -> 0 | F99: =+Name!H99 -> 4 | G99: =+HomeworkAll!S99 -> 9.916666667 | H99: =+QuizAll!S99 -> 9.545833333 | I99: =+TestAll!K99 -> 9.857142857 | J99: =(+Midterm!I99)*30/50 -> 21 | L99: 50.31964286 | M99: 83.86607143 | N99: A | O99: =Class!AN10 -> 0 | P99: 96
A100: =+Name!A100 -> 97 | B100: =+Name!B100 -> 553040617-6 | C100: =+Name!C100 -> นายชัยศิริ ลี้มีธรรม | D100: =+Name!D100 -> EN-ME (พิเศษ ม.6) | E100: =+Name!G100 -> 0 | F100: =+Name!H100 -> 4 | G100: =+HomeworkAll!S100 -> 9.131607744 | H100: =+QuizAll!S100 -> 7.791666667 | I100: =+TestAll!K100 -> 8.642857143 | J100: =(+Midterm!I100)*30/50 -> 12.3 | L100: =SUM(G100:K100) -> 37.86613155 | M100: =(L100/$L$1)*100 -> 63.11021926 | N100: =grade(M100) -> C+ | O100: =Class!AN11 -> 0 | P100: 97
A101: =+Name!A101 -> 98 | B101: =+Name!B101 -> 553040618-4 | C101: =+Name!C101 -> นายเชษฐพงษ์ สาขา | D101: =+Name!D101 -> EN-ME (พิเศษ ม.6) | E101: =+Name!G101 -> 0 | F101: =+Name!H101 -> 4 | G101: =+HomeworkAll!S101 -> 8.434974747 | H101: =+QuizAll!S101 -> 8.5575 | I101: =+TestAll!K101 -> 8.845238095 | J101: =(+Midterm!I101)*30/50 -> 18 | L101: 43.83771284 | M101: 73.06285474 | N101: B | O101: =Class!AN12 -> 0 | P101: 98
A102: =+Name!A102 -> 99 | B102: =+Name!B102 -> 553040621-5 | C102: =+Name!C102 -> นายณัฐพล หอมจะบก | D102: =+Name!D102 -> EN-ME (พิเศษ ม.6) | E102: =+Name!G102 -> 0 | F102: =+Name!H102 -> 4 | G102: =+HomeworkAll!S102 -> 3.275252525 | H102: =+QuizAll!S102 -> 7.333333333 | I102: =+TestAll!K102 -> 7.452380952 | J102: =(+Midterm!I102)*30/50 -> 14.4 | L102: 32.46096681 | M102: 54.10161135 | N102: C | O102: =Class!AN13 -> 0 | P102: 99
A103: =+Name!A103 -> 100 | B103: =+Name!B103 -> 553040622-3 | C103: =+Name!C103 -> นายทศพล ฉายจรุง | D103: =+Name!D103 -> EN-ME (พิเศษ ม.6) | E103: =+Name!G103 -> 0 | F103: =+Name!H103 -> 4 | G103: =+HomeworkAll!S103 -> 8.909722222 | H103: =+QuizAll!S103 -> 9.379166667 | I103: =+TestAll!K103 -> 8.142857143 | J103: =(+Midterm!I103)*30/50 -> 11.1 | L103: 37.53174603 | M103: 62.55291005 | N103: C+ | O103: =Class!AN14 -> 0 | P103: 100
A104: =+Name!A104 -> 101 | B104: =+Name!B104 -> 553040623-1 | C104: =+Name!C104 -> นายเทพนรินทร์ อินธิราช | D104: =+Name!D104 -> EN-ME (พิเศษ ม.6) | E104: =+Name!G104 -> 0 | F104: =+Name!H104 -> 4 | G104: =+HomeworkAll!S104 -> 9.61026936 | H104: =+QuizAll!S104 -> 9.833333333 | I104: =+TestAll!K104 -> 8.380952381 | J104: =(+Midterm!I104)*30/50 -> 18 | L104: 45.82455507 | M104: 76.37425846 | N104: B+ | O104: =Class!AN15 -> 0 | P104: 101
A105: =+Name!A105 -> 102 | B105: =+Name!B105 -> 553040624-9 | C105: =+Name!C105 -> นายธนะสิทธิ์ รุจิระโชติวัฒน์ | D105: =+Name!D105 -> EN-ME (พิเศษ ม.6) | E105: =+Name!G105 -> 0 | F105: =+Name!H105 -> 4 | G105: =+HomeworkAll!S105 -> 9.467382155 | H105: =+QuizAll!S105 -> 9.5 | I105: =+TestAll!K105 -> 8.047619048 | J105: =(+Midterm!I105)*30/50 -> 21 | L105: 48.0150012 | M105: 80.025002 | N105: A | O105: =Class!AN16 -> 0 | P105: 102
A106: =+Name!A106 -> 103 | B106: =+Name!B106 -> 553040625-7 | C106: =+Name!C106 -> นายธีรศักดิ์ สังสิทธิสวัสดิ์ | D106: =+Name!D106 -> EN-ME (พิเศษ ม.6) | E106: =+Name!G106 -> 0 | F106: =+Name!H106 -> 4 | G106: =+HomeworkAll!S106 -> 0 | H106: =+QuizAll!S106 -> 0 | I106: =+TestAll!K106 -> 0 | J106: =(+Midterm!I106)*30/50 -> 0 | L106: 0 | M106: 0 | N106: F | O106: =Class!AN17 -> 0 | P106: 103
A107: =+Name!A107 -> 104 | B107: =+Name!B107 -> 553040626-5 | C107: =+Name!C107 -> นายปฏิภาณ สังข์ชัย | D107: =+Name!D107 -> EN-ME (พิเศษ ม.6) | E107: =+Name!G107 -> 0 | F107: =+Name!H107 -> 4 | G107: =+HomeworkAll!S107 -> 9.205808081 | H107: =+QuizAll!S107 -> 7.795833333 | I107: =+TestAll!K107 -> 7.736904762 | J107: =(+Midterm!I107)*30/50 -> 11.4 | L107: 36.13854618 | M107: 60.23091029 | N107: C+ | O107: =Class!AN18 -> 0 | P107: 104
A108: =+Name!A108 -> 105 | B108: =+Name!B108 -> 553040631-2 | C108: =+Name!C108 -> นายพงศ์รัตน์ ณ หนองคาย | D108: =+Name!D108 -> EN-ME (พิเศษ ม.6) | E108: =+Name!G108 -> 0 | F108: =+Name!H108 -> 4 | G108: =+HomeworkAll!S108 -> 8.711700337 | H108: =+QuizAll!S108 -> 9.6025 | I108: =+TestAll!K108 -> 8.357142857 | J108: =(+Midterm!I108)*30/50 -> 12.6 | L108: 39.27134319 | M108: 65.45223866 | N108: C+ | O108: =Class!AN19 -> 0 | P108: 105
A109: =+Name!A109 -> 106 | B109: =+Name!B109 -> 553040636-2 | C109: =+Name!C109 -> นายรัชชานนท์ บุญอาษา | D109: =+Name!D109 -> EN-ME (พิเศษ ม.6) | E109: =+Name!G109 -> 0 | F109: =+Name!H109 -> 4 | G109: =+HomeworkAll!S109 -> 9.364478114 | H109: =+QuizAll!S109 -> 9.5075 | I109: =+TestAll!K109 -> 6.964285714 | J109: =(+Midterm!I109)*30/50 -> 11.4 | L109: 37.23626383 | M109: 62.06043971 | N109: C+ | O109: =Class!AN20 -> 0 | P109: 106
A110: =+Name!A110 -> 107 | B110: =+Name!B110 -> 563040310-3 | C110: =+Name!C110 -> นางสาวธัญชนภ ธีระเดชธำดง | D110: =+Name!D110 -> EN-IE | E110: =+Name!G110 -> 0 | F110: =+Name!H110 -> 4 | G110: =+HomeworkAll!S110 -> 9.927777778 | H110: =+QuizAll!S110 -> 10 | I110: =+TestAll!K110 -> 8.726190476 | J110: =(+Midterm!I110)*30/50 -> 26.1 | L110: 54.75396825 | M110: 91.25661376 | N110: A | O110: =Class!AN21 -> 0 | P110: 107
D111: Average | E111: =AVERAGE(E4:E109) -> 2.276698113 | G111: =AVERAGE(G5:G110) -> 8.157548559 | H111: =AVERAGE(H4:H110) -> 8.347746106 | I111: =AVERAGE(I4:I110) -> 7.695594126 | K111: =AVERAGE(K4:K110) ->  | L111: =AVERAGE(L4:L110) -> 38.18987588 | M111: =AVERAGE(M4:M110) -> 63.64979313
D112: Max | E112: =MAX(E4:E109) -> 3.28 | G112: =MAX(G5:G110) -> 9.972222222 | H112: =MAX(H4:H110) -> 10 | I112: =MAX(I4:I110) -> 9.875 | K112: =MAX(K4:K110) -> 0 | L112: =MAX(L4:L110) -> 54.75396825 | M112: =MAX(M4:M110) -> 91.25661376
D113: SD | E113: =STDEV(E4:E109) -> 0.8565119983 | G113: =STDEV(G4:G110) -> 2.167715891 | H113: =STDEV(H4:H110) -> 1.93242777 | I113: =STDEV(I4:I110) -> 1.743944132 | K113: =STDEV(K4:K110) ->  | L113: =STDEV(L4:L110) -> 9.862138447 | M113: =STDEV(M4:M110) -> 16.43689741

Sheet SignName
A1: รายวิชา 195231 : THERMODYNAMICS I | H1: Section 1 | J1: ปีการศึกษา 2556 ภาคการศึกษาที่ 1 | Q1: รศ.ดร.สมหมาย ปรีเปรม | R1: รายวิชา 195231 : THERMODYNAMICS I | AD1: Section 4
R2: ปีการศึกษา 2556 ภาคการศึกษาที่ 1 | Y2: รศ.ดร.สมหมาย ปรีเปรม
A3: ที่ | B3: รหัส | C3: ชื่อ | D3: หลักสูตร | E3: Group | J3: ที่ | K3: รหัส | L3: ชื่อ | M3: หลักสูตร | N3: Group | R3: ที่ | S3: รหัส | T3: ชื่อ | U3: หลักสูตร | V3: Group
A4: =Name!A4 -> 1 | B4: =Name!B4 -> 553040026-9 | C4: =Name!C4 -> นางสาวกนกกาญจน์ อุปสาร | D4: =Name!D4 -> EN-IE | E4: =Name!H4 -> 1 | F4: . | J4: =Name!A50 -> 47 | K4: =Name!B50 -> 553040290-2 | L4: =Name!C50 -> นายกานตภณ รุ่งฤทัยวัฒน์ | M4: =Name!D50 -> EN-IE | N4: =Name!H50 -> 1 | O4: . | R4: =Name!A96 -> 93 | S4: =Name!B96 -> 553040468-7 | T4: =Name!C96 -> นางสาวบังอร ทนน้ำ | U4: =Name!D96 -> EN-AE | V4: =Name!H96 -> 1 | W4: . | Z4: . | AC4: .
A5: =Name!A5 -> 2 | B5: =Name!B5 -> 553040032-4 | C5: =Name!C5 -> นายกิตติภัทร จิตรกสิกร | D5: =Name!D5 -> EN-IE | E5: =Name!H5 -> 1 | F5: . | J5: =Name!A51 -> 48 | K5: =Name!B51 -> 553040297-8 | L5: =Name!C51 -> นางสาวขวัญตา สุวรรณจันทร์ | M5: =Name!D51 -> EN-IE | N5: =Name!H51 -> 1 | O5: . | R5: =Name!A97 -> 94 | S5: =Name!B97 -> 553040476-8 | T5: =Name!C97 -> นายมงคลลักษ์ วงษ์ศรีมี | U5: =Name!D97 -> EN-AE | V5: =Name!H97 -> 1 | W5: . | Z5: . | AC5: .
A6: =Name!A6 -> 3 | B6: =Name!B6 -> 553040033-2 | C6: =Name!C6 -> นายกิรติกร แก้วปานกัน | D6: =Name!D6 -> EN-ME | E6: =Name!H6 -> 1 | F6: . | J6: =Name!A52 -> 49 | K6: =Name!B52 -> 553040298-6 | L6: =Name!C52 -> นายคฑาวุธ นิลคุณ | M6: =Name!D52 -> EN-ME | N6: =Name!H52 -> 1 | O6: . | R6: =Name!A98 -> 95 | S6: =Name!B98 -> 553040485-7 | T6: =Name!C98 -> นายอานันต์ หอมเนียม | U6: =Name!D98 -> EN-AE | V6: =Name!H98 -> 1 | W6: . | Z6: . | AC6: .
A7: =Name!A7 -> 4 | B7: =Name!B7 -> 553040041-3 | C7: =Name!C7 -> นางสาวชนาธินาถ โสกงโสด | D7: =Name!D7 -> EN-ME | E7: =Name!H7 -> 1 | F7: . | J7: =Name!A53 -> 50 | K7: =Name!B53 -> 553040302-1 | L7: =Name!C53 -> นายจรูญวิทย์ ยึนประโคน | M7: =Name!D53 -> EN-IE | N7: =Name!H53 -> 1 | O7: . | R7: =Name!A99 -> 96 | S7: =Name!B99 -> 553040614-2 | T7: =Name!C99 -> นายจตุรงค์ ถนอมศิลป์ | U7: =Name!D99 -> EN-ME (พิเศษ ม.6) | V7: =Name!H99 -> 4 | W7: . | Z7: . | AC7: .
A8: =Name!A8 -> 5 | B8: =Name!B8 -> 553040045-5 | C8: =Name!C8 -> นายณัฏฐกิตติ์ พูลประสงค์ | D8: =Name!D8 -> EN-ME | E8: =Name!H8 -> 1 | F8: . | J8: =Name!A54 -> 51 | K8: =Name!B54 -> 553040310-2 | L8: =Name!C54 -> นายจีระวัฒน์ ศรีมีชัย | M8: =Name!D54 -> EN-IE | N8: =Name!H54 -> 1 | O8: . | R8: =Name!A100 -> 97 | S8: =Name!B100 -> 553040617-6 | T8: =Name!C100 -> นายชัยศิริ ลี้มีธรรม | U8: =Name!D100 -> EN-ME (พิเศษ ม.6) | V8: =Name!H100 -> 4 | W8: . | Z8: . | AC8: .
A9: =Name!A9 -> 6 | B9: =Name!B9 -> 553040047-1 | C9: =Name!C9 -> นายณัฐพงษ์ กลิ่นมาลี | D9: =Name!D9 -> EN-ME | E9: =Name!H9 -> 1 | F9: . | J9: =Name!A55 -> 52 | K9: =Name!B55 -> 553040312-8 | L9: =Name!C55 -> นางสาวจุฑารัตน์ เลยยุทธ | M9: =Name!D55 -> EN-IE | N9: =Name!H55 -> 1 | O9: . | R9: =Name!A101 -> 98 | S9: =Name!B101 -> 553040618-4 | T9: =Name!C101 -> นายเชษฐพงษ์ สาขา | U9: =Name!D101 -> EN-ME (พิเศษ ม.6) | V9: =Name!H101 -> 4 | W9: . | Z9: . | AC9: .
A10: =Name!A10 -> 7 | B10: =Name!B10 -> 553040049-7 | C10: =Name!C10 -> นายณัฐวัตร สุขสำราญ | D10: =Name!D10 -> EN-IE | E10: =Name!H10 -> 1 | F10: . | J10: =Name!A56 -> 53 | K10: =Name!B56 -> 553040315-2 | L10: =Name!C56 -> นางสาวจุฬารัตน์ แสนวงษ์ | M10: =Name!D56 -> EN-ME | N10: =Name!H56 -> 1 | O10: . | R10: =Name!A102 -> 99 | S10: =Name!B102 -> 553040621-5 | T10: =Name!C102 -> นายณัฐพล หอมจะบก | U10: =Name!D102 -> EN-ME (พิเศษ ม.6) | V10: =Name!H102 -> 4 | W10: . | Z10: . | AC10: .
A11: =Name!A11 -> 8 | B11: =Name!B11 -> 553040050-2 | C11: =Name!C11 -> นายณัฐวุฒิ ฆารประเดิม | D11: =Name!D11 -> EN-ME | E11: =Name!H11 -> 1 | F11: . | J11: =Name!A57 -> 54 | K11: =Name!B57 -> 553040316-0 | L11: =Name!C57 -> นางสาวเจนจิรา ปิยาโยค | M11: =Name!D57 -> EN-ME | N11: =Name!H57 -> 1 | O11: . | R11: =Name!A103 -> 100 | S11: =Name!B103 -> 553040622-3 | T11: =Name!C103 -> นายทศพล ฉายจรุง | U11: =Name!D103 -> EN-ME (พิเศษ ม.6) | V11: =Name!H103 -> 4 | W11: . | Z11: . | AC11: .
A12: =Name!A12 -> 9 | B12: =Name!B12 -> 553040052-8 | C12: =Name!C12 -> นายถิรวัฒน์ แก้วคำปอด | D12: =Name!D12 -> EN-ME | E12: =Name!H12 -> 1 | F12: . | J12: =Name!A58 -> 55 | K12: =Name!B58 -> 553040317-8 | L12: =Name!C58 -> นายเจนณรงค์ อยู่ยง | M12: =Name!D58 -> EN-ME | N12: =Name!H58 -> 1 | O12: . | R12: =Name!A104 -> 101 | S12: =Name!B104 -> 553040623-1 | T12: =Name!C104 -> นายเทพนรินทร์ อินธิราช | U12: =Name!D104 -> EN-ME (พิเศษ ม.6) | V12: =Name!H104 -> 4 | W12: . | Z12: . | AC12: .
A13: =Name!A13 -> 10 | B13: =Name!B13 -> 553040057-8 | C13: =Name!C13 -> นายธนวิชญ์ เลิศวุฒิชัยกุล | D13: =Name!D13 -> EN-IE | E13: =Name!H13 -> 1 | F13: . | J13: =Name!A59 -> 56 | K13: =Name!B59 -> 553040320-9 | L13: =Name!C59 -> นางสาวชลธิชา นาสินสร้อย | M13: =Name!D59 -> EN-ME | N13: =Name!H59 -> 1 | O13: . | R13: =Name!A105 -> 102 | S13: =Name!B105 -> 553040624-9 | T13: =Name!C105 -> นายธนะสิทธิ์ รุจิระโชติวัฒน์ | U13: =Name!D105 -> EN-ME (พิเศษ ม.6) | V13: =Name!H105 -> 4 | W13: . | Z13: . | AC13: .
A14: =Name!A14 -> 11 | B14: =Name!B14 -> 553040059-4 | C14: =Name!C14 -> นายธนากร บุญดาว | D14: =Name!D14 -> EN-ME | E14: =Name!H14 -> 1 | F14: . | J14: =Name!A60 -> 57 | K14: =Name!B60 -> 553040321-7 | L14: =Name!C60 -> นายชลวิทย์ พิสิฐรัตนวงศ์ | M14: =Name!D60 -> EN-IE | N14: =Name!H60 -> 1 | O14: . | R14: =Name!A106 -> 103 | S14: =Name!B106 -> 553040625-7 | T14: =Name!C106 -> นายธีรศักดิ์ สังสิทธิสวัสดิ์ | U14: =Name!D106 -> EN-ME (พิเศษ ม.6) | V14: =Name!H106 -> 4 | W14: . | Z14: . | AC14: .
A15: =Name!A15 -> 12 | B15: =Name!B15 -> 553040060-9 | C15: =Name!C15 -> นายธนานนท์ ติรวีรขจร | D15: =Name!D15 -> EN-ME | E15: =Name!H15 -> 1 | F15: . | J15: =Name!A61 -> 58 | K15: =Name!B61 -> 553040326-7 | L15: =Name!C61 -> นางสาวญาดา ยิ้มยินดี | M15: =Name!D61 -> EN-IE | N15: =Name!H61 -> 1 | O15: . | R15: =Name!A107 -> 104 | S15: =Name!B107 -> 553040626-5 | T15: =Name!C107 -> นายปฏิภาณ สังข์ชัย | U15: =Name!D107 -> EN-ME (พิเศษ ม.6) | V15: =Name!H107 -> 4 | W15: . | Z15: . | AC15: .
A16: =Name!A16 -> 13 | B16: =Name!B16 -> 553040061-7 | C16: =Name!C16 -> นายธนารักษ์ ศรีน้อย | D16: =Name!D16 -> EN-ME | E16: =Name!H16 -> 1 | F16: . | J16: =Name!A62 -> 59 | K16: =Name!B62 -> 553040336-4 | L16: =Name!C62 -> นายทวีรัช ทาจันทร์ | M16: =Name!D62 -> EN-ME | N16: =Name!H62 -> 1 | O16: . | R16: =Name!A108 -> 105 | S16: =Name!B108 -> 553040631-2 | T16: =Name!C108 -> นายพงศ์รัตน์ ณ หนองคาย | U16: =Name!D108 -> EN-ME (พิเศษ ม.6) | V16: =Name!H108 -> 4 | W16: . | Z16: . | AC16: .
A17: =Name!A17 -> 14 | B17: =Name!B17 -> 553040063-3 | C17: =Name!C17 -> นายธีรเจต เตรียมวิชานนท์ | D17: =Name!D17 -> EN-ME | E17: =Name!H17 -> 1 | F17: . | J17: =Name!A63 -> 60 | K17: =Name!B63 -> 553040339-8 | L17: =Name!C63 -> นายแทนพงศ์ พุทธลา | M17: =Name!D63 -> EN-ME | N17: =Name!H63 -> 1 | O17: . | R17: =Name!A109 -> 106 | S17: =Name!B109 -> 553040636-2 | T17: =Name!C109 -> นายรัชชานนท์ บุญอาษา | U17: =Name!D109 -> EN-ME (พิเศษ ม.6) | V17: =Name!H109 -> 4 | W17: . | Z17: . | AC17: .
A18: =Name!A18 -> 15 | B18: =Name!B18 -> 553040064-1 | C18: =Name!C18 -> นายธีรพล เตชะเสน | D18: =Name!D18 -> EN-ME | E18: =Name!H18 -> 1 | F18: . | J18: =Name!A64 -> 61 | K18: =Name!B64 -> 553040340-3 | L18: =Name!C64 -> นายธนกฤต เหล่าพิเดช | M18: =Name!D64 -> EN-IE | N18: =Name!H64 -> 1 | O18: . | R18: =Name!A110 -> 107 | S18: =Name!B110 -> 563040310-3 | T18: =Name!C110 -> นางสาวธัญชนภ ธีระเดชธำดง | U18: =Name!D110 -> EN-IE | V18: =Name!H110 -> 4 | W18: . | Z18: . | AC18: .
A19: =Name!A19 -> 16 | B19: =Name!B19 -> 553040071-4 | C19: =Name!C19 -> นายบรรยง ชัยยิ่ง | D19: =Name!D19 -> EN-ME | E19: =Name!H19 -> 1 | F19: . | J19: =Name!A65 -> 62 | K19: =Name!B65 -> 553040346-1 | L19: =Name!C65 -> นางสาวธันยมัย มูลมณี | M19: =Name!D65 -> EN-IE | N19: =Name!H65 -> 1 | O19: .
A20: =Name!A20 -> 17 | B20: =Name!B20 -> 553040072-2 | C20: =Name!C20 -> นายบัญชา แก้วอาจ | D20: =Name!D20 -> EN-IE | E20: =Name!H20 -> 1 | F20: . | J20: =Name!A66 -> 63 | K20: =Name!B66 -> 553040347-9 | L20: =Name!C66 -> นายธันวา ไกยราช | M20: =Name!D66 -> EN-ME | N20: =Name!H66 -> 1 | O20: .
A21: =Name!A21 -> 18 | B21: =Name!B21 -> 553040083-7 | C21: =Name!C21 -> นายพันธวัช เก็มประโคน | D21: =Name!D21 -> EN-IE | E21: =Name!H21 -> 1 | F21: . | J21: =Name!A67 -> 64 | K21: =Name!B67 -> 553040349-5 | L21: =Name!C67 -> นายธิบดี ธิแก้ว | M21: =Name!D67 -> EN-IE | N21: =Name!H67 -> 1 | O21: .
A22: =Name!A22 -> 19 | B22: =Name!B22 -> 553040085-3 | C22: =Name!C22 -> นายพิพัฒน์ รักทองจัน | D22: =Name!D22 -> EN-ME | E22: =Name!H22 -> 1 | F22: . | J22: =Name!A68 -> 65 | K22: =Name!B68 -> 553040359-2 | L22: =Name!C68 -> นางสาวเบญจวรรณ มั่นวงษ์ | M22: =Name!D68 -> EN-IE | N22: =Name!H68 -> 1 | O22: .
A23: =Name!A23 -> 20 | B23: =Name!B23 -> 553040087-9 | C23: =Name!C23 -> นายพิภัทรยา ศิริแว่น | D23: =Name!D23 -> EN-ME | E23: =Name!H23 -> 1 | F23: . | J23: =Name!A69 -> 66 | K23: =Name!B69 -> 553040365-7 | L23: =Name!C69 -> นางสาวปรีม สุขเสนีย์ | M23: =Name!D69 -> EN-ME | N23: =Name!H69 -> 1 | O23: .
A24: =Name!A24 -> 21 | B24: =Name!B24 -> 553040092-6 | C24: =Name!C24 -> นายยศพนธ์ จันทร์วิเมลือง | D24: =Name!D24 -> EN-ME | E24: =Name!H24 -> 1 | F24: . | J24: =Name!A70 -> 67 | K24: =Name!B70 -> 553040368-1 | L24: =Name!C70 -> นางสาวปุณฑริกา สิทธิกรชัย | M24: =Name!D70 -> EN-IE | N24: =Name!H70 -> 1 | O24: .
A25: =Name!A25 -> 22 | B25: =Name!B25 -> 553040094-2 | C25: =Name!C25 -> นายยุทธการ แสนเสนา | D25: =Name!D25 -> EN-ME | E25: =Name!H25 -> 1 | F25: . | J25: =Name!A71 -> 68 | K25: =Name!B71 -> 553040380-1 | L25: =Name!C71 -> นายพิธพล พลเพชร | M25: =Name!D71 -> EN-IE | N25: =Name!H71 -> 1 | O25: .
A26: =Name!A26 -> 23 | B26: =Name!B26 -> 553040095-0 | C26: =Name!C26 -> นายยุทธนา พิริยะสุทธิ์ | D26: =Name!D26 -> EN-ME | E26: =Name!H26 -> 1 | F26: . | J26: =Name!A72 -> 69 | K26: =Name!B72 -> 553040383-5 | L26: =Name!C72 -> นายพีระพงษ์ สิมงาม | M26: =Name!D72 -> EN-ME | N26: =Name!H72 -> 1 | O26: .
A27: =Name!A27 -> 24 | B27: =Name!B27 -> 553040101-1 | C27: =Name!C27 -> นายวรพล จันทร์ผิว | D27: =Name!D27 -> EN-IE | E27: =Name!H27 -> 1 | F27: . | J27: =Name!A73 -> 70 | K27: =Name!B73 -> 553040386-9 | L27: =Name!C73 -> นายภัทรพล สารผล | M27: =Name!D73 -> EN-IE | N27: =Name!H73 -> 1 | O27: .
A28: =Name!A28 -> 25 | B28: =Name!B28 -> 553040104-5 | C28: =Name!C28 -> นายวรานนท์ ยุทธอมร | D28: =Name!D28 -> EN-ME | E28: =Name!H28 -> 1 | F28: . | J28: =Name!A74 -> 71 | K28: =Name!B74 -> 553040387-7 | L28: =Name!C74 -> นายภาคภูมิ ประเสริฐ | M28: =Name!D74 -> EN-ME | N28: =Name!H74 -> 1 | O28: .
A29: =Name!A29 -> 26 | B29: =Name!B29 -> 553040106-1 | C29: =Name!C29 -> นายวศิน คำปัญโญ | D29: =Name!D29 -> EN-ME | E29: =Name!H29 -> 1 | F29: . | J29: =Name!A75 -> 72 | K29: =Name!B75 -> 553040391-6 | L29: =Name!C75 -> นายมารุต พลวัน | M29: =Name!D75 -> EN-ME | N29: =Name!H75 -> 1 | O29: .
A30: =Name!A30 -> 27 | B30: =Name!B30 -> 553040108-7 | C30: =Name!C30 -> นายวิชญสิทธิ์ พันธุ์รักษา | D30: =Name!D30 -> EN-IE | E30: =Name!H30 -> 1 | F30: . | J30: =Name!A76 -> 73 | K30: =Name!B76 -> 553040397-4 | L30: =Name!C76 -> นายรัชชานนท์ หาญกล้า | M30: =Name!D76 -> EN-ME | N30: =Name!H76 -> 1 | O30: .
A31: =Name!A31 -> 28 | B31: =Name!B31 -> 553040121-5 | C31: =Name!C31 -> นายสิริวุฒิ ภูมิภูเขียว | D31: =Name!D31 -> EN-IE | E31: =Name!H31 -> 1 | F31: . | J31: =Name!A77 -> 74 | K31: =Name!B77 -> 553040400-1 | L31: =Name!C77 -> นายวงศธร เอียตระกูลไพบูลย์ | M31: =Name!D77 -> EN-IE | N31: =Name!H77 -> 1 | O31: .
A32: =Name!A32 -> 29 | B32: =Name!B32 -> 553040123-1 | C32: =Name!C32 -> นางสาวหทัยชนก ปัญญาบุตร | D32: =Name!D32 -> EN-ME | E32: =Name!H32 -> 1 | F32: . | J32: =Name!A78 -> 75 | K32: =Name!B78 -> 553040401-9 | L32: =Name!C78 -> นายวชิรวิทย์ นวรัตนากร | M32: =Name!D78 -> EN-IE | N32: =Name!H78 -> 1 | O32: .
A33: =Name!A33 -> 30 | B33: =Name!B33 -> 553040126-5 | C33: =Name!C33 -> นายอนวัช คงวีระวัฒน์ | D33: =Name!D33 -> EN-ME | E33: =Name!H33 -> 1 | F33: . | J33: =Name!A79 -> 76 | K33: =Name!B79 -> 553040404-3 | L33: =Name!C79 -> นายวนัสมัญ กฤษณะสุวรรณ | M33: =Name!D79 -> EN-IE | N33: =Name!H79 -> 1 | O33: .
A34: =Name!A34 -> 31 | B34: =Name!B34 -> 553040132-0 | C34: =Name!C34 -> นางสาวอรทัย ยอดแก้วพิสัย | D34: =Name!D34 -> EN-IE | E34: =Name!H34 -> 1 | F34: . | J34: =Name!A80 -> 77 | K34: =Name!B80 -> 553040417-4 | L34: =Name!C80 -> นางสาวศศิวิมล กองพันธ์ | M34: =Name!D80 -> EN-IE | N34: =Name!H80 -> 1 | O34: .
A35: =Name!A35 -> 32 | B35: =Name!B35 -> 553040133-8 | C35: =Name!C35 -> นายอรรถชัย ทองสุข | D35: =Name!D35 -> EN-ME | E35: =Name!H35 -> 1 | F35: . | J35: =Name!A81 -> 78 | K35: =Name!B81 -> 553040420-5 | L35: =Name!C81 -> นางสาวศิรินาถ ดวงพิมพ์ | M35: =Name!D81 -> EN-IE | N35: =Name!H81 -> 1 | O35: .
A36: =Name!A36 -> 33 | B36: =Name!B36 -> 553040136-2 | C36: =Name!C36 -> นางสาวอัชฌา เสาร์สิงห์ | D36: =Name!D36 -> EN-ME | E36: =Name!H36 -> 1 | F36: . | J36: =Name!A82 -> 79 | K36: =Name!B82 -> 553040426-3 | L36: =Name!C82 -> นายสหภาพ เพียรชนะ | M36: =Name!D82 -> EN-ME | N36: =Name!H82 -> 1 | O36: .
A37: =Name!A37 -> 34 | B37: =Name!B37 -> 553040137-0 | C37: =Name!C37 -> นางสาวอัชรา เชาว์ชอบ | D37: =Name!D37 -> EN-IE | E37: =Name!H37 -> 1 | F37: . | J37: =Name!A83 -> 80 | K37: =Name!B83 -> 553040427-1 | L37: =Name!C83 -> นายสิทธิชัย เมืองโคตร | M37: =Name!D83 -> EN-ME | N37: =Name!H83 -> 1 | O37: .
A38: =Name!A38 -> 35 | B38: =Name!B38 -> 553040146-9 | C38: =Name!C38 -> นายเจษฎา พลชา | D38: =Name!D38 -> EN-AE | E38: =Name!H38 -> 1 | F38: . | J38: =Name!A84 -> 81 | K38: =Name!B84 -> 553040428-9 | L38: =Name!C84 -> นางสาวสุกัญญา ธารานุวงศ์ | M38: =Name!D84 -> EN-ME | N38: =Name!H84 -> 1 | O38: .
A39: =Name!A39 -> 36 | B39: =Name!B39 -> 553040148-5 | C39: =Name!C39 -> นายเชษฐทรัพย์ ทองคำใส | D39: =Name!D39 -> EN-AE | E39: =Name!H39 -> 1 | F39: . | J39: =Name!A85 -> 82 | K39: =Name!B85 -> 553040429-7 | L39: =Name!C85 -> นางสาวสุกัญญา เวียงสิมา | M39: =Name!D85 -> EN-IE | N39: =Name!H85 -> 1 | O39: .
A40: =Name!A40 -> 37 | B40: =Name!B40 -> 553040149-3 | C40: =Name!C40 -> นายณัฐพงษ์ เหล่าจูม | D40: =Name!D40 -> EN-AE | E40: =Name!H40 -> 1 | F40: . | J40: =Name!A86 -> 83 | K40: =Name!B86 -> 553040430-2 | L40: =Name!C86 -> นางสาวสุฑิฌา อินทนนท์ | M40: =Name!D86 -> EN-IE | N40: =Name!H86 -> 1 | O40: .
A41: =Name!A41 -> 38 | B41: =Name!B41 -> 553040154-0 | C41: =Name!C41 -> นางสาวนฤมล พรมพุ้ย | D41: =Name!D41 -> EN-AE | E41: =Name!H41 -> 1 | F41: . | J41: =Name!A87 -> 84 | K41: =Name!B87 -> 553040434-4 | L41: =Name!C87 -> นางสาวสุรัชนา ตุ่นแก้ว | M41: =Name!D87 -> EN-ME | N41: =Name!H87 -> 1 | O41: .
A42: =Name!A42 -> 39 | B42: =Name!B42 -> 553040163-9 | C42: =Name!C42 -> นางสาววาสนา เคเมือง | D42: =Name!D42 -> EN-AE | E42: =Name!H42 -> 1 | F42: . | J42: =Name!A88 -> 85 | K42: =Name!B88 -> 553040436-0 | L42: =Name!C88 -> นายเสฎฐฌาน น้อยอาษา | M42: =Name!D88 -> EN-ME | N42: =Name!H88 -> 1 | O42: .
A43: =Name!A43 -> 40 | B43: =Name!B43 -> 553040164-7 | C43: =Name!C43 -> นายวิภูรินทร์ เลิศพนาลัย | D43: =Name!D43 -> EN-AE | E43: =Name!H43 -> 1 | F43: . | J43: =Name!A89 -> 86 | K43: =Name!B89 -> 553040448-3 | L43: =Name!C89 -> นายอาทิตย์ ขาวสนิท | M43: =Name!D89 -> EN-ME | N43: =Name!H89 -> 1 | O43: .
A44: =Name!A44 -> 41 | B44: =Name!B44 -> 553040167-1 | C44: =Name!C44 -> นายอดิศักดิ์ มุนนี | D44: =Name!D44 -> EN-AE | E44: =Name!H44 -> 1 | F44: . | J44: =Name!A90 -> 87 | K44: =Name!B90 -> 553040449-1 | L44: =Name!C90 -> นายอานุภาพ วิจบ | M44: =Name!D90 -> EN-IE | N44: =Name!H90 -> 1 | O44: .
A45: =Name!A45 -> 42 | B45: =Name!B45 -> 553040169-7 | C45: =Name!C45 -> นายอภิสิทธิ์ รังสิมาวงศ์ | D45: =Name!D45 -> EN-AE | E45: =Name!H45 -> 1 | F45: . | J45: =Name!A91 -> 88 | K45: =Name!B91 -> 553040450-6 | L45: =Name!C91 -> นายเอกราช คำงาม | M45: =Name!D91 -> EN-ME | N45: =Name!H91 -> 1 | O45: .
A46: =Name!A46 -> 43 | B46: =Name!B46 -> 553040170-2 | C46: =Name!C46 -> นายอาทิตย์ ภูผาผุด | D46: =Name!D46 -> EN-AE | E46: =Name!H46 -> 1 | F46: . | J46: =Name!A92 -> 89 | K46: =Name!B92 -> 553040454-8 | L46: =Name!C92 -> นายกลวัชร จงฤาชา | M46: =Name!D92 -> EN-AE | N46: =Name!H92 -> 1 | O46: .
A47: =Name!A47 -> 44 | B47: =Name!B47 -> 553040281-3 | C47: =Name!C47 -> นายทวิชาติ อัครสันตติกุล | D47: =Name!D47 -> EN-IE | E47: =Name!H47 -> 1 | F47: . | J47: =Name!A93 -> 90 | K47: =Name!B93 -> 553040458-0 | L47: =Name!C93 -> นางสาวจุฬาลักษณ์ ชมภูรักษ์ | M47: =Name!D93 -> EN-AE | N47: =Name!H93 -> 1 | O47: .
A48: =Name!A48 -> 45 | B48: =Name!B48 -> 553040285-5 | C48: =Name!C48 -> นางสาวกนกอร แดงน้อย | D48: =Name!D48 -> EN-IE | E48: =Name!H48 -> 1 | F48: . | J48: =Name!A94 -> 91 | K48: =Name!B94 -> 553040464-5 | L48: =Name!C94 -> นางสาวทิชากร จุลพันธ์ | M48: =Name!D94 -> EN-AE | N48: =Name!H94 -> 1 | O48: .
A49: =Name!A49 -> 46 | B49: =Name!B49 -> 553040289-7 | C49: =Name!C49 -> นายกัมปนาท ชาวดร | D49: =Name!D49 -> EN-ME | E49: =Name!H49 -> 1 | F49: . | J49: =Name!A95 -> 92 | K49: =Name!B95 -> 553040467-9 | L49: =Name!C95 -> นายนพพล รัตน์ปิยะภาภรณ์ | M49: =Name!D95 -> EN-AE | N49: =Name!H95 -> 1 | O49: .

Sheet Class
B1: รายวิชา | C1: 185231 : THERMODYNAMICS I | H1: Section 1
B2: ปีการศึกษา | C2: 2553 ภาคการศึกษาที่ 1 | AN2: =SUM(G2:AM2) -> 0
A3: ลำดับ | B3: รหัส | C3: ชื่อ | D3: หลักสูตร | E3: GPA | F3: Section | AM3: Attened | AN3: Miss
A4: =Score!A110 -> 107 | B4: =Score!B110 -> 563040310-3 | C4: =Score!C110 -> นางสาวธัญชนภ ธีระเดชธำดง | D4: =Score!D110 -> EN-IE | E4: =Score!E110 -> 0 | F4: =Score!F110 -> 4 | AM4: =SUM(G4:AL4) -> 0 | AN4: =+$AN$2-AM4 -> 0
A5: =Score!A109 -> 106 | B5: =Score!B109 -> 553040636-2 | C5: =Score!C109 -> นายรัชชานนท์ บุญอาษา | D5: =Score!D109 -> EN-ME (พิเศษ ม.6) | E5: =Score!E109 -> 0 | F5: =Score!F109 -> 4 | AM5: =SUM(G5:AL5) -> 0 | AN5: 0
A6: =Score!A108 -> 105 | B6: =Score!B108 -> 553040631-2 | C6: =Score!C108 -> นายพงศ์รัตน์ ณ หนองคาย | D6: =Score!D108 -> EN-ME (พิเศษ ม.6) | E6: =Score!E108 -> 0 | F6: =Score!F108 -> 4 | AM6: 0 | AN6: 0
A7: =Score!A107 -> 104 | B7: =Score!B107 -> 553040626-5 | C7: =Score!C107 -> นายปฏิภาณ สังข์ชัย | D7: =Score!D107 -> EN-ME (พิเศษ ม.6) | E7: =Score!E107 -> 0 | F7: =Score!F107 -> 4 | AM7: 0 | AN7: 0
A8: =Score!A106 -> 103 | B8: =Score!B106 -> 553040625-7 | C8: =Score!C106 -> นายธีรศักดิ์ สังสิทธิสวัสดิ์ | D8: =Score!D106 -> EN-ME (พิเศษ ม.6) | E8: =Score!E106 -> 0 | F8: =Score!F106 -> 4 | AM8: 0 | AN8: 0
A9: =Score!A105 -> 102 | B9: =Score!B105 -> 553040624-9 | C9: =Score!C105 -> นายธนะสิทธิ์ รุจิระโชติวัฒน์ | D9: =Score!D105 -> EN-ME (พิเศษ ม.6) | E9: =Score!E105 -> 0 | F9: =Score!F105 -> 4 | AM9: 0 | AN9: 0
A10: =Score!A104 -> 101 | B10: =Score!B104 -> 553040623-1 | C10: =Score!C104 -> นายเทพนรินทร์ อินธิราช | D10: =Score!D104 -> EN-ME (พิเศษ ม.6) | E10: =Score!E104 -> 0 | F10: =Score!F104 -> 4 | AM10: 0 | AN10: 0
A11: =Score!A103 -> 100 | B11: =Score!B103 -> 553040622-3 | C11: =Score!C103 -> นายทศพล ฉายจรุง | D11: =Score!D103 -> EN-ME (พิเศษ ม.6) | E11: =Score!E103 -> 0 | F11: =Score!F103 -> 4 | AM11: 0 | AN11: 0
A12: =Score!A102 -> 99 | B12: =Score!B102 -> 553040621-5 | C12: =Score!C102 -> นายณัฐพล หอมจะบก | D12: =Score!D102 -> EN-ME (พิเศษ ม.6) | E12: =Score!E102 -> 0 | F12: =Score!F102 -> 4 | AM12: 0 | AN12: 0
A13: =Score!A101 -> 98 | B13: =Score!B101 -> 553040618-4 | C13: =Score!C101 -> นายเชษฐพงษ์ สาขา | D13: =Score!D101 -> EN-ME (พิเศษ ม.6) | E13: =Score!E101 -> 0 | F13: =Score!F101 -> 4 | AM13: 0 | AN13: 0
A14: =Score!A100 -> 97 | B14: =Score!B100 -> 553040617-6 | C14: =Score!C100 -> นายชัยศิริ ลี้มีธรรม | D14: =Score!D100 -> EN-ME (พิเศษ ม.6) | E14: =Score!E100 -> 0 | F14: =Score!F100 -> 4 | AM14: 0 | AN14: 0
A15: =Score!A99 -> 96 | B15: =Score!B99 -> 553040614-2 | C15: =Score!C99 -> นายจตุรงค์ ถนอมศิลป์ | D15: =Score!D99 -> EN-ME (พิเศษ ม.6) | E15: =Score!E99 -> 0 | F15: =Score!F99 -> 4 | AM15: 0 | AN15: 0
A16: =Score!A98 -> 95 | B16: =Score!B98 -> 553040485-7 | C16: =Score!C98 -> นายอานันต์ หอมเนียม | D16: =Score!D98 -> EN-AE | E16: =Score!E98 -> 2.24 | F16: =Score!F98 -> 1 | AM16: 0 | AN16: 0
A17: =Score!A97 -> 94 | B17: =Score!B97 -> 553040476-8 | C17: =Score!C97 -> นายมงคลลักษ์ วงษ์ศรีมี | D17: =Score!D97 -> EN-AE | E17: =Score!E97 -> 2.83 | F17: =Score!F97 -> 1 | AM17: 0 | AN17: 0
A18: =Score!A96 -> 93 | B18: =Score!B96 -> 553040468-7 | C18: =Score!C96 -> นางสาวบังอร ทนน้ำ | D18: =Score!D96 -> EN-AE | E18: =Score!E96 -> 2.6 | F18: =Score!F96 -> 1 | AM18: 0 | AN18: 0
A19: =Score!A95 -> 92 | B19: =Score!B95 -> 553040467-9 | C19: =Score!C95 -> นายนพพล รัตน์ปิยะภาภรณ์ | D19: =Score!D95 -> EN-AE | E19: =Score!E95 -> 2.57 | F19: =Score!F95 -> 1 | AM19: 0 | AN19: 0
A20: =Score!A94 -> 91 | B20: =Score!B94 -> 553040464-5 | C20: =Score!C94 -> นางสาวทิชากร จุลพันธ์ | D20: =Score!D94 -> EN-AE | E20: =Score!E94 -> 1.97 | F20: =Score!F94 -> 1 | AM20: 0 | AN20: 0
A21: =Score!A93 -> 90 | B21: =Score!B93 -> 553040458-0 | C21: =Score!C93 -> นางสาวจุฬาลักษณ์ ชมภูรักษ์ | D21: =Score!D93 -> EN-AE | E21: =Score!E93 -> 2.57 | F21: =Score!F93 -> 1 | AM21: 0 | AN21: 0
A22: =Score!A92 -> 89 | B22: =Score!B92 -> 553040454-8 | C22: =Score!C92 -> นายกลวัชร จงฤาชา | D22: =Score!D92 -> EN-AE | E22: =Score!E92 -> 2.24 | F22: =Score!F92 -> 1 | AM22: 0 | AN22: 0
A23: =Score!A91 -> 88 | B23: =Score!B91 -> 553040450-6 | C23: =Score!C91 -> นายเอกราช คำงาม | D23: =Score!D91 -> EN-ME | E23: =Score!E91 -> 2.32 | F23: =Score!F91 -> 1 | AM23: 0 | AN23: 0
A24: =Score!A90 -> 87 | B24: =Score!B90 -> 553040449-1 | C24: =Score!C90 -> นายอานุภาพ วิจบ | D24: =Score!D90 -> EN-IE | E24: =Score!E90 -> 2.9 | F24: =Score!F90 -> 1 | AM24: 0 | AN24: 0
A25: =Score!A89 -> 86 | B25: =Score!B89 -> 553040448-3 | C25: =Score!C89 -> นายอาทิตย์ ขาวสนิท | D25: =Score!D89 -> EN-ME | E25: =Score!E89 -> 2.65 | F25: =Score!F89 -> 1 | AM25: 0 | AN25: 0
A26: =Score!A88 -> 85 | B26: =Score!B88 -> 553040436-0 | C26: =Score!C88 -> นายเสฎฐฌาน น้อยอาษา | D26: =Score!D88 -> EN-ME | E26: =Score!E88 -> 2.26 | F26: =Score!F88 -> 1 | AM26: 0 | AN26: 0
A27: =Score!A87 -> 84 | B27: =Score!B87 -> 553040434-4 | C27: =Score!C87 -> นางสาวสุรัชนา ตุ่นแก้ว | D27: =Score!D87 -> EN-ME | E27: =Score!E87 -> 2.62 | F27: =Score!F87 -> 1 | AM27: 0 | AN27: 0
A28: =Score!A86 -> 83 | B28: =Score!B86 -> 553040430-2 | C28: =Score!C86 -> นางสาวสุฑิฌา อินทนนท์ | D28: =Score!D86 -> EN-IE | E28: =Score!E86 -> 1.95 | F28: =Score!F86 -> 1 | AM28: 0 | AN28: 0
A29: =Score!A85 -> 82 | B29: =Score!B85 -> 553040429-7 | C29: =Score!C85 -> นางสาวสุกัญญา เวียงสิมา | D29: =Score!D85 -> EN-IE | E29: =Score!E85 -> 2.28 | F29: =Score!F85 -> 1 | AM29: 0 | AN29: 0
A30: =Score!A84 -> 81 | B30: =Score!B84 -> 553040428-9 | C30: =Score!C84 -> นางสาวสุกัญญา ธารานุวงศ์ | D30: =Score!D84 -> EN-ME | E30: =Score!E84 -> 2.8 | F30: =Score!F84 -> 1 | AM30: 0 | AN30: 0
A31: =Score!A83 -> 80 | B31: =Score!B83 -> 553040427-1 | C31: =Score!C83 -> นายสิทธิชัย เมืองโคตร | D31: =Score!D83 -> EN-ME | E31: =Score!E83 -> 2.35 | F31: =Score!F83 -> 1 | AM31: 0 | AN31: 0
A32: =Score!A82 -> 79 | B32: =Score!B82 -> 553040426-3 | C32: =Score!C82 -> นายสหภาพ เพียรชนะ | D32: =Score!D82 -> EN-ME | E32: =Score!E82 -> 3.13 | F32: =Score!F82 -> 1 | AM32: 0 | AN32: 0
A33: =Score!A81 -> 78 | B33: =Score!B81 -> 553040420-5 | C33: =Score!C81 -> นางสาวศิรินาถ ดวงพิมพ์ | D33: =Score!D81 -> EN-IE | E33: =Score!E81 -> 2.21 | F33: =Score!F81 -> 1 | AM33: 0 | AN33: 0
A34: =Score!A80 -> 77 | B34: =Score!B80 -> 553040417-4 | C34: =Score!C80 -> นางสาวศศิวิมล กองพันธ์ | D34: =Score!D80 -> EN-IE | E34: =Score!E80 -> 2.94 | F34: =Score!F80 -> 1 | AM34: 0 | AN34: 0
A35: =Score!A79 -> 76 | B35: =Score!B79 -> 553040404-3 | C35: =Score!C79 -> นายวนัสมัญ กฤษณะสุวรรณ | D35: =Score!D79 -> EN-IE | E35: =Score!E79 -> 2.3 | F35: =Score!F79 -> 1 | AM35: 0 | AN35: 0
A36: =Score!A78 -> 75 | B36: =Score!B78 -> 553040401-9 | C36: =Score!C78 -> นายวชิรวิทย์ นวรัตนากร | D36: =Score!D78 -> EN-IE | E36: =Score!E78 -> 2.83 | F36: =Score!F78 -> 1 | AM36: 0 | AN36: =+$AN$2-AM36 -> 0
A37: =Score!A77 -> 74 | B37: =Score!B77 -> 553040400-1 | C37: =Score!C77 -> นายวงศธร เอียตระกูลไพบูลย์ | D37: =Score!D77 -> EN-IE | E37: =Score!E77 -> 2.76 | F37: =Score!F77 -> 1 | AM37: =SUM(G37:AL37) -> 0 | AN37: 0
A38: =Score!A76 -> 73 | B38: =Score!B76 -> 553040397-4 | C38: =Score!C76 -> นายรัชชานนท์ หาญกล้า | D38: =Score!D76 -> EN-ME | E38: =Score!E76 -> 2.65 | F38: =Score!F76 -> 1 | AM38: 0 | AN38: 0
A39: =Score!A75 -> 72 | B39: =Score!B75 -> 553040391-6 | C39: =Score!C75 -> นายมารุต พลวัน | D39: =Score!D75 -> EN-ME | E39: =Score!E75 -> 2.77 | F39: =Score!F75 -> 1 | AM39: 0 | AN39: 0
A40: =Score!A74 -> 71 | B40: =Score!B74 -> 553040387-7 | C40: =Score!C74 -> นายภาคภูมิ ประเสริฐ | D40: =Score!D74 -> EN-ME | E40: =Score!E74 -> 2.86 | F40: =Score!F74 -> 1 | AM40: 0 | AN40: 0
A41: =Score!A73 -> 70 | B41: =Score!B73 -> 553040386-9 | C41: =Score!C73 -> นายภัทรพล สารผล | D41: =Score!D73 -> EN-IE | E41: =Score!E73 -> 2.08 | F41: =Score!F73 -> 1 | AM41: 0 | AN41: 0
A42: =Score!A72 -> 69 | B42: =Score!B72 -> 553040383-5 | C42: =Score!C72 -> นายพีระพงษ์ สิมงาม | D42: =Score!D72 -> EN-ME | E42: =Score!E72 -> 2.69 | F42: =Score!F72 -> 1 | AM42: 0 | AN42: 0
A43: =Score!A71 -> 68 | B43: =Score!B71 -> 553040380-1 | C43: =Score!C71 -> นายพิธพล พลเพชร | D43: =Score!D71 -> EN-IE | E43: =Score!E71 -> 2.21 | F43: =Score!F71 -> 1 | AM43: 0 | AN43: 0
A44: =Score!A70 -> 67 | B44: =Score!B70 -> 553040368-1 | C44: =Score!C70 -> นางสาวปุณฑริกา สิทธิกรชัย | D44: =Score!D70 -> EN-IE | E44: =Score!E70 -> 2.26 | F44: =Score!F70 -> 1 | AM44: 0 | AN44: 0
A45: =Score!A69 -> 66 | B45: =Score!B69 -> 553040365-7 | C45: =Score!C69 -> นางสาวปรีม สุขเสนีย์ | D45: =Score!D69 -> EN-ME | E45: =Score!E69 -> 2.47 | F45: =Score!F69 -> 1 | AM45: 0 | AN45: 0
A46: =Score!A68 -> 65 | B46: =Score!B68 -> 553040359-2 | C46: =Score!C68 -> นางสาวเบญจวรรณ มั่นวงษ์ | D46: =Score!D68 -> EN-IE | E46: =Score!E68 -> 2.02 | F46: =Score!F68 -> 1 | AM46: 0 | AN46: 0
A47: =Score!A67 -> 64 | B47: =Score!B67 -> 553040349-5 | C47: =Score!C67 -> นายธิบดี ธิแก้ว | D47: =Score!D67 -> EN-IE | E47: =Score!E67 -> 2.15 | F47: =Score!F67 -> 1 | AM47: 0 | AN47: 0
A48: =Score!A66 -> 63 | B48: =Score!B66 -> 553040347-9 | C48: =Score!C66 -> นายธันวา ไกยราช | D48: =Score!D66 -> EN-ME | E48: =Score!E66 -> 2.72 | F48: =Score!F66 -> 1 | AM48: 0 | AN48: 0
A49: =Score!A65 -> 62 | B49: =Score!B65 -> 553040346-1 | C49: =Score!C65 -> นางสาวธันยมัย มูลมณี | D49: =Score!D65 -> EN-IE | E49: =Score!E65 -> 1.92 | F49: =Score!F65 -> 1 | AM49: 0 | AN49: 0
A50: =Score!A64 -> 61 | B50: =Score!B64 -> 553040340-3 | C50: =Score!C64 -> นายธนกฤต เหล่าพิเดช | D50: =Score!D64 -> EN-IE | E50: =Score!E64 -> 2.23 | F50: =Score!F64 -> 1 | AM50: 0 | AN50: 0
A51: =Score!A63 -> 60 | B51: =Score!B63 -> 553040339-8 | C51: =Score!C63 -> นายแทนพงศ์ พุทธลา | D51: =Score!D63 -> EN-ME | E51: =Score!E63 -> 2.73 | F51: =Score!F63 -> 1 | AM51: 0 | AN51: 0
A52: =Score!A62 -> 59 | B52: =Score!B62 -> 553040336-4 | C52: =Score!C62 -> นายทวีรัช ทาจันทร์ | D52: =Score!D62 -> EN-ME | E52: =Score!E62 -> 2.46 | F52: =Score!F62 -> 1 | AM52: 0 | AN52: 0
A53: =Score!A61 -> 58 | B53: =Score!B61 -> 553040326-7 | C53: =Score!C61 -> นางสาวญาดา ยิ้มยินดี | D53: =Score!D61 -> EN-IE | E53: =Score!E61 -> 2.09 | F53: =Score!F61 -> 1 | AM53: 0 | AN53: 0
A54: =Score!A60 -> 57 | B54: =Score!B60 -> 553040321-7 | C54: =Score!C60 -> นายชลวิทย์ พิสิฐรัตนวงศ์ | D54: =Score!D60 -> EN-IE | E54: =Score!E60 -> 2.19 | F54: =Score!F60 -> 1 | AM54: 0 | AN54: 0
A55: =Score!A59 -> 56 | B55: =Score!B59 -> 553040320-9 | C55: =Score!C59 -> นางสาวชลธิชา นาสินสร้อย | D55: =Score!D59 -> EN-ME | E55: =Score!E59 -> 2.81 | F55: =Score!F59 -> 1 | AM55: 0 | AN55: 0
A56: =Score!A58 -> 55 | B56: =Score!B58 -> 553040317-8 | C56: =Score!C58 -> นายเจนณรงค์ อยู่ยง | D56: =Score!D58 -> EN-ME | E56: =Score!E58 -> 2.57 | F56: =Score!F58 -> 1 | AM56: 0 | AN56: 0
A57: =Score!A57 -> 54 | B57: =Score!B57 -> 553040316-0 | C57: =Score!C57 -> นางสาวเจนจิรา ปิยาโยค | D57: =Score!D57 -> EN-ME | E57: =Score!E57 -> 2.3 | F57: =Score!F57 -> 1 | AM57: 0 | AN57: 0
A58: =Score!A56 -> 53 | B58: =Score!B56 -> 553040315-2 | C58: =Score!C56 -> นางสาวจุฬารัตน์ แสนวงษ์ | D58: =Score!D56 -> EN-ME | E58: =Score!E56 -> 3.22 | F58: =Score!F56 -> 1 | AM58: 0 | AN58: 0
A59: =Score!A55 -> 52 | B59: =Score!B55 -> 553040312-8 | C59: =Score!C55 -> นางสาวจุฑารัตน์ เลยยุทธ | D59: =Score!D55 -> EN-IE | E59: =Score!E55 -> 2.66 | F59: =Score!F55 -> 1 | AM59: 0 | AN59: 0
A60: =Score!A54 -> 51 | B60: =Score!B54 -> 553040310-2 | C60: =Score!C54 -> นายจีระวัฒน์ ศรีมีชัย | D60: =Score!D54 -> EN-IE | E60: =Score!E54 -> 2.18 | F60: =Score!F54 -> 1 | AM60: 0 | AN60: 0
A61: =Score!A53 -> 50 | B61: =Score!B53 -> 553040302-1 | C61: =Score!C53 -> นายจรูญวิทย์ ยึนประโคน | D61: =Score!D53 -> EN-IE | E61: =Score!E53 -> 2.25 | F61: =Score!F53 -> 1 | AM61: 0 | AN61: 0
A62: =Score!A52 -> 49 | B62: =Score!B52 -> 553040298-6 | C62: =Score!C52 -> นายคฑาวุธ นิลคุณ | D62: =Score!D52 -> EN-ME | E62: =Score!E52 -> 2.16 | F62: =Score!F52 -> 1 | AM62: 0 | AN62: 0
A63: =Score!A51 -> 48 | B63: =Score!B51 -> 553040297-8 | C63: =Score!C51 -> นางสาวขวัญตา สุวรรณจันทร์ | D63: =Score!D51 -> EN-IE | E63: =Score!E51 -> 1.24 | F63: =Score!F51 -> 1 | AM63: 0 | AN63: 0
A64: =Score!A50 -> 47 | B64: =Score!B50 -> 553040290-2 | C64: =Score!C50 -> นายกานตภณ รุ่งฤทัยวัฒน์ | D64: =Score!D50 -> EN-IE | E64: =Score!E50 -> 2.22 | F64: =Score!F50 -> 1 | AM64: 0 | AN64: 0
A65: =Score!A49 -> 46 | B65: =Score!B49 -> 553040289-7 | C65: =Score!C49 -> นายกัมปนาท ชาวดร | D65: =Score!D49 -> EN-ME | E65: =Score!E49 -> 3.02 | F65: =Score!F49 -> 1 | AM65: 0 | AN65: 0
A66: =Score!A48 -> 45 | B66: =Score!B48 -> 553040285-5 | C66: =Score!C48 -> นางสาวกนกอร แดงน้อย | D66: =Score!D48 -> EN-IE | E66: =Score!E48 -> 2.51 | F66: =Score!F48 -> 1 | AM66: 0 | AN66: 0
A67: =Score!A47 -> 44 | B67: =Score!B47 -> 553040281-3 | C67: =Score!C47 -> นายทวิชาติ อัครสันตติกุล | D67: =Score!D47 -> EN-IE | E67: =Score!E47 -> 1.95 | F67: =Score!F47 -> 1 | AM67: 0 | AN67: 0
A68: =Score!A46 -> 43 | B68: =Score!B46 -> 553040170-2 | C68: =Score!C46 -> นายอาทิตย์ ภูผาผุด | D68: =Score!D46 -> EN-AE | E68: =Score!E46 -> 3.25 | F68: =Score!F46 -> 1 | AM68: 0 | AN68: =+$AN$2-AM68 -> 0
A69: =Score!A45 -> 42 | B69: =Score!B45 -> 553040169-7 | C69: =Score!C45 -> นายอภิสิทธิ์ รังสิมาวงศ์ | D69: =Score!D45 -> EN-AE | E69: =Score!E45 -> 3.16 | F69: =Score!F45 -> 1 | AM69: =SUM(G69:AL69) -> 0 | AN69: 0
A70: =Score!A44 -> 41 | B70: =Score!B44 -> 553040167-1 | C70: =Score!C44 -> นายอดิศักดิ์ มุนนี | D70: =Score!D44 -> EN-AE | E70: =Score!E44 -> 2.96 | F70: =Score!F44 -> 1 | AM70: 0 | AN70: 0
A71: =Score!A43 -> 40 | B71: =Score!B43 -> 553040164-7 | C71: =Score!C43 -> นายวิภูรินทร์ เลิศพนาลัย | D71: =Score!D43 -> EN-AE | E71: =Score!E43 -> 2.55 | F71: =Score!F43 -> 1 | AM71: 0 | AN71: 0
A72: =Score!A42 -> 39 | B72: =Score!B42 -> 553040163-9 | C72: =Score!C42 -> นางสาววาสนา เคเมือง | D72: =Score!D42 -> EN-AE | E72: =Score!E42 -> 2.3 | F72: =Score!F42 -> 1 | AM72: 0 | AN72: 0
A73: =Score!A41 -> 38 | B73: =Score!B41 -> 553040154-0 | C73: =Score!C41 -> นางสาวนฤมล พรมพุ้ย | D73: =Score!D41 -> EN-AE | E73: =Score!E41 -> 2.53 | F73: =Score!F41 -> 1 | AM73: 0 | AN73: 0
A74: =Score!A40 -> 37 | B74: =Score!B40 -> 553040149-3 | C74: =Score!C40 -> นายณัฐพงษ์ เหล่าจูม | D74: =Score!D40 -> EN-AE | E74: =Score!E40 -> 3.04 | F74: =Score!F40 -> 1 | AM74: 0 | AN74: 0
A75: =Score!A39 -> 36 | B75: =Score!B39 -> 553040148-5 | C75: =Score!C39 -> นายเชษฐทรัพย์ ทองคำใส | D75: =Score!D39 -> EN-AE | E75: =Score!E39 -> 2.6 | F75: =Score!F39 -> 1 | AM75: 0 | AN75: 0
A76: =Score!A38 -> 35 | B76: =Score!B38 -> 553040146-9 | C76: =Score!C38 -> นายเจษฎา พลชา | D76: =Score!D38 -> EN-AE | E76: =Score!E38 -> 2.39 | F76: =Score!F38 -> 1 | AM76: 0 | AN76: 0
A77: =Score!A37 -> 34 | B77: =Score!B37 -> 553040137-0 | C77: =Score!C37 -> นางสาวอัชรา เชาว์ชอบ | D77: =Score!D37 -> EN-IE | E77: =Score!E37 -> 2.81 | F77: =Score!F37 -> 1 | AM77: 0 | AN77: 0
A78: =Score!A36 -> 33 | B78: =Score!B36 -> 553040136-2 | C78: =Score!C36 -> นางสาวอัชฌา เสาร์สิงห์ | D78: =Score!D36 -> EN-ME | E78: =Score!E36 -> 2.8 | F78: =Score!F36 -> 1 | AM78: 0 | AN78: 0
A79: =Score!A35 -> 32 | B79: =Score!B35 -> 553040133-8 | C79: =Score!C35 -> นายอรรถชัย ทองสุข | D79: =Score!D35 -> EN-ME | E79: =Score!E35 -> 2.16 | F79: =Score!F35 -> 1 | AM79: 0 | AN79: 0
A80: =Score!A34 -> 31 | B80: =Score!B34 -> 553040132-0 | C80: =Score!C34 -> นางสาวอรทัย ยอดแก้วพิสัย | D80: =Score!D34 -> EN-IE | E80: =Score!E34 -> 2.8 | F80: =Score!F34 -> 1 | AM80: 0 | AN80: 0
A81: =Score!A33 -> 30 | B81: =Score!B33 -> 553040126-5 | C81: =Score!C33 -> นายอนวัช คงวีระวัฒน์ | D81: =Score!D33 -> EN-ME | E81: =Score!E33 -> 2.27 | F81: =Score!F33 -> 1 | AM81: 0 | AN81: 0
A82: =Score!A32 -> 29 | B82: =Score!B32 -> 553040123-1 | C82: =Score!C32 -> นางสาวหทัยชนก ปัญญาบุตร | D82: =Score!D32 -> EN-ME | E82: =Score!E32 -> 2.45 | F82: =Score!F32 -> 1 | AM82: 0 | AN82: 0
A83: =Score!A31 -> 28 | B83: =Score!B31 -> 553040121-5 | C83: =Score!C31 -> นายสิริวุฒิ ภูมิภูเขียว | D83: =Score!D31 -> EN-IE | E83: =Score!E31 -> 2.06 | F83: =Score!F31 -> 1 | AM83: 0 | AN83: 0
A84: =Score!A30 -> 27 | B84: =Score!B30 -> 553040108-7 | C84: =Score!C30 -> นายวิชญสิทธิ์ พันธุ์รักษา | D84: =Score!D30 -> EN-IE | E84: =Score!E30 -> 2.83 | F84: =Score!F30 -> 1 | AM84: 0 | AN84: 0
A85: =Score!A29 -> 26 | B85: =Score!B29 -> 553040106-1 | C85: =Score!C29 -> นายวศิน คำปัญโญ | D85: =Score!D29 -> EN-ME | E85: =Score!E29 -> 2.6 | F85: =Score!F29 -> 1 | AM85: 0 | AN85: 0
A86: =Score!A28 -> 25 | B86: =Score!B28 -> 553040104-5 | C86: =Score!C28 -> นายวรานนท์ ยุทธอมร | D86: =Score!D28 -> EN-ME | E86: =Score!E28 -> 2.72 | F86: =Score!F28 -> 1 | AM86: 0 | AN86: 0
A87: =Score!A27 -> 24 | B87: =Score!B27 -> 553040101-1 | C87: =Score!C27 -> นายวรพล จันทร์ผิว | D87: =Score!D27 -> EN-IE | E87: =Score!E27 -> 3.05 | F87: =Score!F27 -> 1 | AM87: 0 | AN87: 0
A88: =Score!A26 -> 23 | B88: =Score!B26 -> 553040095-0 | C88: =Score!C26 -> นายยุทธนา พิริยะสุทธิ์ | D88: =Score!D26 -> EN-ME | E88: =Score!E26 -> 2.64 | F88: =Score!F26 -> 1 | AM88: 0 | AN88: 0
A89: =Score!A25 -> 22 | B89: =Score!B25 -> 553040094-2 | C89: =Score!C25 -> นายยุทธการ แสนเสนา | D89: =Score!D25 -> EN-ME | E89: =Score!E25 -> 2.37 | F89: =Score!F25 -> 1 | AM89: 0 | AN89: 0
A90: =Score!A24 -> 21 | B90: =Score!B24 -> 553040092-6 | C90: =Score!C24 -> นายยศพนธ์ จันทร์วิเมลือง | D90: =Score!D24 -> EN-ME | E90: =Score!E24 -> 3.11 | F90: =Score!F24 -> 1 | AM90: 0 | AN90: 0
A91: =Score!A23 -> 20 | B91: =Score!B23 -> 553040087-9 | C91: =Score!C23 -> นายพิภัทรยา ศิริแว่น | D91: =Score!D23 -> EN-ME | E91: =Score!E23 -> 2.29 | F91: =Score!F23 -> 1 | AM91: 0 | AN91: 0
A92: =Score!A22 -> 19 | B92: =Score!B22 -> 553040085-3 | C92: =Score!C22 -> นายพิพัฒน์ รักทองจัน | D92: =Score!D22 -> EN-ME | E92: =Score!E22 -> 3.04 | F92: =Score!F22 -> 1 | AM92: 0 | AN92: 0
A93: =Score!A21 -> 18 | B93: =Score!B21 -> 553040083-7 | C93: =Score!C21 -> นายพันธวัช เก็มประโคน | D93: =Score!D21 -> EN-IE | E93: =Score!E21 -> 2.08 | F93: =Score!F21 -> 1 | AM93: 0 | AN93: 0
A94: =Score!A20 -> 17 | B94: =Score!B20 -> 553040072-2 | C94: =Score!C20 -> นายบัญชา แก้วอาจ | D94: =Score!D20 -> EN-IE | E94: =Score!E20 -> 2.26 | F94: =Score!F20 -> 1 | AM94: =SUM(G94:AL94) -> 0 | AN94: =+$AN$2-AM94 -> 0
A95: =Score!A19 -> 16 | B95: =Score!B19 -> 553040071-4 | C95: =Score!C19 -> นายบรรยง ชัยยิ่ง | D95: =Score!D19 -> EN-ME | E95: =Score!E19 -> 2.68 | F95: =Score!F19 -> 1 | AM95: 0 | AN95: 0
A96: =Score!A18 -> 15 | B96: =Score!B18 -> 553040064-1 | C96: =Score!C18 -> นายธีรพล เตชะเสน | D96: =Score!D18 -> EN-ME | E96: =Score!E18 -> 3.24 | F96: =Score!F18 -> 1 | AM96: 0 | AN96: 0
A97: =Score!A17 -> 14 | B97: =Score!B17 -> 553040063-3 | C97: =Score!C17 -> นายธีรเจต เตรียมวิชานนท์ | D97: =Score!D17 -> EN-ME | E97: =Score!E17 -> 3.03 | F97: =Score!F17 -> 1 | AM97: 0 | AN97: 0
A98: =Score!A16 -> 13 | B98: =Score!B16 -> 553040061-7 | C98: =Score!C16 -> นายธนารักษ์ ศรีน้อย | D98: =Score!D16 -> EN-ME | E98: =Score!E16 -> 2.51 | F98: =Score!F16 -> 1 | AM98: 0 | AN98: 0
A99: =Score!A15 -> 12 | B99: =Score!B15 -> 553040060-9 | C99: =Score!C15 -> นายธนานนท์ ติรวีรขจร | D99: =Score!D15 -> EN-ME | E99: =Score!E15 -> 2.51 | F99: =Score!F15 -> 1 | AM99: 0 | AN99: 0
A100: =Score!A14 -> 11 | B100: =Score!B14 -> 553040059-4 | C100: =Score!C14 -> นายธนากร บุญดาว | D100: =Score!D14 -> EN-ME | E100: =Score!E14 -> 3.03 | F100: =Score!F14 -> 1 | AM100: 0 | AN100: 0
A101: =Score!A13 -> 10 | B101: =Score!B13 -> 553040057-8 | C101: =Score!C13 -> นายธนวิชญ์ เลิศวุฒิชัยกุล | D101: =Score!D13 -> EN-IE | E101: =Score!E13 -> 2.29 | F101: =Score!F13 -> 1 | AM101: 0 | AN101: 0
A102: =Score!A12 -> 9 | B102: =Score!B12 -> 553040052-8 | C102: =Score!C12 -> นายถิรวัฒน์ แก้วคำปอด | D102: =Score!D12 -> EN-ME | E102: =Score!E12 -> 2.61 | F102: =Score!F12 -> 1 | AM102: 0 | AN102: 0
A103: =Score!A11 -> 8 | B103: =Score!B11 -> 553040050-2 | C103: =Score!C11 -> นายณัฐวุฒิ ฆารประเดิม | D103: =Score!D11 -> EN-ME | E103: =Score!E11 -> 2.87 | F103: =Score!F11 -> 1 | AM103: 0 | AN103: 0
A104: =Score!A10 -> 7 | B104: =Score!B10 -> 553040049-7 | C104: =Score!C10 -> นายณัฐวัตร สุขสำราญ | D104: =Score!D10 -> EN-IE | E104: =Score!E10 -> 1.76 | F104: =Score!F10 -> 1 | AM104: 0 | AN104: 0
A105: =Score!A9 -> 6 | B105: =Score!B9 -> 553040047-1 | C105: =Score!C9 -> นายณัฐพงษ์ กลิ่นมาลี | D105: =Score!D9 -> EN-ME | E105: =Score!E9 -> 2.87 | F105: =Score!F9 -> 1 | AM105: 0 | AN105: 0
A106: =Score!A8 -> 5 | B106: =Score!B8 -> 553040045-5 | C106: =Score!C8 -> นายณัฏฐกิตติ์ พูลประสงค์ | D106: =Score!D8 -> EN-ME | E106: =Score!E8 -> 3.28 | F106: =Score!F8 -> 1 | AM106: 0 | AN106: 0
A107: =Score!A7 -> 4 | B107: =Score!B7 -> 553040041-3 | C107: =Score!C7 -> นางสาวชนาธินาถ โสกงโสด | D107: =Score!D7 -> EN-ME | E107: =Score!E7 -> 2.42 | F107: =Score!F7 -> 1 | AM107: 0 | AN107: 0
A108: =Score!A6 -> 3 | B108: =Score!B6 -> 553040033-2 | C108: =Score!C6 -> นายกิรติกร แก้วปานกัน | D108: =Score!D6 -> EN-ME | E108: =Score!E6 -> 2.82 | F108: =Score!F6 -> 1 | AM108: 0 | AN108: 0
A109: =Score!A5 -> 2 | B109: =Score!B5 -> 553040032-4 | C109: =Score!C5 -> นายกิตติภัทร จิตรกสิกร | D109: =Score!D5 -> EN-IE | E109: =Score!E5 -> 2.68 | F109: =Score!F5 -> 1 | AM109: 0 | AN109: 0
A110: =Score!A4 -> 1 | B110: =Score!B4 -> 553040026-9 | C110: =Score!C4 -> นางสาวกนกกาญจน์ อุปสาร | D110: =Score!D4 -> EN-IE | E110: =Score!E4 -> 2.7 | F110: =Score!F4 -> 1 | AM110: =SUM(G110:AL110) -> 0 | AN110: =+$AN$2-AM110 -> 0

Sheet QuizAll
B1: รายวิชา | C1: 185231 : THERMODYNAMICS I | F1: Section 1 | G1: =+G2 -> 1 | H1: =+H2 -> 1 | I1: 1 | J1: 1 | K1: 1 | L1: 1 | M1: 1 | N1: 1 | O1: 1 | P1: 1 | Q1: 1 | R1: 1 | S1: =SUM(G1:R1)/1.2 -> 10
B2: ปีการศึกษา | C2: 2553 ภาคการศึกษาที่ 1 | F2: รศ.ดร.สมหมาย ปรีเปรม | G2: 1 | H2: =+G2 -> 1 | I2: =+H2 -> 1 | J2: 1 | K2: 1 | L2: 1 | M2: 1 | N2: 1 | O2: 1 | P2: 1 | Q2: 1 | R2: 1 | S2: =SUM(G2:R2)/1.2 -> 10 | U2: 20 | V2: 10 | W2: 100 | X2: 10 | Y2: 100 | Z2: 100 | AA2: 100 | AB2: 10 | AC2: 10 | AD2: 10 | AE2: 100 | AF2: 10
A3: ลำดับ | B3: รหัส | C3: ชื่อ | D3: หลักสูตร | E3: GPA | F3: Section | G3: Quiz 1 | H3: Quiz 2 | I3: Quiz 3 | J3: Quiz 4 | K3: Quiz 5 | L3: Quiz 6 | M3: Quiz 7 | N3: Quiz 8 | O3: Quiz 9 | P3: Quiz 10 | Q3: Quiz 11 | R3: Quiz 12 | S3: Sum | U3: Quiz 1 | V3: Quiz 2 | W3: Quiz 3 | X3: Quiz 4 | Y3: Quiz 5 | Z3: Quiz 6 | AA3: Quiz 7 | AB3: Quiz 8 | AC3: Quiz 9 | AD3: Quiz 10 | AE3: Quiz 11 | AF3: Quiz 12
A4: =Score!A4 -> 1 | B4: =Score!B4 -> 553040026-9 | C4: =Score!C4 -> นางสาวกนกกาญจน์ อุปสาร | D4: =Score!D4 -> EN-IE | E4: =Score!E4 -> 2.7 | F4: =Score!F4 -> 1 | G4: =U4/20 -> 1 | H4: =V4/10 -> 1 | I4: =W4/100 -> 1 | J4: =X4/10 -> 1 | K4: =Y4/100 -> 1 | L4: =Z4/100 -> 0.5 | M4: =AA4/100 -> 1 | N4: =AB4/10 -> 1 | O4: =AC4/10 -> 1 | P4: =AD4/10 -> 0.955 | Q4: =AE4/100 -> 1 | R4: =AF4/10 -> 1 | S4: =SUM(G4:R4)/1.2 -> 9.545833333 | U4: 20 | V4: 10 | W4: 100 | X4: 10 | Y4: 100 | Z4: 50 | AA4: 100 | AB4: 10 | AC4: 10 | AD4: 9.55 | AE4: 100 | AF4: 10
A5: =Score!A5 -> 2 | B5: =Score!B5 -> 553040032-4 | C5: =Score!C5 -> นายกิตติภัทร จิตรกสิกร | D5: =Score!D5 -> EN-IE | E5: =Score!E5 -> 2.68 | F5: =Score!F5 -> 1 | G5: =U5/20 -> 1 | H5: =V5/10 -> 1 | I5: =W5/100 -> 1 | J5: =X5/10 -> 1 | K5: =Y5/100 -> 1 | L5: =Z5/100 -> 0.7 | M5: =AA5/100 -> 1 | N5: =AB5/10 -> 1 | O5: =AC5/10 -> 1 | P5: =AD5/10 -> 1 | Q5: =AE5/100 -> 1 | R5: =AF5/10 -> 1 | S5: =SUM(G5:R5)/1.2 -> 9.75 | U5: 20 | V5: 10 | W5: 100 | X5: 10 | Y5: 100 | Z5: 70 | AA5: 100 | AB5: 10 | AC5: 10 | AD5: 10 | AE5: 100 | AF5: 10
A6: =Score!A6 -> 3 | B6: =Score!B6 -> 553040033-2 | C6: =Score!C6 -> นายกิรติกร แก้วปานกัน | D6: =Score!D6 -> EN-ME | E6: =Score!E6 -> 2.82 | F6: =Score!F6 -> 1 | G6: =U6/20 -> 0.9 | H6: =V6/10 -> 1 | I6: =W6/100 -> 1 | J6: =X6/10 -> 1 | K6: =Y6/100 -> 1 | L6: 1 | M6: 0.8 | N6: 1 | O6: 1 | P6: 1 | Q6: 1 | R6: 1 | S6: 9.75 | U6: 18 | V6: 10 | W6: 100 | X6: 10 | Y6: 100 | Z6: 100 | AA6: 80 | AB6: 10 | AC6: 10 | AD6: 10 | AE6: 100 | AF6: 10
A7: =Score!A7 -> 4 | B7: =Score!B7 -> 553040041-3 | C7: =Score!C7 -> นางสาวชนาธินาถ โสกงโสด | D7: =Score!D7 -> EN-ME | E7: =Score!E7 -> 2.42 | F7: =Score!F7 -> 1 | G7: 1 | H7: 1 | I7: 1 | J7: 0.8 | K7: 1 | L7: 0.7 | M7: 1 | N7: 1 | O7: 1 | P7: 0.955 | Q7: 0.55 | R7: 0 | S7: 8.3375 | U7: 20 | V7: 10 | W7: 100 | X7: 8 | Y7: 100 | Z7: 70 | AA7: 100 | AB7: 10 | AC7: 10 | AD7: 9.55 | AE7: 55 | AF7: 0
A8: =Score!A8 -> 5 | B8: =Score!B8 -> 553040045-5 | C8: =Score!C8 -> นายณัฏฐกิตติ์ พูลประสงค์ | D8: =Score!D8 -> EN-ME | E8: =Score!E8 -> 3.28 | F8: =Score!F8 -> 1 | G8: 1 | H8: 1 | I8: 1 | J8: 1 | K8: 1 | L8: 1 | M8: 1 | N8: 1 | O8: 1 | P8: =AD8/10 -> 1 | Q8: =AE8/100 -> 1 | R8: =AF8/10 -> 1 | S8: 10 | U8: 20 | V8: 10 | W8: 100 | X8: 10 | Y8: 100 | Z8: 100 | AA8: 100 | AB8: 10 | AC8: 10 | AD8: 10 | AE8: 100 | AF8: 10
A9: =Score!A9 -> 6 | B9: =Score!B9 -> 553040047-1 | C9: =Score!C9 -> นายณัฐพงษ์ กลิ่นมาลี | D9: =Score!D9 -> EN-ME | E9: =Score!E9 -> 2.87 | F9: =Score!F9 -> 1 | G9: 0.775 | H9: 1 | I9: 1 | J9: 1 | K9: 0.8571 | L9: 0.2 | M9: 1 | N9: 1 | O9: 0.9 | P9: 0.864 | Q9: 1 | R9: 1 | S9: 8.830083333 | U9: 15.5 | V9: 10 | W9: 100 | X9: 10 | Y9: 85.71 | Z9: 20 | AA9: 100 | AB9: 10 | AC9: 9 | AD9: 8.64 | AE9: 100 | AF9: 10
A10: =Score!A10 -> 7 | B10: =Score!B10 -> 553040049-7 | C10: =Score!C10 -> นายณัฐวัตร สุขสำราญ | D10: =Score!D10 -> EN-IE | E10: =Score!E10 -> 1.76 | F10: =Score!F10 -> 1 | G10: 1 | H10: 1 | I10: 0.6 | J10: 0.8 | K10: 0.7857 | L10: 0.8 | M10: 1 | N10: 1 | O10: 1 | P10: 0 | Q10: 0 | R10: 0 | S10: 6.65475 | U10: 20 | V10: 10 | W10: 60 | X10: 8 | Y10: 78.57 | Z10: 80 | AA10: 100 | AB10: 10 | AC10: 10 | AD10: 0 | AE10: 0 | AF10: 0
A11: =Score!A11 -> 8 | B11: =Score!B11 -> 553040050-2 | C11: =Score!C11 -> นายณัฐวุฒิ ฆารประเดิม | D11: =Score!D11 -> EN-ME | E11: =Score!E11 -> 2.87 | F11: =Score!F11 -> 1 | G11: 1 | H11: 1 | I11: 1 | J11: 1 | K11: 1 | L11: 0.8 | M11: 1 | N11: 1 | O11: 1 | P11: 1 | Q11: 1 | R11: 1 | S11: 9.833333333 | U11: 20 | V11: 10 | W11: 100 | X11: 10 | Y11: 100 | Z11: 80 | AA11: 100 | AB11: 10 | AC11: 10 | AD11: 10 | AE11: 100 | AF11: 10
A12: =Score!A12 -> 9 | B12: =Score!B12 -> 553040052-8 | C12: =Score!C12 -> นายถิรวัฒน์ แก้วคำปอด | D12: =Score!D12 -> EN-ME | E12: =Score!E12 -> 2.61 | F12: =Score!F12 -> 1 | G12: 1 | H12: 1 | I12: 1 | J12: 1 | K12: 1 | L12: 1 | M12: 1 | N12: 0.833 | O12: 1 | P12: 1 | Q12: 1 | R12: 1 | S12: 9.860833333 | U12: 20 | V12: 10 | W12: 100 | X12: 10 | Y12: 100 | Z12: 100 | AA12: 100 | AB12: 8.33 | AC12: 10 | AD12: 10 | AE12: 100 | AF12: 10
A13: =Score!A13 -> 10 | B13: =Score!B13 -> 553040057-8 | C13: =Score!C13 -> นายธนวิชญ์ เลิศวุฒิชัยกุล | D13: =Score!D13 -> EN-IE | E13: =Score!E13 -> 2.29 | F13: =Score!F13 -> 1 | G13: 0 | H13: 0.8 | I13: 0 | J13: 0 | K13: 0.8571 | L13: 0 | M13: 0.6 | N13: 0.5 | O13: 0 | P13: 0.773 | Q13: 0 | R13: 0 | S13: 2.94175 | U13: 0 | V13: 8 | W13: 0 | X13: 0 | Y13: 85.71 | Z13: 0 | AA13: 60 | AB13: 5 | AC13: 0 | AD13: 7.73 | AE13: 0 | AF13: 0
A14: =Score!A14 -> 11 | B14: =Score!B14 -> 553040059-4 | C14: =Score!C14 -> นายธนากร บุญดาว | D14: =Score!D14 -> EN-ME | E14: =Score!E14 -> 3.03 | F14: =Score!F14 -> 1 | G14: 1 | H14: 1 | I14: 0.8 | J14: 1 | K14: 1 | L14: 1 | M14: 1 | N14: 1 | O14: 1 | P14: =AD14/10 -> 1 | Q14: =AE14/100 -> 1 | R14: =AF14/10 -> 0 | S14: 9 | U14: 20 | V14: 10 | W14: 80 | X14: 10 | Y14: 100 | Z14: 100 | AA14: 100 | AB14: 10 | AC14: 10 | AD14: 10 | AE14: 100 | AF14: 0
A15: =Score!A15 -> 12 | B15: =Score!B15 -> 553040060-9 | C15: =Score!C15 -> นายธนานนท์ ติรวีรขจร | D15: =Score!D15 -> EN-ME | E15: =Score!E15 -> 2.51 | F15: =Score!F15 -> 1 | G15: 0.975 | H15: 1 | I15: 0.7 | J15: 0.8 | K15: 1 | L15: 0.6 | M15: 1 | N15: 1 | O15: 1 | P15: 1 | Q15: 1 | R15: 1 | S15: 9.229166667 | U15: 19.5 | V15: 10 | W15: 70 | X15: 8 | Y15: 100 | Z15: 60 | AA15: 100 | AB15: 10 | AC15: 10 | AD15: 10 | AE15: 100 | AF15: 10
A16: =Score!A16 -> 13 | B16: =Score!B16 -> 553040061-7 | C16: =Score!C16 -> นายธนารักษ์ ศรีน้อย | D16: =Score!D16 -> EN-ME | E16: =Score!E16 -> 2.51 | F16: =Score!F16 -> 1 | G16: 0 | H16: 1 | I16: 0.9 | J16: 0.8 | K16: 0.8571 | L16: 0.4 | M16: 1 | N16: 0 | O16: 1 | P16: 1 | Q16: 0.975 | R16: 1 | S16: 7.443416667 | U16: 0 | V16: 10 | W16: 90 | X16: 8 | Y16: 85.71 | Z16: 40 | AA16: 100 | AB16: 0 | AC16: 10 | AD16: 10 | AE16: 97.5 | AF16: 10
A17: =Score!A17 -> 14 | B17: =Score!B17 -> 553040063-3 | C17: =Score!C17 -> นายธีรเจต เตรียมวิชานนท์ | D17: =Score!D17 -> EN-ME | E17: =Score!E17 -> 3.03 | F17: =Score!F17 -> 1 | G17: 0.95 | H17: 0.9 | I17: 0.8 | J17: 1 | K17: 1 | L17: 0.5 | M17: 1 | N17: 1 | O17: 1 | P17: 0.955 | Q17: 1 | R17: 1 | S17: 9.254166667 | U17: 19 | V17: 9 | W17: 80 | X17: 10 | Y17: 100 | Z17: 50 | AA17: 100 | AB17: 10 | AC17: 10 | AD17: 9.55 | AE17: 100 | AF17: 10
A18: =Score!A18 -> 15 | B18: =Score!B18 -> 553040064-1 | C18: =Score!C18 -> นายธีรพล เตชะเสน | D18: =Score!D18 -> EN-ME | E18: =Score!E18 -> 3.24 | F18: =Score!F18 -> 1 | G18: 1 | H18: 1 | I18: 1 | J18: 1 | K18: 1 | L18: 1 | M18: 1 | N18: 1 | O18: 1 | P18: 1 | Q18: 1 | R18: 1 | S18: 10 | U18: 20 | V18: 10 | W18: 100 | X18: 10 | Y18: 100 | Z18: 100 | AA18: 100 | AB18: 10 | AC18: 10 | AD18: 10 | AE18: 100 | AF18: 10
A19: =Score!A19 -> 16 | B19: =Score!B19 -> 553040071-4 | C19: =Score!C19 -> นายบรรยง ชัยยิ่ง | D19: =Score!D19 -> EN-ME | E19: =Score!E19 -> 2.68 | F19: =Score!F19 -> 1 | G19: 0.8 | H19: 1 | I19: 1 | J19: 0.8 | K19: 1 | L19: 0.8 | M19: 1 | N19: 1 | O19: 1 | P19: 1 | Q19: 0.9667 | R19: 0.923 | S19: 9.408083333 | U19: 16 | V19: 10 | W19: 100 | X19: 8 | Y19: 100 | Z19: 80 | AA19: 100 | AB19: 10 | AC19: 10 | AD19: 10 | AE19: 96.67 | AF19: 9.23
A20: =Score!A20 -> 17 | B20: =Score!B20 -> 553040072-2 | C20: =Score!C20 -> นายบัญชา แก้วอาจ | D20: =Score!D20 -> EN-IE | E20: =Score!E20 -> 2.26 | F20: =Score!F20 -> 1 | G20: 0 | H20: 0.7 | I20: 0 | J20: 0.2 | K20: 1 | L20: 0 | M20: 0.7 | N20: 1 | O20: 0.3 | P20: =AD20/10 -> 0.909 | Q20: =AE20/100 -> 0.75 | R20: =AF20/10 -> 0.846 | S20: 5.3375 | U20: 0 | V20: 7 | W20: 0 | X20: 2 | Y20: 100 | Z20: 0 | AA20: 70 | AB20: 10 | AC20: 3 | AD20: 9.09 | AE20: 75 | AF20: 8.46
A21: =Score!A21 -> 18 | B21: =Score!B21 -> 553040083-7 | C21: =Score!C21 -> นายพันธวัช เก็มประโคน | D21: =Score!D21 -> EN-IE | E21: =Score!E21 -> 2.08 | F21: =Score!F21 -> 1 | G21: 1 | H21: 0.9 | I21: 0.2 | J21: 0 | K21: 1 | L21: 0 | M21: 0.5 | N21: 0 | O21: 0 | P21: 0.955 | Q21: 0 | R21: 0 | S21: 3.795833333 | U21: 20 | V21: 9 | W21: 20 | X21: 0 | Y21: 100 | Z21: 0 | AA21: 50 | AB21: 0 | AC21: 0 | AD21: 9.55 | AE21: 0 | AF21: 0
A22: =Score!A22 -> 19 | B22: =Score!B22 -> 553040085-3 | C22: =Score!C22 -> นายพิพัฒน์ รักทองจัน | D22: =Score!D22 -> EN-ME | E22: =Score!E22 -> 3.04 | F22: =Score!F22 -> 1 | G22: 1 | H22: 0.8 | I22: 1 | J22: 0.8 | K22: 1 | L22: 0.8 | M22: 1 | N22: 1 | O22: 1 | P22: 0.773 | Q22: 1 | R22: 0.692 | S22: 9.054166667 | U22: 20 | V22: 8 | W22: 100 | X22: 8 | Y22: 100 | Z22: 80 | AA22: 100 | AB22: 10 | AC22: 10 | AD22: 7.73 | AE22: 100 | AF22: 6.92
A23: =Score!A23 -> 20 | B23: =Score!B23 -> 553040087-9 | C23: =Score!C23 -> นายพิภัทรยา ศิริแว่น | D23: =Score!D23 -> EN-ME | E23: =Score!E23 -> 2.29 | F23: =Score!F23 -> 1 | G23: 1 | H23: 0.9 | I23: 1 | J23: 1 | K23: 1 | L23: 1 | M23: 1 | N23: 1 | O23: 1 | P23: 0 | Q23: 1 | R23: 1 | S23: 9.083333333 | U23: 20 | V23: 9 | W23: 100 | X23: 10 | Y23: 100 | Z23: 100 | AA23: 100 | AB23: 10 | AC23: 10 | AD23: 0 | AE23: 100 | AF23: 10
A24: =Score!A24 -> 21 | B24: =Score!B24 -> 553040092-6 | C24: =Score!C24 -> นายยศพนธ์ จันทร์วิเมลือง | D24: =Score!D24 -> EN-ME | E24: =Score!E24 -> 3.11 | F24: =Score!F24 -> 1 | G24: 1 | H24: 1 | I24: 0.8 | J24: 1 | K24: 1 | L24: 1 | M24: 0.8 | N24: 1 | O24: 1 | P24: 0.955 | Q24: 1 | R24: 1 | S24: 9.629166667 | U24: 20 | V24: 10 | W24: 80 | X24: 10 | Y24: 100 | Z24: 100 | AA24: 80 | AB24: 10 | AC24: 10 | AD24: 9.55 | AE24: 100 | AF24: 10
A25: =Score!A25 -> 22 | B25: =Score!B25 -> 553040094-2 | C25: =Score!C25 -> นายยุทธการ แสนเสนา | D25: =Score!D25 -> EN-ME | E25: =Score!E25 -> 2.37 | F25: =Score!F25 -> 1 | G25: 1 | H25: 0.9 | I25: 1 | J25: 1 | K25: 1 | L25: 0 | M25: 1 | N25: 1 | O25: 1 | P25: 0.909 | Q25: 1 | R25: 1 | S25: 9.0075 | U25: 20 | V25: 9 | W25: 100 | X25: 10 | Y25: 100 | Z25: 0 | AA25: 100 | AB25: 10 | AC25: 10 | AD25: 9.09 | AE25: 100 | AF25: 10
A26: =Score!A26 -> 23 | B26: =Score!B26 -> 553040095-0 | C26: =Score!C26 -> นายยุทธนา พิริยะสุทธิ์ | D26: =Score!D26 -> EN-ME | E26: =Score!E26 -> 2.64 | F26: =Score!F26 -> 1 | G26: 1 | H26: 1 | I26: 1 | J26: 0.8 | K26: 1 | L26: 0.2 | M26: 1 | N26: 1 | O26: 0.9 | P26: 0.818 | Q26: 1 | R26: 1 | S26: 8.931666667 | U26: 20 | V26: 10 | W26: 100 | X26: 8 | Y26: 100 | Z26: 20 | AA26: 100 | AB26: 10 | AC26: 9 | AD26: 8.18 | AE26: 100 | AF26: 10
A27: =Score!A27 -> 24 | B27: =Score!B27 -> 553040101-1 | C27: =Score!C27 -> นายวรพล จันทร์ผิว | D27: =Score!D27 -> EN-IE | E27: =Score!E27 -> 3.05 | F27: =Score!F27 -> 1 | G27: 0.95 | H27: 0.8 | I27: 0.5 | J27: 1 | K27: 1 | L27: 0.2 | M27: 1 | N27: 1 | O27: 1 | P27: 1 | Q27: 1 | R27: 1 | S27: 8.708333333 | U27: 19 | V27: 8 | W27: 50 | X27: 10 | Y27: 100 | Z27: 20 | AA27: 100 | AB27: 10 | AC27: 10 | AD27: 10 | AE27: 100 | AF27: 10
A28: =Score!A28 -> 25 | B28: =Score!B28 -> 553040104-5 | C28: =Score!C28 -> นายวรานนท์ ยุทธอมร | D28: =Score!D28 -> EN-ME | E28: =Score!E28 -> 2.72 | F28: =Score!F28 -> 1 | G28: 1 | H28: 0.9 | I28: 0.7 | J28: 0.8 | K28: 0.2857 | L28: 0 | M28: 0.8 | N28: 0.833 | O28: 1 | P28: 0 | Q28: 1 | R28: 1 | S28: 6.93225 | U28: 20 | V28: 9 | W28: 70 | X28: 8 | Y28: 28.57 | Z28: 0 | AA28: 80 | AB28: 8.33 | AC28: 10 | AD28: 0 | AE28: 100 | AF28: 10
A29: =Score!A29 -> 26 | B29: =Score!B29 -> 553040106-1 | C29: =Score!C29 -> นายวศิน คำปัญโญ | D29: =Score!D29 -> EN-ME | E29: =Score!E29 -> 2.6 | F29: =Score!F29 -> 1 | G29: 1 | H29: 0.9 | I29: 0.9 | J29: 0.6 | K29: 1 | L29: 0.7 | M29: 1 | N29: 1 | O29: 1 | P29: 1 | Q29: 0.9667 | R29: 1 | S29: 9.22225 | U29: 20 | V29: 9 | W29: 90 | X29: 6 | Y29: 100 | Z29: 70 | AA29: 100 | AB29: 10 | AC29: 10 | AD29: 10 | AE29: 96.67 | AF29: 10
A30: =Score!A30 -> 27 | B30: =Score!B30 -> 553040108-7 | C30: =Score!C30 -> นายวิชญสิทธิ์ พันธุ์รักษา | D30: =Score!D30 -> EN-IE | E30: =Score!E30 -> 2.83 | F30: =Score!F30 -> 1 | G30: 1 | H30: 1 | I30: 1 | J30: 0.8 | K30: 1 | L30: 0 | M30: 0.8 | N30: 1 | O30: 1 | P30: 1 | Q30: 1 | R30: 1 | S30: 8.833333333 | U30: 20 | V30: 10 | W30: 100 | X30: 8 | Y30: 100 | Z30: 0 | AA30: 80 | AB30: 10 | AC30: 10 | AD30: 10 | AE30: 100 | AF30: 10
A31: =Score!A31 -> 28 | B31: =Score!B31 -> 553040121-5 | C31: =Score!C31 -> นายสิริวุฒิ ภูมิภูเขียว | D31: =Score!D31 -> EN-IE | E31: =Score!E31 -> 2.06 | F31: =Score!F31 -> 1 | G31: 0 | H31: 0 | I31: 1 | J31: 1 | K31: 1 | L31: 0 | M31: 0 | N31: 0.833 | O31: 1 | P31: 0.955 | Q31: 1 | R31: 1 | S31: 6.49 | U31: 0 | V31: 0 | W31: 100 | X31: 10 | Y31: 100 | Z31: 0 | AA31: 0 | AB31: 8.33 | AC31: 10 | AD31: 9.55 | AE31: 100 | AF31: 10
A32: =Score!A32 -> 29 | B32: =Score!B32 -> 553040123-1 | C32: =Score!C32 -> นางสาวหทัยชนก ปัญญาบุตร | D32: =Score!D32 -> EN-ME | E32: =Score!E32 -> 2.45 | F32: =Score!F32 -> 1 | G32: 1 | H32: 0.9 | I32: 1 | J32: 1 | K32: 0.7857 | L32: 0.5 | M32: 0.8 | N32: 1 | O32: 1 | P32: 1 | Q32: 0.9667 | R32: 1 | S32: 9.127 | U32: 20 | V32: 9 | W32: 100 | X32: 10 | Y32: 78.57 | Z32: 50 | AA32: 80 | AB32: 10 | AC32: 10 | AD32: 10 | AE32: 96.67 | AF32: 10
A33: =Score!A33 -> 30 | B33: =Score!B33 -> 553040126-5 | C33: =Score!C33 -> นายอนวัช คงวีระวัฒน์ | D33: =Score!D33 -> EN-ME | E33: =Score!E33 -> 2.27 | F33: =Score!F33 -> 1 | G33: 1 | H33: 1 | I33: 1 | J33: 1 | K33: 1 | L33: 0 | M33: 0.8 | N33: 1 | O33: 0.9 | P33: 0 | Q33: 0.6833 | R33: 1 | S33: 7.819416667 | U33: 20 | V33: 10 | W33: 100 | X33: 10 | Y33: 100 | Z33: 0 | AA33: 80 | AB33: 10 | AC33: 9 | AD33: 0 | AE33: 68.33 | AF33: 10
A34: =Score!A34 -> 31 | B34: =Score!B34 -> 553040132-0 | C34: =Score!C34 -> นางสาวอรทัย ยอดแก้วพิสัย | D34: =Score!D34 -> EN-IE | E34: =Score!E34 -> 2.8 | F34: =Score!F34 -> 1 | G34: 1 | H34: 1 | I34: 1 | J34: 1 | K34: 1 | L34: 0.5 | M34: 1 | N34: 1 | O34: 1 | P34: 1 | Q34: 1 | R34: 1 | S34: 9.583333333 | U34: 20 | V34: 10 | W34: 100 | X34: 10 | Y34: 100 | Z34: 50 | AA34: 100 | AB34: 10 | AC34: 10 | AD34: 10 | AE34: 100 | AF34: 10
A35: =Score!A35 -> 32 | B35: =Score!B35 -> 553040133-8 | C35: =Score!C35 -> นายอรรถชัย ทองสุข | D35: =Score!D35 -> EN-ME | E35: =Score!E35 -> 2.16 | F35: =Score!F35 -> 1 | G35: 1 | H35: 1 | I35: 1 | J35: 1 | K35: 1 | L35: 1 | M35: 0.8 | N35: 1 | O35: 1 | P35: 1 | Q35: 1 | R35: 1 | S35: 9.833333333 | U35: 20 | V35: 10 | W35: 100 | X35: 10 | Y35: 100 | Z35: 100 | AA35: 80 | AB35: 10 | AC35: 10 | AD35: 10 | AE35: 100 | AF35: 10
A36: =Score!A36 -> 33 | B36: =Score!B36 -> 553040136-2 | C36: =Score!C36 -> นางสาวอัชฌา เสาร์สิงห์ | D36: =Score!D36 -> EN-ME | E36: =Score!E36 -> 2.8 | F36: =Score!F36 -> 1 | G36: 1 | H36: 1 | I36: 0.8 | J36: 1 | K36: 0.7857 | L36: 0.1 | M36: 1 | N36: 1 | O36: 1 | P36: 1 | Q36: 0.975 | R36: 1 | S36: 8.883916667 | U36: 20 | V36: 10 | W36: 80 | X36: 10 | Y36: 78.57 | Z36: 10 | AA36: 100 | AB36: 10 | AC36: 10 | AD36: 10 | AE36: 97.5 | AF36: 10
A37: =Score!A37 -> 34 | B37: =Score!B37 -> 553040137-0 | C37: =Score!C37 -> นางสาวอัชรา เชาว์ชอบ | D37: =Score!D37 -> EN-IE | E37: =Score!E37 -> 2.81 | F37: =Score!F37 -> 1 | G37: 1 | H37: 1 | I37: 1 | J37: 1 | K37: 1 | L37: 0.8 | M37: 1 | N37: 1 | O37: 1 | P37: 1 | Q37: 1 | R37: 1 | S37: 9.833333333 | U37: 20 | V37: 10 | W37: 100 | X37: 10 | Y37: 100 | Z37: 80 | AA37: 100 | AB37: 10 | AC37: 10 | AD37: 10 | AE37: 100 | AF37: 10
A38: =Score!A38 -> 35 | B38: =Score!B38 -> 553040146-9 | C38: =Score!C38 -> นายเจษฎา พลชา | D38: =Score!D38 -> EN-AE | E38: =Score!E38 -> 2.39 | F38: =Score!F38 -> 1 | G38: 1 | H38: 1 | I38: 1 | J38: 1 | K38: 0.7857 | L38: 1 | M38: 1 | N38: 1 | O38: 1 | P38: 1 | Q38: 1 | R38: 1 | S38: 9.821416667 | U38: 20 | V38: 10 | W38: 100 | X38: 10 | Y38: 78.57 | Z38: 100 | AA38: 100 | AB38: 10 | AC38: 10 | AD38: 10 | AE38: 100 | AF38: 10
A39: =Score!A39 -> 36 | B39: =Score!B39 -> 553040148-5 | C39: =Score!C39 -> นายเชษฐทรัพย์ ทองคำใส | D39: =Score!D39 -> EN-AE | E39: =Score!E39 -> 2.6 | F39: =Score!F39 -> 1 | G39: 1 | H39: 1 | I39: 0 | J39: 1 | K39: 1 | L39: 0.8 | M39: 1 | N39: 1 | O39: 1 | P39: 0.909 | Q39: 1 | R39: 1 | S39: 8.924166667 | U39: 20 | V39: 10 | W39: 0 | X39: 10 | Y39: 100 | Z39: 80 | AA39: 100 | AB39: 10 | AC39: 10 | AD39: 9.09 | AE39: 100 | AF39: 10
A40: =Score!A40 -> 37 | B40: =Score!B40 -> 553040149-3 | C40: =Score!C40 -> นายณัฐพงษ์ เหล่าจูม | D40: =Score!D40 -> EN-AE | E40: =Score!E40 -> 3.04 | F40: =Score!F40 -> 1 | G40: 0.85 | H40: 1 | I40: 1 | J40: 1 | K40: 1 | L40: 1 | M40: 1 | N40: 1 | O40: 1 | P40: 1 | Q40: 1 | R40: 1 | S40: 9.875 | U40: 17 | V40: 10 | W40: 100 | X40: 10 | Y40: 100 | Z40: 100 | AA40: 100 | AB40: 10 | AC40: 10 | AD40: 10 | AE40: 100 | AF40: 10
A41: =Score!A41 -> 38 | B41: =Score!B41 -> 553040154-0 | C41: =Score!C41 -> นางสาวนฤมล พรมพุ้ย | D41: =Score!D41 -> EN-AE | E41: =Score!E41 -> 2.53 | F41: =Score!F41 -> 1 | G41: 0.75 | H41: 1 | I41: 0.2 | J41: 0.8 | K41: 1 | L41: 0.3 | M41: 1 | N41: 1 | O41: 0.9 | P41: 0.955 | Q41: 0.9333 | R41: 1 | S41: 8.198583333 | U41: 15 | V41: 10 | W41: 20 | X41: 8 | Y41: 100 | Z41: 30 | AA41: 100 | AB41: 10 | AC41: 9 | AD41: 9.55 | AE41: 93.33 | AF41: 10
A42: =Score!A42 -> 39 | B42: =Score!B42 -> 553040163-9 | C42: =Score!C42 -> นางสาววาสนา เคเมือง | D42: =Score!D42 -> EN-AE | E42: =Score!E42 -> 2.3 | F42: =Score!F42 -> 1 | G42: 0.975 | H42: 1 | I42: 1 | J42: 1 | K42: 1 | L42: 1 | M42: 1 | N42: 1 | O42: 1 | P42: 1 | Q42: 1 | R42: 1 | S42: 9.979166667 | U42: 19.5 | V42: 10 | W42: 100 | X42: 10 | Y42: 100 | Z42: 100 | AA42: 100 | AB42: 10 | AC42: 10 | AD42: 10 | AE42: 100 | AF42: 10
A43: =Score!A43 -> 40 | B43: =Score!B43 -> 553040164-7 | C43: =Score!C43 -> นายวิภูรินทร์ เลิศพนาลัย | D43: =Score!D43 -> EN-AE | E43: =Score!E43 -> 2.55 | F43: =Score!F43 -> 1 | G43: 1 | H43: 1 | I43: 0.8 | J43: 1 | K43: 0.3571 | L43: 1 | M43: 1 | N43: 1 | O43: 1 | P43: 1 | Q43: 1 | R43: 1 | S43: 9.297583333 | U43: 20 | V43: 10 | W43: 80 | X43: 10 | Y43: 35.71 | Z43: 100 | AA43: 100 | AB43: 10 | AC43: 10 | AD43: 10 | AE43: 100 | AF43: 10
A44: =Score!A44 -> 41 | B44: =Score!B44 -> 553040167-1 | C44: =Score!C44 -> นายอดิศักดิ์ มุนนี | D44: =Score!D44 -> EN-AE | E44: =Score!E44 -> 2.96 | F44: =Score!F44 -> 1 | G44: 0.8 | H44: 0.9 | I44: 1 | J44: 1 | K44: 1 | L44: 1 | M44: 1 | N44: 1 | O44: 1 | P44: 1 | Q44: 1 | R44: 1 | S44: 9.75 | U44: 16 | V44: 9 | W44: 100 | X44: 10 | Y44: 100 | Z44: 100 | AA44: 100 | AB44: 10 | AC44: 10 | AD44: 10 | AE44: 100 | AF44: 10
A45: =Score!A45 -> 42 | B45: =Score!B45 -> 553040169-7 | C45: =Score!C45 -> นายอภิสิทธิ์ รังสิมาวงศ์ | D45: =Score!D45 -> EN-AE | E45: =Score!E45 -> 3.16 | F45: =Score!F45 -> 1 | G45: 0.9 | H45: 1 | I45: 1 | J45: 1 | K45: 1 | L45: 1 | M45: 1 | N45: 1 | O45: 1 | P45: 1 | Q45: 1 | R45: 1 | S45: 9.916666667 | U45: 18 | V45: 10 | W45: 100 | X45: 10 | Y45: 100 | Z45: 100 | AA45: 100 | AB45: 10 | AC45: 10 | AD45: 10 | AE45: 100 | AF45: 10
A46: =Score!A46 -> 43 | B46: =Score!B46 -> 553040170-2 | C46: =Score!C46 -> นายอาทิตย์ ภูผาผุด | D46: =Score!D46 -> EN-AE | E46: =Score!E46 -> 3.25 | F46: =Score!F46 -> 1 | G46: 1 | H46: 1 | I46: 1 | J46: 1 | K46: 1 | L46: 1 | M46: 1 | N46: 1 | O46: 1 | P46: 1 | Q46: 1 | R46: 1 | S46: 10 | U46: 20 | V46: 10 | W46: 100 | X46: 10 | Y46: 100 | Z46: 100 | AA46: 100 | AB46: 10 | AC46: 10 | AD46: 10 | AE46: 100 | AF46: 10
A47: =Score!A47 -> 44 | B47: =Score!B47 -> 553040281-3 | C47: =Score!C47 -> นายทวิชาติ อัครสันตติกุล | D47: =Score!D47 -> EN-IE | E47: =Score!E47 -> 1.95 | F47: =Score!F47 -> 1 | G47: 0.75 | H47: 0.8 | I47: 0.4 | J47: 0.8 | K47: 1 | L47: 0.2 | M47: 0.8 | N47: 1 | O47: 0.9 | P47: 0.864 | Q47: 1 | R47: 0.923 | S47: 7.864166667 | U47: 15 | V47: 8 | W47: 40 | X47: 8 | Y47: 100 | Z47: 20 | AA47: 80 | AB47: 10 | AC47: 9 | AD47: 8.64 | AE47: 100 | AF47: 9.23
A48: =Score!A48 -> 45 | B48: =Score!B48 -> 553040285-5 | C48: =Score!C48 -> นางสาวกนกอร แดงน้อย | D48: =Score!D48 -> EN-IE | E48: =Score!E48 -> 2.51 | F48: =Score!F48 -> 1 | G48: 1 | H48: 1 | I48: 0.6 | J48: 1 | K48: 1 | L48: 0.3 | M48: 0.5 | N48: 1 | O48: 1 | P48: 0.864 | Q48: 0.9667 | R48: 0.923 | S48: 8.461416667 | U48: 20 | V48: 10 | W48: 60 | X48: 10 | Y48: 100 | Z48: 30 | AA48: 50 | AB48: 10 | AC48: 10 | AD48: 8.64 | AE48: 96.67 | AF48: 9.23
A49: =Score!A49 -> 46 | B49: =Score!B49 -> 553040289-7 | C49: =Score!C49 -> นายกัมปนาท ชาวดร | D49: =Score!D49 -> EN-ME | E49: =Score!E49 -> 3.02 | F49: =Score!F49 -> 1 | G49: 1 | H49: 1 | I49: 0.8 | J49: 1 | K49: 1 | L49: 1 | M49: 0 | N49: 1 | O49: 0.9 | P49: 1 | Q49: 1 | R49: 1 | S49: 8.916666667 | U49: 20 | V49: 10 | W49: 80 | X49: 10 | Y49: 100 | Z49: 100 | AA49: 0 | AB49: 10 | AC49: 9 | AD49: 10 | AE49: 100 | AF49: 10
A50: =Score!A50 -> 47 | B50: =Score!B50 -> 553040290-2 | C50: =Score!C50 -> นายกานตภณ รุ่งฤทัยวัฒน์ | D50: =Score!D50 -> EN-IE | E50: =Score!E50 -> 2.22 | F50: =Score!F50 -> 1 | G50: 0 | H50: 0.3 | I50: 0.3 | J50: 0.4 | K50: 0.5 | L50: 1 | M50: 0 | N50: 1 | O50: 1 | P50: 1 | Q50: 1 | R50: 1 | S50: 6.25 | U50: 0 | V50: 3 | W50: 30 | X50: 4 | Y50: 50 | Z50: 100 | AA50: 0 | AB50: 10 | AC50: 10 | AD50: 10 | AE50: 100 | AF50: 10
A51: =Score!A51 -> 48 | B51: =Score!B51 -> 553040297-8 | C51: =Score!C51 -> นางสาวขวัญตา สุวรรณจันทร์ | D51: =Score!D51 -> EN-IE | E51: =Score!E51 -> 1.24 | F51: =Score!F51 -> 1 | G51: 0 | H51: 0 | I51: 0 | J51: 0 | K51: 0 | L51: 0 | M51: 0 | N51: 0 | O51: 0 | P51: 0 | Q51: 0 | R51: 0 | S51: 0 | U51: 0 | V51: 0 | W51: 0 | X51: 0 | Y51: 0 | Z51: 0 | AA51: 0 | AB51: 0 | AC51: 0 | AD51: 0 | AE51: 0 | AF51: 0
A52: =Score!A52 -> 49 | B52: =Score!B52 -> 553040298-6 | C52: =Score!C52 -> นายคฑาวุธ นิลคุณ | D52: =Score!D52 -> EN-ME | E52: =Score!E52 -> 2.16 | F52: =Score!F52 -> 1 | G52: 1 | H52: 0.7 | I52: 0.9 | J52: 1 | K52: 0 | L52: 0.2 | M52: 1 | N52: 0.833 | O52: 1 | P52: 0 | Q52: 0 | R52: 1 | S52: 6.360833333 | U52: 20 | V52: 7 | W52: 90 | X52: 10 | Y52: 0 | Z52: 20 | AA52: 100 | AB52: 8.33 | AC52: 10 | AD52: 0 | AE52: 0 | AF52: 10
A53: =Score!A53 -> 50 | B53: =Score!B53 -> 553040302-1 | C53: =Score!C53 -> นายจรูญวิทย์ ยึนประโคน | D53: =Score!D53 -> EN-IE | E53: =Score!E53 -> 2.25 | F53: =Score!F53 -> 1 | G53: 1 | H53: 0.9 | I53: 0.6 | J53: 1 | K53: 1 | L53: 1 | M53: 1 | N53: 1 | O53: 1 | P53: 1 | Q53: 1 | R53: 1 | S53: 9.583333333 | U53: 20 | V53: 9 | W53: 60 | X53: 10 | Y53: 100 | Z53: 100 | AA53: 100 | AB53: 10 | AC53: 10 | AD53: 10 | AE53: 100 | AF53: 10
A54: =Score!A54 -> 51 | B54: =Score!B54 -> 553040310-2 | C54: =Score!C54 -> นายจีระวัฒน์ ศรีมีชัย | D54: =Score!D54 -> EN-IE | E54: =Score!E54 -> 2.18 | F54: =Score!F54 -> 1 | G54: 0.925 | H54: 1 | I54: 0.7 | J54: 1 | K54: 1 | L54: 0 | M54: 1 | N54: 0.833 | O54: 1 | P54: 0.955 | Q54: 0 | R54: 1 | S54: 7.844166667 | U54: 18.5 | V54: 10 | W54: 70 | X54: 10 | Y54: 100 | Z54: 0 | AA54: 100 | AB54: 8.33 | AC54: 10 | AD54: 9.55 | AE54: 0 | AF54: 10
A55: =Score!A55 -> 52 | B55: =Score!B55 -> 553040312-8 | C55: =Score!C55 -> นางสาวจุฑารัตน์ เลยยุทธ | D55: =Score!D55 -> EN-IE | E55: =Score!E55 -> 2.66 | F55: =Score!F55 -> 1 | G55: 1 | H55: 1 | I55: 1 | J55: 1 | K55: 1 | L55: 0.5 | M55: 1 | N55: 1 | O55: 1 | P55: 1 | Q55: 1 | R55: 1 | S55: 9.583333333 | U55: 20 | V55: 10 | W55: 100 | X55: 10 | Y55: 100 | Z55: 50 | AA55: 100 | AB55: 10 | AC55: 10 | AD55: 10 | AE55: 100 | AF55: 10
A56: =Score!A56 -> 53 | B56: =Score!B56 -> 553040315-2 | C56: =Score!C56 -> นางสาวจุฬารัตน์ แสนวงษ์ | D56: =Score!D56 -> EN-ME | E56: =Score!E56 -> 3.22 | F56: =Score!F56 -> 1 | G56: 0.75 | H56: 0.6 | I56: 1 | J56: 1 | K56: 1 | L56: 0.1 | M56: 1 | N56: 1 | O56: 1 | P56: 1 | Q56: 0 | R56: 1 | S56: 7.875 | U56: 15 | V56: 6 | W56: 100 | X56: 10 | Y56: 100 | Z56: 10 | AA56: 100 | AB56: 10 | AC56: 10 | AD56: 10 | AE56: 0 | AF56: 10
A57: =Score!A57 -> 54 | B57: =Score!B57 -> 553040316-0 | C57: =Score!C57 -> นางสาวเจนจิรา ปิยาโยค | D57: =Score!D57 -> EN-ME | E57: =Score!E57 -> 2.3 | F57: =Score!F57 -> 1 | G57: 0.75 | H57: 0.9 | I57: 0.8 | J57: 1 | K57: 1 | L57: 0.2 | M57: 0.7 | N57: 1 | O57: 1 | P57: 0.955 | Q57: 0 | R57: 1 | S57: 7.754166667 | U57: 15 | V57: 9 | W57: 80 | X57: 10 | Y57: 100 | Z57: 20 | AA57: 70 | AB57: 10 | AC57: 10 | AD57: 9.55 | AE57: 0 | AF57: 10
A58: =Score!A58 -> 55 | B58: =Score!B58 -> 553040317-8 | C58: =Score!C58 -> นายเจนณรงค์ อยู่ยง | D58: =Score!D58 -> EN-ME | E58: =Score!E58 -> 2.57 | F58: =Score!F58 -> 1 | G58: 1 | H58: 1 | I58: 0.9 | J58: 1 | K58: 1 | L58: 0.2 | M58: 1 | N58: 0.667 | O58: 1 | P58: 0.955 | Q58: 0.9333 | R58: 1 | S58: 8.879416667 | U58: 20 | V58: 10 | W58: 90 | X58: 10 | Y58: 100 | Z58: 20 | AA58: 100 | AB58: 6.67 | AC58: 10 | AD58: 9.55 | AE58: 93.33 | AF58: 10
A59: =Score!A59 -> 56 | B59: =Score!B59 -> 553040320-9 | C59: =Score!C59 -> นางสาวชลธิชา นาสินสร้อย | D59: =Score!D59 -> EN-ME | E59: =Score!E59 -> 2.81 | F59: =Score!F59 -> 1 | G59: 1 | H59: 1 | I59: 1 | J59: 1 | K59: 1 | L59: 1 | M59: 1 | N59: 1 | O59: 1 | P59: 1 | Q59: 1 | R59: 1 | S59: 10 | U59: 20 | V59: 10 | W59: 100 | X59: 10 | Y59: 100 | Z59: 100 | AA59: 100 | AB59: 10 | AC59: 10 | AD59: 10 | AE59: 100 | AF59: 10
A60: =Score!A60 -> 57 | B60: =Score!B60 -> 553040321-7 | C60: =Score!C60 -> นายชลวิทย์ พิสิฐรัตนวงศ์ | D60: =Score!D60 -> EN-IE | E60: =Score!E60 -> 2.19 | F60: =Score!F60 -> 1 | G60: 0.975 | H60: 1 | I60: 1 | J60: 1 | K60: 1 | L60: 0.2 | M60: 0.8 | N60: 1 | O60: 1 | P60: 1 | Q60: 1 | R60: 1 | S60: 9.145833333 | U60: 19.5 | V60: 10 | W60: 100 | X60: 10 | Y60: 100 | Z60: 20 | AA60: 80 | AB60: 10 | AC60: 10 | AD60: 10 | AE60: 100 | AF60: 10
A61: =Score!A61 -> 58 | B61: =Score!B61 -> 553040326-7 | C61: =Score!C61 -> นางสาวญาดา ยิ้มยินดี | D61: =Score!D61 -> EN-IE | E61: =Score!E61 -> 2.09 | F61: =Score!F61 -> 1 | G61: 0.85 | H61: 1 | I61: 1 | J61: 1 | K61: 1 | L61: 0 | M61: 0.8 | N61: 1 | O61: 1 | P61: 1 | Q61: 1 | R61: 1 | S61: 8.875 | U61: 17 | V61: 10 | W61: 100 | X61: 10 | Y61: 100 | Z61: 0 | AA61: 80 | AB61: 10 | AC61: 10 | AD61: 10 | AE61: 100 | AF61: 10
A62: =Score!A62 -> 59 | B62: =Score!B62 -> 553040336-4 | C62: =Score!C62 -> นายทวีรัช ทาจันทร์ | D62: =Score!D62 -> EN-ME | E62: =Score!E62 -> 2.46 | F62: =Score!F62 -> 1 | G62: 0 | H62: 0.8 | I62: 1 | J62: 1 | K62: 1 | L62: 0.2 | M62: 1 | N62: 1 | O62: 0.6 | P62: 0 | Q62: 0.1583 | R62: 1 | S62: 6.46525 | U62: 0 | V62: 8 | W62: 100 | X62: 10 | Y62: 100 | Z62: 20 | AA62: 100 | AB62: 10 | AC62: 6 | AD62: 0 | AE62: 15.83 | AF62: 10
A63: =Score!A63 -> 60 | B63: =Score!B63 -> 553040339-8 | C63: =Score!C63 -> นายแทนพงศ์ พุทธลา | D63: =Score!D63 -> EN-ME | E63: =Score!E63 -> 2.73 | F63: =Score!F63 -> 1 | G63: 1 | H63: 1 | I63: 0.8 | J63: 1 | K63: 1 | L63: 1 | M63: 1 | N63: 1 | O63: 0.9 | P63: 1 | Q63: 1 | R63: 1 | S63: 9.75 | U63: 20 | V63: 10 | W63: 80 | X63: 10 | Y63: 100 | Z63: 100 | AA63: 100 | AB63: 10 | AC63: 9 | AD63: 10 | AE63: 100 | AF63: 10
A64: =Score!A64 -> 61 | B64: =Score!B64 -> 553040340-3 | C64: =Score!C64 -> นายธนกฤต เหล่าพิเดช | D64: =Score!D64 -> EN-IE | E64: =Score!E64 -> 2.23 | F64: =Score!F64 -> 1 | G64: 0 | H64: 0.6 | I64: 0.9 | J64: 0.4 | K64: 1 | L64: 0.8 | M64: 1 | N64: 1 | O64: 1 | P64: 0.955 | Q64: 1 | R64: 1 | S64: 8.045833333 | U64: 0 | V64: 6 | W64: 90 | X64: 4 | Y64: 100 | Z64: 80 | AA64: 100 | AB64: 10 | AC64: 10 | AD64: 9.55 | AE64: 100 | AF64: 10
A65: =Score!A65 -> 62 | B65: =Score!B65 -> 553040346-1 | C65: =Score!C65 -> นางสาวธันยมัย มูลมณี | D65: =Score!D65 -> EN-IE | E65: =Score!E65 -> 1.92 | F65: =Score!F65 -> 1 | G65: 1 | H65: 1 | I65: 0.8 | J65: 1 | K65: 1 | L65: 0 | M65: 1 | N65: 1 | O65: 1 | P65: 1 | Q65: 1 | R65: 1 | S65: 9 | U65: 20 | V65: 10 | W65: 80 | X65: 10 | Y65: 100 | Z65: 0 | AA65: 100 | AB65: 10 | AC65: 10 | AD65: 10 | AE65: 100 | AF65: 10
A66: =Score!A66 -> 63 | B66: =Score!B66 -> 553040347-9 | C66: =Score!C66 -> นายธันวา ไกยราช | D66: =Score!D66 -> EN-ME | E66: =Score!E66 -> 2.72 | F66: =Score!F66 -> 1 | G66: 1 | H66: 0.8 | I66: 0.8 | J66: 0.6 | K66: 1 | L66: 0.1 | M66: 1 | N66: 1 | O66: 1 | P66: 0.955 | Q66: 0.75 | R66: 1 | S66: 8.3375 | U66: 20 | V66: 8 | W66: 80 | X66: 6 | Y66: 100 | Z66: 10 | AA66: 100 | AB66: 10 | AC66: 10 | AD66: 9.55 | AE66: 75 | AF66: 10
A67: =Score!A67 -> 64 | B67: =Score!B67 -> 553040349-5 | C67: =Score!C67 -> นายธิบดี ธิแก้ว | D67: =Score!D67 -> EN-IE | E67: =Score!E67 -> 2.15 | F67: =Score!F67 -> 1 | G67: 1 | H67: 1 | I67: 0.7 | J67: 1 | K67: 1 | L67: 0 | M67: 1 | N67: 1 | O67: 1 | P67: 1 | Q67: 1 | R67: 1 | S67: 8.916666667 | U67: 20 | V67: 10 | W67: 70 | X67: 10 | Y67: 100 | Z67: 0 | AA67: 100 | AB67: 10 | AC67: 10 | AD67: 10 | AE67: 100 | AF67: 10
A68: =Score!A68 -> 65 | B68: =Score!B68 -> 553040359-2 | C68: =Score!C68 -> นางสาวเบญจวรรณ มั่นวงษ์ | D68: =Score!D68 -> EN-IE | E68: =Score!E68 -> 2.02 | F68: =Score!F68 -> 1 | G68: 1 | H68: 1 | I68: 0.4 | J68: 1 | K68: 0 | L68: 0.2 | M68: 1 | N68: 1 | O68: 1 | P68: 0 | Q68: 1 | R68: 1 | S68: 7.166666667 | U68: 20 | V68: 10 | W68: 40 | X68: 10 | Y68: 0 | Z68: 20 | AA68: 100 | AB68: 10 | AC68: 10 | AD68: 0 | AE68: 100 | AF68: 10
A69: =Score!A69 -> 66 | B69: =Score!B69 -> 553040365-7 | C69: =Score!C69 -> นางสาวปรีม สุขเสนีย์ | D69: =Score!D69 -> EN-ME | E69: =Score!E69 -> 2.47 | F69: =Score!F69 -> 1 | G69: 1 | H69: 1 | I69: 0.4 | J69: 1 | K69: 0.8571 | L69: =Z69/100 -> 0.3 | M69: =AA69/100 -> 1 | N69: =AB69/10 -> 1 | O69: =AC69/10 -> 1 | P69: 1 | Q69: 0.9667 | R69: 1 | S69: =SUM(G69:R69)/1.2 -> 8.769833333 | U69: 20 | V69: 10 | W69: 40 | X69: 10 | Y69: 85.71 | Z69: 30 | AA69: 100 | AB69: 10 | AC69: 10 | AD69: 10 | AE69: 96.67 | AF69: 10
A70: =Score!A70 -> 67 | B70: =Score!B70 -> 553040368-1 | C70: =Score!C70 -> นางสาวปุณฑริกา สิทธิกรชัย | D70: =Score!D70 -> EN-IE | E70: =Score!E70 -> 2.26 | F70: =Score!F70 -> 1 | G70: =U70/20 -> 1 | H70: =V70/10 -> 1 | I70: =W70/100 -> 1 | J70: =X70/10 -> 1 | K70: =Y70/100 -> 0.6429 | L70: 0 | M70: 0.3 | N70: 0.667 | O70: 0 | P70: 1 | Q70: 1 | R70: 1 | S70: 7.174916667 | U70: 20 | V70: 10 | W70: 100 | X70: 10 | Y70: 64.29 | Z70: 0 | AA70: 30 | AB70: 6.67 | AC70: 0 | AD70: 10 | AE70: 100 | AF70: 10
A71: =Score!A71 -> 68 | B71: =Score!B71 -> 553040380-1 | C71: =Score!C71 -> นายพิธพล พลเพชร | D71: =Score!D71 -> EN-IE | E71: =Score!E71 -> 2.21 | F71: =Score!F71 -> 1 | G71: 1 | H71: 0.7 | I71: 0.1 | J71: 0 | K71: 0 | L71: 0 | M71: 0 | N71: 1 | O71: 0.9 | P71: 0 | Q71: 0.9667 | R71: 1 | S71: 4.72225 | U71: 20 | V71: 7 | W71: 10 | X71: 0 | Y71: 0 | Z71: 0 | AA71: 0 | AB71: 10 | AC71: 9 | AD71: 0 | AE71: 96.67 | AF71: 10
A72: =Score!A72 -> 69 | B72: =Score!B72 -> 553040383-5 | C72: =Score!C72 -> นายพีระพงษ์ สิมงาม | D72: =Score!D72 -> EN-ME | E72: =Score!E72 -> 2.69 | F72: =Score!F72 -> 1 | G72: 1 | H72: 1 | I72: 1 | J72: 1 | K72: 1 | L72: 1 | M72: 1 | N72: 1 | O72: 1 | P72: 1 | Q72: 1 | R72: 1 | S72: 10 | U72: 20 | V72: 10 | W72: 100 | X72: 10 | Y72: 100 | Z72: 100 | AA72: 100 | AB72: 10 | AC72: 10 | AD72: 10 | AE72: 100 | AF72: 10
A73: =Score!A73 -> 70 | B73: =Score!B73 -> 553040386-9 | C73: =Score!C73 -> นายภัทรพล สารผล | D73: =Score!D73 -> EN-IE | E73: =Score!E73 -> 2.08 | F73: =Score!F73 -> 1 | G73: 0 | H73: 0.5 | I73: 0.7 | J73: 1 | K73: 1 | L73: 0 | M73: 1 | N73: 1 | O73: 0 | P73: 1 | Q73: 0 | R73: 0.692 | S73: 5.743333333 | U73: 0 | V73: 5 | W73: 70 | X73: 10 | Y73: 100 | Z73: 0 | AA73: 100 | AB73: 10 | AC73: 0 | AD73: 10 | AE73: 0 | AF73: 6.92
A74: =Score!A74 -> 71 | B74: =Score!B74 -> 553040387-7 | C74: =Score!C74 -> นายภาคภูมิ ประเสริฐ | D74: =Score!D74 -> EN-ME | E74: =Score!E74 -> 2.86 | F74: =Score!F74 -> 1 | G74: 1 | H74: 1 | I74: 1 | J74: 1 | K74: 1 | L74: 0.7 | M74: 1 | N74: 1 | O74: 1 | P74: 1 | Q74: 1 | R74: 1 | S74: 9.75 | U74: 20 | V74: 10 | W74: 100 | X74: 10 | Y74: 100 | Z74: 70 | AA74: 100 | AB74: 10 | AC74: 10 | AD74: 10 | AE74: 100 | AF74: 10
A75: =Score!A75 -> 72 | B75: =Score!B75 -> 553040391-6 | C75: =Score!C75 -> นายมารุต พลวัน | D75: =Score!D75 -> EN-ME | E75: =Score!E75 -> 2.77 | F75: =Score!F75 -> 1 | G75: 0.975 | H75: 1 | I75: 0.9 | J75: 1 | K75: 0.7857 | L75: 0.8 | M75: 1 | N75: 1 | O75: 1 | P75: 1 | Q75: 1 | R75: 1 | S75: 9.550583333 | U75: 19.5 | V75: 10 | W75: 90 | X75: 10 | Y75: 78.57 | Z75: 80 | AA75: 100 | AB75: 10 | AC75: 10 | AD75: 10 | AE75: 100 | AF75: 10
A76: =Score!A76 -> 73 | B76: =Score!B76 -> 553040397-4 | C76: =Score!C76 -> นายรัชชานนท์ หาญกล้า | D76: =Score!D76 -> EN-ME | E76: =Score!E76 -> 2.65 | F76: =Score!F76 -> 1 | G76: 1 | H76: 1 | I76: 1 | J76: 0.6 | K76: 0.5 | L76: 0 | M76: 0 | N76: 0 | O76: 1 | P76: 0 | Q76: 0 | R76: 0 | S76: 4.25 | U76: 20 | V76: 10 | W76: 100 | X76: 6 | Y76: 50 | Z76: 0 | AA76: 0 | AB76: 0 | AC76: 10 | AD76: 0 | AE76: 0 | AF76: 0
A77: =Score!A77 -> 74 | B77: =Score!B77 -> 553040400-1 | C77: =Score!C77 -> นายวงศธร เอียตระกูลไพบูลย์ | D77: =Score!D77 -> EN-IE | E77: =Score!E77 -> 2.76 | F77: =Score!F77 -> 1 | G77: 1 | H77: 0.8 | I77: 1 | J77: 1 | K77: 0.8571 | L77: 1 | M77: 1 | N77: 0.833 | O77: 1 | P77: 1 | Q77: 1 | R77: 1 | S77: 9.575083333 | U77: 20 | V77: 8 | W77: 100 | X77: 10 | Y77: 85.71 | Z77: 100 | AA77: 100 | AB77: 8.33 | AC77: 10 | AD77: 10 | AE77: 100 | AF77: 10
A78: =Score!A78 -> 75 | B78: =Score!B78 -> 553040401-9 | C78: =Score!C78 -> นายวชิรวิทย์ นวรัตนากร | D78: =Score!D78 -> EN-IE | E78: =Score!E78 -> 2.83 | F78: =Score!F78 -> 1 | G78: 0.85 | H78: 0.7 | I78: 1 | J78: 1 | K78: 1 | L78: 0 | M78: 0 | N78: 0.833 | O78: 0.4 | P78: 0.955 | Q78: 1 | R78: 1 | S78: 7.281666667 | U78: 17 | V78: 7 | W78: 100 | X78: 10 | Y78: 100 | Z78: 0 | AA78: 0 | AB78: 8.33 | AC78: 4 | AD78: 9.55 | AE78: 100 | AF78: 10
A79: =Score!A79 -> 76 | B79: =Score!B79 -> 553040404-3 | C79: =Score!C79 -> นายวนัสมัญ กฤษณะสุวรรณ | D79: =Score!D79 -> EN-IE | E79: =Score!E79 -> 2.3 | F79: =Score!F79 -> 1 | G79: 0 | H79: 0 | I79: 0 | J79: 0 | K79: 0 | L79: 0 | M79: 0 | N79: 0 | O79: 0 | P79: 0 | Q79: 1 | R79: 0.923 | S79: 1.6025 | U79: 0 | V79: 0 | W79: 0 | X79: 0 | Y79: 0 | Z79: 0 | AA79: 0 | AB79: 0 | AC79: 0 | AD79: 0 | AE79: 100 | AF79: 9.23
A80: =Score!A80 -> 77 | B80: =Score!B80 -> 553040417-4 | C80: =Score!C80 -> นางสาวศศิวิมล กองพันธ์ | D80: =Score!D80 -> EN-IE | E80: =Score!E80 -> 2.94 | F80: =Score!F80 -> 1 | G80: 1 | H80: 1 | I80: 0.6 | J80: 1 | K80: 1 | L80: 0 | M80: 0.5 | N80: 1 | O80: 1 | P80: 1 | Q80: 1 | R80: 1 | S80: 8.416666667 | U80: 20 | V80: 10 | W80: 60 | X80: 10 | Y80: 100 | Z80: 0 | AA80: 50 | AB80: 10 | AC80: 10 | AD80: 10 | AE80: 100 | AF80: 10
A81: =Score!A81 -> 78 | B81: =Score!B81 -> 553040420-5 | C81: =Score!C81 -> นางสาวศิรินาถ ดวงพิมพ์ | D81: =Score!D81 -> EN-IE | E81: =Score!E81 -> 2.21 | F81: =Score!F81 -> 1 | G81: 0.825 | H81: 1 | I81: 1 | J81: 1 | K81: 1 | L81: 0 | M81: 0 | N81: 1 | O81: 1 | P81: 1 | Q81: 1 | R81: 1 | S81: 8.1875 | U81: 16.5 | V81: 10 | W81: 100 | X81: 10 | Y81: 100 | Z81: 0 | AA81: 0 | AB81: 10 | AC81: 10 | AD81: 10 | AE81: 100 | AF81: 10
A82: =Score!A82 -> 79 | B82: =Score!B82 -> 553040426-3 | C82: =Score!C82 -> นายสหภาพ เพียรชนะ | D82: =Score!D82 -> EN-ME | E82: =Score!E82 -> 3.13 | F82: =Score!F82 -> 1 | G82: 1 | H82: 0.9 | I82: 0.9 | J82: 1 | K82: 1 | L82: 1 | M82: 1 | N82: 1 | O82: 1 | P82: 1 | Q82: 1 | R82: 1 | S82: 9.833333333 | U82: 20 | V82: 9 | W82: 90 | X82: 10 | Y82: 100 | Z82: 100 | AA82: 100 | AB82: 10 | AC82: 10 | AD82: 10 | AE82: 100 | AF82: 10
A83: =Score!A83 -> 80 | B83: =Score!B83 -> 553040427-1 | C83: =Score!C83 -> นายสิทธิชัย เมืองโคตร | D83: =Score!D83 -> EN-ME | E83: =Score!E83 -> 2.35 | F83: =Score!F83 -> 1 | G83: 1 | H83: 1 | I83: 0.8 | J83: 0.6 | K83: 1 | L83: 0.1 | M83: 1 | N83: 1 | O83: 1 | P83: 0.864 | Q83: 1 | R83: 1 | S83: 8.636666667 | U83: 20 | V83: 10 | W83: 80 | X83: 6 | Y83: 100 | Z83: 10 | AA83: 100 | AB83: 10 | AC83: 10 | AD83: 8.64 | AE83: 100 | AF83: 10
A84: =Score!A84 -> 81 | B84: =Score!B84 -> 553040428-9 | C84: =Score!C84 -> นางสาวสุกัญญา ธารานุวงศ์ | D84: =Score!D84 -> EN-ME | E84: =Score!E84 -> 2.8 | F84: =Score!F84 -> 1 | G84: 1 | H84: 0.8 | I84: 0.8 | J84: 0.8 | K84: 1 | L84: 0.4 | M84: 1 | N84: 1 | O84: 1 | P84: =AD84/10 -> 1 | Q84: =AE84/100 -> 0.9667 | R84: =AF84/10 -> 1 | S84: 8.97225 | U84: 20 | V84: 8 | W84: 80 | X84: 8 | Y84: 100 | Z84: 40 | AA84: 100 | AB84: 10 | AC84: 10 | AD84: 10 | AE84: 96.67 | AF84: 10
A85: =Score!A85 -> 82 | B85: =Score!B85 -> 553040429-7 | C85: =Score!C85 -> นางสาวสุกัญญา เวียงสิมา | D85: =Score!D85 -> EN-IE | E85: =Score!E85 -> 2.28 | F85: =Score!F85 -> 1 | G85: 0.7 | H85: 0.8 | I85: 0.8 | J85: 1 | K85: 0.8571 | L85: 0.2 | M85: 0.3 | N85: 1 | O85: 1 | P85: 1 | Q85: 1 | R85: 1 | S85: 8.047583333 | U85: 14 | V85: 8 | W85: 80 | X85: 10 | Y85: 85.71 | Z85: 20 | AA85: 30 | AB85: 10 | AC85: 10 | AD85: 10 | AE85: 100 | AF85: 10
A86: =Score!A86 -> 83 | B86: =Score!B86 -> 553040430-2 | C86: =Score!C86 -> นางสาวสุฑิฌา อินทนนท์ | D86: =Score!D86 -> EN-IE | E86: =Score!E86 -> 1.95 | F86: =Score!F86 -> 1 | G86: 1 | H86: 1 | I86: 0.8 | J86: 1 | K86: 1 | L86: 0 | M86: 0.3 | N86: 1 | O86: 1 | P86: 0.955 | Q86: 1 | R86: 0.846 | S86: 8.250833333 | U86: 20 | V86: 10 | W86: 80 | X86: 10 | Y86: 100 | Z86: 0 | AA86: 30 | AB86: 10 | AC86: 10 | AD86: 9.55 | AE86: 100 | AF86: 8.46
A87: =Score!A87 -> 84 | B87: =Score!B87 -> 553040434-4 | C87: =Score!C87 -> นางสาวสุรัชนา ตุ่นแก้ว | D87: =Score!D87 -> EN-ME | E87: =Score!E87 -> 2.62 | F87: =Score!F87 -> 1 | G87: 1 | H87: 1 | I87: 0.9 | J87: 0.8 | K87: 1 | L87: 1 | M87: 1 | N87: 1 | O87: 1 | P87: 0.909 | Q87: 1 | R87: 1 | S87: 9.674166667 | U87: 20 | V87: 10 | W87: 90 | X87: 8 | Y87: 100 | Z87: 100 | AA87: 100 | AB87: 10 | AC87: 10 | AD87: 9.09 | AE87: 100 | AF87: 10
A88: =Score!A88 -> 85 | B88: =Score!B88 -> 553040436-0 | C88: =Score!C88 -> นายเสฎฐฌาน น้อยอาษา | D88: =Score!D88 -> EN-ME | E88: =Score!E88 -> 2.26 | F88: =Score!F88 -> 1 | G88: 1 | H88: 0.7 | I88: 1 | J88: 1 | K88: 1 | L88: 0.6 | M88: 1 | N88: 1 | O88: 1 | P88: 0 | Q88: 0.7167 | R88: 1 | S88: 8.34725 | U88: 20 | V88: 7 | W88: 100 | X88: 10 | Y88: 100 | Z88: 60 | AA88: 100 | AB88: 10 | AC88: 10 | AD88: 0 | AE88: 71.67 | AF88: 10
A89: =Score!A89 -> 86 | B89: =Score!B89 -> 553040448-3 | C89: =Score!C89 -> นายอาทิตย์ ขาวสนิท | D89: =Score!D89 -> EN-ME | E89: =Score!E89 -> 2.65 | F89: =Score!F89 -> 1 | G89: 1 | H89: 1 | I89: 1 | J89: 1 | K89: 1 | L89: 0.2 | M89: 0.8 | N89: 1 | O89: 1 | P89: 1 | Q89: 1 | R89: 1 | S89: 9.166666667 | U89: 20 | V89: 10 | W89: 100 | X89: 10 | Y89: 100 | Z89: 20 | AA89: 80 | AB89: 10 | AC89: 10 | AD89: 10 | AE89: 100 | AF89: 10
A90: =Score!A90 -> 87 | B90: =Score!B90 -> 553040449-1 | C90: =Score!C90 -> นายอานุภาพ วิจบ | D90: =Score!D90 -> EN-IE | E90: =Score!E90 -> 2.9 | F90: =Score!F90 -> 1 | G90: 1 | H90: 0.9 | I90: 0.7 | J90: 1 | K90: 1 | L90: 0.3 | M90: 1 | N90: 1 | O90: 1 | P90: 1 | Q90: 1 | R90: 1 | S90: 9.083333333 | U90: 20 | V90: 9 | W90: 70 | X90: 10 | Y90: 100 | Z90: 30 | AA90: 100 | AB90: 10 | AC90: 10 | AD90: 10 | AE90: 100 | AF90: 10
A91: =Score!A91 -> 88 | B91: =Score!B91 -> 553040450-6 | C91: =Score!C91 -> นายเอกราช คำงาม | D91: =Score!D91 -> EN-ME | E91: =Score!E91 -> 2.32 | F91: =Score!F91 -> 1 | G91: 0.95 | H91: 0.8 | I91: 0.4 | J91: 1 | K91: 0.7857 | L91: 0.6 | M91: 0 | N91: 0.667 | O91: 0.4 | P91: 0.818 | Q91: 0.9333 | R91: 1 | S91: 6.961666667 | U91: 19 | V91: 8 | W91: 40 | X91: 10 | Y91: 78.57 | Z91: 60 | AA91: 0 | AB91: 6.67 | AC91: 4 | AD91: 8.18 | AE91: 93.33 | AF91: 10
A92: =Score!A92 -> 89 | B92: =Score!B92 -> 553040454-8 | C92: =Score!C92 -> นายกลวัชร จงฤาชา | D92: =Score!D92 -> EN-AE | E92: =Score!E92 -> 2.24 | F92: =Score!F92 -> 1 | G92: 1 | H92: 1 | I92: 1 | J92: 1 | K92: 1 | L92: 0.2 | M92: 1 | N92: 1 | O92: 0.7 | P92: 0 | Q92: 1 | R92: 1 | S92: 8.25 | U92: 20 | V92: 10 | W92: 100 | X92: 10 | Y92: 100 | Z92: 20 | AA92: 100 | AB92: 10 | AC92: 7 | AD92: 0 | AE92: 100 | AF92: 10
A93: =Score!A93 -> 90 | B93: =Score!B93 -> 553040458-0 | C93: =Score!C93 -> นางสาวจุฬาลักษณ์ ชมภูรักษ์ | D93: =Score!D93 -> EN-AE | E93: =Score!E93 -> 2.57 | F93: =Score!F93 -> 1 | G93: 1 | H93: 0.8 | I93: 0.9 | J93: 0.8 | K93: 1 | L93: 0 | M93: 1 | N93: 1 | O93: 0.9 | P93: 0.909 | Q93: 1 | R93: 1 | S93: 8.590833333 | U93: 20 | V93: 8 | W93: 90 | X93: 8 | Y93: 100 | Z93: 0 | AA93: 100 | AB93: 10 | AC93: 9 | AD93: 9.09 | AE93: 100 | AF93: 10
A94: =Score!A94 -> 91 | B94: =Score!B94 -> 553040464-5 | C94: =Score!C94 -> นางสาวทิชากร จุลพันธ์ | D94: =Score!D94 -> EN-AE | E94: =Score!E94 -> 1.97 | F94: =Score!F94 -> 1 | G94: 0 | H94: 0.9 | I94: 0.6 | J94: 1 | K94: 1 | L94: 1 | M94: 0 | N94: 1 | O94: 1 | P94: 1 | Q94: 1 | R94: 1 | S94: 7.916666667 | U94: 0 | V94: 9 | W94: 60 | X94: 10 | Y94: 100 | Z94: 100 | AA94: 0 | AB94: 10 | AC94: 10 | AD94: 10 | AE94: 100 | AF94: 10
A95: =Score!A95 -> 92 | B95: =Score!B95 -> 553040467-9 | C95: =Score!C95 -> นายนพพล รัตน์ปิยะภาภรณ์ | D95: =Score!D95 -> EN-AE | E95: =Score!E95 -> 2.57 | F95: =Score!F95 -> 1 | G95: 1 | H95: 1 | I95: 0.6 | J95: 1 | K95: 1 | L95: 1 | M95: 1 | N95: 1 | O95: 1 | P95: 1 | Q95: 1 | R95: 1 | S95: 9.666666667 | U95: 20 | V95: 10 | W95: 60 | X95: 10 | Y95: 100 | Z95: 100 | AA95: 100 | AB95: 10 | AC95: 10 | AD95: 10 | AE95: 100 | AF95: 10
A96: =Score!A96 -> 93 | B96: =Score!B96 -> 553040468-7 | C96: =Score!C96 -> นางสาวบังอร ทนน้ำ | D96: =Score!D96 -> EN-AE | E96: =Score!E96 -> 2.6 | F96: =Score!F96 -> 1 | G96: 0.7 | H96: 1 | I96: 0.8 | J96: 1 | K96: 1 | L96: 0 | M96: 0.8 | N96: 1 | O96: 1 | P96: 0.864 | Q96: 0.975 | R96: 1 | S96: 8.449166667 | U96: 14 | V96: 10 | W96: 80 | X96: 10 | Y96: 100 | Z96: 0 | AA96: 80 | AB96: 10 | AC96: 10 | AD96: 8.64 | AE96: 97.5 | AF96: 10
A97: =Score!A97 -> 94 | B97: =Score!B97 -> 553040476-8 | C97: =Score!C97 -> นายมงคลลักษ์ วงษ์ศรีมี | D97: =Score!D97 -> EN-AE | E97: =Score!E97 -> 2.83 | F97: =Score!F97 -> 1 | G97: 1 | H97: 1 | I97: 0.6 | J97: 1 | K97: 1 | L97: 1 | M97: 1 | N97: 1 | O97: 1 | P97: 1 | Q97: 1 | R97: 1 | S97: 9.666666667 | U97: 20 | V97: 10 | W97: 60 | X97: 10 | Y97: 100 | Z97: 100 | AA97: 100 | AB97: 10 | AC97: 10 | AD97: 10 | AE97: 100 | AF97: 10
A98: =Score!A98 -> 95 | B98: =Score!B98 -> 553040485-7 | C98: =Score!C98 -> นายอานันต์ หอมเนียม | D98: =Score!D98 -> EN-AE | E98: =Score!E98 -> 2.24 | F98: =Score!F98 -> 1 | G98: 0.45 | H98: 1 | I98: 0.6 | J98: 1 | K98: 1 | L98: 0.8 | M98: 1 | N98: 1 | O98: 1 | P98: 1 | Q98: 1 | R98: 1 | S98: 9.041666667 | U98: 9 | V98: 10 | W98: 60 | X98: 10 | Y98: 100 | Z98: 80 | AA98: 100 | AB98: 10 | AC98: 10 | AD98: 10 | AE98: 100 | AF98: 10
A99: =Score!A99 -> 96 | B99: =Score!B99 -> 553040614-2 | C99: =Score!C99 -> นายจตุรงค์ ถนอมศิลป์ | D99: =Score!D99 -> EN-ME (พิเศษ ม.6) | E99: =Score!E99 -> 0 | F99: =Score!F99 -> 4 | G99: 1 | H99: 1 | I99: 0.5 | J99: 1 | K99: 1 | L99: 1 | M99: 1 | N99: 1 | O99: 1 | P99: 0.955 | Q99: 1 | R99: 1 | S99: 9.545833333 | U99: 20 | V99: 10 | W99: 50 | X99: 10 | Y99: 100 | Z99: 100 | AA99: 100 | AB99: 10 | AC99: 10 | AD99: 9.55 | AE99: 100 | AF99: 10
A100: =Score!A100 -> 97 | B100: =Score!B100 -> 553040617-6 | C100: =Score!C100 -> นายชัยศิริ ลี้มีธรรม | D100: =Score!D100 -> EN-ME (พิเศษ ม.6) | E100: =Score!E100 -> 0 | F100: =Score!F100 -> 4 | G100: 1 | H100: 0.6 | I100: 0.6 | J100: 0.6 | K100: 1 | L100: 0 | M100: 0.8 | N100: 1 | O100: 1 | P100: 1 | Q100: 0.75 | R100: 1 | S100: 7.791666667 | U100: 20 | V100: 6 | W100: 60 | X100: 6 | Y100: 100 | Z100: 0 | AA100: 80 | AB100: 10 | AC100: 10 | AD100: 10 | AE100: 75 | AF100: 10
A101: =Score!A101 -> 98 | B101: =Score!B101 -> 553040618-4 | C101: =Score!C101 -> นายเชษฐพงษ์ สาขา | D101: =Score!D101 -> EN-ME (พิเศษ ม.6) | E101: =Score!E101 -> 0 | F101: =Score!F101 -> 4 | G101: 1 | H101: 0.8 | I101: 0.7 | J101: 1 | K101: 1 | L101: 0 | M101: 1 | N101: 1 | O101: 1 | P101: 1 | Q101: 1 | R101: 0.769 | S101: 8.5575 | U101: 20 | V101: 8 | W101: 70 | X101: 10 | Y101: 100 | Z101: 0 | AA101: 100 | AB101: 10 | AC101: 10 | AD101: 10 | AE101: 100 | AF101: 7.69
A102: =Score!A102 -> 99 | B102: =Score!B102 -> 553040621-5 | C102: =Score!C102 -> นายณัฐพล หอมจะบก | D102: =Score!D102 -> EN-ME (พิเศษ ม.6) | E102: =Score!E102 -> 0 | F102: =Score!F102 -> 4 | G102: 1 | H102: 1 | I102: 0.6 | J102: 1 | K102: 1 | L102: 0.2 | M102: 1 | N102: 1 | O102: 1 | P102: 0 | Q102: 1 | R102: 0 | S102: 7.333333333 | U102: 20 | V102: 10 | W102: 60 | X102: 10 | Y102: 100 | Z102: 20 | AA102: 100 | AB102: 10 | AC102: 10 | AD102: 0 | AE102: 100 | AF102: 0
A103: =Score!A103 -> 100 | B103: =Score!B103 -> 553040622-3 | C103: =Score!C103 -> นายทศพล ฉายจรุง | D103: =Score!D103 -> EN-ME (พิเศษ ม.6) | E103: =Score!E103 -> 0 | F103: =Score!F103 -> 4 | G103: 1 | H103: 1 | I103: 0.6 | J103: 1 | K103: 1 | L103: 0.7 | M103: 1 | N103: 1 | O103: 1 | P103: 0.955 | Q103: 1 | R103: 1 | S103: 9.379166667 | U103: 20 | V103: 10 | W103: 60 | X103: 10 | Y103: 100 | Z103: 70 | AA103: 100 | AB103: 10 | AC103: 10 | AD103: 9.55 | AE103: 100 | AF103: 10
A104: =Score!A104 -> 101 | B104: =Score!B104 -> 553040623-1 | C104: =Score!C104 -> นายเทพนรินทร์ อินธิราช | D104: =Score!D104 -> EN-ME (พิเศษ ม.6) | E104: =Score!E104 -> 0 | F104: =Score!F104 -> 4 | G104: 1 | H104: 1 | I104: 0.8 | J104: 1 | K104: 1 | L104: 1 | M104: 1 | N104: 1 | O104: 1 | P104: 1 | Q104: 1 | R104: 1 | S104: 9.833333333 | U104: 20 | V104: 10 | W104: 80 | X104: 10 | Y104: 100 | Z104: 100 | AA104: 100 | AB104: 10 | AC104: 10 | AD104: 10 | AE104: 100 | AF104: 10
A105: =Score!A105 -> 102 | B105: =Score!B105 -> 553040624-9 | C105: =Score!C105 -> นายธนะสิทธิ์ รุจิระโชติวัฒน์ | D105: =Score!D105 -> EN-ME (พิเศษ ม.6) | E105: =Score!E105 -> 0 | F105: =Score!F105 -> 4 | G105: 1 | H105: 1 | I105: 0.7 | J105: 1 | K105: 1 | L105: 0.7 | M105: 1 | N105: 1 | O105: 1 | P105: 1 | Q105: 1 | R105: 1 | S105: 9.5 | U105: 20 | V105: 10 | W105: 70 | X105: 10 | Y105: 100 | Z105: 70 | AA105: 100 | AB105: 10 | AC105: 10 | AD105: 10 | AE105: 100 | AF105: 10
A106: =Score!A106 -> 103 | B106: =Score!B106 -> 553040625-7 | C106: =Score!C106 -> นายธีรศักดิ์ สังสิทธิสวัสดิ์ | D106: =Score!D106 -> EN-ME (พิเศษ ม.6) | E106: =Score!E106 -> 0 | F106: =Score!F106 -> 4 | G106: 0 | H106: 0 | I106: 0 | J106: 0 | K106: 0 | L106: 0 | M106: 0 | N106: 0 | O106: 0 | P106: 0 | Q106: 0 | R106: 0 | S106: 0 | U106: 0 | V106: 0 | W106: 0 | X106: 0 | Y106: 0 | Z106: 0 | AA106: 0 | AB106: 0 | AC106: 0 | AD106: 0 | AE106: 0 | AF106: 0
A107: =Score!A107 -> 104 | B107: =Score!B107 -> 553040626-5 | C107: =Score!C107 -> นายปฏิภาณ สังข์ชัย | D107: =Score!D107 -> EN-ME (พิเศษ ม.6) | E107: =Score!E107 -> 0 | F107: =Score!F107 -> 4 | G107: 0.3 | H107: 0.8 | I107: 0.7 | J107: 1 | K107: 1 | L107: 0.6 | M107: 1 | N107: 1 | O107: 1 | P107: 0.955 | Q107: 1 | R107: 0 | S107: 7.795833333 | U107: 6 | V107: 8 | W107: 70 | X107: 10 | Y107: 100 | Z107: 60 | AA107: 100 | AB107: 10 | AC107: 10 | AD107: 9.55 | AE107: 100 | AF107: 0
A108: =Score!A108 -> 105 | B108: =Score!B108 -> 553040631-2 | C108: =Score!C108 -> นายพงศ์รัตน์ ณ หนองคาย | D108: =Score!D108 -> EN-ME (พิเศษ ม.6) | E108: =Score!E108 -> 0 | F108: =Score!F108 -> 4 | G108: 1 | H108: 1 | I108: 0.8 | J108: 1 | K108: 1 | L108: 0.8 | M108: 1 | N108: 1 | O108: 1 | P108: 1 | Q108: 1 | R108: 0.923 | S108: 9.6025 | U108: 20 | V108: 10 | W108: 80 | X108: 10 | Y108: 100 | Z108: 80 | AA108: 100 | AB108: 10 | AC108: 10 | AD108: 10 | AE108: 100 | AF108: 9.23
A109: =Score!A109 -> 106 | B109: =Score!B109 -> 553040636-2 | C109: =Score!C109 -> นายรัชชานนท์ บุญอาษา | D109: =Score!D109 -> EN-ME (พิเศษ ม.6) | E109: =Score!E109 -> 0 | F109: =Score!F109 -> 4 | G109: 1 | H109: 1 | I109: 0.7 | J109: 1 | K109: 1 | L109: 0.8 | M109: 1 | N109: 1 | O109: 1 | P109: 0.909 | Q109: 1 | R109: 1 | S109: 9.5075 | U109: 20 | V109: 10 | W109: 70 | X109: 10 | Y109: 100 | Z109: 80 | AA109: 100 | AB109: 10 | AC109: 10 | AD109: 9.09 | AE109: 100 | AF109: 10
A110: =Score!A110 -> 107 | B110: =Score!B110 -> 563040310-3 | C110: =Score!C110 -> นางสาวธัญชนภ ธีระเดชธำดง | D110: =Score!D110 -> EN-IE | E110: =Score!E110 -> 0 | F110: =Score!F110 -> 4 | G110: =U110/20 -> 1 | H110: =V110/10 -> 1 | I110: =W110/100 -> 1 | J110: =X110/10 -> 1 | K110: =Y110/100 -> 1 | L110: =Z110/100 -> 1 | M110: =AA110/100 -> 1 | N110: 1 | O110: 1 | P110: 1 | Q110: 1 | R110: 1 | S110: =SUM(G110:R110)/1.2 -> 10 | U110: 20 | V110: 10 | W110: 100 | X110: 10 | Y110: 100 | Z110: 100 | AA110: 100 | AB110: 10 | AC110: 10 | AD110: 10 | AE110: 100 | AF110: 10

Sheet HomeworkAll
B1: รายวิชา | C1: 195231 : THERMODYNAMICS I | F1: Section 1 | T1: Accumulated | V1: Full | W1: Score | X1: Full | Y1: Score | Z1: Full | AA1: Score | AB1: full | AC1: score | AD1: Full | AE1: Score | AF1: full | AG1: score | AH1: Full | AI1: Score | AJ1: full | AK1: score | AL1: full | AM1: score | AN1: full | AO1: score | AP1: full | AQ1: score | AR1: full | AS1: score
B2: ปีการศึกษา | C2: 2556 ภาคการศึกษาที่ 1 | F2: รศ.ดร.สมหมาย ปรีเปรม | G2: 1 | H2: 1 | I2: 1 | J2: 1 | K2: 1 | L2: 1 | M2: 1 | N2: 1 | O2: 1 | P2: 1 | Q2: 1 | R2: 1 | S2: =SUM(G2:R2)/1.2 -> 10 | T2: Full score | V2: 40 | W2: 1 | X2: 50 | Y2: 1 | Z2: 30 | AA2: 1 | AB2: 60 | AC2: 1 | AD2: 60 | AE2: 1 | AF2: 30 | AG2: 1 | AH2: 110 | AI2: 1 | AJ2: 40 | AK2: 1 | AL2: 72 | AM2: 1 | AN2: 30 | AO2: 1 | AP2: 45 | AQ2: 1 | AR2: 20 | AS2: 1
A3: ลำดับ | B3: รหัส | C3: ชื่อ | D3: หลักสูตร | E3: GPA | F3: Section 1 | G3: HW1*** | H3: HW2 | I3: HW3 | J3: HW4 | K3: HW5 | L3: HW6 | M3: HW7 | N3: HW8 | O3: HW9 | P3: HW10 | Q3: HW11 | R3: HW12 | S3: Sum | V3: HW1*** | X3: HW2 | Z3: HW3 | AB3: HW4 | AD3: HW5 | AF3: HW6 | AH3: HW7 | AJ3: HW8 | AL3: HW9 | AN3: HW10 | AP3: HW11 | AR3: HW12
A4: =+Score!A4 -> 1 | B4: =+Score!B4 -> 553040026-9 | C4: =+Score!C4 -> นางสาวกนกกาญจน์ อุปสาร | D4: =+Score!D4 -> EN-IE | E4: =+Score!E4 -> 2.7 | F4: =+Score!F4 -> 1 | G4: =W4 -> 0.725 | H4: =Y4 -> 1 | I4: =AA4 -> 0.9 | J4: =AC4 -> 0.8666666667 | K4: =AE4 -> 0.9166666667 | L4: =AG4 -> 0.9666666667 | M4: =AI4 -> 1 | N4: =AK4 -> 1 | O4: =AM4 -> 1 | P4: =AO4 -> 1 | Q4: =AQ4 -> 1 | R4: =AS4 -> 1 | S4: =SUM(G4:R4)/1.2 -> 9.479166667 | V4: 29 | W4: =V4/40 -> 0.725 | X4: 50 | Y4: =X4/50 -> 1 | Z4: 27 | AA4: =Z4/30 -> 0.9 | AB4: 52 | AC4: =AB4/60 -> 0.8666666667 | AD4: 55 | AE4: =AD4/60 -> 0.9166666667 | AF4: 29 | AG4: =AF4/30 -> 0.9666666667 | AH4: 110 | AI4: =AH4/110 -> 1 | AJ4: 40 | AK4: =AJ4/40 -> 1 | AL4: 72 | AM4: =AL4/72 -> 1 | AN4: 30 | AO4: =AN4/30 -> 1 | AP4: 45 | AQ4: =AP4/45 -> 1 | AR4: 20 | AS4: =AR4/20 -> 1
A5: =+Score!A5 -> 2 | B5: =+Score!B5 -> 553040032-4 | C5: =+Score!C5 -> นายกิตติภัทร จิตรกสิกร | D5: =+Score!D5 -> EN-IE | E5: =+Score!E5 -> 2.68 | F5: =+Score!F5 -> 1 | G5: =W5 -> 0.75 | H5: =Y5 -> 1 | I5: =AA5 -> 0.9666666667 | J5: =AC5 -> 0.8333333333 | K5: =AE5 -> 0.9333333333 | L5: =AG5 -> 0.9666666667 | M5: =AI5 -> 1 | N5: =AK5 -> 1 | O5: =AM5 -> 0.9722222222 | P5: =AO5 -> 1 | Q5: =AQ5 -> 1 | R5: =AS5 -> 1 | S5: =SUM(G5:R5)/1.2 -> 9.518518519 | V5: 30 | W5: =V5/40 -> 0.75 | X5: 50 | Y5: =X5/50 -> 1 | Z5: 29 | AA5: =Z5/30 -> 0.9666666667 | AB5: 50 | AC5: =AB5/60 -> 0.8333333333 | AD5: 56 | AE5: =AD5/60 -> 0.9333333333 | AF5: 29 | AG5: =AF5/30 -> 0.9666666667 | AH5: 110 | AI5: =AH5/110 -> 1 | AJ5: 40 | AK5: =AJ5/40 -> 1 | AL5: 70 | AM5: =AL5/72 -> 0.9722222222 | AN5: 30 | AO5: =AN5/30 -> 1 | AP5: 45 | AQ5: =AP5/45 -> 1 | AR5: 20 | AS5: =AR5/20 -> 1
A6: =+Score!A6 -> 3 | B6: =+Score!B6 -> 553040033-2 | C6: =+Score!C6 -> นายกิรติกร แก้วปานกัน | D6: =+Score!D6 -> EN-ME | E6: =+Score!E6 -> 2.82 | F6: =+Score!F6 -> 1 | G6: =W6 -> 0.775 | H6: =Y6 -> 0.9 | I6: =AA6 -> 0.9666666667 | J6: 0.9666666667 | K6: 0.9666666667 | L6: 0.9666666667 | M6: 0.8636363636 | N6: 1 | O6: 0.9166666667 | P6: 1 | Q6: 0.9555555556 | R6: 0.9 | S6: 9.314604377 | V6: 31 | W6: 0.775 | X6: 45 | Y6: 0.9 | Z6: 29 | AA6: 0.9666666667 | AB6: 58 | AC6: 0.9666666667 | AD6: 58 | AE6: 0.9666666667 | AF6: 29 | AG6: 0.9666666667 | AH6: 95 | AI6: 0.8636363636 | AJ6: 40 | AK6: 1 | AL6: 66 | AM6: 0.9166666667 | AN6: 30 | AO6: 1 | AP6: 43 | AQ6: 0.9555555556 | AR6: 18 | AS6: 0.9
A7: =+Score!A7 -> 4 | B7: =+Score!B7 -> 553040041-3 | C7: =+Score!C7 -> นางสาวชนาธินาถ โสกงโสด | D7: =+Score!D7 -> EN-ME | E7: =+Score!E7 -> 2.42 | F7: =+Score!F7 -> 1 | G7: =W7 -> 1 | H7: 0.94 | I7: 0.9666666667 | J7: 0.8833333333 | K7: 1 | L7: 1 | M7: 1 | N7: 1 | O7: 1 | P7: 1 | Q7: 1 | R7: 1 | S7: 9.825 | V7: 40 | W7: 1 | X7: 47 | Y7: 0.94 | Z7: 29 | AA7: 0.9666666667 | AB7: 53 | AC7: 0.8833333333 | AD7: 60 | AE7: 1 | AF7: 30 | AG7: 1 | AH7: 110 | AI7: 1 | AJ7: 40 | AK7: 1 | AL7: 72 | AM7: 1 | AN7: 30 | AO7: 1 | AP7: 45 | AQ7: 1 | AR7: 20 | AS7: 1
A8: =+Score!A8 -> 5 | B8: =+Score!B8 -> 553040045-5 | C8: =+Score!C8 -> นายณัฏฐกิตติ์ พูลประสงค์ | D8: =+Score!D8 -> EN-ME | E8: =+Score!E8 -> 3.28 | F8: =+Score!F8 -> 1 | G8: 0.9 | H8: 1 | I8: 0.8666666667 | J8: 0.95 | K8: 1 | L8: 0 | M8: 1 | N8: 1 | O8: 1 | P8: 1 | Q8: 1 | R8: 1 | S8: 8.930555556 | V8: 36 | W8: 0.9 | X8: 50 | Y8: 1 | Z8: 26 | AA8: 0.8666666667 | AB8: 57 | AC8: 0.95 | AD8: 60 | AE8: 1 | AF8: 0 | AG8: 0 | AH8: 110 | AI8: 1 | AJ8: 40 | AK8: 1 | AL8: 72 | AM8: 1 | AN8: 30 | AO8: 1 | AP8: 45 | AQ8: 1 | AR8: 20 | AS8: 1
A9: =+Score!A9 -> 6 | B9: =+Score!B9 -> 553040047-1 | C9: =+Score!C9 -> นายณัฐพงษ์ กลิ่นมาลี | D9: =+Score!D9 -> EN-ME | E9: =+Score!E9 -> 2.87 | F9: =+Score!F9 -> 1 | G9: 0.8 | H9: 1 | I9: 0.8666666667 | J9: 0.85 | K9: 1 | L9: 1 | M9: 0.9363636364 | N9: 0.95 | O9: 1 | P9: 0 | Q9: 1 | R9: 0 | S9: 7.835858586 | V9: 32 | W9: 0.8 | X9: 50 | Y9: 1 | Z9: 26 | AA9: 0.8666666667 | AB9: 51 | AC9: 0.85 | AD9: 60 | AE9: 1 | AF9: 30 | AG9: 1 | AH9: 103 | AI9: 0.9363636364 | AJ9: 38 | AK9: 0.95 | AL9: 72 | AM9: 1 | AN9: 0 | AO9: 0 | AP9: 45 | AQ9: 1 | AR9: 0 | AS9: 0
A10: =+Score!A10 -> 7 | B10: =+Score!B10 -> 553040049-7 | C10: =+Score!C10 -> นายณัฐวัตร สุขสำราญ | D10: =+Score!D10 -> EN-IE | E10: =+Score!E10 -> 1.76 | F10: =+Score!F10 -> 1 | G10: 0.575 | H10: 0 | I10: 0.9333333333 | J10: 0.7166666667 | K10: 1 | L10: 0.9666666667 | M10: 0.9363636364 | N10: 0.95 | O10: 0 | P10: 0 | Q10: 0 | R10: 1 | S10: 5.898358586 | V10: 23 | W10: 0.575 | X10: 0 | Y10: 0 | Z10: 28 | AA10: 0.9333333333 | AB10: 43 | AC10: 0.7166666667 | AD10: 60 | AE10: 1 | AF10: 29 | AG10: 0.9666666667 | AH10: 103 | AI10: 0.9363636364 | AJ10: 38 | AK10: 0.95 | AL10: 0 | AM10: 0 | AN10: 0 | AO10: 0 | AP10: 0 | AQ10: 0 | AR10: 20 | AS10: 1
A11: =+Score!A11 -> 8 | B11: =+Score!B11 -> 553040050-2 | C11: =+Score!C11 -> นายณัฐวุฒิ ฆารประเดิม | D11: =+Score!D11 -> EN-ME | E11: =+Score!E11 -> 2.87 | F11: =+Score!F11 -> 1 | G11: 0.75 | H11: 1 | I11: 0.7666666667 | J11: 1 | K11: 0.7666666667 | L11: 1 | M11: 1 | N11: 1 | O11: 1 | P11: 1 | Q11: 0 | R11: 1 | S11: 8.569444444 | V11: 30 | W11: 0.75 | X11: 50 | Y11: 1 | Z11: 23 | AA11: 0.7666666667 | AB11: 60 | AC11: 1 | AD11: 46 | AE11: 0.7666666667 | AF11: 30 | AG11: 1 | AH11: 110 | AI11: 1 | AJ11: 40 | AK11: 1 | AL11: 72 | AM11: 1 | AN11: 30 | AO11: 1 | AP11: 0 | AQ11: 0 | AR11: 20 | AS11: 1
A12: =+Score!A12 -> 9 | B12: =+Score!B12 -> 553040052-8 | C12: =+Score!C12 -> นายถิรวัฒน์ แก้วคำปอด | D12: =+Score!D12 -> EN-ME | E12: =+Score!E12 -> 2.61 | F12: =+Score!F12 -> 1 | G12: 0.85 | H12: 1 | I12: 1 | J12: 0.9166666667 | K12: 0.8333333333 | L12: 1 | M12: 1 | N12: 0 | O12: 1 | P12: 1 | Q12: 0.8888888889 | R12: 0 | S12: 7.907407407 | V12: 34 | W12: 0.85 | X12: 50 | Y12: 1 | Z12: 30 | AA12: 1 | AB12: 55 | AC12: 0.9166666667 | AD12: 50 | AE12: 0.8333333333 | AF12: 30 | AG12: 1 | AH12: 110 | AI12: 1 | AJ12: 0 | AK12: 0 | AL12: 72 | AM12: 1 | AN12: 30 | AO12: 1 | AP12: 40 | AQ12: 0.8888888889 | AR12: 0 | AS12: 0
A13: =+Score!A13 -> 10 | B13: =+Score!B13 -> 553040057-8 | C13: =+Score!C13 -> นายธนวิชญ์ เลิศวุฒิชัยกุล | D13: =+Score!D13 -> EN-IE | E13: =+Score!E13 -> 2.29 | F13: =+Score!F13 -> 1 | G13: 0 | H13: 0 | I13: 0 | J13: 0 | K13: 0.9 | L13: 0 | M13: 0 | N13: 0 | O13: 0 | P13: 0 | Q13: 0 | R13: 1 | S13: 1.583333333 | V13: 0 | W13: 0 | X13: 0 | Y13: 0 | Z13: 0 | AA13: 0 | AB13: 0 | AC13: 0 | AD13: 54 | AE13: 0.9 | AF13: 0 | AG13: 0 | AH13: 0 | AI13: 0 | AJ13: 0 | AK13: 0 | AL13: 0 | AM13: 0 | AN13: 0 | AO13: 0 | AP13: 0 | AQ13: 0 | AR13: 20 | AS13: 1
A14: =+Score!A14 -> 11 | B14: =+Score!B14 -> 553040059-4 | C14: =+Score!C14 -> นายธนากร บุญดาว | D14: =+Score!D14 -> EN-ME | E14: =+Score!E14 -> 3.03 | F14: =+Score!F14 -> 1 | G14: 1 | H14: 1 | I14: 1 | J14: 0.9666666667 | K14: 1 | L14: 1 | M14: 1 | N14: 1 | O14: 1 | P14: 1 | Q14: 1 | R14: 1 | S14: 9.972222222 | V14: 40 | W14: 1 | X14: 50 | Y14: 1 | Z14: 30 | AA14: 1 | AB14: 58 | AC14: 0.9666666667 | AD14: 60 | AE14: 1 | AF14: 30 | AG14: 1 | AH14: 110 | AI14: 1 | AJ14: 40 | AK14: 1 | AL14: 72 | AM14: 1 | AN14: 30 | AO14: 1 | AP14: 45 | AQ14: 1 | AR14: 20 | AS14: 1
A15: =+Score!A15 -> 12 | B15: =+Score!B15 -> 553040060-9 | C15: =+Score!C15 -> นายธนานนท์ ติรวีรขจร | D15: =+Score!D15 -> EN-ME | E15: =+Score!E15 -> 2.51 | F15: =+Score!F15 -> 1 | G15: 1 | H15: 1 | I15: 1 | J15: 0.9666666667 | K15: 0.9666666667 | L15: 1 | M15: 1 | N15: 1 | O15: 1 | P15: 1 | Q15: 1 | R15: 1 | S15: 9.944444444 | V15: 40 | W15: 1 | X15: 50 | Y15: 1 | Z15: 30 | AA15: 1 | AB15: 58 | AC15: 0.9666666667 | AD15: 58 | AE15: 0.9666666667 | AF15: 30 | AG15: 1 | AH15: 110 | AI15: 1 | AJ15: 40 | AK15: 1 | AL15: 72 | AM15: 1 | AN15: 30 | AO15: 1 | AP15: 45 | AQ15: 1 | AR15: 20 | AS15: 1
A16: =+Score!A16 -> 13 | B16: =+Score!B16 -> 553040061-7 | C16: =+Score!C16 -> นายธนารักษ์ ศรีน้อย | D16: =+Score!D16 -> EN-ME | E16: =+Score!E16 -> 2.51 | F16: =+Score!F16 -> 1 | G16: 1 | H16: 1 | I16: 0.8333333333 | J16: 0 | K16: 0.9 | L16: 1 | M16: 0 | N16: 0 | O16: 0.9305555556 | P16: 0 | Q16: 1 | R16: 1 | S16: 6.386574074 | V16: 40 | W16: 1 | X16: 50 | Y16: 1 | Z16: 25 | AA16: 0.8333333333 | AB16: 0 | AC16: 0 | AD16: 54 | AE16: 0.9 | AF16: 30 | AG16: 1 | AH16: 0 | AI16: 0 | AJ16: 0 | AK16: 0 | AL16: 67 | AM16: 0.9305555556 | AN16: 0 | AO16: 0 | AP16: 45 | AQ16: 1 | AR16: 20 | AS16: 1
A17: =+Score!A17 -> 14 | B17: =+Score!B17 -> 553040063-3 | C17: =+Score!C17 -> นายธีรเจต เตรียมวิชานนท์ | D17: =+Score!D17 -> EN-ME | E17: =+Score!E17 -> 3.03 | F17: =+Score!F17 -> 1 | G17: 0.675 | H17: 1 | I17: 0.9666666667 | J17: 0.8333333333 | K17: 1 | L17: 1 | M17: 1 | N17: 1 | O17: 1 | P17: 1 | Q17: 0.8888888889 | R17: 1 | S17: 9.469907407 | V17: 27 | W17: 0.675 | X17: 50 | Y17: 1 | Z17: 29 | AA17: 0.9666666667 | AB17: 50 | AC17: 0.8333333333 | AD17: 60 | AE17: 1 | AF17: 30 | AG17: 1 | AH17: 110 | AI17: 1 | AJ17: 40 | AK17: 1 | AL17: 72 | AM17: 1 | AN17: 30 | AO17: 1 | AP17: 40 | AQ17: 0.8888888889 | AR17: 20 | AS17: 1
A18: =+Score!A18 -> 15 | B18: =+Score!B18 -> 553040064-1 | C18: =+Score!C18 -> นายธีรพล เตชะเสน | D18: =+Score!D18 -> EN-ME | E18: =+Score!E18 -> 3.24 | F18: =+Score!F18 -> 1 | G18: 1 | H18: 0.92 | I18: 1 | J18: 0.9666666667 | K18: 1 | L18: 1 | M18: 1 | N18: 1 | O18: 1 | P18: 1 | Q18: 1 | R18: 1 | S18: 9.905555556 | V18: 40 | W18: 1 | X18: 46 | Y18: 0.92 | Z18: 30 | AA18: 1 | AB18: 58 | AC18: 0.9666666667 | AD18: 60 | AE18: 1 | AF18: 30 | AG18: 1 | AH18: 110 | AI18: 1 | AJ18: 40 | AK18: 1 | AL18: 72 | AM18: 1 | AN18: 30 | AO18: 1 | AP18: 45 | AQ18: 1 | AR18: 20 | AS18: 1
A19: =+Score!A19 -> 16 | B19: =+Score!B19 -> 553040071-4 | C19: =+Score!C19 -> นายบรรยง ชัยยิ่ง | D19: =+Score!D19 -> EN-ME | E19: =+Score!E19 -> 2.68 | F19: =+Score!F19 -> 1 | G19: 1 | H19: 1 | I19: 1 | J19: 0.9666666667 | K19: 0.9833333333 | L19: 1 | M19: 1 | N19: 0.9375 | O19: 1 | P19: 1 | Q19: 1 | R19: 1 | S19: 9.90625 | V19: 40 | W19: 1 | X19: 50 | Y19: 1 | Z19: 30 | AA19: 1 | AB19: 58 | AC19: 0.9666666667 | AD19: 59 | AE19: 0.9833333333 | AF19: 30 | AG19: 1 | AH19: 110 | AI19: 1 | AJ19: 37.5 | AK19: 0.9375 | AL19: 72 | AM19: 1 | AN19: 30 | AO19: 1 | AP19: 45 | AQ19: 1 | AR19: 20 | AS19: 1
A20: =+Score!A20 -> 17 | B20: =+Score!B20 -> 553040072-2 | C20: =+Score!C20 -> นายบัญชา แก้วอาจ | D20: =+Score!D20 -> EN-IE | E20: =+Score!E20 -> 2.26 | F20: =+Score!F20 -> 1 | G20: 0 | H20: 1 | I20: 0.7 | J20: 0.85 | K20: 1 | L20: 1 | M20: 0 | N20: 0 | O20: 0 | P20: 1 | Q20: 1 | R20: 0 | S20: 5.458333333 | V20: 0 | W20: 0 | X20: 50 | Y20: 1 | Z20: 21 | AA20: 0.7 | AB20: 51 | AC20: 0.85 | AD20: 60 | AE20: 1 | AF20: 30 | AG20: 1 | AH20: 0 | AI20: 0 | AJ20: 0 | AK20: 0 | AL20: 0 | AM20: 0 | AN20: 30 | AO20: 1 | AP20: 45 | AQ20: 1 | AR20: 0 | AS20: 0
A21: =+Score!A21 -> 18 | B21: =+Score!B21 -> 553040083-7 | C21: =+Score!C21 -> นายพันธวัช เก็มประโคน | D21: =+Score!D21 -> EN-IE | E21: =+Score!E21 -> 2.08 | F21: =+Score!F21 -> 1 | G21: 0.625 | H21: 0.34 | I21: 0 | J21: 0 | K21: 0 | L21: 0.8333333333 | M21: 0 | N21: 0 | O21: 0 | P21: 1 | Q21: 0.8222222222 | R21: 0.8 | S21: 3.683796296 | V21: 25 | W21: 0.625 | X21: 17 | Y21: 0.34 | Z21: 0 | AA21: 0 | AB21: 0 | AC21: 0 | AD21: 0 | AE21: 0 | AF21: 25 | AG21: 0.8333333333 | AH21: 0 | AI21: 0 | AJ21: 0 | AK21: 0 | AL21: 0 | AM21: 0 | AN21: 30 | AO21: 1 | AP21: 37 | AQ21: 0.8222222222 | AR21: 16 | AS21: 0.8
A22: =+Score!A22 -> 19 | B22: =+Score!B22 -> 553040085-3 | C22: =+Score!C22 -> นายพิพัฒน์ รักทองจัน | D22: =+Score!D22 -> EN-ME | E22: =+Score!E22 -> 3.04 | F22: =+Score!F22 -> 1 | G22: 1 | H22: 1 | I22: 1 | J22: 0.9666666667 | K22: 1 | L22: 1 | M22: 1 | N22: 1 | O22: 1 | P22: 1 | Q22: 0 | R22: 1 | S22: 9.138888889 | V22: 40 | W22: 1 | X22: 50 | Y22: 1 | Z22: 30 | AA22: 1 | AB22: 58 | AC22: 0.9666666667 | AD22: 60 | AE22: 1 | AF22: 30 | AG22: 1 | AH22: 110 | AI22: 1 | AJ22: 40 | AK22: 1 | AL22: 72 | AM22: 1 | AN22: 30 | AO22: 1 | AP22: 0 | AQ22: 0 | AR22: 20 | AS22: 1
A23: =+Score!A23 -> 20 | B23: =+Score!B23 -> 553040087-9 | C23: =+Score!C23 -> นายพิภัทรยา ศิริแว่น | D23: =+Score!D23 -> EN-ME | E23: =+Score!E23 -> 2.29 | F23: =+Score!F23 -> 1 | G23: 1 | H23: 1 | I23: 0 | J23: 0.8333333333 | K23: 1 | L23: 1 | M23: 1 | N23: 1 | O23: 0 | P23: 1 | Q23: 1 | R23: 1 | S23: 8.194444444 | V23: 40 | W23: 1 | X23: 50 | Y23: 1 | Z23: 0 | AA23: 0 | AB23: 50 | AC23: 0.8333333333 | AD23: 60 | AE23: 1 | AF23: 30 | AG23: 1 | AH23: 110 | AI23: 1 | AJ23: 40 | AK23: 1 | AL23: 0 | AM23: 0 | AN23: 30 | AO23: 1 | AP23: 45 | AQ23: 1 | AR23: 20 | AS23: 1
A24: =+Score!A24 -> 21 | B24: =+Score!B24 -> 553040092-6 | C24: =+Score!C24 -> นายยศพนธ์ จันทร์วิเมลือง | D24: =+Score!D24 -> EN-ME | E24: =+Score!E24 -> 3.11 | F24: =+Score!F24 -> 1 | G24: 1 | H24: 1 | I24: 0.9 | J24: 0.9666666667 | K24: 0.8666666667 | L24: 0.9333333333 | M24: 1 | N24: 0.925 | O24: 0 | P24: 1 | Q24: 1 | R24: 1 | S24: 8.826388889 | V24: 40 | W24: 1 | X24: 50 | Y24: 1 | Z24: 27 | AA24: 0.9 | AB24: 58 | AC24: 0.9666666667 | AD24: 52 | AE24: 0.8666666667 | AF24: 28 | AG24: 0.9333333333 | AH24: 110 | AI24: 1 | AJ24: 37 | AK24: 0.925 | AL24: 0 | AM24: 0 | AN24: 30 | AO24: 1 | AP24: 45 | AQ24: 1 | AR24: 20 | AS24: 1
A25: =+Score!A25 -> 22 | B25: =+Score!B25 -> 553040094-2 | C25: =+Score!C25 -> นายยุทธการ แสนเสนา | D25: =+Score!D25 -> EN-ME | E25: =+Score!E25 -> 2.37 | F25: =+Score!F25 -> 1 | G25: 0.9 | H25: 1 | I25: 0 | J25: 0.8583333333 | K25: 0.9166666667 | L25: 1 | M25: 1 | N25: 1 | O25: 1 | P25: 1 | Q25: 0 | R25: 1 | S25: 8.0625 | V25: 36 | W25: 0.9 | X25: 50 | Y25: 1 | Z25: 0 | AA25: 0 | AB25: 51.5 | AC25: 0.8583333333 | AD25: 55 | AE25: 0.9166666667 | AF25: 30 | AG25: 1 | AH25: 110 | AI25: 1 | AJ25: 40 | AK25: 1 | AL25: 72 | AM25: 1 | AN25: 30 | AO25: 1 | AP25: 0 | AQ25: 0 | AR25: 20 | AS25: 1
A26: =+Score!A26 -> 23 | B26: =+Score!B26 -> 553040095-0 | C26: =+Score!C26 -> นายยุทธนา พิริยะสุทธิ์ | D26: =+Score!D26 -> EN-ME | E26: =+Score!E26 -> 2.64 | F26: =+Score!F26 -> 1 | G26: 0.675 | H26: 1 | I26: 0.8 | J26: 0.8416666667 | K26: 0.95 | L26: 1 | M26: 1 | N26: 0 | O26: 1 | P26: 0 | Q26: 1 | R26: 0 | S26: 6.888888889 | V26: 27 | W26: 0.675 | X26: 50 | Y26: 1 | Z26: 24 | AA26: 0.8 | AB26: 50.5 | AC26: 0.8416666667 | AD26: 57 | AE26: 0.95 | AF26: 30 | AG26: 1 | AH26: 110 | AI26: 1 | AJ26: 0 | AK26: 0 | AL26: 72 | AM26: 1 | AN26: 0 | AO26: 0 | AP26: 45 | AQ26: 1 | AR26: 0 | AS26: 0
A27: =+Score!A27 -> 24 | B27: =+Score!B27 -> 553040101-1 | C27: =+Score!C27 -> นายวรพล จันทร์ผิว | D27: =+Score!D27 -> EN-IE | E27: =+Score!E27 -> 3.05 | F27: =+Score!F27 -> 1 | G27: 0.9 | H27: 0.82 | I27: 0.8333333333 | J27: 0 | K27: 0.9166666667 | L27: 0.9666666667 | M27: 0.8636363636 | N27: 1 | O27: 0.9444444444 | P27: 1 | Q27: 0.9555555556 | R27: 1 | S27: 8.500252525 | V27: 36 | W27: 0.9 | X27: 41 | Y27: 0.82 | Z27: 25 | AA27: 0.8333333333 | AB27: 0 | AC27: 0 | AD27: 55 | AE27: 0.9166666667 | AF27: 29 | AG27: 0.9666666667 | AH27: 95 | AI27: 0.8636363636 | AJ27: 40 | AK27: 1 | AL27: 68 | AM27: 0.9444444444 | AN27: 30 | AO27: 1 | AP27: 43 | AQ27: 0.9555555556 | AR27: 20 | AS27: 1
A28: =+Score!A28 -> 25 | B28: =+Score!B28 -> 553040104-5 | C28: =+Score!C28 -> นายวรานนท์ ยุทธอมร | D28: =+Score!D28 -> EN-ME | E28: =+Score!E28 -> 2.72 | F28: =+Score!F28 -> 1 | G28: 0 | H28: 1 | I28: 1 | J28: 1 | K28: 1 | L28: 1 | M28: 1 | N28: 0 | O28: 0 | P28: 0 | Q28: 0 | R28: 0 | S28: 5 | V28: 0 | W28: 0 | X28: 50 | Y28: 1 | Z28: 30 | AA28: 1 | AB28: 60 | AC28: 1 | AD28: 60 | AE28: 1 | AF28: 30 | AG28: 1 | AH28: 110 | AI28: 1 | AJ28: 0 | AK28: 0 | AL28: 0 | AM28: 0 | AN28: 0 | AO28: 0 | AP28: 0 | AQ28: 0 | AR28: 0 | AS28: 0
A29: =+Score!A29 -> 26 | B29: =+Score!B29 -> 553040106-1 | C29: =+Score!C29 -> นายวศิน คำปัญโญ | D29: =+Score!D29 -> EN-ME | E29: =+Score!E29 -> 2.6 | F29: =+Score!F29 -> 1 | G29: 0.825 | H29: 1 | I29: 1 | J29: 0.9 | K29: 0 | L29: 1 | M29: 1 | N29: 1 | O29: 1 | P29: 1 | Q29: 1 | R29: 1 | S29: 8.9375 | V29: 33 | W29: 0.825 | X29: 50 | Y29: 1 | Z29: 30 | AA29: 1 | AB29: 54 | AC29: 0.9 | AD29: 0 | AE29: 0 | AF29: 30 | AG29: 1 | AH29: 110 | AI29: 1 | AJ29: 40 | AK29: 1 | AL29: 72 | AM29: 1 | AN29: 30 | AO29: 1 | AP29: 45 | AQ29: 1 | AR29: 20 | AS29: 1
A30: =+Score!A30 -> 27 | B30: =+Score!B30 -> 553040108-7 | C30: =+Score!C30 -> นายวิชญสิทธิ์ พันธุ์รักษา | D30: =+Score!D30 -> EN-IE | E30: =+Score!E30 -> 2.83 | F30: =+Score!F30 -> 1 | G30: 0.5 | H30: 0.9 | I30: 0.9666666667 | J30: 0.9166666667 | K30: 0.9666666667 | L30: 1 | M30: 1 | N30: 1 | O30: 1 | P30: 1 | Q30: 1 | R30: 1 | S30: 9.375 | V30: 20 | W30: 0.5 | X30: 45 | Y30: 0.9 | Z30: 29 | AA30: 0.9666666667 | AB30: 55 | AC30: 0.9166666667 | AD30: 58 | AE30: 0.9666666667 | AF30: 30 | AG30: 1 | AH30: 110 | AI30: 1 | AJ30: 40 | AK30: 1 | AL30: 72 | AM30: 1 | AN30: 30 | AO30: 1 | AP30: 45 | AQ30: 1 | AR30: 20 | AS30: 1
A31: =+Score!A31 -> 28 | B31: =+Score!B31 -> 553040121-5 | C31: =+Score!C31 -> นายสิริวุฒิ ภูมิภูเขียว | D31: =+Score!D31 -> EN-IE | E31: =+Score!E31 -> 2.06 | F31: =+Score!F31 -> 1 | G31: 0.5 | H31: 0.94 | I31: 1 | J31: 0.9333333333 | K31: 0.95 | L31: 1 | M31: 1 | N31: 0.925 | O31: 0 | P31: 1 | Q31: 1 | R31: 1 | S31: 8.540277778 | V31: 20 | W31: 0.5 | X31: 47 | Y31: 0.94 | Z31: 30 | AA31: 1 | AB31: 56 | AC31: 0.9333333333 | AD31: 57 | AE31: 0.95 | AF31: 30 | AG31: 1 | AH31: 110 | AI31: 1 | AJ31: 37 | AK31: 0.925 | AL31: 0 | AM31: 0 | AN31: 30 | AO31: 1 | AP31: 45 | AQ31: 1 | AR31: 20 | AS31: 1
A32: =+Score!A32 -> 29 | B32: =+Score!B32 -> 553040123-1 | C32: =+Score!C32 -> นางสาวหทัยชนก ปัญญาบุตร | D32: =+Score!D32 -> EN-ME | E32: =+Score!E32 -> 2.45 | F32: =+Score!F32 -> 1 | G32: 1 | H32: 0.96 | I32: 1 | J32: 0.8333333333 | K32: 0.8333333333 | L32: 1 | M32: 0.9545454545 | N32: 0 | O32: 1 | P32: 1 | Q32: 0.8888888889 | R32: 1 | S32: 8.725084175 | V32: 40 | W32: 1 | X32: 48 | Y32: 0.96 | Z32: 30 | AA32: 1 | AB32: 50 | AC32: 0.8333333333 | AD32: 50 | AE32: 0.8333333333 | AF32: 30 | AG32: 1 | AH32: 105 | AI32: 0.9545454545 | AJ32: 0 | AK32: 0 | AL32: 72 | AM32: 1 | AN32: 30 | AO32: 1 | AP32: 40 | AQ32: 0.8888888889 | AR32: 20 | AS32: 1
A33: =+Score!A33 -> 30 | B33: =+Score!B33 -> 553040126-5 | C33: =+Score!C33 -> นายอนวัช คงวีระวัฒน์ | D33: =+Score!D33 -> EN-ME | E33: =+Score!E33 -> 2.27 | F33: =+Score!F33 -> 1 | G33: 1 | H33: 0 | I33: 0 | J33: 0 | K33: 0 | L33: 0.6 | M33: 1 | N33: 1 | O33: 1 | P33: 1 | Q33: 0 | R33: 1 | S33: 5.5 | V33: 40 | W33: 1 | X33: 0 | Y33: 0 | Z33: 0 | AA33: 0 | AB33: 0 | AC33: 0 | AD33: 0 | AE33: 0 | AF33: 18 | AG33: 0.6 | AH33: 110 | AI33: 1 | AJ33: 40 | AK33: 1 | AL33: 72 | AM33: 1 | AN33: 30 | AO33: 1 | AP33: 0 | AQ33: 0 | AR33: 20 | AS33: 1
A34: =+Score!A34 -> 31 | B34: =+Score!B34 -> 553040132-0 | C34: =+Score!C34 -> นางสาวอรทัย ยอดแก้วพิสัย | D34: =+Score!D34 -> EN-IE | E34: =+Score!E34 -> 2.8 | F34: =+Score!F34 -> 1 | G34: 0.925 | H34: 1 | I34: 0.9 | J34: 0.95 | K34: 0.9333333333 | L34: 0.9666666667 | M34: 1 | N34: 1 | O34: 0.9722222222 | P34: 1 | Q34: 1 | R34: 1 | S34: 9.706018519 | V34: 37 | W34: 0.925 | X34: 50 | Y34: 1 | Z34: 27 | AA34: 0.9 | AB34: 57 | AC34: 0.95 | AD34: 56 | AE34: 0.9333333333 | AF34: 29 | AG34: 0.9666666667 | AH34: 110 | AI34: 1 | AJ34: 40 | AK34: 1 | AL34: 70 | AM34: 0.9722222222 | AN34: 30 | AO34: 1 | AP34: 45 | AQ34: 1 | AR34: 20 | AS34: 1
A35: =+Score!A35 -> 32 | B35: =+Score!B35 -> 553040133-8 | C35: =+Score!C35 -> นายอรรถชัย ทองสุข | D35: =+Score!D35 -> EN-ME | E35: =+Score!E35 -> 2.16 | F35: =+Score!F35 -> 1 | G35: 1 | H35: 1 | I35: 0.9 | J35: 0.8333333333 | K35: 1 | L35: 1 | M35: 0.9363636364 | N35: 1 | O35: 1 | P35: 1 | Q35: 0.8888888889 | R35: 1 | S35: 9.632154882 | V35: 40 | W35: 1 | X35: 50 | Y35: 1 | Z35: 27 | AA35: 0.9 | AB35: 50 | AC35: 0.8333333333 | AD35: 60 | AE35: 1 | AF35: 30 | AG35: 1 | AH35: 103 | AI35: 0.9363636364 | AJ35: 40 | AK35: 1 | AL35: 72 | AM35: 1 | AN35: 30 | AO35: 1 | AP35: 40 | AQ35: 0.8888888889 | AR35: 20 | AS35: 1
A36: =+Score!A36 -> 33 | B36: =+Score!B36 -> 553040136-2 | C36: =+Score!C36 -> นางสาวอัชฌา เสาร์สิงห์ | D36: =+Score!D36 -> EN-ME | E36: =+Score!E36 -> 2.8 | F36: =+Score!F36 -> 1 | G36: 0.6 | H36: 0.94 | I36: 0.9 | J36: 0.95 | K36: 0.75 | L36: 0.9666666667 | M36: 0.8227272727 | N36: 1 | O36: 0.9861111111 | P36: 1 | Q36: 0.9555555556 | R36: 0.9 | S36: 8.975883838 | V36: 24 | W36: 0.6 | X36: 47 | Y36: 0.94 | Z36: 27 | AA36: 0.9 | AB36: 57 | AC36: 0.95 | AD36: 45 | AE36: 0.75 | AF36: 29 | AG36: 0.9666666667 | AH36: 90.5 | AI36: 0.8227272727 | AJ36: 40 | AK36: 1 | AL36: 71 | AM36: 0.9861111111 | AN36: 30 | AO36: 1 | AP36: 43 | AQ36: 0.9555555556 | AR36: 18 | AS36: 0.9
A37: =+Score!A37 -> 34 | B37: =+Score!B37 -> 553040137-0 | C37: =+Score!C37 -> นางสาวอัชรา เชาว์ชอบ | D37: =+Score!D37 -> EN-IE | E37: =+Score!E37 -> 2.81 | F37: =+Score!F37 -> 1 | G37: 0.725 | H37: 1 | I37: 0.9 | J37: 0.7166666667 | K37: 0.9 | L37: 0.9666666667 | M37: 1 | N37: 1 | O37: 0.9444444444 | P37: 1 | Q37: 0 | R37: 1 | S37: 8.460648148 | V37: 29 | W37: 0.725 | X37: 50 | Y37: 1 | Z37: 27 | AA37: 0.9 | AB37: 43 | AC37: 0.7166666667 | AD37: 54 | AE37: 0.9 | AF37: 29 | AG37: 0.9666666667 | AH37: 110 | AI37: 1 | AJ37: 40 | AK37: 1 | AL37: 68 | AM37: 0.9444444444 | AN37: 30 | AO37: 1 | AP37: 0 | AQ37: 0 | AR37: 20 | AS37: 1
A38: =+Score!A38 -> 35 | B38: =+Score!B38 -> 553040146-9 | C38: =+Score!C38 -> นายเจษฎา พลชา | D38: =+Score!D38 -> EN-AE | E38: =+Score!E38 -> 2.39 | F38: =+Score!F38 -> 1 | G38: 0.8 | H38: 0.88 | I38: 0 | J38: 0.75 | K38: 0.9666666667 | L38: 0 | M38: 0.9136363636 | N38: 0 | O38: 0 | P38: 0.6666666667 | Q38: 1 | R38: 1 | S38: 5.814141414 | V38: 32 | W38: 0.8 | X38: 44 | Y38: 0.88 | Z38: 0 | AA38: 0 | AB38: 45 | AC38: 0.75 | AD38: 58 | AE38: 0.9666666667 | AF38: 0 | AG38: 0 | AH38: 100.5 | AI38: 0.9136363636 | AJ38: 0 | AK38: 0 | AL38: 0 | AM38: 0 | AN38: 20 | AO38: 0.6666666667 | AP38: 45 | AQ38: 1 | AR38: 20 | AS38: 1
A39: =+Score!A39 -> 36 | B39: =+Score!B39 -> 553040148-5 | C39: =+Score!C39 -> นายเชษฐทรัพย์ ทองคำใส | D39: =+Score!D39 -> EN-AE | E39: =+Score!E39 -> 2.6 | F39: =+Score!F39 -> 1 | G39: 0.625 | H39: 1 | I39: 0.9666666667 | J39: 0.9833333333 | K39: 0.9833333333 | L39: 1 | M39: 1 | N39: 1 | O39: 1 | P39: 1 | Q39: 1 | R39: 1 | S39: 9.631944444 | V39: 25 | W39: 0.625 | X39: 50 | Y39: 1 | Z39: 29 | AA39: 0.9666666667 | AB39: 59 | AC39: 0.9833333333 | AD39: 59 | AE39: 0.9833333333 | AF39: 30 | AG39: 1 | AH39: 110 | AI39: 1 | AJ39: 40 | AK39: 1 | AL39: 72 | AM39: 1 | AN39: 30 | AO39: 1 | AP39: 45 | AQ39: 1 | AR39: 20 | AS39: 1
A40: =+Score!A40 -> 37 | B40: =+Score!B40 -> 553040149-3 | C40: =+Score!C40 -> นายณัฐพงษ์ เหล่าจูม | D40: =+Score!D40 -> EN-AE | E40: =+Score!E40 -> 3.04 | F40: =+Score!F40 -> 1 | G40: 1 | H40: 0.98 | I40: 1 | J40: 0.8 | K40: 1 | L40: 1 | M40: 0.9727272727 | N40: 0.95 | O40: 0.9305555556 | P40: 1 | Q40: 1 | R40: 1 | S40: 9.694402357 | V40: 40 | W40: 1 | X40: 49 | Y40: 0.98 | Z40: 30 | AA40: 1 | AB40: 48 | AC40: 0.8 | AD40: 60 | AE40: 1 | AF40: 30 | AG40: 1 | AH40: 107 | AI40: 0.9727272727 | AJ40: 38 | AK40: 0.95 | AL40: 67 | AM40: 0.9305555556 | AN40: 30 | AO40: 1 | AP40: 45 | AQ40: 1 | AR40: 20 | AS40: 1
A41: =+Score!A41 -> 38 | B41: =+Score!B41 -> 553040154-0 | C41: =+Score!C41 -> นางสาวนฤมล พรมพุ้ย | D41: =+Score!D41 -> EN-AE | E41: =+Score!E41 -> 2.53 | F41: =+Score!F41 -> 1 | G41: 1 | H41: 1 | I41: 0.8333333333 | J41: 0.7666666667 | K41: 1 | L41: 1 | M41: 0.9272727273 | N41: 0.95 | O41: 0.9305555556 | P41: 1 | Q41: 1 | R41: 1 | S41: 9.506523569 | V41: 40 | W41: 1 | X41: 50 | Y41: 1 | Z41: 25 | AA41: 0.8333333333 | AB41: 46 | AC41: 0.7666666667 | AD41: 60 | AE41: 1 | AF41: 30 | AG41: 1 | AH41: 102 | AI41: 0.9272727273 | AJ41: 38 | AK41: 0.95 | AL41: 67 | AM41: 0.9305555556 | AN41: 30 | AO41: 1 | AP41: 45 | AQ41: 1 | AR41: 20 | AS41: 1
A42: =+Score!A42 -> 39 | B42: =+Score!B42 -> 553040163-9 | C42: =+Score!C42 -> นางสาววาสนา เคเมือง | D42: =+Score!D42 -> EN-AE | E42: =+Score!E42 -> 2.3 | F42: =+Score!F42 -> 1 | G42: 0.925 | H42: 1 | I42: 0.9 | J42: 0.8333333333 | K42: 1 | L42: 1 | M42: 0.9909090909 | N42: 0.95 | O42: 1 | P42: 1 | Q42: 1 | R42: 1 | S42: 9.666035354 | V42: 37 | W42: 0.925 | X42: 50 | Y42: 1 | Z42: 27 | AA42: 0.9 | AB42: 50 | AC42: 0.8333333333 | AD42: 60 | AE42: 1 | AF42: 30 | AG42: 1 | AH42: 109 | AI42: 0.9909090909 | AJ42: 38 | AK42: 0.95 | AL42: 72 | AM42: 1 | AN42: 30 | AO42: 1 | AP42: 45 | AQ42: 1 | AR42: 20 | AS42: 1
A43: =+Score!A43 -> 40 | B43: =+Score!B43 -> 553040164-7 | C43: =+Score!C43 -> นายวิภูรินทร์ เลิศพนาลัย | D43: =+Score!D43 -> EN-AE | E43: =+Score!E43 -> 2.55 | F43: =+Score!F43 -> 1 | G43: 0 | H43: 1 | I43: 0.9666666667 | J43: 0 | K43: 1 | L43: 0 | M43: 0.9545454545 | N43: 0.95 | O43: 0 | P43: 1 | Q43: 1 | R43: 1 | S43: 6.559343434 | V43: 0 | W43: 0 | X43: 50 | Y43: 1 | Z43: 29 | AA43: 0.9666666667 | AB43: 0 | AC43: 0 | AD43: 60 | AE43: 1 | AF43: 0 | AG43: 0 | AH43: 105 | AI43: 0.9545454545 | AJ43: 38 | AK43: 0.95 | AL43: 0 | AM43: 0 | AN43: 30 | AO43: 1 | AP43: 45 | AQ43: 1 | AR43: 20 | AS43: 1
A44: =+Score!A44 -> 41 | B44: =+Score!B44 -> 553040167-1 | C44: =+Score!C44 -> นายอดิศักดิ์ มุนนี | D44: =+Score!D44 -> EN-AE | E44: =+Score!E44 -> 2.96 | F44: =+Score!F44 -> 1 | G44: 1 | H44: 0.98 | I44: 0.9333333333 | J44: 0.7666666667 | K44: 0.95 | L44: 0.9666666667 | M44: 0.9 | N44: 0.95 | O44: 0 | P44: 1 | Q44: 0.8888888889 | R44: 0.95 | S44: 8.571296296 | V44: 40 | W44: 1 | X44: 49 | Y44: 0.98 | Z44: 28 | AA44: 0.9333333333 | AB44: 46 | AC44: 0.7666666667 | AD44: 57 | AE44: 0.95 | AF44: 29 | AG44: 0.9666666667 | AH44: 99 | AI44: 0.9 | AJ44: 38 | AK44: 0.95 | AL44: 0 | AM44: 0 | AN44: 30 | AO44: 1 | AP44: 40 | AQ44: 0.8888888889 | AR44: 19 | AS44: 0.95
A45: =+Score!A45 -> 42 | B45: =+Score!B45 -> 553040169-7 | C45: =+Score!C45 -> นายอภิสิทธิ์ รังสิมาวงศ์ | D45: =+Score!D45 -> EN-AE | E45: =+Score!E45 -> 3.16 | F45: =+Score!F45 -> 1 | G45: 0.7 | H45: 0.84 | I45: 0.9666666667 | J45: 0.9333333333 | K45: 0.95 | L45: 0.9666666667 | M45: 0.9363636364 | N45: 0.95 | O45: 0 | P45: 1 | Q45: 1 | R45: 1 | S45: 8.535858586 | V45: 28 | W45: 0.7 | X45: 42 | Y45: 0.84 | Z45: 29 | AA45: 0.9666666667 | AB45: 56 | AC45: 0.9333333333 | AD45: 57 | AE45: 0.95 | AF45: 29 | AG45: 0.9666666667 | AH45: 103 | AI45: 0.9363636364 | AJ45: 38 | AK45: 0.95 | AL45: 0 | AM45: 0 | AN45: 30 | AO45: 1 | AP45: 45 | AQ45: 1 | AR45: 20 | AS45: 1
A46: =+Score!A46 -> 43 | B46: =+Score!B46 -> 553040170-2 | C46: =+Score!C46 -> นายอาทิตย์ ภูผาผุด | D46: =+Score!D46 -> EN-AE | E46: =+Score!E46 -> 3.25 | F46: =+Score!F46 -> 1 | G46: 0.85 | H46: 0.98 | I46: 0.9666666667 | J46: 0.9666666667 | K46: 0.9666666667 | L46: 0.9666666667 | M46: 0.9636363636 | N46: 1 | O46: 0.9722222222 | P46: 1 | Q46: 1 | R46: 1 | S46: 9.693771044 | V46: 34 | W46: 0.85 | X46: 49 | Y46: 0.98 | Z46: 29 | AA46: 0.9666666667 | AB46: 58 | AC46: 0.9666666667 | AD46: 58 | AE46: 0.9666666667 | AF46: 29 | AG46: 0.9666666667 | AH46: 106 | AI46: 0.9636363636 | AJ46: 40 | AK46: 1 | AL46: 70 | AM46: 0.9722222222 | AN46: 30 | AO46: 1 | AP46: 45 | AQ46: 1 | AR46: 20 | AS46: 1
A47: =+Score!A47 -> 44 | B47: =+Score!B47 -> 553040281-3 | C47: =+Score!C47 -> นายทวิชาติ อัครสันตติกุล | D47: =+Score!D47 -> EN-IE | E47: =+Score!E47 -> 1.95 | F47: =+Score!F47 -> 1 | G47: 0.75 | H47: 0.92 | I47: 0.9666666667 | J47: 0.9 | K47: 0.9166666667 | L47: 0.8666666667 | M47: 0.9272727273 | N47: 1 | O47: 0 | P47: 1 | Q47: 0 | R47: 0 | S47: 6.872727273 | V47: 30 | W47: 0.75 | X47: 46 | Y47: 0.92 | Z47: 29 | AA47: 0.9666666667 | AB47: 54 | AC47: 0.9 | AD47: 55 | AE47: 0.9166666667 | AF47: 26 | AG47: 0.8666666667 | AH47: 102 | AI47: 0.9272727273 | AJ47: 40 | AK47: 1 | AL47: 0 | AM47: 0 | AN47: 30 | AO47: 1 | AP47: 0 | AQ47: 0 | AR47: 0 | AS47: 0
A48: =+Score!A48 -> 45 | B48: =+Score!B48 -> 553040285-5 | C48: =+Score!C48 -> นางสาวกนกอร แดงน้อย | D48: =+Score!D48 -> EN-IE | E48: =+Score!E48 -> 2.51 | F48: =+Score!F48 -> 1 | G48: 0.8 | H48: 0.96 | I48: 0.9666666667 | J48: 0.6833333333 | K48: 0.9166666667 | L48: 0.8333333333 | M48: 0.8909090909 | N48: 0.975 | O48: 0.9722222222 | P48: 1 | Q48: 0.9111111111 | R48: 1 | S48: 9.091035354 | V48: 32 | W48: 0.8 | X48: 48 | Y48: 0.96 | Z48: 29 | AA48: 0.9666666667 | AB48: 41 | AC48: 0.6833333333 | AD48: 55 | AE48: 0.9166666667 | AF48: 25 | AG48: 0.8333333333 | AH48: 98 | AI48: 0.8909090909 | AJ48: 39 | AK48: 0.975 | AL48: 70 | AM48: 0.9722222222 | AN48: 30 | AO48: 1 | AP48: 41 | AQ48: 0.9111111111 | AR48: 20 | AS48: 1
A49: =+Score!A49 -> 46 | B49: =+Score!B49 -> 553040289-7 | C49: =+Score!C49 -> นายกัมปนาท ชาวดร | D49: =+Score!D49 -> EN-ME | E49: =+Score!E49 -> 3.02 | F49: =+Score!F49 -> 1 | G49: 0.8 | H49: 0.9 | I49: 0.9666666667 | J49: 0.475 | K49: 0.875 | L49: 0.95 | M49: 0.8727272727 | N49: 0.975 | O49: 0.9722222222 | P49: 1 | Q49: 0.9888888889 | R49: 1 | S49: 8.979587542 | V49: 32 | W49: 0.8 | X49: 45 | Y49: 0.9 | Z49: 29 | AA49: 0.9666666667 | AB49: 28.5 | AC49: 0.475 | AD49: 52.5 | AE49: 0.875 | AF49: 28.5 | AG49: 0.95 | AH49: 96 | AI49: 0.8727272727 | AJ49: 39 | AK49: 0.975 | AL49: 70 | AM49: 0.9722222222 | AN49: 30 | AO49: 1 | AP49: 44.5 | AQ49: 0.9888888889 | AR49: 20 | AS49: 1
A50: =+Score!A50 -> 47 | B50: =+Score!B50 -> 553040290-2 | C50: =+Score!C50 -> นายกานตภณ รุ่งฤทัยวัฒน์ | D50: =+Score!D50 -> EN-IE | E50: =+Score!E50 -> 2.22 | F50: =+Score!F50 -> 1 | G50: 0.8 | H50: 0.9 | I50: 1 | J50: 0.6166666667 | K50: 0.875 | L50: 0.95 | M50: 0.8727272727 | N50: 1 | O50: 0.9027777778 | P50: 1 | Q50: 1 | R50: 1 | S50: 9.097643098 | V50: 32 | W50: 0.8 | X50: 45 | Y50: 0.9 | Z50: 30 | AA50: 1 | AB50: 37 | AC50: 0.6166666667 | AD50: 52.5 | AE50: 0.875 | AF50: 28.5 | AG50: 0.95 | AH50: 96 | AI50: 0.8727272727 | AJ50: 40 | AK50: 1 | AL50: 65 | AM50: 0.9027777778 | AN50: 30 | AO50: 1 | AP50: 45 | AQ50: 1 | AR50: 20 | AS50: 1
A51: =+Score!A51 -> 48 | B51: =+Score!B51 -> 553040297-8 | C51: =+Score!C51 -> นางสาวขวัญตา สุวรรณจันทร์ | D51: =+Score!D51 -> EN-IE | E51: =+Score!E51 -> 1.24 | F51: =+Score!F51 -> 1 | G51: 0 | H51: 0 | I51: 0 | J51: 0 | K51: 0 | L51: 0 | M51: 0 | N51: 0 | O51: 0 | P51: 0 | Q51: 0 | R51: 0 | S51: 0 | V51: 0 | W51: 0 | X51: 0 | Y51: 0 | Z51: 0 | AA51: 0 | AB51: 0 | AC51: 0 | AD51: 0 | AE51: 0 | AF51: 0 | AG51: 0 | AH51: 0 | AI51: 0 | AJ51: 0 | AK51: 0 | AL51: 0 | AM51: 0 | AN51: 0 | AO51: 0 | AP51: 0 | AQ51: 0 | AR51: 0 | AS51: 0
A52: =+Score!A52 -> 49 | B52: =+Score!B52 -> 553040298-6 | C52: =+Score!C52 -> นายคฑาวุธ นิลคุณ | D52: =+Score!D52 -> EN-ME | E52: =+Score!E52 -> 2.16 | F52: =+Score!F52 -> 1 | G52: 1 | H52: 1 | I52: 1 | J52: 0.9666666667 | K52: 1 | L52: 1 | M52: 0 | N52: 0 | O52: 0 | P52: 0 | Q52: 0 | R52: 0 | S52: 4.972222222 | V52: 40 | W52: 1 | X52: 50 | Y52: 1 | Z52: 30 | AA52: 1 | AB52: 58 | AC52: 0.9666666667 | AD52: 60 | AE52: 1 | AF52: 30 | AG52: 1 | AH52: 0 | AI52: 0 | AJ52: 0 | AK52: 0 | AL52: 0 | AM52: 0 | AN52: 0 | AO52: 0 | AP52: 0 | AQ52: 0 | AR52: 0 | AS52: 0
A53: =+Score!A53 -> 50 | B53: =+Score!B53 -> 553040302-1 | C53: =+Score!C53 -> นายจรูญวิทย์ ยึนประโคน | D53: =+Score!D53 -> EN-IE | E53: =+Score!E53 -> 2.25 | F53: =+Score!F53 -> 1 | G53: 0.9 | H53: 0.82 | I53: 0.8666666667 | J53: 0.5333333333 | K53: 0.9 | L53: 0.9666666667 | M53: 0.8727272727 | N53: 1 | O53: 0.9722222222 | P53: 1 | Q53: 1 | R53: 1 | S53: 9.026346801 | V53: 36 | W53: 0.9 | X53: 41 | Y53: 0.82 | Z53: 26 | AA53: 0.8666666667 | AB53: 32 | AC53: 0.5333333333 | AD53: 54 | AE53: 0.9 | AF53: 29 | AG53: 0.9666666667 | AH53: 96 | AI53: 0.8727272727 | AJ53: 40 | AK53: 1 | AL53: 70 | AM53: 0.9722222222 | AN53: 30 | AO53: 1 | AP53: 45 | AQ53: 1 | AR53: 20 | AS53: 1
A54: =+Score!A54 -> 51 | B54: =+Score!B54 -> 553040310-2 | C54: =+Score!C54 -> นายจีระวัฒน์ ศรีมีชัย | D54: =+Score!D54 -> EN-IE | E54: =+Score!E54 -> 2.18 | F54: =+Score!F54 -> 1 | G54: 0.725 | H54: 0.94 | I54: 0.9666666667 | J54: 0.8666666667 | K54: 1 | L54: 1 | M54: 0.9454545455 | N54: 1 | O54: 0.9027777778 | P54: 1 | Q54: 0 | R54: 1 | S54: 8.622138047 | V54: 29 | W54: 0.725 | X54: 47 | Y54: 0.94 | Z54: 29 | AA54: 0.9666666667 | AB54: 52 | AC54: 0.8666666667 | AD54: 60 | AE54: 1 | AF54: 30 | AG54: 1 | AH54: 104 | AI54: 0.9454545455 | AJ54: 40 | AK54: 1 | AL54: 65 | AM54: 0.9027777778 | AN54: 30 | AO54: 1 | AP54: 0 | AQ54: 0 | AR54: 20 | AS54: 1
A55: =+Score!A55 -> 52 | B55: =+Score!B55 -> 553040312-8 | C55: =+Score!C55 -> นางสาวจุฑารัตน์ เลยยุทธ | D55: =+Score!D55 -> EN-IE | E55: =+Score!E55 -> 2.66 | F55: =+Score!F55 -> 1 | G55: 0.7 | H55: 1 | I55: 0.9666666667 | J55: 0.8666666667 | K55: 0.9333333333 | L55: 0.9666666667 | M55: 0.9818181818 | N55: 1 | O55: 1 | P55: 1 | Q55: 1 | R55: 1 | S55: 9.512626263 | V55: 28 | W55: 0.7 | X55: 50 | Y55: 1 | Z55: 29 | AA55: 0.9666666667 | AB55: 52 | AC55: 0.8666666667 | AD55: 56 | AE55: 0.9333333333 | AF55: 29 | AG55: 0.9666666667 | AH55: 108 | AI55: 0.9818181818 | AJ55: 40 | AK55: 1 | AL55: 72 | AM55: 1 | AN55: 30 | AO55: 1 | AP55: 45 | AQ55: 1 | AR55: 20 | AS55: 1
A56: =+Score!A56 -> 53 | B56: =+Score!B56 -> 553040315-2 | C56: =+Score!C56 -> นางสาวจุฬารัตน์ แสนวงษ์ | D56: =+Score!D56 -> EN-ME | E56: =+Score!E56 -> 3.22 | F56: =+Score!F56 -> 1 | G56: 0.8 | H56: 0.8 | I56: 0.9 | J56: 0.8833333333 | K56: 1 | L56: 0.6666666667 | M56: 0.9181818182 | N56: 0 | O56: 0.9722222222 | P56: 1 | Q56: 1 | R56: 1 | S56: 8.283670034 | V56: 32 | W56: 0.8 | X56: 40 | Y56: 0.8 | Z56: 27 | AA56: 0.9 | AB56: 53 | AC56: 0.8833333333 | AD56: 60 | AE56: 1 | AF56: 20 | AG56: 0.6666666667 | AH56: 101 | AI56: 0.9181818182 | AJ56: 0 | AK56: 0 | AL56: 70 | AM56: 0.9722222222 | AN56: 30 | AO56: 1 | AP56: 45 | AQ56: 1 | AR56: 20 | AS56: 1
A57: =+Score!A57 -> 54 | B57: =+Score!B57 -> 553040316-0 | C57: =+Score!C57 -> นางสาวเจนจิรา ปิยาโยค | D57: =+Score!D57 -> EN-ME | E57: =+Score!E57 -> 2.3 | F57: =+Score!F57 -> 1 | G57: 0.8 | H57: 0.96 | I57: 0.9 | J57: 0.7333333333 | K57: 1 | L57: 0.8333333333 | M57: 0.9181818182 | N57: 0 | O57: 0.9722222222 | P57: 1 | Q57: 1 | R57: 0.9 | S57: 8.347558923 | V57: 32 | W57: 0.8 | X57: 48 | Y57: 0.96 | Z57: 27 | AA57: 0.9 | AB57: 44 | AC57: 0.7333333333 | AD57: 60 | AE57: 1 | AF57: 25 | AG57: 0.8333333333 | AH57: 101 | AI57: 0.9181818182 | AJ57: 0 | AK57: 0 | AL57: 70 | AM57: 0.9722222222 | AN57: 30 | AO57: 1 | AP57: 45 | AQ57: 1 | AR57: 18 | AS57: 0.9
A58: =+Score!A58 -> 55 | B58: =+Score!B58 -> 553040317-8 | C58: =+Score!C58 -> นายเจนณรงค์ อยู่ยง | D58: =+Score!D58 -> EN-ME | E58: =+Score!E58 -> 2.57 | F58: =+Score!F58 -> 1 | G58: 0.75 | H58: 1 | I58: 1 | J58: 0.9166666667 | K58: 1 | L58: 1 | M58: 1 | N58: 1 | O58: 1 | P58: 1 | Q58: 1 | R58: 1 | S58: 9.722222222 | V58: 30 | W58: 0.75 | X58: 50 | Y58: 1 | Z58: 30 | AA58: 1 | AB58: 55 | AC58: 0.9166666667 | AD58: 60 | AE58: 1 | AF58: 30 | AG58: 1 | AH58: 110 | AI58: 1 | AJ58: 40 | AK58: 1 | AL58: 72 | AM58: 1 | AN58: 30 | AO58: 1 | AP58: 45 | AQ58: 1 | AR58: 20 | AS58: 1
A59: =+Score!A59 -> 56 | B59: =+Score!B59 -> 553040320-9 | C59: =+Score!C59 -> นางสาวชลธิชา นาสินสร้อย | D59: =+Score!D59 -> EN-ME | E59: =+Score!E59 -> 2.81 | F59: =+Score!F59 -> 1 | G59: 0.9 | H59: 0.94 | I59: 0 | J59: 0.8333333333 | K59: 0.9 | L59: 1 | M59: 1 | N59: 1 | O59: 1 | P59: 1 | Q59: 0.9777777778 | R59: 1 | S59: 8.792592593 | V59: 36 | W59: 0.9 | X59: 47 | Y59: 0.94 | Z59: 0 | AA59: 0 | AB59: 50 | AC59: 0.8333333333 | AD59: 54 | AE59: 0.9 | AF59: 30 | AG59: 1 | AH59: 110 | AI59: 1 | AJ59: 40 | AK59: 1 | AL59: 72 | AM59: 1 | AN59: 30 | AO59: 1 | AP59: 44 | AQ59: 0.9777777778 | AR59: 20 | AS59: 1
A60: =+Score!A60 -> 57 | B60: =+Score!B60 -> 553040321-7 | C60: =+Score!C60 -> นายชลวิทย์ พิสิฐรัตนวงศ์ | D60: =+Score!D60 -> EN-IE | E60: =+Score!E60 -> 2.19 | F60: =+Score!F60 -> 1 | G60: 0.75 | H60: 0.96 | I60: 0.9666666667 | J60: 0.8333333333 | K60: 0.9833333333 | L60: 0.9166666667 | M60: 0.9454545455 | N60: 1 | O60: 0.8611111111 | P60: 1 | Q60: 0.9555555556 | R60: 1 | S60: 9.31010101 | V60: 30 | W60: 0.75 | X60: 48 | Y60: 0.96 | Z60: 29 | AA60: 0.9666666667 | AB60: 50 | AC60: 0.8333333333 | AD60: 59 | AE60: 0.9833333333 | AF60: 27.5 | AG60: 0.9166666667 | AH60: 104 | AI60: 0.9454545455 | AJ60: 40 | AK60: 1 | AL60: 62 | AM60: 0.8611111111 | AN60: 30 | AO60: 1 | AP60: 43 | AQ60: 0.9555555556 | AR60: 20 | AS60: 1
A61: =+Score!A61 -> 58 | B61: =+Score!B61 -> 553040326-7 | C61: =+Score!C61 -> นางสาวญาดา ยิ้มยินดี | D61: =+Score!D61 -> EN-IE | E61: =+Score!E61 -> 2.09 | F61: =+Score!F61 -> 1 | G61: 0.5 | H61: 0.98 | I61: 0.9 | J61: 0.875 | K61: 0.975 | L61: 0.8333333333 | M61: 0.9636363636 | N61: 1 | O61: 0.9722222222 | P61: 1 | Q61: 1 | R61: 0.9 | S61: 9.082659933 | V61: 20 | W61: 0.5 | X61: 49 | Y61: 0.98 | Z61: 27 | AA61: 0.9 | AB61: 52.5 | AC61: 0.875 | AD61: 58.5 | AE61: 0.975 | AF61: 25 | AG61: 0.8333333333 | AH61: 106 | AI61: 0.9636363636 | AJ61: 40 | AK61: 1 | AL61: 70 | AM61: 0.9722222222 | AN61: 30 | AO61: 1 | AP61: 45 | AQ61: 1 | AR61: 18 | AS61: 0.9
A62: =+Score!A62 -> 59 | B62: =+Score!B62 -> 553040336-4 | C62: =+Score!C62 -> นายทวีรัช ทาจันทร์ | D62: =+Score!D62 -> EN-ME | E62: =+Score!E62 -> 2.46 | F62: =+Score!F62 -> 1 | G62: 0.95 | H62: 1 | I62: 0.8333333333 | J62: 0 | K62: 0.8333333333 | L62: 1 | M62: 0.9 | N62: 0 | O62: 0 | P62: 1 | Q62: 0 | R62: 0 | S62: 5.430555556 | V62: 38 | W62: 0.95 | X62: 50 | Y62: 1 | Z62: 25 | AA62: 0.8333333333 | AB62: 0 | AC62: 0 | AD62: 50 | AE62: 0.8333333333 | AF62: 30 | AG62: 1 | AH62: 99 | AI62: 0.9 | AJ62: 0 | AK62: 0 | AL62: 0 | AM62: 0 | AN62: 30 | AO62: 1 | AP62: 0 | AQ62: 0 | AR62: 0 | AS62: 0
A63: =+Score!A63 -> 60 | B63: =+Score!B63 -> 553040339-8 | C63: =+Score!C63 -> นายแทนพงศ์ พุทธลา | D63: =+Score!D63 -> EN-ME | E63: =+Score!E63 -> 2.73 | F63: =+Score!F63 -> 1 | G63: 0.975 | H63: 0.9 | I63: 0.9333333333 | J63: 0.6416666667 | K63: 0.9083333333 | L63: 0.9833333333 | M63: 0.8636363636 | N63: 0.975 | O63: 0.9722222222 | P63: 1 | Q63: 1 | R63: 1 | S63: 9.293771044 | V63: 39 | W63: 0.975 | X63: 45 | Y63: 0.9 | Z63: 28 | AA63: 0.9333333333 | AB63: 38.5 | AC63: 0.6416666667 | AD63: 54.5 | AE63: 0.9083333333 | AF63: 29.5 | AG63: 0.9833333333 | AH63: 95 | AI63: 0.8636363636 | AJ63: 39 | AK63: 0.975 | AL63: 70 | AM63: 0.9722222222 | AN63: 30 | AO63: 1 | AP63: 45 | AQ63: 1 | AR63: 20 | AS63: 1
A64: =+Score!A64 -> 61 | B64: =+Score!B64 -> 553040340-3 | C64: =+Score!C64 -> นายธนกฤต เหล่าพิเดช | D64: =+Score!D64 -> EN-IE | E64: =+Score!E64 -> 2.23 | F64: =+Score!F64 -> 1 | G64: 1 | H64: 1 | I64: 1 | J64: 0.9 | K64: 0.95 | L64: 0.9333333333 | M64: 1 | N64: 1 | O64: 0.9722222222 | P64: 1 | Q64: 1 | R64: 1 | S64: 9.796296296 | V64: 40 | W64: 1 | X64: 50 | Y64: 1 | Z64: 30 | AA64: 1 | AB64: 54 | AC64: 0.9 | AD64: 57 | AE64: 0.95 | AF64: 28 | AG64: 0.9333333333 | AH64: 110 | AI64: 1 | AJ64: 40 | AK64: 1 | AL64: 70 | AM64: 0.9722222222 | AN64: 30 | AO64: 1 | AP64: 45 | AQ64: 1 | AR64: 20 | AS64: 1
A65: =+Score!A65 -> 62 | B65: =+Score!B65 -> 553040346-1 | C65: =+Score!C65 -> นางสาวธันยมัย มูลมณี | D65: =+Score!D65 -> EN-IE | E65: =+Score!E65 -> 1.92 | F65: =+Score!F65 -> 1 | G65: 1 | H65: 0.88 | I65: 0.5 | J65: 0.8333333333 | K65: 1 | L65: 1 | M65: 1 | N65: 1 | O65: 0.8611111111 | P65: 1 | Q65: 1 | R65: 1 | S65: 9.228703704 | V65: 40 | W65: 1 | X65: 44 | Y65: 0.88 | Z65: 15 | AA65: 0.5 | AB65: 50 | AC65: 0.8333333333 | AD65: 60 | AE65: 1 | AF65: 30 | AG65: 1 | AH65: 110 | AI65: 1 | AJ65: 40 | AK65: 1 | AL65: 62 | AM65: 0.8611111111 | AN65: 30 | AO65: 1 | AP65: 45 | AQ65: 1 | AR65: 20 | AS65: 1
A66: =+Score!A66 -> 63 | B66: =+Score!B66 -> 553040347-9 | C66: =+Score!C66 -> นายธันวา ไกยราช | D66: =+Score!D66 -> EN-ME | E66: =+Score!E66 -> 2.72 | F66: =+Score!F66 -> 1 | G66: 1 | H66: 1 | I66: 0.9333333333 | J66: 0.9916666667 | K66: 0.9666666667 | L66: 1 | M66: 0.9727272727 | N66: 0 | O66: 0.9722222222 | P66: 1 | Q66: 0 | R66: 1 | S66: 8.197180135 | V66: 40 | W66: 1 | X66: 50 | Y66: 1 | Z66: 28 | AA66: 0.9333333333 | AB66: 59.5 | AC66: 0.9916666667 | AD66: 58 | AE66: 0.9666666667 | AF66: 30 | AG66: 1 | AH66: 107 | AI66: 0.9727272727 | AJ66: 0 | AK66: 0 | AL66: 70 | AM66: 0.9722222222 | AN66: 30 | AO66: 1 | AP66: 0 | AQ66: 0 | AR66: 20 | AS66: 1
A67: =+Score!A67 -> 64 | B67: =+Score!B67 -> 553040349-5 | C67: =+Score!C67 -> นายธิบดี ธิแก้ว | D67: =+Score!D67 -> EN-IE | E67: =+Score!E67 -> 2.15 | F67: =+Score!F67 -> 1 | G67: 0.5 | H67: 0.96 | I67: 1 | J67: 0 | K67: 1 | L67: 1 | M67: 1 | N67: 0.925 | O67: 0.8611111111 | P67: 1 | Q67: 1 | R67: 1 | S67: 8.538425926 | V67: 20 | W67: 0.5 | X67: 48 | Y67: 0.96 | Z67: 30 | AA67: 1 | AB67: 0 | AC67: 0 | AD67: 60 | AE67: 1 | AF67: 30 | AG67: 1 | AH67: 110 | AI67: 1 | AJ67: 37 | AK67: 0.925 | AL67: 62 | AM67: 0.8611111111 | AN67: 30 | AO67: 1 | AP67: 45 | AQ67: 1 | AR67: 20 | AS67: 1
A68: =+Score!A68 -> 65 | B68: =+Score!B68 -> 553040359-2 | C68: =+Score!C68 -> นางสาวเบญจวรรณ มั่นวงษ์ | D68: =+Score!D68 -> EN-IE | E68: =+Score!E68 -> 2.02 | F68: =+Score!F68 -> 1 | G68: 0.725 | H68: 1 | I68: 0.9 | J68: 0.5 | K68: 0 | L68: 0 | M68: 0.9636363636 | N68: 0.85 | O68: 0 | P68: 0 | Q68: 0 | R68: 0 | S68: 4.115530303 | V68: 29 | W68: 0.725 | X68: 50 | Y68: 1 | Z68: 27 | AA68: 0.9 | AB68: 30 | AC68: 0.5 | AD68: 0 | AE68: 0 | AF68: 0 | AG68: 0 | AH68: 106 | AI68: 0.9636363636 | AJ68: 34 | AK68: 0.85 | AL68: 0 | AM68: 0 | AN68: 0 | AO68: 0 | AP68: 0 | AQ68: 0 | AR68: 0 | AS68: 0
A69: =+Score!A69 -> 66 | B69: =+Score!B69 -> 553040365-7 | C69: =+Score!C69 -> นางสาวปรีม สุขเสนีย์ | D69: =+Score!D69 -> EN-ME | E69: =+Score!E69 -> 2.47 | F69: =+Score!F69 -> 1 | G69: 0.7 | H69: 0.94 | I69: 0.9333333333 | J69: =AC69 -> 0.875 | K69: =AE69 -> 0 | L69: =AG69 -> 0 | M69: =AI69 -> 0.8272727273 | N69: =AK69 -> 1 | O69: =AM69 -> 1 | P69: =AO69 -> 1 | Q69: =AQ69 -> 1 | R69: =AS69 -> 1 | S69: =SUM(G69:R69)/1.2 -> 7.729671717 | V69: 28 | W69: =V69/40 -> 0.7 | X69: 47 | Y69: =X69/50 -> 0.94 | Z69: 28 | AA69: =Z69/30 -> 0.9333333333 | AB69: 52.5 | AC69: =AB69/60 -> 0.875 | AD69: 0 | AE69: =AD69/60 -> 0 | AF69: 0 | AG69: =AF69/30 -> 0 | AH69: 91 | AI69: =AH69/110 -> 0.8272727273 | AJ69: 40 | AK69: =AJ69/40 -> 1 | AL69: 72 | AM69: =AL69/72 -> 1 | AN69: 30 | AO69: =AN69/30 -> 1 | AP69: 45 | AQ69: =AP69/45 -> 1 | AR69: 20 | AS69: =AR69/20 -> 1
A70: =+Score!A70 -> 67 | B70: =+Score!B70 -> 553040368-1 | C70: =+Score!C70 -> นางสาวปุณฑริกา สิทธิกรชัย | D70: =+Score!D70 -> EN-IE | E70: =+Score!E70 -> 2.26 | F70: =+Score!F70 -> 1 | G70: 0.85 | H70: =Y70 -> 0.94 | I70: =AA70 -> 0 | J70: 0.8166666667 | K70: 0.95 | L70: 0.9666666667 | M70: 0.7727272727 | N70: 1 | O70: 0 | P70: 1 | Q70: 0 | R70: 1 | S70: 6.913383838 | V70: 34 | W70: 0.85 | X70: 47 | Y70: 0.94 | Z70: 0 | AA70: 0 | AB70: 49 | AC70: 0.8166666667 | AD70: 57 | AE70: 0.95 | AF70: 29 | AG70: 0.9666666667 | AH70: 85 | AI70: 0.7727272727 | AJ70: 40 | AK70: 1 | AL70: 0 | AM70: 0 | AN70: 30 | AO70: 1 | AP70: 0 | AQ70: 0 | AR70: 20 | AS70: 1
A71: =+Score!A71 -> 68 | B71: =+Score!B71 -> 553040380-1 | C71: =+Score!C71 -> นายพิธพล พลเพชร | D71: =+Score!D71 -> EN-IE | E71: =+Score!E71 -> 2.21 | F71: =+Score!F71 -> 1 | G71: =W71 -> 0.65 | H71: 0.72 | I71: 1 | J71: 1 | K71: 1 | L71: 1 | M71: 1 | N71: 0 | O71: 1 | P71: 0 | Q71: 0.9888888889 | R71: 1 | S71: 7.799074074 | V71: 26 | W71: 0.65 | X71: 36 | Y71: 0.72 | Z71: 30 | AA71: 1 | AB71: 60 | AC71: 1 | AD71: 60 | AE71: 1 | AF71: 30 | AG71: 1 | AH71: 110 | AI71: 1 | AJ71: 0 | AK71: 0 | AL71: 72 | AM71: 1 | AN71: 0 | AO71: 0 | AP71: 44.5 | AQ71: 0.9888888889 | AR71: 20 | AS71: 1
A72: =+Score!A72 -> 69 | B72: =+Score!B72 -> 553040383-5 | C72: =+Score!C72 -> นายพีระพงษ์ สิมงาม | D72: =+Score!D72 -> EN-ME | E72: =+Score!E72 -> 2.69 | F72: =+Score!F72 -> 1 | G72: 1 | H72: 1 | I72: 1 | J72: 0.85 | K72: 0.9666666667 | L72: 1 | M72: 0.9636363636 | N72: 0.975 | O72: 0.9583333333 | P72: 1 | Q72: 0.8666666667 | R72: 1 | S72: 9.650252525 | V72: 40 | W72: 1 | X72: 50 | Y72: 1 | Z72: 30 | AA72: 1 | AB72: 51 | AC72: 0.85 | AD72: 58 | AE72: 0.9666666667 | AF72: 30 | AG72: 1 | AH72: 106 | AI72: 0.9636363636 | AJ72: 39 | AK72: 0.975 | AL72: 69 | AM72: 0.9583333333 | AN72: 30 | AO72: 1 | AP72: 39 | AQ72: 0.8666666667 | AR72: 20 | AS72: 1
A73: =+Score!A73 -> 70 | B73: =+Score!B73 -> 553040386-9 | C73: =+Score!C73 -> นายภัทรพล สารผล | D73: =+Score!D73 -> EN-IE | E73: =+Score!E73 -> 2.08 | F73: =+Score!F73 -> 1 | G73: 0.8 | H73: 1 | I73: 0.9666666667 | J73: 1 | K73: 1 | L73: 0.7666666667 | M73: 1 | N73: 1 | O73: 0 | P73: 0 | Q73: 0.8666666667 | R73: 1 | S73: 7.833333333 | V73: 32 | W73: 0.8 | X73: 50 | Y73: 1 | Z73: 29 | AA73: 0.9666666667 | AB73: 60 | AC73: 1 | AD73: 60 | AE73: 1 | AF73: 23 | AG73: 0.7666666667 | AH73: 110 | AI73: 1 | AJ73: 40 | AK73: 1 | AL73: 0 | AM73: 0 | AN73: 0 | AO73: 0 | AP73: 39 | AQ73: 0.8666666667 | AR73: 20 | AS73: 1
A74: =+Score!A74 -> 71 | B74: =+Score!B74 -> 553040387-7 | C74: =+Score!C74 -> นายภาคภูมิ ประเสริฐ | D74: =+Score!D74 -> EN-ME | E74: =+Score!E74 -> 2.86 | F74: =+Score!F74 -> 1 | G74: 0.95 | H74: 0.9 | I74: 0.7 | J74: 0.8833333333 | K74: 0.975 | L74: 1 | M74: 0.9545454545 | N74: 1 | O74: 1 | P74: 1 | Q74: 0.9777777778 | R74: 1 | S74: 9.450547138 | V74: 38 | W74: 0.95 | X74: 45 | Y74: 0.9 | Z74: 21 | AA74: 0.7 | AB74: 53 | AC74: 0.8833333333 | AD74: 58.5 | AE74: 0.975 | AF74: 30 | AG74: 1 | AH74: 105 | AI74: 0.9545454545 | AJ74: 40 | AK74: 1 | AL74: 72 | AM74: 1 | AN74: 30 | AO74: 1 | AP74: 44 | AQ74: 0.9777777778 | AR74: 20 | AS74: 1
A75: =+Score!A75 -> 72 | B75: =+Score!B75 -> 553040391-6 | C75: =+Score!C75 -> นายมารุต พลวัน | D75: =+Score!D75 -> EN-ME | E75: =+Score!E75 -> 2.77 | F75: =+Score!F75 -> 1 | G75: 0.925 | H75: 0.94 | I75: 0.9333333333 | J75: 0.8833333333 | K75: 0.95 | L75: 0.9 | M75: 0.9636363636 | N75: 1 | O75: 1 | P75: 1 | Q75: 0.9777777778 | R75: 1 | S75: 9.560900673 | V75: 37 | W75: 0.925 | X75: 47 | Y75: 0.94 | Z75: 28 | AA75: 0.9333333333 | AB75: 53 | AC75: 0.8833333333 | AD75: 57 | AE75: 0.95 | AF75: 27 | AG75: 0.9 | AH75: 106 | AI75: 0.9636363636 | AJ75: 40 | AK75: 1 | AL75: 72 | AM75: 1 | AN75: 30 | AO75: 1 | AP75: 44 | AQ75: 0.9777777778 | AR75: 20 | AS75: 1
A76: =+Score!A76 -> 73 | B76: =+Score!B76 -> 553040397-4 | C76: =+Score!C76 -> นายรัชชานนท์ หาญกล้า | D76: =+Score!D76 -> EN-ME | E76: =+Score!E76 -> 2.65 | F76: =+Score!F76 -> 1 | G76: 0.725 | H76: 1 | I76: 1 | J76: 0 | K76: 0 | L76: 0 | M76: 0 | N76: 0 | O76: 0 | P76: 0 | Q76: 0 | R76: 1 | S76: 3.104166667 | V76: 29 | W76: 0.725 | X76: 50 | Y76: 1 | Z76: 30 | AA76: 1 | AB76: 0 | AC76: 0 | AD76: 0 | AE76: 0 | AF76: 0 | AG76: 0 | AH76: 0 | AI76: 0 | AJ76: 0 | AK76: 0 | AL76: 0 | AM76: 0 | AN76: 0 | AO76: 0 | AP76: 0 | AQ76: 0 | AR76: 20 | AS76: 1
A77: =+Score!A77 -> 74 | B77: =+Score!B77 -> 553040400-1 | C77: =+Score!C77 -> นายวงศธร เอียตระกูลไพบูลย์ | D77: =+Score!D77 -> EN-IE | E77: =+Score!E77 -> 2.76 | F77: =+Score!F77 -> 1 | G77: 0.8 | H77: 0.96 | I77: 1 | J77: 1 | K77: 1 | L77: 1 | M77: 1 | N77: 1 | O77: 1 | P77: 1 | Q77: 0.7777777778 | R77: 1 | S77: 9.614814815 | V77: 32 | W77: 0.8 | X77: 48 | Y77: 0.96 | Z77: 30 | AA77: 1 | AB77: 60 | AC77: 1 | AD77: 60 | AE77: 1 | AF77: 30 | AG77: 1 | AH77: 110 | AI77: 1 | AJ77: 40 | AK77: 1 | AL77: 72 | AM77: 1 | AN77: 30 | AO77: 1 | AP77: 35 | AQ77: 0.7777777778 | AR77: 20 | AS77: 1
A78: =+Score!A78 -> 75 | B78: =+Score!B78 -> 553040401-9 | C78: =+Score!C78 -> นายวชิรวิทย์ นวรัตนากร | D78: =+Score!D78 -> EN-IE | E78: =+Score!E78 -> 2.83 | F78: =+Score!F78 -> 1 | G78: 0.775 | H78: 1 | I78: 0.8666666667 | J78: 1 | K78: 1 | L78: 1 | M78: 1 | N78: 1 | O78: 0 | P78: 0 | Q78: 0.8666666667 | R78: 0.95 | S78: 7.881944444 | V78: 31 | W78: 0.775 | X78: 50 | Y78: 1 | Z78: 26 | AA78: 0.8666666667 | AB78: 60 | AC78: 1 | AD78: 60 | AE78: 1 | AF78: 30 | AG78: 1 | AH78: 110 | AI78: 1 | AJ78: 40 | AK78: 1 | AL78: 0 | AM78: 0 | AN78: 0 | AO78: 0 | AP78: 39 | AQ78: 0.8666666667 | AR78: 19 | AS78: 0.95
A79: =+Score!A79 -> 76 | B79: =+Score!B79 -> 553040404-3 | C79: =+Score!C79 -> นายวนัสมัญ กฤษณะสุวรรณ | D79: =+Score!D79 -> EN-IE | E79: =+Score!E79 -> 2.3 | F79: =+Score!F79 -> 1 | G79: 0 | H79: 0 | I79: 0.9333333333 | J79: 0 | K79: 0 | L79: 0 | M79: 0 | N79: 0 | O79: 0 | P79: 0 | Q79: 0 | R79: 0 | S79: 0.7777777778 | V79: 0 | W79: 0 | X79: 0 | Y79: 0 | Z79: 28 | AA79: 0.9333333333 | AB79: 0 | AC79: 0 | AD79: 0 | AE79: 0 | AF79: 0 | AG79: 0 | AH79: 0 | AI79: 0 | AJ79: 0 | AK79: 0 | AL79: 0 | AM79: 0 | AN79: 0 | AO79: 0 | AP79: 0 | AQ79: 0 | AR79: 0 | AS79: 0
A80: =+Score!A80 -> 77 | B80: =+Score!B80 -> 553040417-4 | C80: =+Score!C80 -> นางสาวศศิวิมล กองพันธ์ | D80: =+Score!D80 -> EN-IE | E80: =+Score!E80 -> 2.94 | F80: =+Score!F80 -> 1 | G80: 0.825 | H80: 0.96 | I80: 0.9 | J80: 0.85 | K80: 0.95 | L80: 0.8833333333 | M80: 1 | N80: 1 | O80: 1 | P80: 1 | Q80: 1 | R80: 1 | S80: 9.473611111 | V80: 33 | W80: 0.825 | X80: 48 | Y80: 0.96 | Z80: 27 | AA80: 0.9 | AB80: 51 | AC80: 0.85 | AD80: 57 | AE80: 0.95 | AF80: 26.5 | AG80: 0.8833333333 | AH80: 110 | AI80: 1 | AJ80: 40 | AK80: 1 | AL80: 72 | AM80: 1 | AN80: 30 | AO80: 1 | AP80: 45 | AQ80: 1 | AR80: 20 | AS80: 1
A81: =+Score!A81 -> 78 | B81: =+Score!B81 -> 553040420-5 | C81: =+Score!C81 -> นางสาวศิรินาถ ดวงพิมพ์ | D81: =+Score!D81 -> EN-IE | E81: =+Score!E81 -> 2.21 | F81: =+Score!F81 -> 1 | G81: 0.75 | H81: 1 | I81: 0.9666666667 | J81: 0.9 | K81: 0.9833333333 | L81: 0.9333333333 | M81: 1 | N81: 1 | O81: 0.9861111111 | P81: 1 | Q81: 1 | R81: 1 | S81: 9.599537037 | V81: 30 | W81: 0.75 | X81: 50 | Y81: 1 | Z81: 29 | AA81: 0.9666666667 | AB81: 54 | AC81: 0.9 | AD81: 59 | AE81: 0.9833333333 | AF81: 28 | AG81: 0.9333333333 | AH81: 110 | AI81: 1 | AJ81: 40 | AK81: 1 | AL81: 71 | AM81: 0.9861111111 | AN81: 30 | AO81: 1 | AP81: 45 | AQ81: 1 | AR81: 20 | AS81: 1
A82: =+Score!A82 -> 79 | B82: =+Score!B82 -> 553040426-3 | C82: =+Score!C82 -> นายสหภาพ เพียรชนะ | D82: =+Score!D82 -> EN-ME | E82: =+Score!E82 -> 3.13 | F82: =+Score!F82 -> 1 | G82: 1 | H82: 1 | I82: 0.9 | J82: 0.9916666667 | K82: 0.9833333333 | L82: 0.9 | M82: 0.9727272727 | N82: 0 | O82: 0.9722222222 | P82: 1 | Q82: 0.9555555556 | R82: 0.95 | S82: 8.854587542 | V82: 40 | W82: 1 | X82: 50 | Y82: 1 | Z82: 27 | AA82: 0.9 | AB82: 59.5 | AC82: 0.9916666667 | AD82: 59 | AE82: 0.9833333333 | AF82: 27 | AG82: 0.9 | AH82: 107 | AI82: 0.9727272727 | AJ82: 0 | AK82: 0 | AL82: 70 | AM82: 0.9722222222 | AN82: 30 | AO82: 1 | AP82: 43 | AQ82: 0.9555555556 | AR82: 19 | AS82: 0.95
A83: =+Score!A83 -> 80 | B83: =+Score!B83 -> 553040427-1 | C83: =+Score!C83 -> นายสิทธิชัย เมืองโคตร | D83: =+Score!D83 -> EN-ME | E83: =+Score!E83 -> 2.35 | F83: =+Score!F83 -> 1 | G83: 0.5 | H83: 1 | I83: 0.9666666667 | J83: 0 | K83: 0.9166666667 | L83: 0.95 | M83: 0 | N83: 0 | O83: 0 | P83: 0 | Q83: 0.9555555556 | R83: 1 | S83: 5.240740741 | V83: 20 | W83: 0.5 | X83: 50 | Y83: 1 | Z83: 29 | AA83: 0.9666666667 | AB83: 0 | AC83: 0 | AD83: 55 | AE83: 0.9166666667 | AF83: 28.5 | AG83: 0.95 | AH83: 0 | AI83: 0 | AJ83: 0 | AK83: 0 | AL83: 0 | AM83: 0 | AN83: 0 | AO83: 0 | AP83: 43 | AQ83: 0.9555555556 | AR83: 20 | AS83: 1
A84: =+Score!A84 -> 81 | B84: =+Score!B84 -> 553040428-9 | C84: =+Score!C84 -> นางสาวสุกัญญา ธารานุวงศ์ | D84: =+Score!D84 -> EN-ME | E84: =+Score!E84 -> 2.8 | F84: =+Score!F84 -> 1 | G84: 0.5 | H84: 1 | I84: 0.9 | J84: 0.95 | K84: 0.9666666667 | L84: 0.9666666667 | M84: 0.9454545455 | N84: 1 | O84: 0.9444444444 | P84: 1 | Q84: 1 | R84: 0.9 | S84: 9.227693603 | V84: 20 | W84: 0.5 | X84: 50 | Y84: 1 | Z84: 27 | AA84: 0.9 | AB84: 57 | AC84: 0.95 | AD84: 58 | AE84: 0.9666666667 | AF84: 29 | AG84: 0.9666666667 | AH84: 104 | AI84: 0.9454545455 | AJ84: 40 | AK84: 1 | AL84: 68 | AM84: 0.9444444444 | AN84: 30 | AO84: 1 | AP84: 45 | AQ84: 1 | AR84: 18 | AS84: 0.9
A85: =+Score!A85 -> 82 | B85: =+Score!B85 -> 553040429-7 | C85: =+Score!C85 -> นางสาวสุกัญญา เวียงสิมา | D85: =+Score!D85 -> EN-IE | E85: =+Score!E85 -> 2.28 | F85: =+Score!F85 -> 1 | G85: 0.65 | H85: 0.96 | I85: 0.9333333333 | J85: 0.8916666667 | K85: 0.9833333333 | L85: 0.95 | M85: 0.9909090909 | N85: 1 | O85: 1 | P85: 1 | Q85: 1 | R85: 1 | S85: 9.466035354 | V85: 26 | W85: 0.65 | X85: 48 | Y85: 0.96 | Z85: 28 | AA85: 0.9333333333 | AB85: 53.5 | AC85: 0.8916666667 | AD85: 59 | AE85: 0.9833333333 | AF85: 28.5 | AG85: 0.95 | AH85: 109 | AI85: 0.9909090909 | AJ85: 40 | AK85: 1 | AL85: 72 | AM85: 1 | AN85: 30 | AO85: 1 | AP85: 45 | AQ85: 1 | AR85: 20 | AS85: 1
A86: =+Score!A86 -> 83 | B86: =+Score!B86 -> 553040430-2 | C86: =+Score!C86 -> นางสาวสุฑิฌา อินทนนท์ | D86: =+Score!D86 -> EN-IE | E86: =+Score!E86 -> 1.95 | F86: =+Score!F86 -> 1 | G86: 1 | H86: 1 | I86: 0.8666666667 | J86: 0.95 | K86: 1 | L86: 1 | M86: 1 | N86: 1 | O86: 1 | P86: 1 | Q86: 1 | R86: 1 | S86: 9.847222222 | V86: 40 | W86: 1 | X86: 50 | Y86: 1 | Z86: 26 | AA86: 0.8666666667 | AB86: 57 | AC86: 0.95 | AD86: 60 | AE86: 1 | AF86: 30 | AG86: 1 | AH86: 110 | AI86: 1 | AJ86: 40 | AK86: 1 | AL86: 72 | AM86: 1 | AN86: 30 | AO86: 1 | AP86: 45 | AQ86: 1 | AR86: 20 | AS86: 1
A87: =+Score!A87 -> 84 | B87: =+Score!B87 -> 553040434-4 | C87: =+Score!C87 -> นางสาวสุรัชนา ตุ่นแก้ว | D87: =+Score!D87 -> EN-ME | E87: =+Score!E87 -> 2.62 | F87: =+Score!F87 -> 1 | G87: 1 | H87: 0.94 | I87: 1 | J87: 0.9333333333 | K87: 1 | L87: 1 | M87: 1 | N87: 1 | O87: 1 | P87: 1 | Q87: 1 | R87: 1 | S87: 9.894444444 | V87: 40 | W87: 1 | X87: 47 | Y87: 0.94 | Z87: 30 | AA87: 1 | AB87: 56 | AC87: 0.9333333333 | AD87: 60 | AE87: 1 | AF87: 30 | AG87: 1 | AH87: 110 | AI87: 1 | AJ87: 40 | AK87: 1 | AL87: 72 | AM87: 1 | AN87: 30 | AO87: 1 | AP87: 45 | AQ87: 1 | AR87: 20 | AS87: 1
A88: =+Score!A88 -> 85 | B88: =+Score!B88 -> 553040436-0 | C88: =+Score!C88 -> นายเสฎฐฌาน น้อยอาษา | D88: =+Score!D88 -> EN-ME | E88: =+Score!E88 -> 2.26 | F88: =+Score!F88 -> 1 | G88: 0.925 | H88: 0.9 | I88: 0.9 | J88: 0 | K88: 0 | L88: 0.9666666667 | M88: 1 | N88: 1 | O88: 1 | P88: 1 | Q88: 0 | R88: 1 | S88: 7.243055556 | V88: 37 | W88: 0.925 | X88: 45 | Y88: 0.9 | Z88: 27 | AA88: 0.9 | AB88: 0 | AC88: 0 | AD88: 0 | AE88: 0 | AF88: 29 | AG88: 0.9666666667 | AH88: 110 | AI88: 1 | AJ88: 40 | AK88: 1 | AL88: 72 | AM88: 1 | AN88: 30 | AO88: 1 | AP88: 0 | AQ88: 0 | AR88: 20 | AS88: 1
A89: =+Score!A89 -> 86 | B89: =+Score!B89 -> 553040448-3 | C89: =+Score!C89 -> นายอาทิตย์ ขาวสนิท | D89: =+Score!D89 -> EN-ME | E89: =+Score!E89 -> 2.65 | F89: =+Score!F89 -> 1 | G89: 0.925 | H89: 1 | I89: 0.8 | J89: 0.9166666667 | K89: 0.8333333333 | L89: 0.9666666667 | M89: 0.9181818182 | N89: 0.975 | O89: 0.9444444444 | P89: 1 | Q89: 1 | R89: 0.95 | S89: 9.357744108 | V89: 37 | W89: 0.925 | X89: 50 | Y89: 1 | Z89: 24 | AA89: 0.8 | AB89: 55 | AC89: 0.9166666667 | AD89: 50 | AE89: 0.8333333333 | AF89: 29 | AG89: 0.9666666667 | AH89: 101 | AI89: 0.9181818182 | AJ89: 39 | AK89: 0.975 | AL89: 68 | AM89: 0.9444444444 | AN89: 30 | AO89: 1 | AP89: 45 | AQ89: 1 | AR89: 19 | AS89: 0.95
A90: =+Score!A90 -> 87 | B90: =+Score!B90 -> 553040449-1 | C90: =+Score!C90 -> นายอานุภาพ วิจบ | D90: =+Score!D90 -> EN-IE | E90: =+Score!E90 -> 2.9 | F90: =+Score!F90 -> 1 | G90: 0.6 | H90: 1 | I90: 0.9 | J90: 0.95 | K90: 0.9666666667 | L90: 1 | M90: 1 | N90: 0.975 | O90: 0.9444444444 | P90: 1 | Q90: 1 | R90: 1 | S90: 9.446759259 | V90: 24 | W90: 0.6 | X90: 50 | Y90: 1 | Z90: 27 | AA90: 0.9 | AB90: 57 | AC90: 0.95 | AD90: 58 | AE90: 0.9666666667 | AF90: 30 | AG90: 1 | AH90: 110 | AI90: 1 | AJ90: 39 | AK90: 0.975 | AL90: 68 | AM90: 0.9444444444 | AN90: 30 | AO90: 1 | AP90: 45 | AQ90: 1 | AR90: 20 | AS90: 1
A91: =+Score!A91 -> 88 | B91: =+Score!B91 -> 553040450-6 | C91: =+Score!C91 -> นายเอกราช คำงาม | D91: =+Score!D91 -> EN-ME | E91: =+Score!E91 -> 2.32 | F91: =+Score!F91 -> 1 | G91: 0.75 | H91: 0.94 | I91: 0.8333333333 | J91: 1 | K91: 1 | L91: 1 | M91: 0.8545454545 | N91: 1 | O91: 0.9305555556 | P91: 1 | Q91: 1 | R91: 1 | S91: 9.423695286 | V91: 30 | W91: 0.75 | X91: 47 | Y91: 0.94 | Z91: 25 | AA91: 0.8333333333 | AB91: 60 | AC91: 1 | AD91: 60 | AE91: 1 | AF91: 30 | AG91: 1 | AH91: 94 | AI91: 0.8545454545 | AJ91: 40 | AK91: 1 | AL91: 67 | AM91: 0.9305555556 | AN91: 30 | AO91: 1 | AP91: 45 | AQ91: 1 | AR91: 20 | AS91: 1
A92: =+Score!A92 -> 89 | B92: =+Score!B92 -> 553040454-8 | C92: =+Score!C92 -> นายกลวัชร จงฤาชา | D92: =+Score!D92 -> EN-AE | E92: =+Score!E92 -> 2.24 | F92: =+Score!F92 -> 1 | G92: 0.925 | H92: 1 | I92: 0.9 | J92: 0.8333333333 | K92: 0.8333333333 | L92: 1 | M92: 1 | N92: 0 | O92: 1 | P92: 0 | Q92: 0 | R92: 1 | S92: 7.076388889 | V92: 37 | W92: 0.925 | X92: 50 | Y92: 1 | Z92: 27 | AA92: 0.9 | AB92: 50 | AC92: 0.8333333333 | AD92: 50 | AE92: 0.8333333333 | AF92: 30 | AG92: 1 | AH92: 110 | AI92: 1 | AJ92: 0 | AK92: 0 | AL92: 72 | AM92: 1 | AN92: 0 | AO92: 0 | AP92: 0 | AQ92: 0 | AR92: 20 | AS92: 1
A93: =+Score!A93 -> 90 | B93: =+Score!B93 -> 553040458-0 | C93: =+Score!C93 -> นางสาวจุฬาลักษณ์ ชมภูรักษ์ | D93: =+Score!D93 -> EN-AE | E93: =+Score!E93 -> 2.57 | F93: =+Score!F93 -> 1 | G93: 1 | H93: 0.92 | I93: 0.9 | J93: 0.9 | K93: 0 | L93: 1 | M93: 1 | N93: 1 | O93: 1 | P93: 1 | Q93: 1 | R93: 1 | S93: 8.933333333 | V93: 40 | W93: 1 | X93: 46 | Y93: 0.92 | Z93: 27 | AA93: 0.9 | AB93: 54 | AC93: 0.9 | AD93: 0 | AE93: 0 | AF93: 30 | AG93: 1 | AH93: 110 | AI93: 1 | AJ93: 40 | AK93: 1 | AL93: 72 | AM93: 1 | AN93: 30 | AO93: 1 | AP93: 45 | AQ93: 1 | AR93: 20 | AS93: 1
A94: =+Score!A94 -> 91 | B94: =+Score!B94 -> 553040464-5 | C94: =+Score!C94 -> นางสาวทิชากร จุลพันธ์ | D94: =+Score!D94 -> EN-AE | E94: =+Score!E94 -> 1.97 | F94: =+Score!F94 -> 1 | G94: 0.875 | H94: 0.9 | I94: 0.9 | J94: 0.475 | K94: 0.9166666667 | L94: 0.9833333333 | M94: 0.8272727273 | N94: 1 | O94: 1 | P94: 1 | Q94: 1 | R94: 1 | S94: 9.064393939 | V94: 35 | W94: 0.875 | X94: 45 | Y94: 0.9 | Z94: 27 | AA94: 0.9 | AB94: 28.5 | AC94: 0.475 | AD94: 55 | AE94: 0.9166666667 | AF94: 29.5 | AG94: 0.9833333333 | AH94: 91 | AI94: 0.8272727273 | AJ94: 40 | AK94: 1 | AL94: 72 | AM94: 1 | AN94: 30 | AO94: 1 | AP94: 45 | AQ94: 1 | AR94: 20 | AS94: 1
A95: =+Score!A95 -> 92 | B95: =+Score!B95 -> 553040467-9 | C95: =+Score!C95 -> นายนพพล รัตน์ปิยะภาภรณ์ | D95: =+Score!D95 -> EN-AE | E95: =+Score!E95 -> 2.57 | F95: =+Score!F95 -> 1 | G95: 0.575 | H95: 1 | I95: 1 | J95: 0.8333333333 | K95: 1 | L95: 1 | M95: 0.9909090909 | N95: 1 | O95: 1 | P95: 1 | Q95: 1 | R95: 1 | S95: 9.499368687 | V95: 23 | W95: 0.575 | X95: 50 | Y95: 1 | Z95: 30 | AA95: 1 | AB95: 50 | AC95: 0.8333333333 | AD95: 60 | AE95: 1 | AF95: 30 | AG95: 1 | AH95: 109 | AI95: 0.9909090909 | AJ95: 40 | AK95: 1 | AL95: 72 | AM95: 1 | AN95: 30 | AO95: 1 | AP95: 45 | AQ95: 1 | AR95: 20 | AS95: 1
A96: =+Score!A96 -> 93 | B96: =+Score!B96 -> 553040468-7 | C96: =+Score!C96 -> นางสาวบังอร ทนน้ำ | D96: =+Score!D96 -> EN-AE | E96: =+Score!E96 -> 2.6 | F96: =+Score!F96 -> 1 | G96: 0.925 | H96: 0.78 | I96: 0.7666666667 | J96: 0.7666666667 | K96: 0.9333333333 | L96: 0.9666666667 | M96: 0.9363636364 | N96: 0.95 | O96: 0.9444444444 | P96: 1 | Q96: 0.9777777778 | R96: 1 | S96: 9.12243266 | V96: 37 | W96: 0.925 | X96: 39 | Y96: 0.78 | Z96: 23 | AA96: 0.7666666667 | AB96: 46 | AC96: 0.7666666667 | AD96: 56 | AE96: 0.9333333333 | AF96: 29 | AG96: 0.9666666667 | AH96: 103 | AI96: 0.9363636364 | AJ96: 38 | AK96: 0.95 | AL96: 68 | AM96: 0.9444444444 | AN96: 30 | AO96: 1 | AP96: 44 | AQ96: 0.9777777778 | AR96: 20 | AS96: 1
A97: =+Score!A97 -> 94 | B97: =+Score!B97 -> 553040476-8 | C97: =+Score!C97 -> นายมงคลลักษ์ วงษ์ศรีมี | D97: =+Score!D97 -> EN-AE | E97: =+Score!E97 -> 2.83 | F97: =+Score!F97 -> 1 | G97: 0.5 | H97: 1 | I97: 1 | J97: 0.7833333333 | K97: 1 | L97: 1 | M97: 0.9909090909 | N97: 1 | O97: 1 | P97: 1 | Q97: 1 | R97: 1 | S97: 9.39520202 | V97: 20 | W97: 0.5 | X97: 50 | Y97: 1 | Z97: 30 | AA97: 1 | AB97: 47 | AC97: 0.7833333333 | AD97: 60 | AE97: 1 | AF97: 30 | AG97: 1 | AH97: 109 | AI97: 0.9909090909 | AJ97: 40 | AK97: 1 | AL97: 72 | AM97: 1 | AN97: 30 | AO97: 1 | AP97: 45 | AQ97: 1 | AR97: 20 | AS97: 1
A98: =+Score!A98 -> 95 | B98: =+Score!B98 -> 553040485-7 | C98: =+Score!C98 -> นายอานันต์ หอมเนียม | D98: =+Score!D98 -> EN-AE | E98: =+Score!E98 -> 2.24 | F98: =+Score!F98 -> 1 | G98: 0.775 | H98: 1 | I98: 1 | J98: 0.8666666667 | K98: 1 | L98: 1 | M98: 1 | N98: 1 | O98: 1 | P98: 1 | Q98: 1 | R98: 1 | S98: 9.701388889 | V98: 31 | W98: 0.775 | X98: 50 | Y98: 1 | Z98: 30 | AA98: 1 | AB98: 52 | AC98: 0.8666666667 | AD98: 60 | AE98: 1 | AF98: 30 | AG98: 1 | AH98: 110 | AI98: 1 | AJ98: 40 | AK98: 1 | AL98: 72 | AM98: 1 | AN98: 30 | AO98: 1 | AP98: 45 | AQ98: 1 | AR98: 20 | AS98: 1
A99: =+Score!A99 -> 96 | B99: =+Score!B99 -> 553040614-2 | C99: =+Score!C99 -> นายจตุรงค์ ถนอมศิลป์ | D99: =+Score!D99 -> EN-ME (พิเศษ ม.6) | E99: =+Score!E99 -> 0 | F99: =+Score!F99 -> 4 | G99: 1 | H99: 1 | I99: 0.9 | J99: 1 | K99: 1 | L99: 1 | M99: 1 | N99: 1 | O99: 1 | P99: 1 | Q99: 1 | R99: 1 | S99: 9.916666667 | V99: 40 | W99: 1 | X99: 50 | Y99: 1 | Z99: 27 | AA99: 0.9 | AB99: 60 | AC99: 1 | AD99: 60 | AE99: 1 | AF99: 30 | AG99: 1 | AH99: 110 | AI99: 1 | AJ99: 40 | AK99: 1 | AL99: 72 | AM99: 1 | AN99: 30 | AO99: 1 | AP99: 45 | AQ99: 1 | AR99: 20 | AS99: 1
A100: =+Score!A100 -> 97 | B100: =+Score!B100 -> 553040617-6 | C100: =+Score!C100 -> นายชัยศิริ ลี้มีธรรม | D100: =+Score!D100 -> EN-ME (พิเศษ ม.6) | E100: =+Score!E100 -> 0 | F100: =+Score!F100 -> 4 | G100: 0.725 | H100: 0.94 | I100: 0.9333333333 | J100: 0.8166666667 | K100: 0.9166666667 | L100: 0.7666666667 | M100: 0.8818181818 | N100: 1 | O100: 1 | P100: 1 | Q100: 0.9777777778 | R100: 1 | S100: 9.131607744 | V100: 29 | W100: 0.725 | X100: 47 | Y100: 0.94 | Z100: 28 | AA100: 0.9333333333 | AB100: 49 | AC100: 0.8166666667 | AD100: 55 | AE100: 0.9166666667 | AF100: 23 | AG100: 0.7666666667 | AH100: 97 | AI100: 0.8818181818 | AJ100: 40 | AK100: 1 | AL100: 72 | AM100: 1 | AN100: 30 | AO100: 1 | AP100: 44 | AQ100: 0.9777777778 | AR100: 20 | AS100: 1
A101: =+Score!A101 -> 98 | B101: =+Score!B101 -> 553040618-4 | C101: =+Score!C101 -> นายเชษฐพงษ์ สาขา | D101: =+Score!D101 -> EN-ME (พิเศษ ม.6) | E101: =+Score!E101 -> 0 | F101: =+Score!F101 -> 4 | G101: 0.425 | H101: 1 | I101: 0.9 | J101: 0.8833333333 | K101: 0.95 | L101: 1 | M101: 0.9636363636 | N101: 1 | O101: 0 | P101: 1 | Q101: 1 | R101: 1 | S101: 8.434974747 | V101: 17 | W101: 0.425 | X101: 50 | Y101: 1 | Z101: 27 | AA101: 0.9 | AB101: 53 | AC101: 0.8833333333 | AD101: 57 | AE101: 0.95 | AF101: 30 | AG101: 1 | AH101: 106 | AI101: 0.9636363636 | AJ101: 40 | AK101: 1 | AL101: 0 | AM101: 0 | AN101: 30 | AO101: 1 | AP101: 45 | AQ101: 1 | AR101: 20 | AS101: 1
A102: =+Score!A102 -> 99 | B102: =+Score!B102 -> 553040621-5 | C102: =+Score!C102 -> นายณัฐพล หอมจะบก | D102: =+Score!D102 -> EN-ME (พิเศษ ม.6) | E102: =+Score!E102 -> 0 | F102: =+Score!F102 -> 4 | G102: 0.4 | H102: 0.7 | I102: 0 | J102: 0.8666666667 | K102: 0 | L102: 1 | M102: 0.9636363636 | N102: 0 | O102: 0 | P102: 0 | Q102: 0 | R102: 0 | S102: 3.275252525 | V102: 16 | W102: 0.4 | X102: 35 | Y102: 0.7 | Z102: 0 | AA102: 0 | AB102: 52 | AC102: 0.8666666667 | AD102: 0 | AE102: 0 | AF102: 30 | AG102: 1 | AH102: 106 | AI102: 0.9636363636 | AJ102: 0 | AK102: 0 | AL102: 0 | AM102: 0 | AN102: 0 | AO102: 0 | AP102: 0 | AQ102: 0 | AR102: 0 | AS102: 0
A103: =+Score!A103 -> 100 | B103: =+Score!B103 -> 553040622-3 | C103: =+Score!C103 -> นายทศพล ฉายจรุง | D103: =+Score!D103 -> EN-ME (พิเศษ ม.6) | E103: =+Score!E103 -> 0 | F103: =+Score!F103 -> 4 | G103: 0.725 | H103: 1 | I103: 1 | J103: 0.9666666667 | K103: 0 | L103: 1 | M103: 1 | N103: 1 | O103: 1 | P103: 1 | Q103: 1 | R103: 1 | S103: 8.909722222 | V103: 29 | W103: 0.725 | X103: 50 | Y103: 1 | Z103: 30 | AA103: 1 | AB103: 58 | AC103: 0.9666666667 | AD103: 0 | AE103: 0 | AF103: 30 | AG103: 1 | AH103: 110 | AI103: 1 | AJ103: 40 | AK103: 1 | AL103: 72 | AM103: 1 | AN103: 30 | AO103: 1 | AP103: 45 | AQ103: 1 | AR103: 20 | AS103: 1
A104: =+Score!A104 -> 101 | B104: =+Score!B104 -> 553040623-1 | C104: =+Score!C104 -> นายเทพนรินทร์ อินธิราช | D104: =+Score!D104 -> EN-ME (พิเศษ ม.6) | E104: =+Score!E104 -> 0 | F104: =+Score!F104 -> 4 | G104: 1 | H104: 1 | I104: 0.9 | J104: 0.8333333333 | K104: 0.9666666667 | L104: 0.9 | M104: 0.9545454545 | N104: 1 | O104: 1 | P104: 1 | Q104: 0.9777777778 | R104: 1 | S104: 9.61026936 | V104: 40 | W104: 1 | X104: 50 | Y104: 1 | Z104: 27 | AA104: 0.9 | AB104: 50 | AC104: 0.8333333333 | AD104: 58 | AE104: 0.9666666667 | AF104: 27 | AG104: 0.9 | AH104: 105 | AI104: 0.9545454545 | AJ104: 40 | AK104: 1 | AL104: 72 | AM104: 1 | AN104: 30 | AO104: 1 | AP104: 44 | AQ104: 0.9777777778 | AR104: 20 | AS104: 1
A105: =+Score!A105 -> 102 | B105: =+Score!B105 -> 553040624-9 | C105: =+Score!C105 -> นายธนะสิทธิ์ รุจิระโชติวัฒน์ | D105: =+Score!D105 -> EN-ME (พิเศษ ม.6) | E105: =+Score!E105 -> 0 | F105: =+Score!F105 -> 4 | G105: 0.775 | H105: 1 | I105: 0.9666666667 | J105: 0.85 | K105: 0.95 | L105: 0.9 | M105: 0.9636363636 | N105: 1 | O105: 1 | P105: 1 | Q105: 0.9555555556 | R105: 1 | S105: 9.467382155 | V105: 31 | W105: 0.775 | X105: 50 | Y105: 1 | Z105: 29 | AA105: 0.9666666667 | AB105: 51 | AC105: 0.85 | AD105: 57 | AE105: 0.95 | AF105: 27 | AG105: 0.9 | AH105: 106 | AI105: 0.9636363636 | AJ105: 40 | AK105: 1 | AL105: 72 | AM105: 1 | AN105: 30 | AO105: 1 | AP105: 43 | AQ105: 0.9555555556 | AR105: 20 | AS105: 1
A106: =+Score!A106 -> 103 | B106: =+Score!B106 -> 553040625-7 | C106: =+Score!C106 -> นายธีรศักดิ์ สังสิทธิสวัสดิ์ | D106: =+Score!D106 -> EN-ME (พิเศษ ม.6) | E106: =+Score!E106 -> 0 | F106: =+Score!F106 -> 4 | G106: 0 | H106: 0 | I106: 0 | J106: 0 | K106: 0 | L106: 0 | M106: 0 | N106: 0 | O106: 0 | P106: 0 | Q106: 0 | R106: 0 | S106: 0 | V106: 0 | W106: 0 | X106: 0 | Y106: 0 | Z106: 0 | AA106: 0 | AB106: 0 | AC106: 0 | AD106: 0 | AE106: 0 | AF106: 0 | AG106: 0 | AH106: 0 | AI106: 0 | AJ106: 0 | AK106: 0 | AL106: 0 | AM106: 0 | AN106: 0 | AO106: 0 | AP106: 0 | AQ106: 0 | AR106: 0 | AS106: 0
A107: =+Score!A107 -> 104 | B107: =+Score!B107 -> 553040626-5 | C107: =+Score!C107 -> นายปฏิภาณ สังข์ชัย | D107: =+Score!D107 -> EN-ME (พิเศษ ม.6) | E107: =+Score!E107 -> 0 | F107: =+Score!F107 -> 4 | G107: 0.55 | H107: 0.9 | I107: 0.9 | J107: 0.8833333333 | K107: 0.95 | L107: 0.9 | M107: 0.9636363636 | N107: 1 | O107: 1 | P107: 1 | Q107: 1 | R107: 1 | S107: 9.205808081 | V107: 22 | W107: 0.55 | X107: 45 | Y107: 0.9 | Z107: 27 | AA107: 0.9 | AB107: 53 | AC107: 0.8833333333 | AD107: 57 | AE107: 0.95 | AF107: 27 | AG107: 0.9 | AH107: 106 | AI107: 0.9636363636 | AJ107: 40 | AK107: 1 | AL107: 72 | AM107: 1 | AN107: 30 | AO107: 1 | AP107: 45 | AQ107: 1 | AR107: 20 | AS107: 1
A108: =+Score!A108 -> 105 | B108: =+Score!B108 -> 553040631-2 | C108: =+Score!C108 -> นายพงศ์รัตน์ ณ หนองคาย | D108: =+Score!D108 -> EN-ME (พิเศษ ม.6) | E108: =+Score!E108 -> 0 | F108: =+Score!F108 -> 4 | G108: 0.85 | H108: 1 | I108: 0.9 | J108: 0.8333333333 | K108: 1 | L108: 1 | M108: 0.9818181818 | N108: 1 | O108: 0 | P108: 1 | Q108: 0.8888888889 | R108: 1 | S108: 8.711700337 | V108: 34 | W108: 0.85 | X108: 50 | Y108: 1 | Z108: 27 | AA108: 0.9 | AB108: 50 | AC108: 0.8333333333 | AD108: 60 | AE108: 1 | AF108: 30 | AG108: 1 | AH108: 108 | AI108: 0.9818181818 | AJ108: 40 | AK108: 1 | AL108: 0 | AM108: 0 | AN108: 30 | AO108: 1 | AP108: 40 | AQ108: 0.8888888889 | AR108: 20 | AS108: 1
A109: =+Score!A109 -> 106 | B109: =+Score!B109 -> 553040636-2 | C109: =+Score!C109 -> นายรัชชานนท์ บุญอาษา | D109: =+Score!D109 -> EN-ME (พิเศษ ม.6) | E109: =+Score!E109 -> 0 | F109: =+Score!F109 -> 4 | G109: 0.7 | H109: 1 | I109: 0.9 | J109: 0.8166666667 | K109: 0.95 | L109: 1 | M109: 0.9818181818 | N109: 1 | O109: 1 | P109: 1 | Q109: 0.8888888889 | R109: 1 | S109: 9.364478114 | V109: 28 | W109: 0.7 | X109: 50 | Y109: 1 | Z109: 27 | AA109: 0.9 | AB109: 49 | AC109: 0.8166666667 | AD109: 57 | AE109: 0.95 | AF109: 30 | AG109: 1 | AH109: 108 | AI109: 0.9818181818 | AJ109: 40 | AK109: 1 | AL109: 72 | AM109: 1 | AN109: 30 | AO109: 1 | AP109: 40 | AQ109: 0.8888888889 | AR109: 20 | AS109: 1
A110: =+Score!A110 -> 107 | B110: =+Score!B110 -> 563040310-3 | C110: =+Score!C110 -> นางสาวธัญชนภ ธีระเดชธำดง | D110: =+Score!D110 -> EN-IE | E110: =+Score!E110 -> 0 | F110: =+Score!F110 -> 4 | G110: =W110 -> 1 | H110: =Y110 -> 0.98 | I110: =AA110 -> 0.9666666667 | J110: =AC110 -> 0.9666666667 | K110: =AE110 -> 1 | L110: 1 | M110: 1 | N110: 1 | O110: 1 | P110: 1 | Q110: 1 | R110: 1 | S110: 9.927777778 | V110: 40 | W110: 1 | X110: 49 | Y110: 0.98 | Z110: 29 | AA110: 0.9666666667 | AB110: 58 | AC110: =AB110/60 -> 0.9666666667 | AD110: 60 | AE110: 1 | AF110: 30 | AG110: 1 | AH110: 110 | AI110: 1 | AJ110: 40 | AK110: 1 | AL110: 72 | AM110: 1 | AN110: 30 | AO110: 1 | AP110: 45 | AQ110: 1 | AR110: 20 | AS110: 1

Sheet TestAll
B1: รายวิชา | C1: 185231 : THERMODYNAMICS I | F1: Section 1 | G1: 5 | H1: 5 | K1: =SUM(G1:J1) -> 10 | L1: Accumulated | N1: Full | O1: Score | P1: Full | Q1: Score | R1: Full | S1: Score | T1: full | U1: score
B2: ปีการศึกษา | C2: 2553 ภาคการศึกษาที่ 1 | F2: รศ.ดร.สมหมาย ปรีเปรม | G2: 5 | H2: 5 | K2: =SUM(G2:J2) -> 10 | L2: Full score | N2: 30 | O2: 5 | P2: 35 | Q2: 5
A3: ลำดับ | B3: รหัส | C3: ชื่อ | D3: หลักสูตร | E3: GPA | F3: Section | G3: Test1 | H3: Test2 | I3: Test3 | J3: Test4 | K3: Sum | N3: Test1 | P3: Test2 | R3: Test3 | T3: Test4
A4: =Score!A4 -> 1 | B4: =Score!B4 -> 553040026-9 | C4: =Score!C4 -> นางสาวกนกกาญจน์ อุปสาร | D4: =Score!D4 -> EN-IE | E4: =Score!E4 -> 2.7 | F4: =Score!F4 -> 1 | G4: =+O4 -> 4 | H4: =Q4 -> 5 | K4: =SUM(G4:J4) -> 9 | N4: 24 | O4: =N4/6 -> 4 | P4: 35 | Q4: =P4/7 -> 5
A5: =Score!A5 -> 2 | B5: =Score!B5 -> 553040032-4 | C5: =Score!C5 -> นายกิตติภัทร จิตรกสิกร | D5: =Score!D5 -> EN-IE | E5: =Score!E5 -> 2.68 | F5: =Score!F5 -> 1 | G5: =+O5 -> 4 | H5: =Q5 -> 4.928571429 | K5: =SUM(G5:J5) -> 8.928571429 | N5: 24 | O5: =N5/6 -> 4 | P5: 34.5 | Q5: =P5/7 -> 4.928571429
A6: =Score!A6 -> 3 | B6: =Score!B6 -> 553040033-2 | C6: =Score!C6 -> นายกิรติกร แก้วปานกัน | D6: =Score!D6 -> EN-ME | E6: =Score!E6 -> 2.82 | F6: =Score!F6 -> 1 | G6: 3.583333333 | H6: 4.142857143 | K6: 7.726190476 | N6: 21.5 | O6: 3.583333333 | P6: 29 | Q6: 4.142857143
A7: =Score!A7 -> 4 | B7: =Score!B7 -> 553040041-3 | C7: =Score!C7 -> นางสาวชนาธินาถ โสกงโสด | D7: =Score!D7 -> EN-ME | E7: =Score!E7 -> 2.42 | F7: =Score!F7 -> 1 | G7: 2.25 | H7: 5 | K7: 7.25 | N7: 13.5 | O7: 2.25 | P7: 35 | Q7: 5
A8: =Score!A8 -> 5 | B8: =Score!B8 -> 553040045-5 | C8: =Score!C8 -> นายณัฏฐกิตติ์ พูลประสงค์ | D8: =Score!D8 -> EN-ME | E8: =Score!E8 -> 3.28 | F8: =Score!F8 -> 1 | G8: 4.916666667 | H8: 4.714285714 | K8: 9.630952381 | N8: 29.5 | O8: 4.916666667 | P8: 33 | Q8: 4.714285714
A9: =Score!A9 -> 6 | B9: =Score!B9 -> 553040047-1 | C9: =Score!C9 -> นายณัฐพงษ์ กลิ่นมาลี | D9: =Score!D9 -> EN-ME | E9: =Score!E9 -> 2.87 | F9: =Score!F9 -> 1 | G9: 4 | H9: 4.714285714 | K9: 8.714285714 | N9: 24 | O9: 4 | P9: 33 | Q9: 4.714285714
A10: =Score!A10 -> 7 | B10: =Score!B10 -> 553040049-7 | C10: =Score!C10 -> นายณัฐวัตร สุขสำราญ | D10: =Score!D10 -> EN-IE | E10: =Score!E10 -> 1.76 | F10: =Score!F10 -> 1 | G10: 2.75 | H10: 5 | K10: 7.75 | N10: 16.5 | O10: 2.75 | P10: 35 | Q10: 5
A11: =Score!A11 -> 8 | B11: =Score!B11 -> 553040050-2 | C11: =Score!C11 -> นายณัฐวุฒิ ฆารประเดิม | D11: =Score!D11 -> EN-ME | E11: =Score!E11 -> 2.87 | F11: =Score!F11 -> 1 | G11: 4.166666667 | H11: 4.357142857 | K11: 8.523809524 | N11: 25 | O11: 4.166666667 | P11: 30.5 | Q11: 4.357142857
A12: =Score!A12 -> 9 | B12: =Score!B12 -> 553040052-8 | C12: =Score!C12 -> นายถิรวัฒน์ แก้วคำปอด | D12: =Score!D12 -> EN-ME | E12: =Score!E12 -> 2.61 | F12: =Score!F12 -> 1 | G12: 2.166666667 | H12: 3.714285714 | K12: 5.880952381 | N12: 13 | O12: 2.166666667 | P12: 26 | Q12: 3.714285714
A13: =Score!A13 -> 10 | B13: =Score!B13 -> 553040057-8 | C13: =Score!C13 -> นายธนวิชญ์ เลิศวุฒิชัยกุล | D13: =Score!D13 -> EN-IE | E13: =Score!E13 -> 2.29 | F13: =Score!F13 -> 1 | G13: 4.333333333 | H13: 0 | K13: 4.333333333 | N13: 26 | O13: 4.333333333 | P13: 0 | Q13: 0
A14: =Score!A14 -> 11 | B14: =Score!B14 -> 553040059-4 | C14: =Score!C14 -> นายธนากร บุญดาว | D14: =Score!D14 -> EN-ME | E14: =Score!E14 -> 3.03 | F14: =Score!F14 -> 1 | G14: 3.916666667 | H14: 4.214285714 | K14: 8.130952381 | N14: 23.5 | O14: 3.916666667 | P14: 29.5 | Q14: 4.214285714
A15: =Score!A15 -> 12 | B15: =Score!B15 -> 553040060-9 | C15: =Score!C15 -> นายธนานนท์ ติรวีรขจร | D15: =Score!D15 -> EN-ME | E15: =Score!E15 -> 2.51 | F15: =Score!F15 -> 1 | G15: 4.333333333 | H15: 4.857142857 | K15: 9.19047619 | N15: 26 | O15: 4.333333333 | P15: 34 | Q15: 4.857142857
A16: =Score!A16 -> 13 | B16: =Score!B16 -> 553040061-7 | C16: =Score!C16 -> นายธนารักษ์ ศรีน้อย | D16: =Score!D16 -> EN-ME | E16: =Score!E16 -> 2.51 | F16: =Score!F16 -> 1 | G16: 3.75 | H16: 2.714285714 | K16: 6.464285714 | N16: 22.5 | O16: 3.75 | P16: 19 | Q16: 2.714285714
A17: =Score!A17 -> 14 | B17: =Score!B17 -> 553040063-3 | C17: =Score!C17 -> นายธีรเจต เตรียมวิชานนท์ | D17: =Score!D17 -> EN-ME | E17: =Score!E17 -> 3.03 | F17: =Score!F17 -> 1 | G17: 4.333333333 | H17: 4.428571429 | K17: 8.761904762 | N17: 26 | O17: 4.333333333 | P17: 31 | Q17: 4.428571429
A18: =Score!A18 -> 15 | B18: =Score!B18 -> 553040064-1 | C18: =Score!C18 -> นายธีรพล เตชะเสน | D18: =Score!D18 -> EN-ME | E18: =Score!E18 -> 3.24 | F18: =Score!F18 -> 1 | G18: 4.916666667 | H18: 4.714285714 | K18: 9.630952381 | N18: 29.5 | O18: 4.916666667 | P18: 33 | Q18: 4.714285714
A19: =Score!A19 -> 16 | B19: =Score!B19 -> 553040071-4 | C19: =Score!C19 -> นายบรรยง ชัยยิ่ง | D19: =Score!D19 -> EN-ME | E19: =Score!E19 -> 2.68 | F19: =Score!F19 -> 1 | G19: 3.666666667 | H19: 5 | K19: 8.666666667 | N19: 22 | O19: 3.666666667 | P19: 35 | Q19: 5
A20: =Score!A20 -> 17 | B20: =Score!B20 -> 553040072-2 | C20: =Score!C20 -> นายบัญชา แก้วอาจ | D20: =Score!D20 -> EN-IE | E20: =Score!E20 -> 2.26 | F20: =Score!F20 -> 1 | G20: 3.25 | H20: 2.857142857 | K20: 6.107142857 | N20: 19.5 | O20: 3.25 | P20: 20 | Q20: 2.857142857
A21: =Score!A21 -> 18 | B21: =Score!B21 -> 553040083-7 | C21: =Score!C21 -> นายพันธวัช เก็มประโคน | D21: =Score!D21 -> EN-IE | E21: =Score!E21 -> 2.08 | F21: =Score!F21 -> 1 | G21: 4.333333333 | H21: 4.428571429 | K21: 8.761904762 | N21: 26 | O21: 4.333333333 | P21: 31 | Q21: 4.428571429
A22: =Score!A22 -> 19 | B22: =Score!B22 -> 553040085-3 | C22: =Score!C22 -> นายพิพัฒน์ รักทองจัน | D22: =Score!D22 -> EN-ME | E22: =Score!E22 -> 3.04 | F22: =Score!F22 -> 1 | G22: 4.583333333 | H22: 4.214285714 | K22: 8.797619048 | N22: 27.5 | O22: 4.583333333 | P22: 29.5 | Q22: 4.214285714
A23: =Score!A23 -> 20 | B23: =Score!B23 -> 553040087-9 | C23: =Score!C23 -> นายพิภัทรยา ศิริแว่น | D23: =Score!D23 -> EN-ME | E23: =Score!E23 -> 2.29 | F23: =Score!F23 -> 1 | G23: 4.875 | H23: 5 | K23: 9.875 | N23: 29.25 | O23: 4.875 | P23: 35 | Q23: 5
A24: =Score!A24 -> 21 | B24: =Score!B24 -> 553040092-6 | C24: =Score!C24 -> นายยศพนธ์ จันทร์วิเมลือง | D24: =Score!D24 -> EN-ME | E24: =Score!E24 -> 3.11 | F24: =Score!F24 -> 1 | G24: 2.166666667 | H24: 4.285714286 | K24: 6.452380952 | N24: 13 | O24: 2.166666667 | P24: 30 | Q24: 4.285714286
A25: =Score!A25 -> 22 | B25: =Score!B25 -> 553040094-2 | C25: =Score!C25 -> นายยุทธการ แสนเสนา | D25: =Score!D25 -> EN-ME | E25: =Score!E25 -> 2.37 | F25: =Score!F25 -> 1 | G25: 3.5 | H25: 5 | K25: 8.5 | N25: 21 | O25: 3.5 | P25: 35 | Q25: 5
A26: =Score!A26 -> 23 | B26: =Score!B26 -> 553040095-0 | C26: =Score!C26 -> นายยุทธนา พิริยะสุทธิ์ | D26: =Score!D26 -> EN-ME | E26: =Score!E26 -> 2.64 | F26: =Score!F26 -> 1 | G26: 4.5 | H26: 4.857142857 | K26: 9.357142857 | N26: 27 | O26: 4.5 | P26: 34 | Q26: 4.857142857
A27: =Score!A27 -> 24 | B27: =Score!B27 -> 553040101-1 | C27: =Score!C27 -> นายวรพล จันทร์ผิว | D27: =Score!D27 -> EN-IE | E27: =Score!E27 -> 3.05 | F27: =Score!F27 -> 1 | G27: 4.25 | H27: 4.928571429 | K27: 9.178571429 | N27: 25.5 | O27: 4.25 | P27: 34.5 | Q27: 4.928571429
A28: =Score!A28 -> 25 | B28: =Score!B28 -> 553040104-5 | C28: =Score!C28 -> นายวรานนท์ ยุทธอมร | D28: =Score!D28 -> EN-ME | E28: =Score!E28 -> 2.72 | F28: =Score!F28 -> 1 | G28: 4.333333333 | H28: 4.142857143 | K28: 8.476190476 | N28: 26 | O28: 4.333333333 | P28: 29 | Q28: 4.142857143
A29: =Score!A29 -> 26 | B29: =Score!B29 -> 553040106-1 | C29: =Score!C29 -> นายวศิน คำปัญโญ | D29: =Score!D29 -> EN-ME | E29: =Score!E29 -> 2.6 | F29: =Score!F29 -> 1 | G29: 2.916666667 | H29: 2.857142857 | K29: 5.773809524 | N29: 17.5 | O29: 2.916666667 | P29: 20 | Q29: 2.857142857
A30: =Score!A30 -> 27 | B30: =Score!B30 -> 553040108-7 | C30: =Score!C30 -> นายวิชญสิทธิ์ พันธุ์รักษา | D30: =Score!D30 -> EN-IE | E30: =Score!E30 -> 2.83 | F30: =Score!F30 -> 1 | G30: 3.416666667 | H30: 4.857142857 | K30: 8.273809524 | N30: 20.5 | O30: 3.416666667 | P30: 34 | Q30: 4.857142857
A31: =Score!A31 -> 28 | B31: =Score!B31 -> 553040121-5 | C31: =Score!C31 -> นายสิริวุฒิ ภูมิภูเขียว | D31: =Score!D31 -> EN-IE | E31: =Score!E31 -> 2.06 | F31: =Score!F31 -> 1 | G31: 3.416666667 | H31: 4.571428571 | K31: 7.988095238 | N31: 20.5 | O31: 3.416666667 | P31: 32 | Q31: 4.571428571
A32: =Score!A32 -> 29 | B32: =Score!B32 -> 553040123-1 | C32: =Score!C32 -> นางสาวหทัยชนก ปัญญาบุตร | D32: =Score!D32 -> EN-ME | E32: =Score!E32 -> 2.45 | F32: =Score!F32 -> 1 | G32: 2.833333333 | H32: 4.071428571 | K32: 6.904761905 | N32: 17 | O32: 2.833333333 | P32: 28.5 | Q32: 4.071428571
A33: =Score!A33 -> 30 | B33: =Score!B33 -> 553040126-5 | C33: =Score!C33 -> นายอนวัช คงวีระวัฒน์ | D33: =Score!D33 -> EN-ME | E33: =Score!E33 -> 2.27 | F33: =Score!F33 -> 1 | G33: 2.666666667 | H33: 4.357142857 | K33: 7.023809524 | N33: 16 | O33: 2.666666667 | P33: 30.5 | Q33: 4.357142857
A34: =Score!A34 -> 31 | B34: =Score!B34 -> 553040132-0 | C34: =Score!C34 -> นางสาวอรทัย ยอดแก้วพิสัย | D34: =Score!D34 -> EN-IE | E34: =Score!E34 -> 2.8 | F34: =Score!F34 -> 1 | G34: 3.916666667 | H34: 4.714285714 | K34: 8.630952381 | N34: 23.5 | O34: 3.916666667 | P34: 33 | Q34: 4.714285714
A35: =Score!A35 -> 32 | B35: =Score!B35 -> 553040133-8 | C35: =Score!C35 -> นายอรรถชัย ทองสุข | D35: =Score!D35 -> EN-ME | E35: =Score!E35 -> 2.16 | F35: =Score!F35 -> 1 | G35: 3.583333333 | H35: 4.142857143 | K35: 7.726190476 | N35: 21.5 | O35: 3.583333333 | P35: 29 | Q35: 4.142857143
A36: =Score!A36 -> 33 | B36: =Score!B36 -> 553040136-2 | C36: =Score!C36 -> นางสาวอัชฌา เสาร์สิงห์ | D36: =Score!D36 -> EN-ME | E36: =Score!E36 -> 2.8 | F36: =Score!F36 -> 1 | G36: 3.75 | H36: 5 | K36: 8.75 | N36: 22.5 | O36: 3.75 | P36: 35 | Q36: 5
A37: =Score!A37 -> 34 | B37: =Score!B37 -> 553040137-0 | C37: =Score!C37 -> นางสาวอัชรา เชาว์ชอบ | D37: =Score!D37 -> EN-IE | E37: =Score!E37 -> 2.81 | F37: =Score!F37 -> 1 | G37: 4.25 | H37: 4.785714286 | K37: 9.035714286 | N37: 25.5 | O37: 4.25 | P37: 33.5 | Q37: 4.785714286
A38: =Score!A38 -> 35 | B38: =Score!B38 -> 553040146-9 | C38: =Score!C38 -> นายเจษฎา พลชา | D38: =Score!D38 -> EN-AE | E38: =Score!E38 -> 2.39 | F38: =Score!F38 -> 1 | G38: 3.5 | H38: 3.571428571 | K38: 7.071428571 | N38: 21 | O38: 3.5 | P38: 25 | Q38: 3.571428571
A39: =Score!A39 -> 36 | B39: =Score!B39 -> 553040148-5 | C39: =Score!C39 -> นายเชษฐทรัพย์ ทองคำใส | D39: =Score!D39 -> EN-AE | E39: =Score!E39 -> 2.6 | F39: =Score!F39 -> 1 | G39: 2.666666667 | H39: 4.714285714 | K39: 7.380952381 | N39: 16 | O39: 2.666666667 | P39: 33 | Q39: 4.714285714
A40: =Score!A40 -> 37 | B40: =Score!B40 -> 553040149-3 | C40: =Score!C40 -> นายณัฐพงษ์ เหล่าจูม | D40: =Score!D40 -> EN-AE | E40: =Score!E40 -> 3.04 | F40: =Score!F40 -> 1 | G40: 3.466666667 | H40: 4.142857143 | K40: 7.60952381 | N40: 20.8 | O40: 3.466666667 | P40: 29 | Q40: 4.142857143
A41: =Score!A41 -> 38 | B41: =Score!B41 -> 553040154-0 | C41: =Score!C41 -> นางสาวนฤมล พรมพุ้ย | D41: =Score!D41 -> EN-AE | E41: =Score!E41 -> 2.53 | F41: =Score!F41 -> 1 | G41: 3.166666667 | H41: 4.285714286 | K41: 7.452380952 | N41: 19 | O41: 3.166666667 | P41: 30 | Q41: 4.285714286
A42: =Score!A42 -> 39 | B42: =Score!B42 -> 553040163-9 | C42: =Score!C42 -> นางสาววาสนา เคเมือง | D42: =Score!D42 -> EN-AE | E42: =Score!E42 -> 2.3 | F42: =Score!F42 -> 1 | G42: 3.333333333 | H42: 2.857142857 | K42: 6.19047619 | N42: 20 | O42: 3.333333333 | P42: 20 | Q42: 2.857142857
A43: =Score!A43 -> 40 | B43: =Score!B43 -> 553040164-7 | C43: =Score!C43 -> นายวิภูรินทร์ เลิศพนาลัย | D43: =Score!D43 -> EN-AE | E43: =Score!E43 -> 2.55 | F43: =Score!F43 -> 1 | G43: 3.333333333 | H43: 3.214285714 | K43: 6.547619048 | N43: 20 | O43: 3.333333333 | P43: 22.5 | Q43: 3.214285714
A44: =Score!A44 -> 41 | B44: =Score!B44 -> 553040167-1 | C44: =Score!C44 -> นายอดิศักดิ์ มุนนี | D44: =Score!D44 -> EN-AE | E44: =Score!E44 -> 2.96 | F44: =Score!F44 -> 1 | G44: 4.25 | H44: 3.285714286 | K44: 7.535714286 | N44: 25.5 | O44: 4.25 | P44: 23 | Q44: 3.285714286
A45: =Score!A45 -> 42 | B45: =Score!B45 -> 553040169-7 | C45: =Score!C45 -> นายอภิสิทธิ์ รังสิมาวงศ์ | D45: =Score!D45 -> EN-AE | E45: =Score!E45 -> 3.16 | F45: =Score!F45 -> 1 | G45: 3.583333333 | H45: 3.857142857 | K45: 7.44047619 | N45: 21.5 | O45: 3.583333333 | P45: 27 | Q45: 3.857142857
A46: =Score!A46 -> 43 | B46: =Score!B46 -> 553040170-2 | C46: =Score!C46 -> นายอาทิตย์ ภูผาผุด | D46: =Score!D46 -> EN-AE | E46: =Score!E46 -> 3.25 | F46: =Score!F46 -> 1 | G46: 4.566666667 | H46: 4.142857143 | K46: 8.70952381 | N46: 27.4 | O46: 4.566666667 | P46: 29 | Q46: 4.142857143
A47: =Score!A47 -> 44 | B47: =Score!B47 -> 553040281-3 | C47: =Score!C47 -> นายทวิชาติ อัครสันตติกุล | D47: =Score!D47 -> EN-IE | E47: =Score!E47 -> 1.95 | F47: =Score!F47 -> 1 | G47: 3.416666667 | H47: 4.857142857 | K47: 8.273809524 | N47: 20.5 | O47: 3.416666667 | P47: 34 | Q47: 4.857142857
A48: =Score!A48 -> 45 | B48: =Score!B48 -> 553040285-5 | C48: =Score!C48 -> นางสาวกนกอร แดงน้อย | D48: =Score!D48 -> EN-IE | E48: =Score!E48 -> 2.51 | F48: =Score!F48 -> 1 | G48: 3 | H48: 4 | K48: 7 | N48: 18 | O48: 3 | P48: 28 | Q48: 4
A49: =Score!A49 -> 46 | B49: =Score!B49 -> 553040289-7 | C49: =Score!C49 -> นายกัมปนาท ชาวดร | D49: =Score!D49 -> EN-ME | E49: =Score!E49 -> 3.02 | F49: =Score!F49 -> 1 | G49: 3.833333333 | H49: 4.714285714 | K49: 8.547619048 | N49: 23 | O49: 3.833333333 | P49: 33 | Q49: 4.714285714
A50: =Score!A50 -> 47 | B50: =Score!B50 -> 553040290-2 | C50: =Score!C50 -> นายกานตภณ รุ่งฤทัยวัฒน์ | D50: =Score!D50 -> EN-IE | E50: =Score!E50 -> 2.22 | F50: =Score!F50 -> 1 | G50: 1.833333333 | H50: 4.285714286 | K50: 6.119047619 | N50: 11 | O50: 1.833333333 | P50: 30 | Q50: 4.285714286
A51: =Score!A51 -> 48 | B51: =Score!B51 -> 553040297-8 | C51: =Score!C51 -> นางสาวขวัญตา สุวรรณจันทร์ | D51: =Score!D51 -> EN-IE | E51: =Score!E51 -> 1.24 | F51: =Score!F51 -> 1 | G51: 0 | H51: 0 | K51: 0 | N51: 0 | O51: 0 | P51: 0 | Q51: 0
A52: =Score!A52 -> 49 | B52: =Score!B52 -> 553040298-6 | C52: =Score!C52 -> นายคฑาวุธ นิลคุณ | D52: =Score!D52 -> EN-ME | E52: =Score!E52 -> 2.16 | F52: =Score!F52 -> 1 | G52: 3.666666667 | H52: 2.714285714 | K52: 6.380952381 | N52: 22 | O52: 3.666666667 | P52: 19 | Q52: 2.714285714
A53: =Score!A53 -> 50 | B53: =Score!B53 -> 553040302-1 | C53: =Score!C53 -> นายจรูญวิทย์ ยึนประโคน | D53: =Score!D53 -> EN-IE | E53: =Score!E53 -> 2.25 | F53: =Score!F53 -> 1 | G53: 2.583333333 | H53: 4.928571429 | K53: 7.511904762 | N53: 15.5 | O53: 2.583333333 | P53: 34.5 | Q53: 4.928571429
A54: =Score!A54 -> 51 | B54: =Score!B54 -> 553040310-2 | C54: =Score!C54 -> นายจีระวัฒน์ ศรีมีชัย | D54: =Score!D54 -> EN-IE | E54: =Score!E54 -> 2.18 | F54: =Score!F54 -> 1 | G54: 3.166666667 | H54: 4.428571429 | K54: 7.595238095 | N54: 19 | O54: 3.166666667 | P54: 31 | Q54: 4.428571429
A55: =Score!A55 -> 52 | B55: =Score!B55 -> 553040312-8 | C55: =Score!C55 -> นางสาวจุฑารัตน์ เลยยุทธ | D55: =Score!D55 -> EN-IE | E55: =Score!E55 -> 2.66 | F55: =Score!F55 -> 1 | G55: 3.833333333 | H55: 4.928571429 | K55: 8.761904762 | N55: 23 | O55: 3.833333333 | P55: 34.5 | Q55: 4.928571429
A56: =Score!A56 -> 53 | B56: =Score!B56 -> 553040315-2 | C56: =Score!C56 -> นางสาวจุฬารัตน์ แสนวงษ์ | D56: =Score!D56 -> EN-ME | E56: =Score!E56 -> 3.22 | F56: =Score!F56 -> 1 | G56: 4.666666667 | H56: 4 | K56: 8.666666667 | N56: 28 | O56: 4.666666667 | P56: 28 | Q56: 4
A57: =Score!A57 -> 54 | B57: =Score!B57 -> 553040316-0 | C57: =Score!C57 -> นางสาวเจนจิรา ปิยาโยค | D57: =Score!D57 -> EN-ME | E57: =Score!E57 -> 2.3 | F57: =Score!F57 -> 1 | G57: 3.3 | H57: 4.714285714 | K57: 8.014285714 | N57: 19.8 | O57: 3.3 | P57: 33 | Q57: 4.714285714
A58: =Score!A58 -> 55 | B58: =Score!B58 -> 553040317-8 | C58: =Score!C58 -> นายเจนณรงค์ อยู่ยง | D58: =Score!D58 -> EN-ME | E58: =Score!E58 -> 2.57 | F58: =Score!F58 -> 1 | G58: 3.5 | H58: 4.714285714 | K58: 8.214285714 | N58: 21 | O58: 3.5 | P58: 33 | Q58: 4.714285714
A59: =Score!A59 -> 56 | B59: =Score!B59 -> 553040320-9 | C59: =Score!C59 -> นางสาวชลธิชา นาสินสร้อย | D59: =Score!D59 -> EN-ME | E59: =Score!E59 -> 2.81 | F59: =Score!F59 -> 1 | G59: 4 | H59: 4.785714286 | K59: 8.785714286 | N59: 24 | O59: 4 | P59: 33.5 | Q59: 4.785714286
A60: =Score!A60 -> 57 | B60: =Score!B60 -> 553040321-7 | C60: =Score!C60 -> นายชลวิทย์ พิสิฐรัตนวงศ์ | D60: =Score!D60 -> EN-IE | E60: =Score!E60 -> 2.19 | F60: =Score!F60 -> 1 | G60: 3.416666667 | H60: 4.928571429 | K60: 8.345238095 | N60: 20.5 | O60: 3.416666667 | P60: 34.5 | Q60: 4.928571429
A61: =Score!A61 -> 58 | B61: =Score!B61 -> 553040326-7 | C61: =Score!C61 -> นางสาวญาดา ยิ้มยินดี | D61: =Score!D61 -> EN-IE | E61: =Score!E61 -> 2.09 | F61: =Score!F61 -> 1 | G61: 3.166666667 | H61: 4.642857143 | K61: 7.80952381 | N61: 19 | O61: 3.166666667 | P61: 32.5 | Q61: 4.642857143
A62: =Score!A62 -> 59 | B62: =Score!B62 -> 553040336-4 | C62: =Score!C62 -> นายทวีรัช ทาจันทร์ | D62: =Score!D62 -> EN-ME | E62: =Score!E62 -> 2.46 | F62: =Score!F62 -> 1 | G62: 3.666666667 | H62: 4.428571429 | K62: 8.095238095 | N62: 22 | O62: 3.666666667 | P62: 31 | Q62: 4.428571429
A63: =Score!A63 -> 60 | B63: =Score!B63 -> 553040339-8 | C63: =Score!C63 -> นายแทนพงศ์ พุทธลา | D63: =Score!D63 -> EN-ME | E63: =Score!E63 -> 2.73 | F63: =Score!F63 -> 1 | G63: 4 | H63: 4.571428571 | K63: 8.571428571 | N63: 24 | O63: 4 | P63: 32 | Q63: 4.571428571
A64: =Score!A64 -> 61 | B64: =Score!B64 -> 553040340-3 | C64: =Score!C64 -> นายธนกฤต เหล่าพิเดช | D64: =Score!D64 -> EN-IE | E64: =Score!E64 -> 2.23 | F64: =Score!F64 -> 1 | G64: 3.75 | H64: 4.357142857 | K64: 8.107142857 | N64: 22.5 | O64: 3.75 | P64: 30.5 | Q64: 4.357142857
A65: =Score!A65 -> 62 | B65: =Score!B65 -> 553040346-1 | C65: =Score!C65 -> นางสาวธันยมัย มูลมณี | D65: =Score!D65 -> EN-IE | E65: =Score!E65 -> 1.92 | F65: =Score!F65 -> 1 | G65: 3.333333333 | H65: 5 | K65: 8.333333333 | N65: 20 | O65: 3.333333333 | P65: 35 | Q65: 5
A66: =Score!A66 -> 63 | B66: =Score!B66 -> 553040347-9 | C66: =Score!C66 -> นายธันวา ไกยราช | D66: =Score!D66 -> EN-ME | E66: =Score!E66 -> 2.72 | F66: =Score!F66 -> 1 | G66: 4 | H66: 2.071428571 | K66: 6.071428571 | N66: 24 | O66: 4 | P66: 14.5 | Q66: 2.071428571
A67: =Score!A67 -> 64 | B67: =Score!B67 -> 553040349-5 | C67: =Score!C67 -> นายธิบดี ธิแก้ว | D67: =Score!D67 -> EN-IE | E67: =Score!E67 -> 2.15 | F67: =Score!F67 -> 1 | G67: 3.166666667 | H67: 0.7857142857 | K67: 3.952380952 | N67: 19 | O67: 3.166666667 | P67: 5.5 | Q67: 0.7857142857
A68: =Score!A68 -> 65 | B68: =Score!B68 -> 553040359-2 | C68: =Score!C68 -> นางสาวเบญจวรรณ มั่นวงษ์ | D68: =Score!D68 -> EN-IE | E68: =Score!E68 -> 2.02 | F68: =Score!F68 -> 1 | G68: 4.216666667 | H68: 4.857142857 | K68: 9.073809524 | N68: 25.3 | O68: 4.216666667 | P68: 34 | Q68: 4.857142857
A69: =Score!A69 -> 66 | B69: =Score!B69 -> 553040365-7 | C69: =Score!C69 -> นางสาวปรีม สุขเสนีย์ | D69: =Score!D69 -> EN-ME | E69: =Score!E69 -> 2.47 | F69: =Score!F69 -> 1 | G69: =+O69 -> 4.333333333 | H69: =Q69 -> 4.785714286 | K69: =SUM(G69:J69) -> 9.119047619 | N69: 26 | O69: =N69/6 -> 4.333333333 | P69: 33.5 | Q69: =P69/7 -> 4.785714286
A70: =Score!A70 -> 67 | B70: =Score!B70 -> 553040368-1 | C70: =Score!C70 -> นางสาวปุณฑริกา สิทธิกรชัย | D70: =Score!D70 -> EN-IE | E70: =Score!E70 -> 2.26 | F70: =Score!F70 -> 1 | G70: 3.666666667 | H70: 4.928571429 | K70: 8.595238095 | N70: 22 | O70: 3.666666667 | P70: 34.5 | Q70: 4.928571429
A71: =Score!A71 -> 68 | B71: =Score!B71 -> 553040380-1 | C71: =Score!C71 -> นายพิธพล พลเพชร | D71: =Score!D71 -> EN-IE | E71: =Score!E71 -> 2.21 | F71: =Score!F71 -> 1 | G71: 3 | H71: 4 | K71: 7 | N71: 18 | O71: 3 | P71: 28 | Q71: 4
A72: =Score!A72 -> 69 | B72: =Score!B72 -> 553040383-5 | C72: =Score!C72 -> นายพีระพงษ์ สิมงาม | D72: =Score!D72 -> EN-ME | E72: =Score!E72 -> 2.69 | F72: =Score!F72 -> 1 | G72: 3.666666667 | H72: 4.285714286 | K72: 7.952380952 | N72: 22 | O72: 3.666666667 | P72: 30 | Q72: 4.285714286
A73: =Score!A73 -> 70 | B73: =Score!B73 -> 553040386-9 | C73: =Score!C73 -> นายภัทรพล สารผล | D73: =Score!D73 -> EN-IE | E73: =Score!E73 -> 2.08 | F73: =Score!F73 -> 1 | G73: 1.833333333 | H73: 4.571428571 | K73: 6.404761905 | N73: 11 | O73: 1.833333333 | P73: 32 | Q73: 4.571428571
A74: =Score!A74 -> 71 | B74: =Score!B74 -> 553040387-7 | C74: =Score!C74 -> นายภาคภูมิ ประเสริฐ | D74: =Score!D74 -> EN-ME | E74: =Score!E74 -> 2.86 | F74: =Score!F74 -> 1 | G74: 4.833333333 | H74: 4.928571429 | K74: 9.761904762 | N74: 29 | O74: 4.833333333 | P74: 34.5 | Q74: 4.928571429
A75: =Score!A75 -> 72 | B75: =Score!B75 -> 553040391-6 | C75: =Score!C75 -> นายมารุต พลวัน | D75: =Score!D75 -> EN-ME | E75: =Score!E75 -> 2.77 | F75: =Score!F75 -> 1 | G75: 4.833333333 | H75: 4.928571429 | K75: 9.761904762 | N75: 29 | O75: 4.833333333 | P75: 34.5 | Q75: 4.928571429
A76: =Score!A76 -> 73 | B76: =Score!B76 -> 553040397-4 | C76: =Score!C76 -> นายรัชชานนท์ หาญกล้า | D76: =Score!D76 -> EN-ME | E76: =Score!E76 -> 2.65 | F76: =Score!F76 -> 1 | G76: 2.833333333 | H76: 4.214285714 | K76: 7.047619048 | N76: 17 | O76: 2.833333333 | P76: 29.5 | Q76: 4.214285714
A77: =Score!A77 -> 74 | B77: =Score!B77 -> 553040400-1 | C77: =Score!C77 -> นายวงศธร เอียตระกูลไพบูลย์ | D77: =Score!D77 -> EN-IE | E77: =Score!E77 -> 2.76 | F77: =Score!F77 -> 1 | G77: 4.666666667 | H77: 4.785714286 | K77: 9.452380952 | N77: 28 | O77: 4.666666667 | P77: 33.5 | Q77: 4.785714286
A78: =Score!A78 -> 75 | B78: =Score!B78 -> 553040401-9 | C78: =Score!C78 -> นายวชิรวิทย์ นวรัตนากร | D78: =Score!D78 -> EN-IE | E78: =Score!E78 -> 2.83 | F78: =Score!F78 -> 1 | G78: 3.416666667 | H78: 4.857142857 | K78: 8.273809524 | N78: 20.5 | O78: 3.416666667 | P78: 34 | Q78: 4.857142857
A79: =Score!A79 -> 76 | B79: =Score!B79 -> 553040404-3 | C79: =Score!C79 -> นายวนัสมัญ กฤษณะสุวรรณ | D79: =Score!D79 -> EN-IE | E79: =Score!E79 -> 2.3 | F79: =Score!F79 -> 1 | G79: 0 | H79: 0 | K79: 0 | N79: 0 | O79: 0 | P79: 0 | Q79: 0
A80: =Score!A80 -> 77 | B80: =Score!B80 -> 553040417-4 | C80: =Score!C80 -> นางสาวศศิวิมล กองพันธ์ | D80: =Score!D80 -> EN-IE | E80: =Score!E80 -> 2.94 | F80: =Score!F80 -> 1 | G80: 4.083333333 | H80: 4.642857143 | K80: 8.726190476 | N80: 24.5 | O80: 4.083333333 | P80: 32.5 | Q80: 4.642857143
A81: =Score!A81 -> 78 | B81: =Score!B81 -> 553040420-5 | C81: =Score!C81 -> นางสาวศิรินาถ ดวงพิมพ์ | D81: =Score!D81 -> EN-IE | E81: =Score!E81 -> 2.21 | F81: =Score!F81 -> 1 | G81: 4.583333333 | H81: 3.071428571 | K81: 7.654761905 | N81: 27.5 | O81: 4.583333333 | P81: 21.5 | Q81: 3.071428571
A82: =Score!A82 -> 79 | B82: =Score!B82 -> 553040426-3 | C82: =Score!C82 -> นายสหภาพ เพียรชนะ | D82: =Score!D82 -> EN-ME | E82: =Score!E82 -> 3.13 | F82: =Score!F82 -> 1 | G82: 4.166666667 | H82: 3.957142857 | K82: 8.123809524 | N82: 25 | O82: 4.166666667 | P82: 27.7 | Q82: 3.957142857
A83: =Score!A83 -> 80 | B83: =Score!B83 -> 553040427-1 | C83: =Score!C83 -> นายสิทธิชัย เมืองโคตร | D83: =Score!D83 -> EN-ME | E83: =Score!E83 -> 2.35 | F83: =Score!F83 -> 1 | G83: 4 | H83: 2.071428571 | K83: 6.071428571 | N83: 24 | O83: 4 | P83: 14.5 | Q83: 2.071428571
A84: =Score!A84 -> 81 | B84: =Score!B84 -> 553040428-9 | C84: =Score!C84 -> นางสาวสุกัญญา ธารานุวงศ์ | D84: =Score!D84 -> EN-ME | E84: =Score!E84 -> 2.8 | F84: =Score!F84 -> 1 | G84: 4.25 | H84: 4.857142857 | K84: 9.107142857 | N84: 25.5 | O84: 4.25 | P84: 34 | Q84: 4.857142857
A85: =Score!A85 -> 82 | B85: =Score!B85 -> 553040429-7 | C85: =Score!C85 -> นางสาวสุกัญญา เวียงสิมา | D85: =Score!D85 -> EN-IE | E85: =Score!E85 -> 2.28 | F85: =Score!F85 -> 1 | G85: 4 | H85: 4.928571429 | K85: 8.928571429 | N85: 24 | O85: 4 | P85: 34.5 | Q85: 4.928571429
A86: =Score!A86 -> 83 | B86: =Score!B86 -> 553040430-2 | C86: =Score!C86 -> นางสาวสุฑิฌา อินทนนท์ | D86: =Score!D86 -> EN-IE | E86: =Score!E86 -> 1.95 | F86: =Score!F86 -> 1 | G86: 3.666666667 | H86: 5 | K86: 8.666666667 | N86: 22 | O86: 3.666666667 | P86: 35 | Q86: 5
A87: =Score!A87 -> 84 | B87: =Score!B87 -> 553040434-4 | C87: =Score!C87 -> นางสาวสุรัชนา ตุ่นแก้ว | D87: =Score!D87 -> EN-ME | E87: =Score!E87 -> 2.62 | F87: =Score!F87 -> 1 | G87: 2.583333333 | H87: 5 | K87: 7.583333333 | N87: 15.5 | O87: 2.583333333 | P87: 35 | Q87: 5
A88: =Score!A88 -> 85 | B88: =Score!B88 -> 553040436-0 | C88: =Score!C88 -> นายเสฎฐฌาน น้อยอาษา | D88: =Score!D88 -> EN-ME | E88: =Score!E88 -> 2.26 | F88: =Score!F88 -> 1 | G88: 2.666666667 | H88: 4.142857143 | K88: 6.80952381 | N88: 16 | O88: 2.666666667 | P88: 29 | Q88: 4.142857143
A89: =Score!A89 -> 86 | B89: =Score!B89 -> 553040448-3 | C89: =Score!C89 -> นายอาทิตย์ ขาวสนิท | D89: =Score!D89 -> EN-ME | E89: =Score!E89 -> 2.65 | F89: =Score!F89 -> 1 | G89: 3.416666667 | H89: 4.714285714 | K89: 8.130952381 | N89: 20.5 | O89: 3.416666667 | P89: 33 | Q89: 4.714285714
A90: =Score!A90 -> 87 | B90: =Score!B90 -> 553040449-1 | C90: =Score!C90 -> นายอานุภาพ วิจบ | D90: =Score!D90 -> EN-IE | E90: =Score!E90 -> 2.9 | F90: =Score!F90 -> 1 | G90: 3.666666667 | H90: 4.714285714 | K90: 8.380952381 | N90: 22 | O90: 3.666666667 | P90: 33 | Q90: 4.714285714
A91: =Score!A91 -> 88 | B91: =Score!B91 -> 553040450-6 | C91: =Score!C91 -> นายเอกราช คำงาม | D91: =Score!D91 -> EN-ME | E91: =Score!E91 -> 2.32 | F91: =Score!F91 -> 1 | G91: 4.333333333 | H91: 4.928571429 | K91: 9.261904762 | N91: 26 | O91: 4.333333333 | P91: 34.5 | Q91: 4.928571429
A92: =Score!A92 -> 89 | B92: =Score!B92 -> 553040454-8 | C92: =Score!C92 -> นายกลวัชร จงฤาชา | D92: =Score!D92 -> EN-AE | E92: =Score!E92 -> 2.24 | F92: =Score!F92 -> 1 | G92: 2 | H92: 3.214285714 | K92: 5.214285714 | N92: 12 | O92: 2 | P92: 22.5 | Q92: 3.214285714
A93: =Score!A93 -> 90 | B93: =Score!B93 -> 553040458-0 | C93: =Score!C93 -> นางสาวจุฬาลักษณ์ ชมภูรักษ์ | D93: =Score!D93 -> EN-AE | E93: =Score!E93 -> 2.57 | F93: =Score!F93 -> 1 | G93: 2.416666667 | H93: 4 | K93: 6.416666667 | N93: 14.5 | O93: 2.416666667 | P93: 28 | Q93: 4
A94: =Score!A94 -> 91 | B94: =Score!B94 -> 553040464-5 | C94: =Score!C94 -> นางสาวทิชากร จุลพันธ์ | D94: =Score!D94 -> EN-AE | E94: =Score!E94 -> 1.97 | F94: =Score!F94 -> 1 | G94: 2.583333333 | H94: 4 | K94: 6.583333333 | N94: 15.5 | O94: 2.583333333 | P94: 28 | Q94: 4
A95: =Score!A95 -> 92 | B95: =Score!B95 -> 553040467-9 | C95: =Score!C95 -> นายนพพล รัตน์ปิยะภาภรณ์ | D95: =Score!D95 -> EN-AE | E95: =Score!E95 -> 2.57 | F95: =Score!F95 -> 1 | G95: 3.25 | H95: 4.857142857 | K95: 8.107142857 | N95: 19.5 | O95: 3.25 | P95: 34 | Q95: 4.857142857
A96: =Score!A96 -> 93 | B96: =Score!B96 -> 553040468-7 | C96: =Score!C96 -> นางสาวบังอร ทนน้ำ | D96: =Score!D96 -> EN-AE | E96: =Score!E96 -> 2.6 | F96: =Score!F96 -> 1 | G96: 2.416666667 | H96: 4.285714286 | K96: 6.702380952 | N96: 14.5 | O96: 2.416666667 | P96: 30 | Q96: 4.285714286
A97: =Score!A97 -> 94 | B97: =Score!B97 -> 553040476-8 | C97: =Score!C97 -> นายมงคลลักษ์ วงษ์ศรีมี | D97: =Score!D97 -> EN-AE | E97: =Score!E97 -> 2.83 | F97: =Score!F97 -> 1 | G97: 3.666666667 | H97: 4.5 | K97: 8.166666667 | N97: 22 | O97: 3.666666667 | P97: 31.5 | Q97: 4.5
A98: =Score!A98 -> 95 | B98: =Score!B98 -> 553040485-7 | C98: =Score!C98 -> นายอานันต์ หอมเนียม | D98: =Score!D98 -> EN-AE | E98: =Score!E98 -> 2.24 | F98: =Score!F98 -> 1 | G98: 3.333333333 | H98: 4.571428571 | K98: 7.904761905 | N98: 20 | O98: 3.333333333 | P98: 32 | Q98: 4.571428571
A99: =Score!A99 -> 96 | B99: =Score!B99 -> 553040614-2 | C99: =Score!C99 -> นายจตุรงค์ ถนอมศิลป์ | D99: =Score!D99 -> EN-ME (พิเศษ ม.6) | E99: =Score!E99 -> 0 | F99: =Score!F99 -> 4 | G99: 5 | H99: 4.857142857 | K99: 9.857142857 | N99: 30 | O99: 5 | P99: 34 | Q99: 4.857142857
A100: =Score!A100 -> 97 | B100: =Score!B100 -> 553040617-6 | C100: =Score!C100 -> นายชัยศิริ ลี้มีธรรม | D100: =Score!D100 -> EN-ME (พิเศษ ม.6) | E100: =Score!E100 -> 0 | F100: =Score!F100 -> 4 | G100: 4 | H100: 4.642857143 | K100: 8.642857143 | N100: 24 | O100: 4 | P100: 32.5 | Q100: 4.642857143
A101: =Score!A101 -> 98 | B101: =Score!B101 -> 553040618-4 | C101: =Score!C101 -> นายเชษฐพงษ์ สาขา | D101: =Score!D101 -> EN-ME (พิเศษ ม.6) | E101: =Score!E101 -> 0 | F101: =Score!F101 -> 4 | G101: 3.916666667 | H101: 4.928571429 | K101: 8.845238095 | N101: 23.5 | O101: 3.916666667 | P101: 34.5 | Q101: 4.928571429
A102: =Score!A102 -> 99 | B102: =Score!B102 -> 553040621-5 | C102: =Score!C102 -> นายณัฐพล หอมจะบก | D102: =Score!D102 -> EN-ME (พิเศษ ม.6) | E102: =Score!E102 -> 0 | F102: =Score!F102 -> 4 | G102: 3.166666667 | H102: 4.285714286 | K102: 7.452380952 | N102: 19 | O102: 3.166666667 | P102: 30 | Q102: 4.285714286
A103: =Score!A103 -> 100 | B103: =Score!B103 -> 553040622-3 | C103: =Score!C103 -> นายทศพล ฉายจรุง | D103: =Score!D103 -> EN-ME (พิเศษ ม.6) | E103: =Score!E103 -> 0 | F103: =Score!F103 -> 4 | G103: 3.5 | H103: 4.642857143 | K103: 8.142857143 | N103: 21 | O103: 3.5 | P103: 32.5 | Q103: 4.642857143
A104: =Score!A104 -> 101 | B104: =Score!B104 -> 553040623-1 | C104: =Score!C104 -> นายเทพนรินทร์ อินธิราช | D104: =Score!D104 -> EN-ME (พิเศษ ม.6) | E104: =Score!E104 -> 0 | F104: =Score!F104 -> 4 | G104: 3.666666667 | H104: 4.714285714 | K104: 8.380952381 | N104: 22 | O104: 3.666666667 | P104: 33 | Q104: 4.714285714
A105: =Score!A105 -> 102 | B105: =Score!B105 -> 553040624-9 | C105: =Score!C105 -> นายธนะสิทธิ์ รุจิระโชติวัฒน์ | D105: =Score!D105 -> EN-ME (พิเศษ ม.6) | E105: =Score!E105 -> 0 | F105: =Score!F105 -> 4 | G105: 3.333333333 | H105: 4.714285714 | K105: 8.047619048 | N105: 20 | O105: 3.333333333 | P105: 33 | Q105: 4.714285714
A106: =Score!A106 -> 103 | B106: =Score!B106 -> 553040625-7 | C106: =Score!C106 -> นายธีรศักดิ์ สังสิทธิสวัสดิ์ | D106: =Score!D106 -> EN-ME (พิเศษ ม.6) | E106: =Score!E106 -> 0 | F106: =Score!F106 -> 4 | G106: 0 | H106: 0 | K106: 0 | N106: 0 | O106: 0 | P106: 0 | Q106: 0
A107: =Score!A107 -> 104 | B107: =Score!B107 -> 553040626-5 | C107: =Score!C107 -> นายปฏิภาณ สังข์ชัย | D107: =Score!D107 -> EN-ME (พิเศษ ม.6) | E107: =Score!E107 -> 0 | F107: =Score!F107 -> 4 | G107: 3.308333333 | H107: 4.428571429 | K107: 7.736904762 | N107: 19.85 | O107: 3.308333333 | P107: 31 | Q107: 4.428571429
A108: =Score!A108 -> 105 | B108: =Score!B108 -> 553040631-2 | C108: =Score!C108 -> นายพงศ์รัตน์ ณ หนองคาย | D108: =Score!D108 -> EN-ME (พิเศษ ม.6) | E108: =Score!E108 -> 0 | F108: =Score!F108 -> 4 | G108: 3.5 | H108: 4.857142857 | K108: 8.357142857 | N108: 21 | O108: 3.5 | P108: 34 | Q108: 4.857142857
A109: =Score!A109 -> 106 | B109: =Score!B109 -> 553040636-2 | C109: =Score!C109 -> นายรัชชานนท์ บุญอาษา | D109: =Score!D109 -> EN-ME (พิเศษ ม.6) | E109: =Score!E109 -> 0 | F109: =Score!F109 -> 4 | G109: 2.25 | H109: 4.714285714 | K109: 6.964285714 | N109: 13.5 | O109: 2.25 | P109: 33 | Q109: 4.714285714
A110: =Score!A110 -> 107 | B110: =Score!B110 -> 563040310-3 | C110: =Score!C110 -> นางสาวธัญชนภ ธีระเดชธำดง | D110: =Score!D110 -> EN-IE | E110: =Score!E110 -> 0 | F110: =Score!F110 -> 4 | G110: =+O110 -> 4.583333333 | H110: 4.142857143 | K110: =SUM(G110:J110) -> 8.726190476 | N110: 27.5 | O110: =N110/6 -> 4.583333333 | P110: 29 | Q110: 4.142857143

Sheet Midterm
A1: 195231 : THERMODYNAMICS I | D1: ข้อ 1 | E1: ข้อ 2 | F1: ข้อ 3 | G1: ข้อ 4 | H1: ข้อ 5 | I1: รวม
D2: 10 | E2: 10 | F2: 10 | G2: 10 | H2: 10 | I2: =SUM(D2:H2) -> 50
A3: Section 1
A4: 1 | B4: 553040026-9 | C4: นางสาวกนกกาญจน์ อุปสาร | D4: 8 | E4: 0 | F4: 0 | G4: 5 | H4: 8 | I4: =SUM(D4:H4) -> 21
A5: 2 | B5: 553040032-4 | C5: นายกิตติภัทร จิตรกสิกร | D5: 6 | E5: 0 | F5: 5 | G5: 3 | H5: 3 | I5: 17
A6: 3 | B6: 553040033-2 | C6: นายกิรติกร แก้วปานกัน | D6: 8 | E6: 4 | F6: 10 | G6: 7 | H6: 6 | I6: 35
A7: 4 | B7: 553040041-3 | C7: นางสาวชนาธินาถ โสกงโสด | D7: 0 | E7: 0 | F7: 0 | G7: 6 | H7: 7 | I7: 13
A8: 5 | B8: 553040045-5 | C8: นายณัฏฐกิตติ์ พูลประสงค์ | D8: 8 | E8: 6 | F8: 9 | G8: 10 | H8: 6 | I8: 39
A9: 6 | B9: 553040047-1 | C9: นายณัฐพงษ์ กลิ่นมาลี | D9: 8 | E9: 2 | F9: 8 | G9: 6.5 | H9: 6 | I9: 30.5
A10: 7 | B10: 553040049-7 | C10: นายณัฐวัตร สุขสำราญ | D10: 8 | E10: 2 | F10: 4 | G10: 0 | H10: 0 | I10: 14
A11: 8 | B11: 553040050-2 | C11: นายณัฐวุฒิ ฆารประเดิม | D11: 4 | E11: 2 | F11: 3 | G11: 7.5 | H11: 9 | I11: 25.5
A12: 9 | B12: 553040052-8 | C12: นายถิรวัฒน์ แก้วคำปอด | D12: 6 | E12: 2 | F12: 8 | G12: 8.5 | H12: 8 | I12: 32.5
A13: 10 | B13: 553040057-8 | C13: นายธนวิชญ์ เลิศวุฒิชัยกุล | D13: 8 | E13: 4 | F13: 4 | G13: 8 | H13: 8 | I13: 32
A14: 11 | B14: 553040059-4 | C14: นายธนากร บุญดาว | D14: 8 | E14: 0 | F14: 10 | G14: 9.5 | H14: 7 | I14: 34.5
A15: 12 | B15: 553040060-9 | C15: นายธนานนท์ ติรวีรขจร | D15: 8 | E15: 0 | F15: 7 | G15: 9 | H15: 8 | I15: 32
A16: 13 | B16: 553040061-7 | C16: นายธนารักษ์ ศรีน้อย | D16: 8 | E16: 0 | F16: 10 | G16: 8 | H16: 7 | I16: 33
A17: 14 | B17: 553040063-3 | C17: นายธีรเจต เตรียมวิชานนท์ | D17: 4 | E17: 0 | F17: 3 | G17: 7.5 | H17: 9 | I17: 23.5
A18: 15 | B18: 553040064-1 | C18: นายธีรพล เตชะเสน | D18: 8 | E18: 0 | F18: 7 | G18: 8 | H18: 7 | I18: 30
A19: 16 | B19: 553040071-4 | C19: นายบรรยง ชัยยิ่ง | D19: 8 | E19: 0 | F19: 8 | G19: 8 | H19: 4 | I19: 28
A20: 17 | B20: 553040072-2 | C20: นายบัญชา แก้วอาจ | D20: 4 | E20: 0 | F20: 5 | G20: 8 | H20: 5 | I20: 22
A21: 18 | B21: 553040083-7 | C21: นายพันธวัช เก็มประโคน | D21: 8 | E21: 0 | F21: 10 | G21: 9 | H21: 7 | I21: 34
A22: 19 | B22: 553040085-3 | C22: นายพิพัฒน์ รักทองจัน | D22: 8 | E22: 4 | F22: 8 | G22: 8 | H22: 9 | I22: 37
A23: 20 | B23: 553040087-9 | C23: นายพิภัทรยา ศิริแว่น | D23: - | E23: - | F23: - | G23: - | H23: - | I23: 0
A24: 21 | B24: 553040092-6 | C24: นายยศพนธ์ จันทร์วิเมลือง | D24: 0 | E24: 2 | F24: 0 | G24: 8 | H24: 4 | I24: 14
A25: 22 | B25: 553040094-2 | C25: นายยุทธการ แสนเสนา | D25: 2 | E25: 0 | F25: 8 | G25: 10 | H25: 9.5 | I25: 29.5
A26: 23 | B26: 553040095-0 | C26: นายยุทธนา พิริยะสุทธิ์ | D26: 8 | E26: 0 | F26: 10 | G26: 7 | H26: 9 | I26: 34
A27: 24 | B27: 553040101-1 | C27: นายวรพล จันทร์ผิว | D27: 8 | E27: 4 | F27: 9 | G27: 8 | H27: 9.5 | I27: 38.5
A28: 25 | B28: 553040104-5 | C28: นายวรานนท์ ยุทธอมร | D28: 6 | E28: 4 | F28: 8 | G28: 8 | H28: 8 | I28: 34
A29: 26 | B29: 553040106-1 | C29: นายวศิน คำปัญโญ | D29: 8 | E29: 0 | F29: 5 | G29: 7 | H29: 4 | I29: 24
A30: 27 | B30: 553040108-7 | C30: นายวิชญสิทธิ์ พันธุ์รักษา | D30: 6 | E30: 2 | F30: 10 | G30: 7 | H30: 8 | I30: 33
A31: 28 | B31: 553040121-5 | C31: นายสิริวุฒิ ภูมิภูเขียว | D31: 8 | E31: 0 | F31: 5 | G31: 0 | H31: 0 | I31: 13
A32: 29 | B32: 553040123-1 | C32: นางสาวหทัยชนก ปัญญาบุตร | D32: 4 | E32: 0 | F32: 4 | G32: 7 | H32: 3 | I32: 18
A33: 30 | B33: 553040126-5 | C33: นายอนวัช คงวีระวัฒน์ | D33: 6 | E33: 0 | F33: 0 | G33: 4 | H33: 6 | I33: 16
A34: 31 | B34: 553040132-0 | C34: นางสาวอรทัย ยอดแก้วพิสัย | D34: 8 | E34: 0 | F34: 8 | G34: 8 | H34: 4 | I34: 28
A35: 32 | B35: 553040133-8 | C35: นายอรรถชัย ทองสุข | D35: 10 | E35: 4 | F35: 8 | G35: 6 | H35: 8 | I35: 36
A36: 33 | B36: 553040136-2 | C36: นางสาวอัชฌา เสาร์สิงห์ | D36: 0 | E36: 0 | F36: 6 | G36: 4 | H36: 9 | I36: 19
A37: 34 | B37: 553040137-0 | C37: นางสาวอัชรา เชาว์ชอบ | D37: 8 | E37: 0 | F37: 5 | G37: 3 | H37: 8 | I37: 24
A38: 35 | B38: 553040146-9 | C38: นายเจษฎา พลชา | D38: 6 | E38: 0 | F38: 1 | G38: 7 | H38: 2 | I38: 16
A39: 36 | B39: 553040148-5 | C39: นายเชษฐทรัพย์ ทองคำใส | D39: 8 | E39: 0 | F39: 2 | G39: 7 | H39: 0 | I39: 17
A40: 37 | B40: 553040149-3 | C40: นายณัฐพงษ์ เหล่าจูม | D40: 10 | E40: 2 | F40: 8 | G40: 7 | H40: 3 | I40: 30
A41: 38 | B41: 553040154-0 | C41: นางสาวนฤมล พรมพุ้ย | D41: 8 | E41: 0 | F41: 5 | G41: 4 | H41: 8 | I41: 25
A42: 39 | B42: 553040163-9 | C42: นางสาววาสนา เคเมือง | D42: 8 | E42: 0 | F42: 3 | G42: 8 | H42: 8 | I42: 27
A43: 40 | B43: 553040164-7 | C43: นายวิภูรินทร์ เลิศพนาลัย | D43: 2 | E43: 0 | F43: 6 | G43: 7 | H43: 3 | I43: 18
A44: 41 | B44: 553040167-1 | C44: นายอดิศักดิ์ มุนนี | D44: 8 | E44: 2 | F44: 8 | G44: 9 | H44: 7 | I44: 34
A45: 42 | B45: 553040169-7 | C45: นายอภิสิทธิ์ รังสิมาวงศ์ | D45: 10 | E45: 4 | F45: 5 | G45: 3 | H45: 7 | I45: 29
A46: 43 | B46: 553040170-2 | C46: นายอาทิตย์ ภูผาผุด | D46: 6 | E46: 4 | F46: 10 | G46: 8.5 | H46: 7.5 | I46: 36
A47: 44 | B47: 553040281-3 | C47: นายทวิชาติ อัครสันตติกุล | D47: 6 | E47: 0 | F47: 3 | G47: 8 | H47: 4 | I47: 21
A48: 45 | B48: 553040285-5 | C48: นางสาวกนกอร แดงน้อย | D48: 8 | E48: 2 | F48: 1 | G48: 3.5 | H48: 4 | I48: 18.5
A49: 46 | B49: 553040289-7 | C49: นายกัมปนาท ชาวดร | D49: 4 | E49: 6 | F49: 10 | G49: 9.5 | H49: 5 | I49: 34.5
A50: 47 | B50: 553040290-2 | C50: นายกานตภณ รุ่งฤทัยวัฒน์ | D50: 0 | E50: 0 | F50: 1 | G50: 3 | H50: 6 | I50: 10
A51: 48 | B51: 553040297-8 | C51: นางสาวขวัญตา สุวรรณจันทร์ | D51: - | E51: - | F51: - | G51: - | H51: - | I51: 0
A52: 49 | B52: 553040298-6 | C52: นายคฑาวุธ นิลคุณ | D52: 8 | E52: 0 | F52: 8 | G52: 6 | H52: 3 | I52: 25
A53: 50 | B53: 553040302-1 | C53: นายจรูญวิทย์ ยึนประโคน | D53: 8 | E53: 0 | F53: 4 | G53: 7 | H53: 4 | I53: 23
A54: 51 | B54: 553040310-2 | C54: นายจีระวัฒน์ ศรีมีชัย | D54: 8 | E54: 0 | F54: 5 | G54: 7 | H54: 5 | I54: 25
A55: 52 | B55: 553040312-8 | C55: นางสาวจุฑารัตน์ เลยยุทธ | D55: 8 | E55: 2 | F55: 10 | G55: 7 | H55: 7 | I55: 34
A56: 53 | B56: 553040315-2 | C56: นางสาวจุฬารัตน์ แสนวงษ์ | D56: 8 | E56: 10 | F56: 10 | G56: 9.5 | H56: 9 | I56: 46.5
A57: 54 | B57: 553040316-0 | C57: นางสาวเจนจิรา ปิยาโยค | D57: 8 | E57: 0 | F57: 10 | G57: 9.5 | H57: 7 | I57: 34.5
A58: 55 | B58: 553040317-8 | C58: นายเจนณรงค์ อยู่ยง | D58: 2 | E58: 0 | F58: 5 | G58: 6.5 | H58: 0 | I58: 13.5
A59: 56 | B59: 553040320-9 | C59: นางสาวชลธิชา นาสินสร้อย | D59: 4 | E59: 0 | F59: 7 | G59: 9 | H59: 8 | I59: 28
A60: 57 | B60: 553040321-7 | C60: นายชลวิทย์ พิสิฐรัตนวงศ์ | D60: 8 | E60: 0 | F60: 6 | G60: 0 | H60: 0 | I60: 14
A61: 58 | B61: 553040326-7 | C61: นางสาวญาดา ยิ้มยินดี | D61: 6 | E61: 0 | F61: 8 | G61: 5 | H61: 5 | I61: 24
A62: 59 | B62: 553040336-4 | C62: นายทวีรัช ทาจันทร์ | D62: 8 | E62: 0 | F62: 0 | G62: 3 | H62: 3 | I62: 14
A63: 60 | B63: 553040339-8 | C63: นายแทนพงศ์ พุทธลา | D63: 8 | E63: 0 | F63: 5 | G63: 3 | H63: 1 | I63: 17
A64: 61 | B64: 553040340-3 | C64: นายธนกฤต เหล่าพิเดช | D64: 8 | E64: 0 | F64: 7 | G64: 6 | H64: 5 | I64: 26
A65: 62 | B65: 553040346-1 | C65: นางสาวธันยมัย มูลมณี | D65: 4 | E65: 2 | F65: 1 | G65: 0 | H65: 0 | I65: 7
A66: 63 | B66: 553040347-9 | C66: นายธันวา ไกยราช | D66: 4 | E66: 0 | F66: 9 | G66: 2 | H66: 4 | I66: 19
A67: 64 | B67: 553040349-5 | C67: นายธิบดี ธิแก้ว | D67: 2 | E67: 0 | F67: 0 | G67: 1 | H67: 0 | I67: 3
A68: 65 | B68: 553040359-2 | C68: นางสาวเบญจวรรณ มั่นวงษ์ | D68: 6 | E68: 0 | F68: 9 | G68: 6 | H68: 1 | I68: =SUM(D68:H68) -> 22
A69: 66 | B69: 553040365-7 | C69: นางสาวปรีม สุขเสนีย์ | D69: 8 | E69: 0 | F69: 5 | G69: 7 | H69: 6.5 | I69: 26.5
A70: 67 | B70: 553040368-1 | C70: นางสาวปุณฑริกา สิทธิกรชัย | D70: 4 | E70: 0 | F70: 3 | G70: 5.5 | H70: 3 | I70: 15.5
A71: 68 | B71: 553040380-1 | C71: นายพิธพล พลเพชร | D71: 8 | E71: 0 | F71: 3 | G71: 8 | H71: 9 | I71: 28
A72: 69 | B72: 553040383-5 | C72: นายพีระพงษ์ สิมงาม | D72: 8 | E72: 4 | F72: 10 | G72: 7.5 | H72: 3 | I72: 32.5
A73: 70 | B73: 553040386-9 | C73: นายภัทรพล สารผล | D73: 0 | E73: 0 | F73: 0 | G73: 2 | H73: 2 | I73: 4
A74: 71 | B74: 553040387-7 | C74: นายภาคภูมิ ประเสริฐ | D74: 8 | E74: 6 | F74: 10 | G74: 9 | H74: 8.5 | I74: 41.5
A75: 72 | B75: 553040391-6 | C75: นายมารุต พลวัน | D75: 10 | E75: 0 | F75: 8 | G75: 9 | H75: 8 | I75: 35
A76: 73 | B76: 553040397-4 | C76: นายรัชชานนท์ หาญกล้า | D76: 4 | E76: 2 | F76: 8 | G76: 4 | H76: 6 | I76: 24
A77: 74 | B77: 553040400-1 | C77: นายวงศธร เอียตระกูลไพบูลย์ | D77: 10 | E77: 4 | F77: 7 | G77: 8 | H77: 10 | I77: 39
A78: 75 | B78: 553040401-9 | C78: นายวชิรวิทย์ นวรัตนากร | D78: 4 | E78: 0 | F78: 6 | G78: 8 | H78: 5 | I78: 23
A79: 76 | B79: 553040404-3 | C79: นายวนัสมัญ กฤษณะสุวรรณ | D79: 0 | E79: 0 | F79: 2 | G79: 0.5 | H79: 0 | I79: 2.5
A80: 77 | B80: 553040417-4 | C80: นางสาวศศิวิมล กองพันธ์ | D80: 8 | E80: 0 | F80: 3 | G80: 6.5 | H80: 3 | I80: 20.5
A81: 78 | B81: 553040420-5 | C81: นางสาวศิรินาถ ดวงพิมพ์ | D81: 2 | E81: 0 | F81: 0 | G81: 0.5 | H81: 4 | I81: 6.5
A82: 79 | B82: 553040426-3 | C82: นายสหภาพ เพียรชนะ | D82: 6 | E82: 8 | F82: 10 | G82: 9 | H82: 7 | I82: 40
A83: 80 | B83: 553040427-1 | C83: นายสิทธิชัย เมืองโคตร | D83: 8 | E83: 0 | F83: 3 | G83: 0.5 | H83: 0.5 | I83: 12
A84: 81 | B84: 553040428-9 | C84: นางสาวสุกัญญา ธารานุวงศ์ | D84: 8 | E84: 0 | F84: 10 | G84: 7.5 | H84: 8 | I84: 33.5
A85: 82 | B85: 553040429-7 | C85: นางสาวสุกัญญา เวียงสิมา | D85: 4 | E85: 0 | F85: 7 | G85: 7.5 | H85: 2 | I85: 20.5
A86: 83 | B86: 553040430-2 | C86: นางสาวสุฑิฌา อินทนนท์ | D86: 0 | E86: 0 | F86: 0 | G86: 0 | H86: 0 | I86: 0
A87: 84 | B87: 553040434-4 | C87: นางสาวสุรัชนา ตุ่นแก้ว | D87: 4 | E87: 0 | F87: 8 | G87: 10 | H87: 8 | I87: 30
A88: 85 | B88: 553040436-0 | C88: นายเสฎฐฌาน น้อยอาษา | D88: 0 | E88: 2 | F88: 1 | G88: 1 | H88: 8 | I88: 12
A89: 86 | B89: 553040448-3 | C89: นายอาทิตย์ ขาวสนิท | D89: 0 | E89: 2 | F89: 3 | G89: 3 | H89: 3 | I89: 11
A90: 87 | B90: 553040449-1 | C90: นายอานุภาพ วิจบ | D90: 8 | E90: 0 | F90: 6 | G90: 7 | H90: 3 | I90: 24
A91: 88 | B91: 553040450-6 | C91: นายเอกราช คำงาม | D91: 6 | E91: 6 | F91: 10 | G91: 9 | H91: 3 | I91: 34
A92: 89 | B92: 553040454-8 | C92: นายกลวัชร จงฤาชา | D92: 0 | E92: 0 | F92: 1 | G92: 0.5 | H92: 3 | I92: 4.5
A93: 90 | B93: 553040458-0 | C93: นางสาวจุฬาลักษณ์ ชมภูรักษ์ | D93: 0 | E93: 0 | F93: 5 | G93: 0.5 | H93: 0.5 | I93: 6
A94: 91 | B94: 553040464-5 | C94: นางสาวทิชากร จุลพันธ์ | D94: 8 | E94: 0 | F94: 2 | G94: 8 | H94: 2 | I94: 20
A95: 92 | B95: 553040467-9 | C95: นายนพพล รัตน์ปิยะภาภรณ์ | D95: 8 | E95: 2 | F95: 0 | G95: 5 | H95: 9 | I95: 24
A96: 93 | B96: 553040468-7 | C96: นางสาวบังอร ทนน้ำ | D96: 0 | E96: 0 | F96: 0 | G96: 7.5 | H96: 3 | I96: 10.5
A97: 94 | B97: 553040476-8 | C97: นายมงคลลักษ์ วงษ์ศรีมี | D97: 6 | E97: 0 | F97: 2 | G97: 7.5 | H97: 7 | I97: 22.5
A98: 95 | B98: 553040485-7 | C98: นายอานันต์ หอมเนียม | D98: 2 | E98: 0 | F98: 0 | G98: 3 | H98: 3 | I98: 8
A99: 1 | B99: 553040614-2 | C99: นายจตุรงค์ ถนอมศิลป์ | D99: 8 | E99: 4 | F99: 8 | G99: 9 | H99: 6 | I99: =SUM(D99:H99) -> 35
A100: 2 | B100: 553040617-6 | C100: นายชัยศิริ ลี้มีธรรม | D100: 0 | E100: 2 | F100: 8 | G100: 8.5 | H100: 2 | I100: 20.5
A101: 3 | B101: 553040618-4 | C101: นายเชษฐพงษ์ สาขา | D101: 6 | E101: 0 | F101: 8 | G101: 7 | H101: 9 | I101: 30
A102: 4 | B102: 553040621-5 | C102: นายณัฐพล หอมจะบก | D102: 4 | E102: 4 | F102: 8 | G102: 5 | H102: 3 | I102: 24
A103: 5 | B103: 553040622-3 | C103: นายทศพล ฉายจรุง | D103: 2 | E103: 0 | F103: 3 | G103: 6.5 | H103: 7 | I103: 18.5
A104: 6 | B104: 553040623-1 | C104: นายเทพนรินทร์ อินธิราช | D104: 6 | E104: 2 | F104: 9 | G104: 4 | H104: 9 | I104: 30
A105: 7 | B105: 553040624-9 | C105: นายธนะสิทธิ์ รุจิระโชติวัฒน์ | D105: 8 | E105: 4 | F105: 9 | G105: 9 | H105: 5 | I105: 35
A106: 8 | B106: 553040625-7 | C106: นายธีรศักดิ์ สังสิทธิสวัสดิ์ | D106: - | E106: - | F106: - | G106: - | H106: - | I106: 0
A107: 9 | B107: 553040626-5 | C107: นายปฏิภาณ สังข์ชัย | D107: 8 | E107: 0 | F107: 2 | G107: 3 | H107: 6 | I107: 19
A108: 10 | B108: 553040631-2 | C108: นายพงศ์รัตน์ ณ หนองคาย | D108: 10 | E108: 0 | F108: 2 | G108: 3 | H108: 6 | I108: 21
A109: 11 | B109: 553040636-2 | C109: นายรัชชานนท์ บุญอาษา | D109: 6 | E109: 0 | F109: 5 | G109: 8 | H109: 0 | I109: 19
A110: 12 | B110: 563040310-3 | C110: นางสาวธัญชนก ธีระเดชธำรง | D110: 10 | E110: 6 | F110: 10 | G110: 8.5 | H110: 9 | I110: 43.5
A155: Section 4

Sheet Name
B1: รายวิชา | C1: 185231 : THERMODYNAMICS I | K1: Section 1
B2: ปีการศึกษา | C2: 2555 ภาคการศึกษาที่ 1 | K2: รศ.ดร.สมหมาย ปรีเปรม
A3: ลำดับ | B3: รหัส | C3: ชื่อ | D3: หลักสูตร | E3: Status | F3: SectList | G3: GPA | H3: Section
A4: 1 | B4: 553040026-9 | C4: นางสาวกนกกาญจน์ อุปสาร | D4: EN-IE | E4: 10 | F4: 1 | G4: 2.7 | H4: 1
A5: 2 | B5: 553040032-4 | C5: นายกิตติภัทร จิตรกสิกร | D5: EN-IE | E5: 10 | F5: 2 | G5: 2.68 | H5: 1
A6: 3 | B6: 553040033-2 | C6: นายกิรติกร แก้วปานกัน | D6: EN-ME | E6: 10 | F6: 3 | G6: 2.82 | H6: 1
A7: 4 | B7: 553040041-3 | C7: นางสาวชนาธินาถ โสกงโสด | D7: EN-ME | E7: 10 | F7: 4 | G7: 2.42 | H7: 1
A8: 5 | B8: 553040045-5 | C8: นายณัฏฐกิตติ์ พูลประสงค์ | D8: EN-ME | E8: 10 | F8: 5 | G8: 3.28 | H8: 1
A9: 6 | B9: 553040047-1 | C9: นายณัฐพงษ์ กลิ่นมาลี | D9: EN-ME | E9: 10 | F9: 6 | G9: 2.87 | H9: 1
A10: 7 | B10: 553040049-7 | C10: นายณัฐวัตร สุขสำราญ | D10: EN-IE | E10: 10 | F10: 7 | G10: 1.76 | H10: 1
A11: 8 | B11: 553040050-2 | C11: นายณัฐวุฒิ ฆารประเดิม | D11: EN-ME | E11: 10 | F11: 8 | G11: 2.87 | H11: 1
A12: 9 | B12: 553040052-8 | C12: นายถิรวัฒน์ แก้วคำปอด | D12: EN-ME | E12: 10 | F12: 9 | G12: 2.61 | H12: 1
A13: 10 | B13: 553040057-8 | C13: นายธนวิชญ์ เลิศวุฒิชัยกุล | D13: EN-IE | E13: 10 | F13: 10 | G13: 2.29 | H13: 1
A14: 11 | B14: 553040059-4 | C14: นายธนากร บุญดาว | D14: EN-ME | E14: 10 | F14: 11 | G14: 3.03 | H14: 1
A15: 12 | B15: 553040060-9 | C15: นายธนานนท์ ติรวีรขจร | D15: EN-ME | E15: 10 | F15: 12 | G15: 2.51 | H15: 1
A16: 13 | B16: 553040061-7 | C16: นายธนารักษ์ ศรีน้อย | D16: EN-ME | E16: 10 | F16: 13 | G16: 2.51 | H16: 1
A17: 14 | B17: 553040063-3 | C17: นายธีรเจต เตรียมวิชานนท์ | D17: EN-ME | E17: 10 | F17: 14 | G17: 3.03 | H17: 1
A18: 15 | B18: 553040064-1 | C18: นายธีรพล เตชะเสน | D18: EN-ME | E18: 10 | F18: 15 | G18: 3.24 | H18: 1
A19: 16 | B19: 553040071-4 | C19: นายบรรยง ชัยยิ่ง | D19: EN-ME | E19: 10 | F19: 16 | G19: 2.68 | H19: 1
A20: 17 | B20: 553040072-2 | C20: นายบัญชา แก้วอาจ | D20: EN-IE | E20: 10 | F20: 17 | G20: 2.26 | H20: 1
A21: 18 | B21: 553040083-7 | C21: นายพันธวัช เก็มประโคน | D21: EN-IE | E21: 10 | F21: 18 | G21: 2.08 | H21: 1
A22: 19 | B22: 553040085-3 | C22: นายพิพัฒน์ รักทองจัน | D22: EN-ME | E22: 10 | F22: 19 | G22: 3.04 | H22: 1
A23: 20 | B23: 553040087-9 | C23: นายพิภัทรยา ศิริแว่น | D23: EN-ME | E23: 10 | F23: 20 | G23: 2.29 | H23: 1
A24: 21 | B24: 553040092-6 | C24: นายยศพนธ์ จันทร์วิเมลือง | D24: EN-ME | E24: 10 | F24: 21 | G24: 3.11 | H24: 1
A25: 22 | B25: 553040094-2 | C25: นายยุทธการ แสนเสนา | D25: EN-ME | E25: 10 | F25: 22 | G25: 2.37 | H25: 1
A26: 23 | B26: 553040095-0 | C26: นายยุทธนา พิริยะสุทธิ์ | D26: EN-ME | E26: 10 | F26: 23 | G26: 2.64 | H26: 1
A27: 24 | B27: 553040101-1 | C27: นายวรพล จันทร์ผิว | D27: EN-IE | E27: 10 | F27: 24 | G27: 3.05 | H27: 1
A28: 25 | B28: 553040104-5 | C28: นายวรานนท์ ยุทธอมร | D28: EN-ME | E28: 10 | F28: 25 | G28: 2.72 | H28: 1
A29: 26 | B29: 553040106-1 | C29: นายวศิน คำปัญโญ | D29: EN-ME | E29: 10 | F29: 26 | G29: 2.6 | H29: 1
A30: 27 | B30: 553040108-7 | C30: นายวิชญสิทธิ์ พันธุ์รักษา | D30: EN-IE | E30: 10 | F30: 27 | G30: 2.83 | H30: 1
A31: 28 | B31: 553040121-5 | C31: นายสิริวุฒิ ภูมิภูเขียว | D31: EN-IE | E31: 10 | F31: 28 | G31: 2.06 | H31: 1
A32: 29 | B32: 553040123-1 | C32: นางสาวหทัยชนก ปัญญาบุตร | D32: EN-ME | E32: 10 | F32: 29 | G32: 2.45 | H32: 1
A33: 30 | B33: 553040126-5 | C33: นายอนวัช คงวีระวัฒน์ | D33: EN-ME | E33: 10 | F33: 30 | G33: 2.27 | H33: 1
A34: 31 | B34: 553040132-0 | C34: นางสาวอรทัย ยอดแก้วพิสัย | D34: EN-IE | E34: 10 | F34: 31 | G34: 2.8 | H34: 1
A35: 32 | B35: 553040133-8 | C35: นายอรรถชัย ทองสุข | D35: EN-ME | E35: 10 | F35: 32 | G35: 2.16 | H35: 1
A36: 33 | B36: 553040136-2 | C36: นางสาวอัชฌา เสาร์สิงห์ | D36: EN-ME | E36: 10 | F36: 33 | G36: 2.8 | H36: 1
A37: 34 | B37: 553040137-0 | C37: นางสาวอัชรา เชาว์ชอบ | D37: EN-IE | E37: 10 | F37: 34 | G37: 2.81 | H37: 1
A38: 35 | B38: 553040146-9 | C38: นายเจษฎา พลชา | D38: EN-AE | E38: 10 | F38: 35 | G38: 2.39 | H38: 1
A39: 36 | B39: 553040148-5 | C39: นายเชษฐทรัพย์ ทองคำใส | D39: EN-AE | E39: 10 | F39: 36 | G39: 2.6 | H39: 1
A40: 37 | B40: 553040149-3 | C40: นายณัฐพงษ์ เหล่าจูม | D40: EN-AE | E40: 10 | F40: 37 | G40: 3.04 | H40: 1
A41: 38 | B41: 553040154-0 | C41: นางสาวนฤมล พรมพุ้ย | D41: EN-AE | E41: 10 | F41: 38 | G41: 2.53 | H41: 1
A42: 39 | B42: 553040163-9 | C42: นางสาววาสนา เคเมือง | D42: EN-AE | E42: 10 | F42: 39 | G42: 2.3 | H42: 1
A43: 40 | B43: 553040164-7 | C43: นายวิภูรินทร์ เลิศพนาลัย | D43: EN-AE | E43: 10 | F43: 40 | G43: 2.55 | H43: 1
A44: 41 | B44: 553040167-1 | C44: นายอดิศักดิ์ มุนนี | D44: EN-AE | E44: 10 | F44: 41 | G44: 2.96 | H44: 1
A45: 42 | B45: 553040169-7 | C45: นายอภิสิทธิ์ รังสิมาวงศ์ | D45: EN-AE | E45: 10 | F45: 42 | G45: 3.16 | H45: 1
A46: 43 | B46: 553040170-2 | C46: นายอาทิตย์ ภูผาผุด | D46: EN-AE | E46: 10 | F46: 43 | G46: 3.25 | H46: 1
A47: 44 | B47: 553040281-3 | C47: นายทวิชาติ อัครสันตติกุล | D47: EN-IE | E47: 10 | F47: 44 | G47: 1.95 | H47: 1
A48: 45 | B48: 553040285-5 | C48: นางสาวกนกอร แดงน้อย | D48: EN-IE | E48: 10 | F48: 45 | G48: 2.51 | H48: 1
A49: 46 | B49: 553040289-7 | C49: นายกัมปนาท ชาวดร | D49: EN-ME | E49: 10 | F49: 46 | G49: 3.02 | H49: 1
A50: 47 | B50: 553040290-2 | C50: นายกานตภณ รุ่งฤทัยวัฒน์ | D50: EN-IE | E50: 10 | F50: 47 | G50: 2.22 | H50: 1
A51: 48 | B51: 553040297-8 | C51: นางสาวขวัญตา สุวรรณจันทร์ | D51: EN-IE | E51: 62 | F51: 48 | G51: 1.24 | H51: 1
A52: 49 | B52: 553040298-6 | C52: นายคฑาวุธ นิลคุณ | D52: EN-ME | E52: 10 | F52: 49 | G52: 2.16 | H52: 1
A53: 50 | B53: 553040302-1 | C53: นายจรูญวิทย์ ยึนประโคน | D53: EN-IE | E53: 10 | F53: 50 | G53: 2.25 | H53: 1
A54: 51 | B54: 553040310-2 | C54: นายจีระวัฒน์ ศรีมีชัย | D54: EN-IE | E54: 10 | F54: 51 | G54: 2.18 | H54: 1
A55: 52 | B55: 553040312-8 | C55: นางสาวจุฑารัตน์ เลยยุทธ | D55: EN-IE | E55: 10 | F55: 52 | G55: 2.66 | H55: 1
A56: 53 | B56: 553040315-2 | C56: นางสาวจุฬารัตน์ แสนวงษ์ | D56: EN-ME | E56: 10 | F56: 53 | G56: 3.22 | H56: 1
A57: 54 | B57: 553040316-0 | C57: นางสาวเจนจิรา ปิยาโยค | D57: EN-ME | E57: 10 | F57: 54 | G57: 2.3 | H57: 1
A58: 55 | B58: 553040317-8 | C58: นายเจนณรงค์ อยู่ยง | D58: EN-ME | E58: 10 | F58: 55 | G58: 2.57 | H58: 1
A59: 56 | B59: 553040320-9 | C59: นางสาวชลธิชา นาสินสร้อย | D59: EN-ME | E59: 10 | F59: 56 | G59: 2.81 | H59: 1
A60: 57 | B60: 553040321-7 | C60: นายชลวิทย์ พิสิฐรัตนวงศ์ | D60: EN-IE | E60: 10 | F60: 57 | G60: 2.19 | H60: 1
A61: 58 | B61: 553040326-7 | C61: นางสาวญาดา ยิ้มยินดี | D61: EN-IE | E61: 10 | F61: 58 | G61: 2.09 | H61: 1
A62: 59 | B62: 553040336-4 | C62: นายทวีรัช ทาจันทร์ | D62: EN-ME | E62: 10 | F62: 59 | G62: 2.46 | H62: 1
A63: 60 | B63: 553040339-8 | C63: นายแทนพงศ์ พุทธลา | D63: EN-ME | E63: 10 | F63: 60 | G63: 2.73 | H63: 1
A64: 61 | B64: 553040340-3 | C64: นายธนกฤต เหล่าพิเดช | D64: EN-IE | E64: 10 | F64: 61 | G64: 2.23 | H64: 1
A65: 62 | B65: 553040346-1 | C65: นางสาวธันยมัย มูลมณี | D65: EN-IE | E65: 10 | F65: 62 | G65: 1.92 | H65: 1
A66: 63 | B66: 553040347-9 | C66: นายธันวา ไกยราช | D66: EN-ME | E66: 10 | F66: 63 | G66: 2.72 | H66: 1
A67: 64 | B67: 553040349-5 | C67: นายธิบดี ธิแก้ว | D67: EN-IE | E67: 10 | F67: 64 | G67: 2.15 | H67: 1
A68: 65 | B68: 553040359-2 | C68: นางสาวเบญจวรรณ มั่นวงษ์ | D68: EN-IE | E68: 10 | F68: 65 | G68: 2.02 | H68: 1
A69: 66 | B69: 553040365-7 | C69: นางสาวปรีม สุขเสนีย์ | D69: EN-ME | E69: 10 | F69: 66 | G69: 2.47 | H69: 1
A70: 67 | B70: 553040368-1 | C70: นางสาวปุณฑริกา สิทธิกรชัย | D70: EN-IE | E70: 10 | F70: 67 | G70: 2.26 | H70: 1
A71: 68 | B71: 553040380-1 | C71: นายพิธพล พลเพชร | D71: EN-IE | E71: 10 | F71: 68 | G71: 2.21 | H71: 1
A72: 69 | B72: 553040383-5 | C72: นายพีระพงษ์ สิมงาม | D72: EN-ME | E72: 10 | F72: 69 | G72: 2.69 | H72: 1
A73: 70 | B73: 553040386-9 | C73: นายภัทรพล สารผล | D73: EN-IE | E73: 10 | F73: 70 | G73: 2.08 | H73: 1
A74: 71 | B74: 553040387-7 | C74: นายภาคภูมิ ประเสริฐ | D74: EN-ME | E74: 10 | F74: 71 | G74: 2.86 | H74: 1
A75: 72 | B75: 553040391-6 | C75: นายมารุต พลวัน | D75: EN-ME | E75: 10 | F75: 72 | G75: 2.77 | H75: 1
A76: 73 | B76: 553040397-4 | C76: นายรัชชานนท์ หาญกล้า | D76: EN-ME | E76: 10 | F76: 73 | G76: 2.65 | H76: 1
A77: 74 | B77: 553040400-1 | C77: นายวงศธร เอียตระกูลไพบูลย์ | D77: EN-IE | E77: 10 | F77: 74 | G77: 2.76 | H77: 1
A78: 75 | B78: 553040401-9 | C78: นายวชิรวิทย์ นวรัตนากร | D78: EN-IE | E78: 10 | F78: 75 | G78: 2.83 | H78: 1
A79: 76 | B79: 553040404-3 | C79: นายวนัสมัญ กฤษณะสุวรรณ | D79: EN-IE | E79: 10 | F79: 76 | G79: 2.3 | H79: 1
A80: 77 | B80: 553040417-4 | C80: นางสาวศศิวิมล กองพันธ์ | D80: EN-IE | E80: 10 | F80: 77 | G80: 2.94 | H80: 1
A81: 78 | B81: 553040420-5 | C81: นางสาวศิรินาถ ดวงพิมพ์ | D81: EN-IE | E81: 10 | F81: 78 | G81: 2.21 | H81: 1
A82: 79 | B82: 553040426-3 | C82: นายสหภาพ เพียรชนะ | D82: EN-ME | E82: 10 | F82: 79 | G82: 3.13 | H82: 1
A83: 80 | B83: 553040427-1 | C83: นายสิทธิชัย เมืองโคตร | D83: EN-ME | E83: 10 | F83: 80 | G83: 2.35 | H83: 1
A84: 81 | B84: 553040428-9 | C84: นางสาวสุกัญญา ธารานุวงศ์ | D84: EN-ME | E84: 10 | F84: 81 | G84: 2.8 | H84: 1
A85: 82 | B85: 553040429-7 | C85: นางสาวสุกัญญา เวียงสิมา | D85: EN-IE | E85: 10 | F85: 82 | G85: 2.28 | H85: 1
A86: 83 | B86: 553040430-2 | C86: นางสาวสุฑิฌา อินทนนท์ | D86: EN-IE | E86: 10 | F86: 83 | G86: 1.95 | H86: 1
A87: 84 | B87: 553040434-4 | C87: นางสาวสุรัชนา ตุ่นแก้ว | D87: EN-ME | E87: 10 | F87: 84 | G87: 2.62 | H87: 1
A88: 85 | B88: 553040436-0 | C88: นายเสฎฐฌาน น้อยอาษา | D88: EN-ME | E88: 10 | F88: 85 | G88: 2.26 | H88: 1
A89: 86 | B89: 553040448-3 | C89: นายอาทิตย์ ขาวสนิท | D89: EN-ME | E89: 10 | F89: 86 | G89: 2.65 | H89: 1
A90: 87 | B90: 553040449-1 | C90: นายอานุภาพ วิจบ | D90: EN-IE | E90: 10 | F90: 87 | G90: 2.9 | H90: 1
A91: 88 | B91: 553040450-6 | C91: นายเอกราช คำงาม | D91: EN-ME | E91: 10 | F91: 88 | G91: 2.32 | H91: 1
A92: 89 | B92: 553040454-8 | C92: นายกลวัชร จงฤาชา | D92: EN-AE | E92: 10 | F92: 89 | G92: 2.24 | H92: 1
A93: 90 | B93: 553040458-0 | C93: นางสาวจุฬาลักษณ์ ชมภูรักษ์ | D93: EN-AE | E93: 10 | F93: 90 | G93: 2.57 | H93: 1
A94: 91 | B94: 553040464-5 | C94: นางสาวทิชากร จุลพันธ์ | D94: EN-AE | E94: 10 | F94: 91 | G94: 1.97 | H94: 1
A95: 92 | B95: 553040467-9 | C95: นายนพพล รัตน์ปิยะภาภรณ์ | D95: EN-AE | E95: 10 | F95: 92 | G95: 2.57 | H95: 1
A96: 93 | B96: 553040468-7 | C96: นางสาวบังอร ทนน้ำ | D96: EN-AE | E96: 10 | F96: 93 | G96: 2.6 | H96: 1
A97: 94 | B97: 553040476-8 | C97: นายมงคลลักษ์ วงษ์ศรีมี | D97: EN-AE | E97: 10 | F97: 94 | G97: 2.83 | H97: 1
A98: 95 | B98: 553040485-7 | C98: นายอานันต์ หอมเนียม | D98: EN-AE | E98: 10 | F98: 95 | G98: 2.24 | H98: 1
A99: 96 | B99: 553040614-2 | C99: นายจตุรงค์ ถนอมศิลป์ | D99: EN-ME (พิเศษ ม.6) | E99: 10 | F99: 1 | H99: 4
A100: 97 | B100: 553040617-6 | C100: นายชัยศิริ ลี้มีธรรม | D100: EN-ME (พิเศษ ม.6) | E100: 10 | F100: 2 | H100: 4
A101: 98 | B101: 553040618-4 | C101: นายเชษฐพงษ์ สาขา | D101: EN-ME (พิเศษ ม.6) | E101: 10 | F101: 3 | H101: 4
A102: 99 | B102: 553040621-5 | C102: นายณัฐพล หอมจะบก | D102: EN-ME (พิเศษ ม.6) | E102: 10 | F102: 4 | H102: 4
A103: 100 | B103: 553040622-3 | C103: นายทศพล ฉายจรุง | D103: EN-ME (พิเศษ ม.6) | E103: 10 | F103: 5 | H103: 4
A104: 101 | B104: 553040623-1 | C104: นายเทพนรินทร์ อินธิราช | D104: EN-ME (พิเศษ ม.6) | E104: 10 | F104: 6 | H104: 4
A105: 102 | B105: 553040624-9 | C105: นายธนะสิทธิ์ รุจิระโชติวัฒน์ | D105: EN-ME (พิเศษ ม.6) | E105: 10 | F105: 7 | H105: 4
A106: 103 | B106: 553040625-7 | C106: นายธีรศักดิ์ สังสิทธิสวัสดิ์ | D106: EN-ME (พิเศษ ม.6) | E106: 10 | F106: 8 | H106: 4
A107: 104 | B107: 553040626-5 | C107: นายปฏิภาณ สังข์ชัย | D107: EN-ME (พิเศษ ม.6) | E107: 10 | F107: 9 | H107: 4
A108: 105 | B108: 553040631-2 | C108: นายพงศ์รัตน์ ณ หนองคาย | D108: EN-ME (พิเศษ ม.6) | E108: 10 | F108: 10 | H108: 4
A109: 106 | B109: 553040636-2 | C109: นายรัชชานนท์ บุญอาษา | D109: EN-ME (พิเศษ ม.6) | E109: 10 | F109: 11 | H109: 4
A110: 107 | B110: 563040310-3 | C110: นางสาวธัญชนภ ธีระเดชธำดง | D110: EN-IE | E110: 10 | F110: 12 | H110: 4
